Workbook

Sheet INDICE
F1: UNIÃO EUROPEIA*
F2: Trocas comerciais com Portugal (PT) 2019-2023 Setores agrícola e agroalimentar, do mar e das florestas
C3: Fonte
D4: Estatísticas do Comércio Internacional | F4: União Europeia - Síntese
D5: dados: 2022 definitivos | F5: 1. Evolução da balança comercial
F6: 2. Ranking dos parceiros comerciais de Portugal por país
C7: Data | D7: 2024-07-09T12:57:08.150 | F7: 2A Parceiros comerciais de Portugal - UE vs. Países Terceiros
F8: 3. Principais produtos transacionados (NC a 2 e 4 dígitos)
F9: 3A Principais produtos transacionados (sem mar nem florestas)
F10: 3B Principais origens e destinos
F11: 3C Principais origens e destinos (sem mar nem florestas)
F12: 4. Evolução da balança comercial por país x produto
F13: 4A Evolução da balança comercial por produto
F14: 5.1. Trocas comerciais por país
F15: 5.1A Trocas comerciais por país (sem mar nem florestas)
F16: 5.2. Trocas comerciais por produto (NC 2 dígitos)
C24: * Sem o Reino Unido (RU). Embora o RU só tenha saído da União Europeia em 2020 (com efeitos a partir de 2021), esta ficha já não o inclui.
C26: Lista de países
D27: Alemanha; Áustria; Bélgica; Bulgária; República Checa; Chipre; Croácia; Dinamarca; Eslováquia; Eslovénia; Espanha; Estónia; Finlândia; França; Grécia; Hungria; Irlanda; Itália; Letónia; Lituânia; Luxemburgo; Malta; Países Baixos; Polónia; Roménia; Suécia

Sheet Sintese
A1: União Europeia - Síntese (2019-2023)
A3: • As trocas comerciais de bens transacionáveis (excluindo serviços) entre Portugal e União Europeia representam um total de 46,7 mil milhões de € em exportações e 65,1 mil milhões de € em importações, na média do período 2019-2023, correspondendo a um saldo negativo da balança comercial de cerca de -18,4 mil milhões.
A4: • No que respeita aos produtos dos setores agrícola e agroalimentar, mar e florestas, Portugal exportou para União Europeia 9,41 mil milhões de € em média anual, no mesmo período, enquanto as importações ascenderam a 12,7 mil milhões de €, resultando num saldo negativo de -3,3 mil M€. Estes setores representam perto de 20,2% do total de exportações de bens transacionáveis e 19,5% das correspondentes importações. Se nos referirmos apenas ao setor agrícola e agroalimentar, as exportações representam, em média, 5,3 mil milhões de € e as importações 8,9 mil milhões, ou seja, um saldo negativo de -3,6 mil M€.
A5: • As principais exportações agrícolas e agroalimentares (NC 4 dígitos) neste período são Charutos, cigarrilhas e cigarros (12%), Azeite (processos mecânicos ou físicos) (8%) e Vinhos de uvas frescas (8%). As importações agrícolas e agroalimentares mais relevantes referem-se a Carnes de bovino, frescas ou refrigeradas (6%), Produtos de padaria, pastelaria, etc. (5%) e Azeite (processos mecânicos ou físicos) (4%). Se considerarmos também os produtos do mar e da floresta, merecem particular destaque, em termos de exportações, Charutos, cigarrilhas e cigarros (7%), Papel e cartão p/ escrita, etc. (7%) e Azeite (processos mecânicos ou físicos) (5%). Nas importações destes setores, destacam-se Carnes de bovino, frescas ou refrigeradas (4%), Produtos de padaria, pastelaria, etc. (4%) e Azeite (processos mecânicos ou físicos) (3%).
A6: • Os principais destinos das exportações do setor agrícola e agroalimentar no mesmo período são Espanha (52%), França (14%) e Itália (9%), sendo as principais origens das importações Espanha (58%), França (10%) e Alemanha (8%). Incluindo os setores do mar e das florestas, os principais destinos são Espanha (49%), França (16%) e Itália (10%), enquanto as principais origens das importações são Espanha (59%), França (8%) e Países Baixos (7%).
A8: Trocas PT-União Europeia (milhões de euros) produtos agrícolas e agroalimentares, do mar e da floresta | J8: Trocas PT-União Europeia (milhões de euros) produtos agrícolas e agroalimentares
B10: 2019 | C10: 2020 | D10: 2021 | E10: 2022 | F10: 2023 | G10: média 2019-2023 | H10: TVMA* 2019-2023 | I10: TVT* 2019-2023 | K10: 2019 | L10: 2020 | M10: 2021 | N10: 2022 | O10: 2023 | P10: média 2019-2023 | Q10: TVMA* 2019-2023 | R10: TVT* 2019-2023
A11: Exportações | B11: 7785.636551 | C11: 7665.919735 | D11: 9103.622081 | E11: 11227.81473 | F11: 11262.88907 | G11: 9409.176433 | H11: 0.09670271889 | I11: 0.4466240489 | J11: Exportações | K11: 4115.146975 | L11: 4430.733868 | M11: 5110.713711 | N11: 6112.031771 | O11: 6752.377711 | P11: 5304.200807 | Q11: 0.1317951907 | R11: 0.6408594279
A12: Importações | B12: 10738.25934 | C12: 10295.74607 | D12: 11842.77424 | E12: 14921.08465 | F12: 15690.87736 | G12: 12697.74833 | H12: 0.0994572182 | I12: 0.4612123679 | J12: Importações | K12: 7401.356844 | L12: 7208.31731 | M12: 8245.063613 | N12: 10376.56891 | O12: 11439.40205 | P12: 8934.141746 | Q12: 0.1149951932 | R12: 0.5455817483
A13: Saldo | B13: -2952.622791 | C13: -2629.826336 | D13: -2739.152163 | E13: -3693.269927 | F13: -4427.988289 | G13: -3288.571901 | J13: Saldo | K13: -3286.209869 | L13: -2777.583442 | M13: -3134.349902 | N13: -4264.537139 | O13: -4687.02434 | P13: -3629.940938
A14: *TVMA - Taxa de variação média anual; TVT - Taxa de variação total
E15: Saldo da Balança Comercial PT-União Europeia (milhões de euros)
G16: 2019 | H16: 2020 | I16: 2021 | J16: 2022 | K16: 2023 | L16: média 2019-2023
F17: Total de Bens Transacionáveis* | G17: -17215.18644 | H17: -12783.44429 | I17: -15955.98331 | J17: -21496.10536 | K17: -24463.31519 | L17: -18382.80692
D18: Agrícola e Agroalimentar (AA) | G18: -3286.209869 | H18: -2777.583442 | I18: -3134.349902 | J18: -4264.537139 | K18: -4687.02434 | L18: -3629.940938
F19: Mar (M) | G19: -627.387811 | H19: -683.54986 | I19: -651.927983 | J19: -867.648382 | K19: -805.274779 | L19: -727.157763 | M19: 0
F20: Florestas (F) | G20: 960.974889 | H20: 831.306966 | I20: 1047.125722 | J20: 1438.915594 | K20: 1064.31083 | L20: 1068.5268 | M20: 0
F21: AA + M + F | G21: -2952.622791 | H21: -2629.826336 | I21: -2739.152163 | J21: -3693.269927 | K21: -4427.988289 | L21: -3288.571901
G22: *exclui serviços
A23: Evolução das trocas comerciais PT-União Europeia (em milhões de euros 2019-2023)
H32: Exportações | J32: Importações | L32: Saldo
A33: Principais produtos agrícolas e agroalimentares (NC 4 dígitos)
A51: Principais origens e destinos em União Europeia dos produtos agrícolas e agroalimentares (média 2019-2023)
A65: Principais produtos agrícolas e agroalimentares transacionados (NC 4 dígitos - média 2019-2023)
A87: Fonte: GPP a partir de dados INE/Comércio Internacional (2022 definitivos) | P87: 2024-07-09T12:57:08.150

Sheet 1
A1: Evolução da balança comercial Portugal-União Europeia 2019-2023 em milhões de euros
A3: Total de Bens Transacionáveis (BT)(1) | B3: 2019 | C3: 2020 | D3: 2021 | E3: 2022 | F3: 2023 | G3: média quinquénio | H3: var. 19/20 | I3: var. 20/21 | J3: var. 21/22 | K3: var. 22/23 | L3: TVMA* 2019-2023 | M3: TVT* 2019-2023
A4: Exportações | B4: 41775.05792 | C4: 38104.42966 | D4: 45276.93897 | E4: 54594.39777 | F4: 53696.64307 | G4: 46689.49348 | H4: -0.08786650326 | I4: 0.188232953 | J4: 0.2057881784 | K4: -0.016444081 | L4: 0.06477419848 | M4: 0.2853756701
A5: Importações | B5: 58990.24436 | C5: 50887.87394 | D5: 61232.92229 | E5: 76090.50313 | F5: 78159.95826 | G5: 65072.3004 | H5: -0.1373510232 | I5: 0.2032910307 | J5: 0.2426404014 | K5: 0.02719728539 | L5: 0.07287970697 | M5: 0.3249641377
A6: Saldo (exp-imp) | B6: -17215.18644 | C6: -12783.44429 | D6: -15955.98331 | E6: -21496.10536 | F6: -24463.31519 | G6: -18382.80692
A7: Cobertura (exp/imp) | B7: 0.7081689247 | C7: 0.7487919362 | D7: 0.7394214955 | E7: 0.7174929265 | F7: 0.6870096181 | G7: 0.7175018125
A8: Exp BT União Europeia / Exp BT Mundo | B8: 0.6973806064 | C8: 0.7088221329 | D8: 0.7116942553 | E8: 0.6969069519 | F8: 0.692709448 | G8: 0.7007620752 | L8: Exportações
A9: Imp BT União Europeia / Imp BT Mundo | B9: 0.7375889281 | C9: 0.7467525102 | D9: 0.7364531345 | E9: 0.6949805557 | F9: 0.7450796568 | G9: 0.7300737046 | L9: Importações
A10: Exp BT União Europeia / Exp TE Mundo | B10: 0.447888965 | C10: 0.5129438676 | D10: 0.5061718683 | E10: 0.4542018302 | F10: 0.4260252742 | G10: 0.4638833678
A11: Imp BT União Europeia / Imp TE Mundo | B11: 0.6391019843 | C11: 0.6475538708 | D11: 0.6408617465 | E11: 0.6037385932 | F11: 0.6316007516 | G11: 0.6302822864
A12: (1) Todos os produtos transacionados entre PT e União Europeia (exclui serviços) | D12: TE - Total da Economia (bens e serviços) Fonte: INE/Contas Nacionais | H12: *TVMA - Taxa de variação média anual; TVT - Taxa de variação total
A24: Agro(1) + Mar + Florestas (AMF) | B24: 2019 | C24: 2020 | D24: 2021 | E24: 2022 | F24: 2023 | G24: média quinquénio | H24: var. 19/20 | I24: var. 20/21 | J24: var. 21/22 | K24: var. 22/23 | L24: TVMA* 2019-2023 | M24: TVT* 2019-2023
A25: Exportações | B25: 7785.636551 | C25: 7665.919735 | D25: 9103.622081 | E25: 11227.81473 | F25: 11262.88907 | G25: 9409.176433 | H25: -0.0153766253 | I25: 0.1875446647 | J25: 0.2333348889 | K25: 0.003123879744 | L25: 0.09670271889 | M25: 0.4466240489
A26: Importações | B26: 10738.25934 | C26: 10295.74607 | D26: 11842.77424 | E26: 14921.08465 | F26: 15690.87736 | G26: 12697.74833 | H26: -0.04120903183 | I26: 0.1502589674 | J26: 0.2599315285 | K26: 0.05159093476 | L26: 0.0994572182 | M26: 0.4612123679
A27: Saldo (exp-imp) | B27: -2952.622791 | C27: -2629.826336 | D27: -2739.152163 | E27: -3693.269927 | F27: -4427.988289 | G27: -3288.571901
A28: Cobertura (exp/imp) | B28: 0.7250371129 | C28: 0.7445715621 | D28: 0.7687068835 | E28: 0.7524797954 | F28: 0.7177985534 | G28: 0.7410114128
A29: Exp AMF / Exp BT | B29: 0.186370455 | C29: 0.2011818522 | D29: 0.2010653168 | E29: 0.205658734 | F29: 0.2097503387 | G29: 0.2015266333 | L29: Exportações
A30: Imp AMF / Imp BT | B30: 0.182034495 | C30: 0.2023221894 | D30: 0.1934053415 | E30: 0.1960965435 | F30: 0.2007533999 | G30: 0.1951329253 | L30: Importações
A31: Exp AMF União Europeia / Exp AMF Mundo | B31: 0.6582475045 | C31: 0.6645537897 | D31: 0.679548749 | E31: 0.6851089063 | F31: 0.6934535238 | G31: 0.6779928854
A32: Imp AMF União Europeia / Imp AMF Mundo | B32: 0.7762579033 | C32: 0.7892249899 | D32: 0.792444458 | E32: 0.7725796549 | F32: 0.7962571805 | G32: 0.7853388315
A33: (1) Produtos agrícolas e agroalimentares | B33: BT - Total de Bens Transacionáveis (exclui serviços) | H33: *TVMA - Taxa de variação média anual; TVT - Taxa de variação total
A45: Agroalimentar (AA)(1) | B45: 2019 | C45: 2020 | D45: 2021 | E45: 2022 | F45: 2023 | G45: média quinquénio | H45: var. 19/20 | I45: var. 20/21 | J45: var. 21/22 | K45: var. 22/23 | L45: TVMA* 2019-2023 | M45: TVT* 2019-2023
A46: Exportações | B46: 4115.146975 | C46: 4430.733868 | D46: 5110.713711 | E46: 6112.031771 | F46: 6752.377711 | G46: 5304.200807 | H46: 0.07668909395 | I46: 0.1534688978 | J46: 0.1959252888 | K46: 0.1047680974 | L46: 0.1317951907 | M46: 0.6408594279
A47: Importações | B47: 7401.356844 | C47: 7208.31731 | D47: 8245.063613 | E47: 10376.56891 | F47: 11439.40205 | G47: 8934.141746 | H47: -0.02608164125 | I47: 0.1438263964 | J47: 0.2585189632 | K47: 0.1024262596 | L47: 0.1149951932 | M47: 0.5455817483
A48: Saldo (exp-imp) | B48: -3286.209869 | C48: -2777.583442 | D48: -3134.349902 | E48: -4264.537139 | F48: -4687.02434 | G48: -3629.940938
A49: Cobertura (exp/imp) | B49: 0.5559989961 | C49: 0.6146696486 | D49: 0.6198513378 | E49: 0.5890224239 | F49: 0.5902736595 | G49: 0.5937000955
A50: Exp AA / Exp AMF | B50: 0.5285562649 | C50: 0.5779781189 | D50: 0.5613934394 | E50: 0.5443652143 | F50: 0.5995244798 | G50: 0.5637263628 | L50: Exportações
A51: Imp AA / Imp AMF | B51: 0.6892510796 | C51: 0.700125786 | D51: 0.6962104861 | E51: 0.6954299335 | F51: 0.729047955 | G51: 0.7036004739 | L51: Importações
A52: Exp AA / Exp BT | B52: 0.09850727156 | C52: 0.1162787085 | D52: 0.1128767498 | E52: 0.1119534608 | F52: 0.1257504627 | G52: 0.113605876
A53: Imp AA / Imp BT | B53: 0.1254674722 | C53: 0.1416509819 | D53: 0.1346508268 | E53: 0.1363714062 | F53: 0.1463588557 | G53: 0.1372956187
A54: Exp AA União Europeia / Exp AA Mundo | B54: 0.654063847 | C54: 0.669590329 | D54: 0.6858358768 | E54: 0.688493776 | F54: 0.7101809621 | G54: 0.6844852981
A55: Imp AA União Europeia / Imp AA Mundo | B55: 0.7943864696 | C55: 0.7934785675 | D55: 0.8027640197 | E55: 0.7838944988 | F55: 0.80866185 | G55: 0.7968992077
A56: (1) Produtos agrícolas e agroalimentares | B56: AMF - Agroalimentar, Mar e Florestas; BT - Total de Bens Transacionáveis (exclui serviços) | H56: *TVMA - Taxa de variação média anual; TVT - Taxa de variação total
A67: Mar (M) | B67: 2019 | C67: 2020 | D67: 2021 | E67: 2022 | F67: 2023 | G67: média quinquénio | H67: var. 19/20 | I67: var. 20/21 | J67: var. 21/22 | K67: var. 22/23 | L67: TVMA* 2019-2023 | M67: TVT* 2019-2023
A68: Exportações | B68: 854.097919 | C68: 706.223881 | D68: 876.718384 | E68: 1019.345761 | F68: 1047.013917 | G68: 900.6799724 | H68: -0.1731347597 | I68: 0.2414170741 | J68: 0.1626832283 | K68: 0.02714305298 | L68: 0.05223125483 | M68: 0.225871055
A69: Importações | B69: 1481.48573 | C69: 1389.773741 | D69: 1528.646367 | E69: 1886.994143 | F69: 1852.288696 | G69: 1627.837735 | H69: -0.06190541505 | I69: 0.09992462939 | J69: 0.2344216319 | K69: -0.01839192089 | L69: 0.05743285718
A70: Saldo (exp-imp) | B70: -627.387811 | C70: -683.54986 | D70: -651.927983 | E70: -867.648382 | F70: -805.274779 | G70: -727.157763
A71: Cobertura (exp/imp) | B71: 0.576514442 | C71: 0.5081574505 | D71: 0.5735259658 | E71: 0.5401955087 | F71: 0.5652541741 | G71: 0.5532983742
A72: Exp M / Exp AMF | B72: 0.1097017454 | C72: 0.09212513376 | D72: 0.09630434746 | E72: 0.09078754733 | F72: 0.09296139831 | G72: 0.09572357143 | L72: Exportações
A73: Imp M / Imp AMF | B73: 0.1379633033 | C73: 0.1349852387 | D73: 0.1290784014 | E73: 0.1264649445 | F73: 0.1180487651 | G73: 0.1281989289 | L73: Importações
A74: Exp M / Exp BT | B74: 0.02044516421 | C74: 0.01853390504 | D74: 0.01936346414 | E74: 0.01867125205 | F74: 0.01949868478 | G74: 0.01929084908
A75: Imp M / Imp BT | B75: 0.02511408023 | C75: 0.02731050903 | D75: 0.02496445229 | E75: 0.02479933849 | F75: 0.02369869096 | G75: 0.02501583201
A76: Exp M União Europeia / Exp M Mundo | B76: 0.7994275203 | C76: 0.7849812971 | D76: 0.8003446425 | E76: 0.7969106717 | F76: 0.7849497097 | G76: 0.7933457545
A77: Imp M União Europeia / Imp M Mundo | B77: 0.6797857177 | C77: 0.7220103053 | D77: 0.7306914316 | E77: 0.7256463787 | F77: 0.7315202025 | G77: 0.7184507963
A78: AMF - Agroalimentar, Mar e Florestas; BT - Total de Bens Transacionáveis (exclui serviços) | H78: *TVMA - Taxa de variação média anual; TVT - Taxa de variação total
A90: Florestas (F) | B90: 2019 | C90: 2020 | D90: 2021 | E90: 2022 | F90: 2023 | G90: média quinquénio | H90: var. 19/20 | I90: var. 20/21 | J90: var. 21/22 | K90: var. 22/23 | L90: TVMA* 2019-2023 | M90: TVT* 2019-2023
A91: Exportações | B91: 2816.391657 | C91: 2528.961986 | D91: 3116.189986 | E91: 4096.437196 | F91: 3463.497443 | G91: 3204.295654 | H91: -0.1020560014 | I91: 0.2322011969 | J91: 0.3145659329 | K91: -0.1545098149 | L91: 0.0530656714 | M91: 0.2297641326
A92: Importações | B92: 1855.416768 | C92: 1697.65502 | D92: 2069.064264 | E92: 2657.521602 | F92: 2399.186613 | G92: 2135.768853 | H92: -0.08502766102 | I92: 0.218777808 | J92: 0.2844074726 | K92: -0.09720898931 | L92: 0.0663644003 | M92: 0.2930715376
A93: Saldo (exp-imp) | B93: 960.974889 | C93: 831.306966 | D93: 1047.125722 | E93: 1438.915594 | F93: 1064.31083 | G93: 1068.5268
A94: Cobertura (exp/imp) | B94: 1.517929398 | C94: 1.489679562 | D94: 1.506086611 | E94: 1.541450197 | F94: 1.443613191 | G94: 1.500300769
A95: Exp F / Exp AMF | B95: 0.3617419897 | C95: 0.3298967473 | D95: 0.3423022131 | E95: 0.3648472383 | F95: 0.3075141219 | G95: 0.3405500658 | L95: Exportações
A96: Imp F / Imp AMF | B96: 0.1727856172 | C96: 0.1648889753 | D96: 0.1747111126 | E96: 0.1781051219 | F96: 0.1529032799 | G96: 0.1682005972 | L96: Importações
A97: Exp F / Exp BT | B97: 0.0674180192 | C97: 0.06636923866 | D97: 0.06882510295 | E97: 0.07503402114 | F97: 0.06450119123 | G97: 0.06862990825
A98: Imp F / Imp BT | B98: 0.03145294257 | C98: 0.0333606985 | D98: 0.03379006238 | E98: 0.03492579879 | F98: 0.03069585331 | G98: 0.03282147458
A99: Exp F União Europeia / Exp F Mundo | B99: 0.630378459 | C99: 0.6293004485 | D99: 0.6426007556 | E99: 0.6573391477 | F99: 0.6413994518 | G99: 0.6416917433
A100: Imp F União Europeia / Imp F Mundo | B100: 0.7939479387 | C100: 0.8337902144 | D100: 0.8014307778 | E100: 0.7646013777 | F100: 0.7924401279 | G100: 0.7934928529
A101: AMF - Agroalimentar, Mar e Florestas; BT - Total de Bens Transacionáveis (exclui serviços) | H101: *TVMA - Taxa de variação média anual; TVT - Taxa de variação total
A111: Fonte: GPP a partir de dados INE/Comércio Internacional (2022 definitivos) | H111: 2024-07-09T12:57:08.150

Sheet 2
A1: Ranking dos parceiros comerciais de Portugal por país (média 2019-2023 em milhares de euros) produtos agrícolas e agroalimentares, do mar e da floresta
A2: Exportações | F2: Importações | K2: Trocas comerciais (total e saldo)
A3: P | B3: País | C3: média quinquénio | D3: % do Total | F3: P | G3: País | H3: média quinquénio | I3: % do Total | K3: P | L3: País | M3: Total (exp+imp) | N3: % do Total | O3: Saldo (exp-imp)
A4: 1 | B4: Espanha | C4: 4592550.996 | D4: 0.330923426 | F4: 1 | G4: Espanha | H4: 7532755.764 | I4: 0.4658909166 | K4: 1 | L4: Espanha | M4: 12125306.76 | N4: 0.4035516061 | O4: -2940204.768
A5: 2 | B5: França | C5: 1475406.133 | D5: 0.1063126904 | F5: 2 | G5: França | H5: 1064680.34 | I5: 0.06584906176 | K5: 2 | L5: França | M5: 2540086.473 | N5: 0.08453856023 | O5: 410725.7926
A6: 3 | B6: Itália | C6: 914488.1622 | D6: 0.06589487105 | F6: 3 | G6: Países Baixos | H6: 945995.408 | I6: 0.0585085567 | K6: 3 | L6: Países Baixos | M6: 1579390.658 | N6: 0.05256490821 | O6: -312600.1578
A7: 4 | B7: Alemanha | C7: 650417.4182 | D7: 0.04686684167 | F7: 4 | G7: Alemanha | H7: 908245.3624 | I7: 0.05617376663 | K7: 4 | L7: Alemanha | M7: 1558662.781 | N7: 0.05187504786 | O7: -257827.9442
A8: 5 | B8: Países Baixos | C8: 633395.2502 | D8: 0.0456402828 | F8: 5 | G8: Brasil | H8: 813481.1398 | I8: 0.05031272561 | K8: 5 | L8: Itália | M8: 1407737.084 | N8: 0.04685197436 | O8: 421239.24
A9: 6 | B9: Estados Unidos | C9: 565282.3184 | D9: 0.04073229925 | F9: 6 | G9: Itália | H9: 493248.9222 | I9: 0.03050678924 | K9: 6 | L9: Brasil | M9: 1307206.312 | N9: 0.04350613284 | O9: -319755.9678 | P9: Nota: Nesta listagem, o Reino Unido passa a ser constituído por três componentes: Reino Unido [até 2020] ; Reino Unido (sem Irlanda do Norte) pós-2020 e Reino Unido (Irlanda do Norte) pós-2020. Estas componentes são calculadas igualmente como média do quinquénio, embora a primeira corresponda apenas a 2019-2020 e as duas últimas a 2021-2023.
A10: 7 | B10: Brasil | C10: 493725.172 | D10: 0.03557613744 | F10: 7 | G10: Suécia | H10: 338905.0652 | I10: 0.02096082714 | K10: 7 | L10: Estados Unidos | M10: 831257.7434 | N10: 0.02766572459 | O10: 299306.8934
A11: 8 | B11: Reino Unido (sem Irlanda do Norte) pós 2020 | C11: 454907.9418 | D11: 0.03277910137 | F11: 8 | G11: Bélgica | H11: 312236.0226 | I11: 0.01931138236 | K11: 8 | L11: Bélgica | M11: 566850.3792 | N11: 0.01886578092 | O11: -57621.666
A12: 9 | B12: Angola | C12: 292706.8674 | D12: 0.02109144993 | F12: 9 | G12: Estados Unidos | H12: 265975.425 | I12: 0.01645022598 | K12: 9 | L12: Reino Unido (sem Irlanda do Norte) pós 2020 | M12: 544526.1836 | N12: 0.0181227923 | O12: 365289.7
A13: 10 | B13: Reino Unido | C13: 261878.4294 | D13: 0.01887005874 | F13: 10 | G13: Polónia | H13: 241404.995 | I13: 0.01493057759 | K13: 10 | L13: Polónia | M13: 500845.6188 | N13: 0.01666902602 | O13: 18035.6288
A14: 11 | B14: Polónia | C14: 259440.6238 | D14: 0.01869439885 | F14: 11 | G14: Ucrânia | H14: 222824.0602 | I14: 0.0137813715 | K14: 11 | L14: Suécia | M14: 438188.76 | N14: 0.01458369519 | O14: -239621.3704
A15: 12 | B15: Bélgica | C15: 254614.3566 | D15: 0.01834663464 | F15: 12 | G15: China, República Popular da | H15: 185793.2864 | I15: 0.01149106744 | K15: 12 | L15: China, República Popular da | M15: 398803.9742 | N15: 0.01327290002 | O15: 27217.4014
A16: 13 | B16: Israel | C16: 229312.128 | D16: 0.01652344309 | F16: 13 | G16: Dinamarca | H16: 157383.1058 | I16: 0.009733935589 | K16: 13 | L16: Reino Unido | M16: 360801.6302 | N16: 0.01200811495 | O16: 162955.2286
A17: 14 | B17: China, República Popular da | C17: 213010.6878 | D17: 0.01534881739 | F17: 14 | G17: África do Sul | H17: 152632.7646 | I17: 0.009440133309 | K17: 14 | L17: Angola | M17: 311605.3244 | N17: 0.01037077508 | O17: 273808.4104
A18: 15 | B18: Turquia | C18: 183340.2302 | D18: 0.01321086628 | F18: 15 | G18: Roménia | H18: 151233.4708 | I18: 0.00935358885 | K18: 15 | L18: Turquia | M18: 242682.4712 | N18: 0.008076900896 | O18: 123997.9892
A19: 16 | B19: Suíça | C19: 154487.3398 | D19: 0.01113182626 | F19: 16 | G19: Irlanda | H19: 122129.636 | I19: 0.00755355541 | K19: 16 | L19: Dinamarca | M19: 241846.6646 | N19: 0.008049083777 | O19: -72919.547
A20: 17 | B20: Marrocos | C20: 118641.6206 | D20: 0.008548907044 | F20: 17 | G20: Canadá | H20: 119672.9708 | I20: 0.007401613938 | K20: 17 | L20: Ucrânia | M20: 239492.5 | N20: 0.007970733025 | O20: -206155.6204
A21: 18 | B21: Cabo Verde | C21: 109793.574 | D21: 0.007911347244 | F21: 18 | G21: Argentina | H21: 105868.1334 | I21: 0.006547803121 | K21: 18 | L21: Israel | M21: 237364.4856 | N21: 0.00789990895 | O21: 221259.7704
A22: 19 | B22: Suécia | C22: 99283.6948 | D22: 0.007154041503 | F22: 19 | G22: Uruguai | H22: 104314.013 | I22: 0.006451682844 | K22: 19 | L22: Canadá | M22: 218508.6438 | N22: 0.007272353261 | O22: -20837.2978
A23: 20 | B23: Canadá | C23: 98835.673 | D23: 0.007121758594 | F23: 20 | G23: Rússia, Federação da | H23: 103735.9496 | I23: 0.006415930392 | K23: 20 | L23: Irlanda | M23: 195463.3652 | N23: 0.006505365722 | O23: -48795.9068
A24: 21 | B24: Argélia | C24: 96652.6324 | D24: 0.006964456198 | F24: 21 | G24: Reino Unido | H24: 98923.2008 | I24: 0.006118268285 | K24: 21 | L24: África do Sul | M24: 189444.1922 | N24: 0.006305037023 | O24: -115821.337
A25: 22 | B25: Dinamarca | C25: 84463.5588 | D25: 0.006086153486 | F25: 22 | G25: Reino Unido (sem Irlanda do Norte) pós 2020 | H25: 89618.2418 | I25: 0.005542768958 | K25: 22 | L25: Roménia | M25: 177317.969 | N25: 0.005901454916 | O25: -125148.9726
A26: 23 | B26: Egito | C26: 82715.0134 | D26: 0.005960159319 | F26: 23 | G26: Finlândia | H26: 81459.6846 | I26: 0.005038173055 | K26: 23 | L26: Rússia, Federação da | M26: 176432.6266 | N26: 0.005871989158 | O26: -31039.2726
A27: 24 | B27: México | C27: 78971.398 | D27: 0.005690407272 | F27: 24 | G27: Índia | H27: 79609.9066 | I27: 0.004923766748 | K27: 24 | L27: Marrocos | M27: 161441.7528 | N27: 0.005373066424 | O27: 75841.4884
A28: 25 | B28: Japão | C28: 73359.52 | D28: 0.005286034648 | F28: 25 | G28: Costa Rica | H28: 70759.3454 | I28: 0.00437637132 | K28: 25 | L28: Suíça | M28: 158551.543 | N28: 0.005276875142 | O28: 150423.1366
A29: 26 | B29: Irlanda | C29: 73333.7292 | D29: 0.005284176252 | F29: 26 | G29: Áustria | H29: 70717.6682 | I29: 0.00437379364 | K29: 26 | L29: Argentina | M29: 121955.0376 | N29: 0.004058878862 | O29: -89781.2292
A30: 27 | B30: Rússia, Federação da | C30: 72696.677 | D30: 0.005238272462 | F30: 27 | G30: Vietname | H30: 69724.8096 | I30: 0.004312386658 | K30: 27 | L30: Grécia | M30: 120758.504 | N30: 0.004019056112 | O30: -5970.7576
A31: 28 | B31: Luxemburgo | C31: 58604.114 | D31: 0.004222810852 | F31: 28 | G31: Grécia | H31: 63364.6308 | I31: 0.003919018065 | K31: 28 | L31: Áustria | M31: 112878.7532 | N31: 0.0037568041 | O31: -28556.5832
A32: 29 | B32: Grécia | C32: 57393.8732 | D32: 0.004135605063 | F32: 29 | G32: Turquia | H32: 59342.241 | I32: 0.003670238611 | K32: 29 | L32: Finlândia | M32: 112248.6552 | N32: 0.003735833327 | O32: -50670.714
A33: 30 | B33: Áustria | C33: 42161.085 | D33: 0.003037982748 | F33: 30 | G33: Equador | H33: 58414.7256 | I33: 0.003612873018 | K33: 30 | L33: Índia | M33: 110944.9186 | N33: 0.003692442672 | O33: -48274.8946
A34: 31 | B34: Moçambique | C34: 41355.922 | D34: 0.002979965472 | F34: 31 | G34: Chile | H34: 53583.805 | I34: 0.00331408701 | K34: 31 | L34: Cabo Verde | M34: 110212.476 | N34: 0.00366806569 | O34: 109374.672
A35: 32 | B35: África do Sul | C35: 36811.4276 | D35: 0.002652504839 | F35: 32 | G35: Bulgária | H35: 44053.42 | I35: 0.002724645384 | K35: 32 | L35: Uruguai | M35: 107585.2684 | N35: 0.003580627585 | O35: -101042.7576
A36: 33 | B36: Arábia Saudita | C36: 35872.3396 | D36: 0.002584837388 | F36: 33 | G36: Marrocos | H36: 42800.1322 | I36: 0.002647131202 | K36: 33 | L36: Argélia | M36: 103327.6826 | N36: 0.003438927616 | O36: 89977.5822
A37: 34 | B37: Austrália | C37: 35112.889 | D37: 0.00253011399 | F37: 34 | G37: Checa, República | H37: 40061.9108 | I37: 0.002477775853 | K37: 34 | L37: Egito | M37: 96954.5744 | N37: 0.003226819329 | O37: 68475.4524
A38: 35 | B38: Guiné-Bissau | C38: 34934.7098 | D38: 0.00251727501 | F38: 35 | G38: Moçambique | H38: 38763.0688 | I38: 0.002397444205 | K38: 35 | L38: México | M38: 96735.505 | N38: 0.003219528313 | O38: 61207.291
A39: 36 | B39: Índia | C39: 31335.012 | D39: 0.00225789317 | F39: 36 | G39: Cuba | H39: 37252.762 | I39: 0.00230403374 | K39: 36 | L39: Japão | M39: 88206.787 | N39: 0.002935677527 | O39: 58512.253
A40: 37 | B40: Emirados Árabes Unidos | C40: 31193.253 | D40: 0.002247678504 | F40: 37 | G40: Colômbia | H40: 31648.7828 | I40: 0.001957435086 | K40: 37 | L40: Chile | M40: 83997.9068 | N40: 0.002795598567 | O40: -23169.7032
A41: 38 | B41: Finlândia | C41: 30788.9706 | D41: 0.002218547305 | F41: 38 | G41: Guiana | H41: 31014.2578 | I41: 0.001918190559 | K41: 38 | L41: Moçambique | M41: 80118.9908 | N41: 0.002666501397 | O41: 2592.8532
A42: 39 | B42: Checa, República | C42: 30741.4622 | D42: 0.002215124013 | F42: 39 | G42: Indonésia | H42: 29000.573 | I42: 0.001793646835 | K42: 39 | L42: Vietname | M42: 76018.5502 | N42: 0.002530031498 | O42: -63431.069
A43: 40 | B43: Chile | C43: 30414.1018 | D43: 0.002191535549 | F43: 40 | G43: Hungria | H43: 27599.932 | I43: 0.001707019054 | K43: 40 | L43: Costa Rica | M43: 75105.2118 | N43: 0.002499633985 | O43: -66413.479
A44: 41 | B44: Jordânia | C44: 29568.7308 | D44: 0.002130621023 | F44: 41 | G44: Costa do Marfim | H44: 23657.68 | I44: 0.001463196015 | K44: 41 | L44: Checa, República | M44: 70803.373 | N44: 0.002356461198 | O44: -9320.4486
A45: 42 | B45: São Tomé e Príncipe | C45: 26635.9748 | D45: 0.001919296714 | F45: 42 | G45: Uganda | H45: 22974.374 | I45: 0.001420934449 | K45: 42 | L45: Luxemburgo | M45: 67469.1578 | N45: 0.002245492632 | O45: 49739.0702
A46: 43 | B46: Roménia | C46: 26084.4982 | D46: 0.001879559207 | F46: 43 | G46: Namíbia | H46: 22899.6914 | I46: 0.00141631543 | K46: 43 | L46: Equador | M46: 61226.8336 | N46: 0.002037737067 | O46: -55602.6176
A47: 44 | B47: Tunísia | C47: 25934.5578 | D47: 0.001868755018 | F47: 44 | G47: Peru | H47: 21918.8742 | I47: 0.001355653191 | K47: 44 | L47: Bulgária | M47: 58331.7144 | N47: 0.001941382391 | O47: -29775.1256
A48: 45 | B48: Noruega | C48: 23600.8168 | D48: 0.00170059367 | F48: 45 | G48: Letónia | H48: 19649.9098 | I48: 0.001215320764 | K48: 45 | L48: Austrália | M48: 52768.4148 | N48: 0.001756225963 | O48: 17457.3632
A49: 46 | B49: Coreia, República da | C49: 22131.0668 | D49: 0.001594688541 | F49: 46 | G49: Lituânia | H49: 19335.0472 | I49: 0.001195846931 | K49: 46 | L49: Hungria | M49: 47357.4652 | N49: 0.001576140012 | O49: -7842.3988
A50: 47 | B50: Hungria | C50: 19757.5332 | D50: 0.001423659875 | F50: 47 | G50: Angola | H50: 18898.457 | I50: 0.001168844408 | K50: 47 | L50: Cuba | M50: 44341.484 | N50: 0.001475762836 | O50: -30164.04
A51: 48 | B51: Nigéria | C51: 18837.3684 | D51: 0.001357355965 | F51: 48 | G51: Suazilândia | H51: 17908.5294 | I51: 0.001107618704 | K51: 48 | L51: Colômbia | M51: 40554.3906 | N51: 0.001349721684 | O51: -22743.175
A52: 49 | B52: Ucrânia | C52: 16668.4398 | D52: 0.001201070431 | F52: 49 | G52: México | H52: 17764.107 | I52: 0.001098686371 | K52: 49 | L52: Noruega | M52: 38853.5164 | N52: 0.001293113589 | O52: 8348.1172
A53: 50 | B53: Argentina | C53: 16086.9042 | D53: 0.001159166976 | F53: 50 | G53: Austrália | H53: 17655.5258 | I53: 0.001091970768 | K53: 50 | L53: Tunísia | M53: 37484.3298 | N53: 0.001247544643 | O53: 14384.7858
A54: 51 | B54: Lituânia | C54: 15776.7104 | D54: 0.001136815478 | F54: 51 | G54: Senegal | H54: 16694.6988 | I54: 0.001032544897 | K54: 51 | L54: Arábia Saudita | M54: 35923.6224 | N54: 0.001195601547 | O54: 35821.0568
A55: 52 | B55: Macau | C55: 14584.6512 | D55: 0.001050919793 | F55: 52 | G55: Nova Zelânda | H55: 16509.396 | I55: 0.001021084166 | K55: 52 | L55: Costa do Marfim | M55: 35761.2586 | N55: 0.001190197793 | O55: -11554.1014
A56: 53 | B56: Bulgária | C56: 14278.2944 | D56: 0.001028844776 | F56: 53 | G56: Estónia | H56: 16249.3526 | I56: 0.001005000828 | K56: 53 | L56: Guiné-Bissau | M56: 35226.5092 | N56: 0.001172400389 | O56: 34642.9104
A57: 54 | B57: Líbia, Jamahira Árabe da | C57: 13798.5402 | D57: 0.0009942753387 | F57: 54 | G57: Eslovénia | H57: 16020.7566 | I57: 0.0009908624692 | K57: 54 | L57: Lituânia | M57: 35111.7576 | N57: 0.001168581254 | O57: -3558.3368
A58: 55 | B58: Iraque | C58: 13659.5246 | D58: 0.0009842583528 | F58: 55 | G58: Noruega | H58: 15252.6996 | I58: 0.0009433591662 | K58: 55 | L58: Coreia, República da | M58: 35092.7906 | N58: 0.001167949998 | O58: 9169.343
A59: 56 | B59: Senegal | C59: 13224.0438 | D59: 0.0009528791044 | F59: 56 | G59: Japão | H59: 14847.267 | I59: 0.0009182836996 | K59: 56 | L59: Indonésia | M59: 33328.2666 | N59: 0.001109223526 | O59: -24672.8794
A60: 57 | B60: Letónia | C60: 13142.7602 | D60: 0.0009470220878 | F60: 57 | G60: Egito | H60: 14239.561 | I60: 0.0008806978925 | K60: 57 | L60: Letónia | M60: 32792.67 | N60: 0.001091397926 | O60: -6507.1496
A61: 58 | B61: Eslováquia | C61: 12789.8374 | D61: 0.000921591685 | F61: 58 | G61: Mauritânia | H61: 13443.2356 | I61: 0.0008314462265 | K61: 58 | L61: Emirados Árabes Unidos | M61: 31951.8318 | N61: 0.001063413347 | O61: 30434.6742
A62: 59 | B62: Croácia | C62: 12333.362 | D62: 0.000888699638 | F62: 59 | G62: Tanzânia, República Unida da | H62: 13079.5878 | I62: 0.0008089550942 | K62: 59 | L62: Guiana | M62: 31130.901 | N62: 0.001036091321 | O62: -30897.6146
A63: 60 | B63: Costa do Marfim | C63: 12103.5786 | D63: 0.0008721422366 | F63: 60 | G63: Camarões | H63: 13022.8276 | I63: 0.0008054445514 | K63: 60 | L63: Senegal | M63: 29918.7426 | N63: 0.0009957485504 | O63: -3470.655
A64: 61 | B64: Síria, República Árabe da | C64: 11995.3212 | D64: 0.0008643415808 | F64: 61 | G64: Coreia, República da | H64: 12961.7238 | I64: 0.0008016653627 | K64: 61 | L64: Jordânia | M64: 29716.5252 | N64: 0.0009890183985 | O64: 29420.9364
A65: 62 | B65: Dominicana, República | C65: 11848.0206 | D65: 0.0008537276063 | F65: 62 | G65: Paquistão | H65: 12615.7756 | I65: 0.000780268927 | K65: 62 | L65: São Tomé e Príncipe | M65: 27725.0646 | N65: 0.0009227390754 | O65: 25546.885
A66: 63 | B66: Território Palestiniano Ocupado | C66: 11806.0928 | D66: 0.0008507064332 | F66: 63 | G66: Tailândia | H66: 12316.114 | I66: 0.000761735256 | K66: 63 | L66: Peru | M66: 27428.1902 | N66: 0.0009128585715 | O66: -16409.5582
A67: 64 | B67: HongKong | C67: 11528.0934 | D67: 0.0008306747528 | F67: 64 | G67: Moldava, República de | H67: 12178.8658 | I67: 0.0007532466375 | K67: 64 | L67: Nigéria | M67: 25016.4128 | N67: 0.0008325903637 | O67: 12658.324
A68: 65 | B68: Malta | C68: 10826.3942 | D68: 0.0007801127224 | F68: 65 | G68: Sérvia | H68: 11730.1152 | I68: 0.0007254920102 | K68: 65 | L68: Estónia | M68: 24688.678 | N68: 0.0008216827712 | O68: -7810.0272
A69: 66 | B69: Kuwait | C69: 10775.802 | D69: 0.0007764672225 | F69: 66 | G69: Tunísia | H69: 11549.772 | I69: 0.0007143380234 | K69: 66 | L69: Uganda | M69: 24133.8048 | N69: 0.0008032156119 | O69: -21814.9432
A70: 67 | B70: Chipre | C70: 10743.4788 | D70: 0.0007741381239 | F70: 67 | G70: Belize | H70: 10934.5394 | I70: 0.0006762867061 | K70: 67 | L70: Eslovénia | M70: 23941.568 | N70: 0.000796817632 | O70: -8099.9452
A71: 68 | B71: Tailândia | C71: 9256.3754 | D71: 0.0006669825686 | F71: 68 | G71: Paraguai | H71: 10263.5706 | I71: 0.000634788179 | K71: 68 | L71: Namíbia | M71: 23765.809 | N71: 0.0007909680623 | O71: -22033.5738
A72: 69 | B72: Colômbia | C72: 8905.6078 | D72: 0.0006417074621 | F72: 69 | G72: Maurícias | H72: 9873.1322 | I72: 0.0006106400837 | K72: 69 | L72: Camarões | M72: 21652.1438 | N72: 0.0007206215545 | O72: -4393.5114
A73: 70 | B73: Geórgia | C73: 8776.724 | D73: 0.0006324205388 | F73: 70 | G73: Reino Unido (Irlanda do Norte) pós-2020 | H73: 9115.9984 | I73: 0.000563812366 | K73: 70 | L73: Tailândia | M73: 21572.4894 | N73: 0.0007179705155 | O73: -3059.7386
A74: 71 | B74: Líbano | C74: 8677.7716 | D74: 0.0006252903693 | F74: 71 | G74: Islândia | H74: 9112.164 | I74: 0.0005635752135 | K74: 71 | L74: Nova Zelânda | M74: 20810.7044 | N74: 0.0006926169664 | O74: -12208.0876
A75: 72 | B75: Camarões | C75: 8629.3162 | D75: 0.0006217988398 | F75: 72 | G75: Luxemburgo | H75: 8865.0438 | I75: 0.0005482911581 | K75: 72 | L75: Croácia | M75: 20465.1116 | N75: 0.0006811150282 | O75: 4201.6124
A76: 73 | B76: Estónia | C76: 8439.3254 | D76: 0.0006081087564 | F76: 73 | G76: Croácia | H76: 8131.7496 | I76: 0.000502937888 | K76: 73 | L76: Eslováquia | M76: 20081.0802 | N76: 0.0006683337855 | O76: 5498.5946
A77: 74 | B77: Gana | C77: 8178.0838 | D77: 0.0005892845854 | F77: 74 | G77: Israel | H77: 8052.3576 | I77: 0.0004980275984 | K77: 74 | L77: Suazilândia | M77: 19975.6478 | N77: 0.0006648248092 | O77: -15841.411
A78: 75 | B78: Eslovénia | C78: 7920.8114 | D78: 0.0005707464212 | F78: 75 | G78: Bangladesh | H78: 7823.177 | I78: 0.0004838530834 | K78: 75 | L78: Sérvia | M78: 19112.5644 | N78: 0.0006360998706 | O78: -4347.666
A79: 76 | B79: Belarus | C79: 7872.655 | D79: 0.0005672764367 | F79: 76 | G79: Malásia | H79: 7805.5168 | I79: 0.0004827608235 | K79: 76 | L79: Paquistão | M79: 17209.3366 | N79: 0.0005727570908 | O79: -8022.2146
A80: 77 | B80: Sérvia | C80: 7382.4492 | D80: 0.0005319538931 | F80: 77 | G80: Quénia | H80: 7356.7132 | I80: 0.0004550029183 | K80: 77 | L80: Mauritânia | M80: 16816.7526 | N80: 0.0005596912025 | O80: -10069.7186
A81: 78 | B81: Gibraltar | C81: 7309.7404 | D81: 0.0005267147471 | F81: 78 | G81: Filipinas | H81: 7323.2812 | I81: 0.0004529351936 | K81: 78 | L81: Maurícias | M81: 16663.174 | N81: 0.0005545798357 | O81: -3083.0904
A82: 79 | B82: Cuba | C82: 7088.722 | D82: 0.0005107889215 | F82: 79 | G82: Eslováquia | H82: 7291.2428 | I82: 0.0004509536612 | K82: 79 | L82: Moldava, República de | M82: 15413.0416 | N82: 0.0005129732234 | O82: -8944.69
A83: 80 | B83: Maurícias | C83: 6790.0418 | D83: 0.0004892670538 | F83: 80 | G83: Gana | H83: 6780.4694 | I83: 0.0004193630064 | K83: 80 | L83: Chipre | M83: 14982.1486 | N83: 0.0004986323439 | O83: 6504.809
A84: 81 | B84: Taiwan | C84: 6498.8018 | D84: 0.0004682813013 | F84: 81 | G84: Argélia | H84: 6675.0502 | I84: 0.0004128429692 | K84: 81 | L84: Gana | M84: 14958.5532 | N84: 0.0004978470474 | O84: 1397.6144
A85: 82 | B85: Vietname | C85: 6293.7406 | D85: 0.0004535052967 | F85: 82 | G85: Nigéria | H85: 6179.0444 | I85: 0.0003821656707 | K85: 82 | L85: Macau | M85: 14605.4142 | N85: 0.0004860939583 | O85: 14563.8882
A86: 83 | B86: Andorra | C86: 6022.5714 | D86: 0.0004339657769 | F86: 83 | G86: Panamá | H86: 5638.1522 | I86: 0.0003487122082 | K86: 83 | L86: HongKong | M86: 14502.5018 | N86: 0.000482668852 | O86: 8553.685
A87: 84 | B87: Guatemala | C87: 5731.0826 | D87: 0.0004129620968 | F87: 84 | G87: Congo | H87: 5587.8752 | I87: 0.0003456026427 | K87: 84 | L87: Dominicana, República | M87: 14480.0812 | N87: 0.0004819226549 | O87: 9215.96
A88: 85 | B88: Peru | C88: 5509.316 | D88: 0.0003969823585 | F88: 85 | G88: Honduras | H88: 5352.3066 | I88: 0.0003310330383 | K88: 85 | L88: Líbia, Jamahira Árabe da | M88: 13839.6806 | N88: 0.0004606089928 | O88: 13757.3998
A89: 86 | B89: Singapura | C89: 5118.6402 | D89: 0.0003688316043 | F89: 86 | G89: Camboja | H89: 5251.3418 | I89: 0.0003247884999 | K89: 86 | L89: Iraque | M89: 13672.6982 | N89: 0.0004550515239 | O89: 13646.351
A90: 87 | B90: Omã | C90: 4766.6966 | D90: 0.0003434717592 | F90: 87 | G90: Zimbabwe | H90: 5173.412 | I90: 0.0003199686455 | K90: 87 | L90: Tanzânia, República Unida da | M90: 13489.132 | N90: 0.0004489421168 | O90: -12670.0436
A91: 88 | B91: Panamá | C91: 4742.5904 | D91: 0.0003417347493 | F91: 88 | G91: Etiópia | H91: 4865.2444 | I91: 0.0003009088896 | K91: 88 | L91: Malta | M91: 13317.6174 | N91: 0.0004432338083 | O91: 8335.171
A92: 89 | B92: Paquistão | C92: 4593.561 | D92: 0.0003309962034 | F92: 89 | G92: Sri Lanca | H92: 4526.3514 | I92: 0.0002799488087 | K92: 89 | L92: Reino Unido (Irlanda do Norte) pós-2020 | M92: 12713.3372 | N92: 0.0004231222968 | O92: -5518.6596
A93: 90 | B93: Mali | C93: 4507.5844 | D93: 0.0003248010254 | F93: 90 | G93: Suriname | H93: 4461.0484 | I93: 0.0002759099051 | K93: 90 | L93: Kuwait | M93: 12319.6144 | N93: 0.0004100185073 | O93: 9231.9896
A94: 91 | B94: Costa Rica | C94: 4345.8664 | D94: 0.0003131481827 | F94: 91 | G94: Macedónia, Antiga República jugoslava da | H94: 4419.1744 | I94: 0.0002733200539 | K94: 91 | L94: Síria, República Árabe da | M94: 12141.732 | N94: 0.0004040982671 | O94: 11848.9104
A95: 92 | B95: Indonésia | C95: 4327.6936 | D95: 0.0003118387132 | F95: 92 | G95: Myanmar | H95: 4417.7084 | I95: 0.0002732293838 | K95: 92 | L95: Território Palestiniano Ocupado | M95: 11817.7626 | N95: 0.0003933159938 | O95: 11794.423
A96: 93 | B96: Nova Zelânda | C96: 4301.3084 | D96: 0.0003099374865 | F96: 93 | G96: Papuásia-Nova Guiné | H96: 4268.11 | I96: 0.0002639769219 | K96: 93 | L96: Paraguai | M96: 11233.3798 | N96: 0.0003738667029 | O96: -9293.7614
A97: 94 | B97: Burquina Faso | C97: 4086.0794 | D97: 0.0002944288251 | F97: 94 | G97: Chipre | H97: 4238.6698 | I97: 0.0002621560847 | K97: 94 | L97: Islândia | M97: 10997.3204 | N97: 0.0003660102295 | O97: -7227.0076
A98: 95 | B98: Venezuela | C98: 3914.122 | D98: 0.0002820381664 | F98: 95 | G98: Suíça | H98: 4064.2032 | I98: 0.0002513655577 | K98: 95 | L98: Belize | M98: 10954.0486 | N98: 0.0003645700677 | O98: -10915.0302
A99: 96 | B99: Reino Unido (Irlanda do Norte) pós-2020 | C99: 3597.3388 | D99: 0.0002592118588 | F99: 96 | G99: Guatemala | H99: 3891.5604 | I99: 0.0002406878304 | K99: 96 | L99: Filipinas | M99: 10864.8014 | N99: 0.0003615997634 | O99: -3781.761
A100: 97 | B100: Filipinas | C100: 3541.5202 | D100: 0.0002551897625 | F100: 97 | G100: Malavi | H100: 3761.9744 | I100: 0.0002326731088 | K100: 97 | L100: Malásia | M100: 10802.9 | N100: 0.0003595395755 | O100: -4808.1336
A101: 98 | B101: Catar | C101: 3509.0372 | D101: 0.0002528491493 | F101: 98 | G101: Congo, República Democrática do | H101: 3658.6746 | I101: 0.0002262841537 | K101: 98 | L101: Panamá | M101: 10380.7426 | N101: 0.0003454894323 | O101: -895.5618
A102: 99 | B102: Mauritânia | C102: 3373.517 | D102: 0.0002430840298 | F102: 99 | G102: Madagáscar | H102: 3530.0814 | I102: 0.0002183308354 | K102: 99 | L102: Bangladesh | M102: 9992.5026 | N102: 0.00033256812 | O102: -5653.8514
A103: 100 | B103: Uruguai | C103: 3271.2554 | D103: 0.0002357154107 | F103: 100 | G103: Taiwan | H103: 3371.8952 | I103: 0.0002085472295 | K103: 100 | L103: Taiwan | M103: 9870.697 | N103: 0.0003285142147 | O103: 3126.9066
A104: 101 | B104: Moldava, República de | C104: 3234.1758 | D104: 0.0002330435823 | F104: 101 | G104: Nicarágua | H104: 3348.1498 | I104: 0.0002070786081 | K104: 101 | L104: Geórgia | M104: 9763.0358 | N104: 0.0003249310599 | O104: 7790.4122
A105: 102 | B105: Guiné | C105: 3199.9078 | D105: 0.0002305743481 | F105: 102 | G105: Gâmbia | H105: 3121.0524 | I105: 0.0001930329363 | K105: 102 | L105: Quénia | M105: 9728.6568 | N105: 0.0003237868662 | O105: -4984.7696
A106: 103 | B106: Malásia | C106: 2997.3832 | D106: 0.0002159811221 | F106: 103 | G106: HongKong | H106: 2974.4084 | I106: 0.0001839632001 | K106: 103 | L106: Guatemala | M106: 9622.643 | N106: 0.0003202585398 | O106: 1839.5222
A107: 104 | B107: Gabão | C107: 2969.7446 | D107: 0.0002139895797 | F107: 104 | G107: Gabão | H107: 2833.2392 | I107: 0.000175232073 | K107: 104 | L107: Líbano | M107: 9030.5168 | N107: 0.000300551535 | O107: 8325.0264
A108: 105 | B108: Equador | C108: 2812.108 | D108: 0.0002026308286 | F108: 105 | G108: Dominicana, República | H108: 2632.0606 | I108: 0.0001627894444 | K108: 105 | L108: Belarus | M108: 8568.8254 | N108: 0.0002851856305 | O108: 7176.4846
A109: 106 | B109: Arménia | C109: 2727.7232 | D109: 0.0001965503502 | F109: 106 | G109: Malta | H109: 2491.2232 | I109: 0.0001540788387 | K109: 106 | L109: Congo | M109: 8278.2484 | N109: 0.0002755147151 | O109: -2897.502
A110: 107 | B110: Guiné Equatorial | C110: 2712.0278 | D110: 0.0001954193937 | F110: 107 | G110: Mali | H110: 2475.2544 | I110: 0.0001530911896 | K110: 107 | L110: Gibraltar | M110: 7352.4128 | N110: 0.0002447012726 | O110: 7267.068
A111: 108 | B111: Congo | C111: 2690.3732 | D111: 0.0001938590377 | F111: 108 | G111: Centro-Africana, República | H111: 2466.2132 | I111: 0.0001525320035 | K111: 108 | L111: Mali | M111: 6982.8388 | N111: 0.0002324011977 | O111: 2032.33
A112: 109 | B112: Timor-Leste | C112: 2668.7438 | D112: 0.0001923004975 | F112: 109 | G112: Benim | H112: 1927.4492 | I112: 0.0001192101672 | K112: 109 | L112: Singapura | M112: 6659.3268 | N112: 0.0002216341474 | O112: 3577.9536
A113: 110 | B113: Benim | C113: 2476.0626 | D113: 0.0001784165531 | F113: 110 | G113: Serra Leoa | H113: 1903.7664 | I113: 0.0001177454176 | K113: 110 | L113: Honduras | M113: 6528.2066 | N113: 0.0002172702358 | O113: -4176.4066
A114: 111 | B114: Quénia | C114: 2371.9436 | D114: 0.0001709140961 | F114: 111 | G114: Laos, República Democrática Popular do | H114: 1764.877 | I114: 0.0001091552931 | K114: 111 | L114: Etiópia | M114: 6273.7972 | N114: 0.000208803042 | O114: -3456.6916
A115: 112 | B115: Seychelles | C115: 2348.937 | D115: 0.0001692563197 | F115: 112 | G115: Burquina Faso | H115: 1596.8146 | I115: 9.876085737e-05 | K115: 112 | L115: Camboja | M115: 6129.6458 | N115: 0.000204005429 | O115: -4373.0378
A116: 113 | B116: Congo, República Democrática do | C116: 2232.4506 | D116: 0.0001608627104 | F116: 113 | G116: Kuwait | H116: 1543.8124 | I116: 9.548274185e-05 | K116: 113 | L116: Andorra | M116: 6085.3588 | N116: 0.0002025314795 | O116: 5959.784
A117: 114 | B117: Bangladesh | C117: 2169.3256 | D117: 0.0001563141401 | F117: 114 | G117: Singapura | H117: 1540.6866 | I117: 9.528941528e-05 | K117: 114 | L117: Sri Lanca | M117: 6081.5442 | N117: 0.0002024045229 | O117: -2971.1586
A118: 115 | B118: Suazilândia | C118: 2067.1184 | D118: 0.0001489494408 | F118: 115 | G118: Seychelles | H118: 1430.66 | I118: 8.848441654e-05 | K118: 115 | L118: Congo, República Democrática do | M118: 5891.1252 | N118: 0.0001960670425 | O118: -1426.224
A119: 116 | B119: Irão, República Islâmica do | C119: 2015.5486 | D119: 0.0001452334985 | F119: 116 | G119: Bolívia | H119: 1415.5294 | I119: 8.754860907e-05 | K119: 116 | L119: Gabão | M119: 5802.9838 | N119: 0.0001931335412 | O119: 136.5054
A120: 117 | B120: Islândia | C120: 1885.1564 | D120: 0.0001358378851 | F120: 117 | G120: São Tomé e Príncipe | H120: 1089.0898 | I120: 6.735875436e-05 | K120: 117 | L120: Burquina Faso | M120: 5682.894 | N120: 0.0001891367407 | O120: 2489.2648
A121: 118 | B121: Togo | C121: 1879.1826 | D121: 0.0001354074336 | F121: 118 | G121: Venezuela | H121: 1080.4086 | I121: 6.682183369e-05 | K121: 118 | L121: Omã | M121: 5590.2944 | N121: 0.0001860548626 | O121: 3943.0988
A122: 119 | B122: Sudão | C122: 1868.0632 | D122: 0.0001346062079 | F122: 119 | G122: Bósnia-Herzegovina | H122: 1034.9794 | I122: 6.401209815e-05 | K122: 119 | L122: Macedónia, Antiga República jugoslava da | M122: 5497.1524 | N122: 0.0001829549325 | O122: -3341.1964
A123: 120 | B123: Nicarágua | C123: 1709.2518 | D123: 0.0001231628047 | F123: 120 | G123: Geórgia | H123: 986.3118 | I123: 6.100207187e-05 | K123: 120 | L123: Zimbabwe | M123: 5240.2714 | N123: 0.0001744054795 | O123: -5106.5526
A124: 121 | B124: Jamaica | C124: 1645.8018 | D124: 0.000118590816 | F124: 121 | G124: Cazaquistão | H124: 977.1902 | I124: 6.043791306e-05 | K124: 121 | L124: Suriname | M124: 5124.6412 | N124: 0.0001705571024 | O124: -3797.4556
A125: 122 | B125: El Salvador | C125: 1616.0178 | D125: 0.0001164446834 | F125: 122 | G125: El Salvador | H125: 921.9616 | I125: 5.702209767e-05 | K125: 122 | L125: Nicarágua | M125: 5057.4016 | N125: 0.0001683192499 | O125: -1638.898
A126: 123 | B126: Cazaquistão | C126: 1586.0954 | D126: 0.0001142885782 | F126: 123 | G126: Omã | H126: 823.5978 | I126: 5.093842757e-05 | K126: 123 | L126: Venezuela | M126: 4994.5306 | N126: 0.0001662267921 | O126: 2833.7134
A127: 124 | B127: Sri Lanca | C127: 1555.1928 | D127: 0.0001120618432 | F127: 124 | G127: Timor-Leste | H127: 773.0574 | I127: 4.781257111e-05 | K127: 124 | L127: Myanmar | M127: 4788.3204 | N127: 0.0001593637527 | O127: -4047.0964
A128: 125 | B128: Ruanda | C128: 1542.3664 | D128: 0.0001111376169 | F128: 125 | G128: Emirados Árabes Unidos | H128: 758.5788 | I128: 4.691708898e-05 | K128: 125 | L128: Benim | M128: 4403.5118 | N128: 0.0001465566434 | O128: 548.6134
A129: 126 | B129: Azerbaijão | C129: 1447.7444 | D129: 0.0001043194811 | F129: 126 | G129: Belarus | H129: 696.1704 | I129: 4.305721251e-05 | K129: 126 | L129: Papuásia-Nova Guiné | M129: 4270.9956 | N129: 0.0001421462705 | O129: -4265.2244
A130: 127 | B130: Etiópia | C130: 1408.5528 | D130: 0.0001014954692 | F130: 127 | G130: Turquemenistão | H130: 693.7048 | I130: 4.290471844e-05 | K130: 127 | L130: Madagáscar | M130: 3916.3472 | N130: 0.0001303429459 | O130: -3143.8156
A131: 128 | B131: Albânia | C131: 1395.6804 | D131: 0.0001005679284 | F131: 128 | G131: Iémen | H131: 684.2014 | I131: 4.23169458e-05 | K131: 128 | L131: Seychelles | M131: 3779.597 | N131: 0.0001257916579 | O131: 918.277
A132: 129 | B132: Bolívia | C132: 1235.6182 | D132: 8.903439686e-05 | F132: 129 | G132: Gronelândia | H132: 628.3832 | I132: 3.886466443e-05 | K132: 129 | L132: Malavi | M132: 3770.4898 | N132: 0.0001254885542 | O132: -3753.459
A133: 130 | B133: Montenegro | C133: 1193.9358 | D133: 8.603090651e-05 | F133: 130 | G133: Faroé, Ilhas | H133: 595.1746 | I133: 3.681075673e-05 | K133: 130 | L133: Gâmbia | M133: 3599.2092 | N133: 0.0001197880336 | O133: -2642.8956
A134: 131 | B134: São Bartolomeu | C134: 1183.3114 | D134: 8.52653488e-05 | F134: 131 | G134: Cabo Verde | H134: 418.902 | I134: 2.590853107e-05 | K134: 131 | L134: Catar | M134: 3530.389 | N134: 0.0001174975759 | O134: 3487.6854
A135: 132 | B135: Honduras | C135: 1175.9 | D135: 8.473130881e-05 | F135: 132 | G135: Usbequistão | H135: 380.4082 | I135: 2.352774078e-05 | K135: 132 | L135: Guiné | M135: 3486.7122 | N135: 0.0001160439349 | O135: 2913.1034
A136: 133 | B136: Uganda | C136: 1159.4308 | D136: 8.354459491e-05 | F136: 133 | G136: Líbano | H136: 352.7452 | I136: 2.181682105e-05 | K136: 133 | L136: Timor-Leste | M136: 3441.8012 | N136: 0.0001145492176 | O136: 1895.6864
A137: 134 | B137: Macedónia, Antiga República jugoslava da | C137: 1077.978 | D137: 7.767538635e-05 | F137: 134 | G137: Chade | H137: 303.1764 | I137: 1.875105676e-05 | K137: 134 | L137: Arménia | M137: 2777.2048 | N137: 9.243027659e-05 | O137: 2678.2416
A138: 135 | B138: Paraguai | C138: 969.8092 | D138: 6.988111473e-05 | F138: 135 | G138: Guiné-Bissau | H138: 291.7994 | I138: 1.804740445e-05 | K138: 135 | L138: Guiné Equatorial | M138: 2721.8116 | N138: 9.058669314e-05 | O138: 2702.244
A139: 136 | B139: Bermudas | C139: 957.27 | D139: 6.897758311e-05 | F139: 136 | G139: Guiné | H139: 286.8044 | I139: 1.773847035e-05 | K139: 136 | L139: Bolívia | M139: 2651.1476 | N139: 8.823487053e-05 | O139: -179.9112
A140: 137 | B140: Aruba | C140: 940.2512 | D140: 6.775126693e-05 | F140: 137 | G140: Togo | H140: 238.6312 | I140: 1.475902206e-05 | K140: 137 | L140: Centro-Africana, República | M140: 2569.5112 | N140: 8.551786707e-05 | O140: -2362.9152
A141: 138 | B141: Barbados | C141: 924.8742 | D141: 6.664325321e-05 | F141: 138 | G141: Irão, República Islâmica do | H141: 211.8398 | I141: 1.310200963e-05 | K141: 138 | L141: Cazaquistão | M141: 2563.2856 | N141: 8.531066812e-05 | O141: 608.9052
A142: 139 | B142: Camboja | C142: 878.304 | D142: 6.32875648e-05 | F142: 139 | G142: Zâmbia | H142: 183.9494 | I142: 1.137702552e-05 | K142: 139 | L142: El Salvador | M142: 2537.9794 | N142: 8.446843312e-05 | O142: 694.0562
A143: 140 | B143: Trindade e Tobago | C143: 878.2468 | D143: 6.328344317e-05 | F143: 140 | G143: Jordânia | H143: 147.7944 | I143: 9.140886899e-06 | K143: 140 | L143: Serra Leoa | M143: 2340.2336 | N143: 7.788710395e-05 | O143: -1467.2992
A144: 141 | B144: Kosovo | C144: 870.5922 | D144: 6.273187902e-05 | F144: 141 | G144: Síria, República Árabe da | H144: 146.4108 | I144: 9.055313081e-06 | K144: 141 | L144: Irão, República Islâmica do | M144: 2227.3884 | N144: 7.413141655e-05 | O144: 1803.7088
A145: 142 | B145: Namíbia | C145: 866.1176 | D145: 6.240945474e-05 | F145: 142 | G145: Maldivas | H145: 127.2588 | I145: 7.870787376e-06 | K145: 142 | L145: Togo | M145: 2117.8138 | N145: 7.04845805e-05 | O145: 1640.5514
A146: 143 | B146: Turquemenistão | C146: 749.1004 | D146: 5.397759786e-05 | F146: 143 | G146: Albânia | H146: 125.4572 | I146: 7.759360814e-06 | K146: 143 | L146: Laos, República Democrática Popular do | M146: 1935.8146 | N146: 6.442732596e-05 | O146: -1593.9394
A147: 144 | B147: Barém | C147: 728.9324 | D147: 5.252436116e-05 | F147: 144 | G147: Azerbaijão | H147: 124.9342 | I147: 7.72701396e-06 | K147: 144 | L147: Sudão | M147: 1883.1514 | N147: 6.267460173e-05 | O147: 1852.975
A148: 145 | B148: Iémen | C148: 704.0114 | D148: 5.072863963e-05 | F148: 145 | G148: Kosovo | H148: 80.0466 | I148: 4.950775654e-06 | K148: 145 | L148: Jamaica | M148: 1660.4886 | N148: 5.526399082e-05 | O148: 1631.115
A149: 146 | B149: Suriname | C149: 663.5928 | D149: 4.781621435e-05 | F149: 146 | G149: Tajiquistão | H149: 74.7168 | I149: 4.621134619e-06 | K149: 146 | L149: Azerbaijão | M149: 1572.6786 | N149: 5.234151906e-05 | O149: 1322.8102
A150: 147 | B150: Niger | C150: 619.0434 | D150: 4.460613784e-05 | F150: 147 | G150: Andorra | H150: 62.7874 | I150: 3.883317109e-06 | K150: 147 | L150: Bósnia-Herzegovina | M150: 1571.857 | N150: 5.231417477e-05 | O150: -498.1018
A151: 148 | B151: São Martinho (parte holandesa) | C151: 606.1984 | D151: 4.368057133e-05 | F151: 148 | G151: Libéria | H151: 54.4472 | I151: 3.367486841e-06 | K151: 148 | L151: Ruanda | M151: 1569.669 | N151: 5.224135427e-05 | O151: 1515.0638
A152: 149 | B152: Bósnia-Herzegovina | C152: 536.8776 | D152: 3.868555295e-05 | F152: 149 | G152: Arábia Saudita | H152: 51.2828 | I152: 3.171772913e-06 | K152: 149 | L152: Albânia | M152: 1521.1376 | N152: 5.062614363e-05 | O152: 1270.2232
A153: 150 | B153: Curaçau | C153: 534.0534 | D153: 3.848205082e-05 | F153: 150 | G153: Fiji, Ilhas | H153: 50.1218 | I153: 3.099966609e-06 | K153: 150 | L153: Turquemenistão | M153: 1442.8052 | N153: 4.801910313e-05 | O153: 55.3956
A154: 151 | B154: Burundi | C154: 485.0592 | D154: 3.495169731e-05 | F154: 151 | G154: Arménia | H154: 49.4816 | I154: 3.060371091e-06 | K154: 151 | L154: Iémen | M154: 1388.2128 | N154: 4.620217172e-05 | O154: 19.81
A155: 152 | B155: Gâmbia | C155: 478.1568 | D155: 3.445433411e-05 | F155: 152 | G155: Falkland Ilhas (Malvinas) | H155: 46.09 | I155: 2.850605146e-06 | K155: 152 | L155: Montenegro | M155: 1194.2042 | N155: 3.974522315e-05 | O155: 1193.6674
A156: 153 | B156: Antígua e Barbuda | C156: 468.1724 | D156: 3.373489259e-05 | F156: 153 | G156: Aruba | H156: 45.6344 | I156: 2.822426892e-06 | K156: 153 | L156: São Bartolomeu | M156: 1185.2626 | N156: 3.944763092e-05 | O156: 1181.3602
A157: 154 | B157: Serra Leoa | C157: 436.4672 | D157: 3.145032495e-05 | F157: 154 | G157: Gibraltar | H157: 42.6724 | I157: 2.639231135e-06 | K157: 154 | L157: Aruba | M157: 985.8856 | N157: 3.281201253e-05 | O157: 894.6168
A158: 155 | B158: Tanzânia, República Unida da | C158: 409.5442 | D158: 2.951034619e-05 | F158: 155 | G158: Líbia, Jamahira Árabe da | H158: 41.1404 | I158: 2.544478975e-06 | K158: 155 | L158: Bermudas | M158: 958.1048 | N158: 3.188741848e-05 | O158: 956.4352
A159: 156 | B159: Nova Caledónia | C159: 388.6078 | D159: 2.800174123e-05 | F159: 156 | G159: Curaçau | H159: 39.2148 | I159: 2.425383178e-06 | K159: 156 | L159: Kosovo | M159: 950.6388 | N159: 3.163893683e-05 | O159: 790.5456
A160: 157 | B160: Madagáscar | C160: 386.2658 | D160: 2.783298476e-05 | F160: 157 | G160: Botswana | H160: 30.037 | I160: 1.857748465e-06 | K160: 157 | L160: Barbados | M160: 935.22 | N160: 3.112577195e-05 | O160: 914.5284
A161: 158 | B161: Myanmar | C161: 370.612 | D161: 2.670502578e-05 | F161: 158 | G161: São Pedro e Miquelon | H161: 28.9156 | I161: 1.788391368e-06 | K161: 158 | L161: Trindade e Tobago | M161: 878.6292 | N161: 2.924233027e-05 | O161: 877.8644
A162: 159 | B162: Comores | C162: 333.8038 | D162: 2.405275352e-05 | F162: 159 | G162: Ruanda | H162: 27.3026 | I162: 1.688629465e-06 | K162: 159 | L162: Barém | M162: 733.5568 | N162: 2.441406479e-05 | O162: 724.308
A163: 160 | B163: Haiti | C163: 328.0528 | D163: 2.363835624e-05 | F163: 160 | G163: São Marino | H163: 25.3104 | I163: 1.565414547e-06 | K163: 160 | L163: Usbequistão | M163: 665.2294 | N163: 2.214000834e-05 | O163: -95.587
A164: 161 | B164: Polinésia Francesa | C164: 317.6242 | D164: 2.28869072e-05 | F164: 161 | G164: Catar | H164: 21.3518 | I164: 1.320580407e-06 | K164: 161 | L164: Gronelândia | M164: 629.1046 | N164: 2.093771125e-05 | O164: -627.6618
A165: 162 | B165: Bahamas | C165: 305.389 | D165: 2.200528078e-05 | F165: 162 | G165: Macau | H165: 20.763 | I165: 1.284163911e-06 | K165: 162 | L165: Niger | M165: 622.3102 | N165: 2.071158163e-05 | O165: 615.7766
A166: 163 | B166: Libéria | C166: 303.6128 | D166: 2.187729392e-05 | F166: 163 | G166: Marshall, Ilhas | H166: 18.3784 | I166: 1.136679575e-06 | K166: 163 | L166: São Martinho (parte holandesa) | M166: 606.2012 | N166: 2.017544568e-05 | O166: 606.1956
A167: 164 | B167: Somália | C167: 293.0252 | D167: 2.111438788e-05 | F167: 164 | G167: Quirguizistão | H167: 17.5046 | I167: 1.082636208e-06 | K167: 164 | L167: Faroé, Ilhas | M167: 600.7416 | N167: 1.999374056e-05 | O167: -589.6076
A168: 165 | B168: Usbequistão | C168: 284.8212 | D168: 2.052323586e-05 | F168: 165 | G168: Salomão, Ilhas | H168: 16.0532 | I168: 9.928690503e-07 | K168: 165 | L168: Curaçau | M168: 573.2682 | N168: 1.907937732e-05 | O168: 494.8386
A169: 166 | B169: São Marino | C169: 251.4926 | D169: 1.81216916e-05 | F169: 166 | G169: Sudão | H169: 15.0882 | I169: 9.331850849e-07 | K169: 166 | L169: Burundi | M169: 485.2096 | N169: 1.614863172e-05 | O169: 484.9088
A170: 167 | B170: Bonaire, Santo Eustáquio e Saba | C170: 241.8602 | D170: 1.742761399e-05 | F170: 167 | G170: Jamaica | H170: 14.6868 | I170: 9.083590293e-07 | K170: 167 | L170: Antígua e Barbuda | M170: 477.853 | N170: 1.590379109e-05 | O170: 458.4918
A171: 168 | B171: Laos, República Democrática Popular do | C171: 170.9376 | D171: 1.231717542e-05 | F171: 168 | G171: Iraque | H171: 13.1736 | I171: 8.147696236e-07 | K171: 168 | L171: Nova Caledónia | M171: 390.0338 | N171: 1.298101314e-05 | O171: 387.1818
A172: 169 | B172: Zâmbia | C172: 164.8696 | D172: 1.187993621e-05 | F172: 169 | G172: São Cristovão e Nevis | H172: 12.4064 | I172: 7.673193249e-07 | K172: 169 | L172: Libéria | M172: 358.06 | N172: 1.191686866e-05 | O172: 249.1656
A173: 170 | B173: Santa Lúcia | C173: 158.8492 | D173: 1.14461269e-05 | F173: 170 | G173: Nepal | H173: 12.0278 | I173: 7.439034189e-07 | K173: 170 | L173: Zâmbia | M173: 348.819 | N173: 1.160931187e-05 | O173: -19.0798
A174: 171 | B174: Liechtenstein | C174: 144.4366 | D174: 1.040760452e-05 | F174: 171 | G174: Território Palestiniano Ocupado | H174: 11.6698 | I174: 7.217615954e-07 | K174: 171 | L174: Comores | M174: 333.8038 | N174: 1.110957952e-05 | O174: 333.8038
A175: 172 | B175: Maldivas | C175: 139.5096 | D175: 1.005258185e-05 | F175: 172 | G175: Barbados | H175: 10.3458 | I175: 6.398739579e-07 | K175: 172 | L175: Haiti | M175: 328.3394 | N175: 1.092771464e-05 | O175: 327.7662
A176: 173 | B176: Ceuta e Melilha | C176: 132.796 | D176: 9.568822931e-06 | F176: 173 | G176: Jibuti | H176: 9.885 | I176: 6.113740913e-07 | K176: 173 | L176: Polinésia Francesa | M176: 318.4566 | N176: 1.059879762e-05 | O176: 316.7918
A177: 174 | B177: Quirguizistão | C177: 130.9018 | D177: 9.432333395e-06 | F177: 174 | G177: Guiné Equatorial | H177: 9.7838 | I177: 6.05115006e-07 | K177: 174 | L177: Bahamas | M177: 305.389 | N177: 1.016388483e-05 | O177: 305.389
A178: 175 | B178: Botswana | C178: 118.8382 | D178: 8.563071879e-06 | F178: 175 | G178: Antígua e Barbuda | H178: 9.6806 | I178: 5.987322234e-07 | K178: 175 | L178: Chade | M178: 303.2232 | N178: 1.009180318e-05 | O178: -303.1296
A179: 176 | B179: Guiana | C179: 116.6432 | D179: 8.40490773e-06 | F179: 176 | G179: Santa Helena | H179: 5.0476 | I179: 3.121873407e-07 | K179: 176 | L179: Somália | M179: 293.0252 | N179: 9.752395748e-06 | O179: 293.0252
A180: 177 | B180: Nepal | C180: 114.3036 | D180: 8.236324202e-06 | F180: 177 | G180: Barém | H180: 4.6244 | I180: 2.860129841e-07 | K180: 177 | L180: São Marino | M180: 276.803 | N180: 9.212492306e-06 | O180: 226.1822
A181: 178 | B181: Afeganistão | C181: 109.4574 | D181: 7.887123702e-06 | F181: 178 | G181: Niger | H181: 3.2668 | I181: 2.020472313e-07 | K181: 178 | L181: Maldivas | M181: 266.7684 | N181: 8.87852311e-06 | O181: 12.2508
A182: 179 | B182: Virgens Britânicas, Ilhas | C182: 106.6708 | D182: 7.686330892e-06 | F182: 179 | G182: São Bartolomeu | H182: 1.9512 | I182: 1.206791226e-07 | K182: 179 | L182: Bonaire, Santo Eustáquio e Saba | M182: 241.8602 | N182: 8.049534259e-06 | O182: 241.8602
A183: 180 | B183: Centro-Africana, República | C183: 103.298 | D183: 7.443298526e-06 | F183: 180 | G183: Liechtenstein | H183: 1.8568 | I183: 1.148406083e-07 | K183: 180 | L183: Santa Lúcia | M183: 158.8768 | N183: 5.287700269e-06 | O183: 158.8216
A184: 181 | B184: Jibuti | C184: 90.5704 | D184: 6.526191454e-06 | F184: 181 | G184: Lesoto | H184: 1.7136 | I184: 1.059838789e-07 | K184: 181 | L184: Botswana | M184: 148.8752 | N184: 4.954829371e-06 | O184: 88.8012
A185: 182 | B185: Caimão, Ilhas | C185: 73.8006 | D185: 5.317817356e-06 | F185: 182 | G185: Nova Caledónia | H185: 1.426 | I185: 8.819620174e-08 | K185: 182 | L185: Quirguizistão | M185: 148.4064 | N185: 4.93922688e-06 | O185: 113.3972
A186: 183 | B186: Zimbabwe | C186: 66.8594 | D186: 4.817658362e-06 | F186: 183 | G186: Bermudas | H186: 0.8348 | I186: 5.163126873e-08 | K186: 183 | L186: Liechtenstein | M186: 146.2934 | N186: 4.868902511e-06 | O186: 142.5798
A187: 184 | B187: Turcas e Caicos, Ilhas | C187: 48.519 | D187: 3.496112231e-06 | F187: 184 | G187: Polinésia Francesa | H187: 0.8324 | I187: 5.148283193e-08 | K187: 184 | L187: Ceuta e Melilha | M187: 132.796 | N187: 4.419685221e-06 | O187: 132.796
A188: 185 | B188: Virgens dos Estados Unidos, Ilhas | C188: 27.4406 | D188: 1.977275238e-06 | F188: 185 | G188: Micronésia, Estados Federados da | H188: 0.6592 | I188: 4.077064249e-08 | K188: 185 | L188: Nepal | M188: 126.3314 | N188: 4.204531925e-06 | O188: 102.2758
A189: 186 | B189: Mongólia | C189: 26.1112 | D189: 1.881483247e-06 | F189: 186 | G189: Afeganistão | H189: 0.6156 | I189: 3.807404053e-08 | K189: 186 | L189: Afeganistão | M189: 110.073 | N189: 3.663423682e-06 | O189: 108.8418
A190: 187 | B190: Belize | C190: 19.5092 | D190: 1.405765839e-06 | F190: 187 | G190: Trindade e Tobago | H190: 0.3824 | I190: 2.365093096e-08 | K190: 187 | L190: Virgens Britânicas, Ilhas | M190: 106.6778 | N190: 3.550425435e-06 | O190: 106.6638
A191: 188 | B191: Anguila | C191: 15.482 | D191: 1.115579661e-06 | F191: 188 | G191: Haiti | H191: 0.2866 | I191: 1.772582848e-08 | K191: 188 | L191: Jibuti | M191: 100.4554 | N191: 3.343332983e-06 | O191: 80.6854
A192: 189 | B192: Brunei Darussalam | C192: 13.5634 | D192: 9.773319448e-07 | F192: 189 | G192: Montenegro | H192: 0.2684 | I192: 1.660018271e-08 | K192: 189 | L192: Tajiquistão | M192: 74.7168 | N192: 2.486706954e-06 | O192: -74.7168
A193: 190 | B193: Fiji, Ilhas | C193: 11.4598 | D193: 8.257537654e-07 | F193: 190 | G193: Burundi | H193: 0.1504 | I193: 9.302039791e-09 | K193: 190 | L193: Caimão, Ilhas | M193: 73.8014 | N193: 2.456240827e-06 | O193: 73.7998
A194: 191 | B194: Malavi | C194: 8.5154 | D194: 6.135904303e-07 | F194: 191 | G194: Oceano Indico, Território Britânico do | H194: 0.1384 | I194: 8.559855765e-09 | K194: 191 | L194: Fiji, Ilhas | M194: 61.5816 | N194: 2.049544319e-06 | O194: -38.662
A195: 192 | B195: São Vicente e Granadinas | C195: 7.5006 | D195: 5.404674333e-07 | F195: 192 | G195: Vanuatu | H195: 0.0874 | I195: 5.405573655e-09 | K195: 192 | L195: Turcas e Caicos, Ilhas | M195: 48.519 | N195: 1.61479794e-06 | O195: 48.519
A196: 193 | B196: Guam | C196: 6.4026 | D196: 4.613493305e-07 | F196: 193 | G196: Nauru | H196: 0.0694 | I196: 4.292297616e-09 | K196: 193 | L196: Falkland Ilhas (Malvinas) | M196: 46.09 | N196: 1.533956534e-06 | O196: -46.09
A197: 194 | B197: Territórios Franceses do Sul | C197: 6.3292 | D197: 4.56060379e-07 | F197: 194 | G197: Palau | H197: 0.0478 | I197: 2.95636637e-09 | K197: 194 | L197: São Pedro e Miquelon | M197: 28.9156 | N197: 9.623621945e-07 | O197: -28.9156
A198: 195 | B198: Faroé, Ilhas | C198: 5.567 | D198: 4.011388691e-07 | F198: 195 | G198: Santa Lúcia | H198: 0.0276 | I198: 1.707023259e-09 | K198: 195 | L198: Virgens dos Estados Unidos, Ilhas | M198: 27.4406 | N198: 9.132715916e-07 | O198: 27.4406
A199: 196 | B199: Sudão do Sul | C199: 3.771 | D199: 2.717252875e-07 | F199: 196 | G199: Coreia, República Popular Democrática da | H199: 0.0196 | I199: 1.212233909e-09 | K199: 196 | L199: Mongólia | M199: 26.1254 | N199: 8.694994147e-07 | O199: 26.097
A200: 197 | B200: Marianas do Norte, Ilhas | C200: 2.9244 | D200: 2.107222038e-07 | F200: 197 | G200: São Vicente e Granadinas | H200: 0.0144 | I200: 8.90620831e-10 | K200: 197 | L200: Marshall, Ilhas | M200: 18.3784 | N200: 6.116655838e-07 | O200: -18.3784
... 58 more rows

Sheet 2AA
A1: Ranking dos parceiros comerciais de Portugal por país (média 2019-2023 em milhares de euros) produtos agrícolas e agroalimentares
A2: Exportações | F2: Importações | K2: Trocas comerciais (total e saldo)
A3: P | B3: País | C3: média quinquénio | D3: % do Total | F3: P | G3: País | H3: média quinquénio | I3: % do Total | K3: P | L3: País | M3: Total (exp+imp) | N3: % do Total | O3: Saldo (exp-imp)
A4: 1 | B4: Espanha | C4: 2759114.782 | D4: 0.3560524144 | F4: 1 | G4: Espanha | H4: 5216246.404 | I4: 0.4652738611 | K4: 1 | L4: Espanha | M4: 7975361.185 | N4: 0.4206344704 | O4: -2457131.622
A5: 2 | B5: França | C5: 750336.0628 | D5: 0.09682778279 | F5: 2 | G5: França | H5: 878404.7086 | I5: 0.07835112048 | K5: 2 | L5: França | M5: 1628740.771 | N5: 0.08590263135 | O5: -128068.6458
A6: 3 | B6: Itália | C6: 479934.3466 | D6: 0.06193355347 | F6: 3 | G6: Alemanha | H6: 716563.6986 | I6: 0.06391537765 | K6: 3 | L6: Países Baixos | M6: 1047701.306 | N6: 0.0552575957 | O6: -310457.8802
A7: 4 | B7: Brasil | C7: 405387.6024 | D7: 0.05231360274 | F7: 4 | G7: Países Baixos | H7: 679079.593 | I7: 0.06057190551 | K7: 4 | L7: Brasil | M7: 1040823.994 | N7: 0.05489487425 | O7: -230048.7888
A8: 5 | B8: Países Baixos | C8: 368621.7128 | D8: 0.0475691159 | F8: 5 | G8: Brasil | H8: 635436.3912 | I8: 0.05667906007 | K8: 5 | L8: Alemanha | M8: 998150.0304 | N8: 0.05264417494 | O8: -434977.3668
A9: 6 | B9: Alemanha | C9: 281586.3318 | D9: 0.03633755796 | F9: 6 | G9: Itália | H9: 370114.2602 | I9: 0.03301310513 | K9: 6 | L9: Itália | M9: 850048.6068 | N9: 0.04483304734 | O9: 109820.0864 | P9: Nota: Nesta listagem, o Reino Unido passa a ser constituído por três componentes: Reino Unido [até 2020] ; Reino Unido (sem Irlanda do Norte) pós-2020 e Reino Unido (Irlanda do Norte) pós-2020. Estas componentes são calculadas igualmente como média do quinquénio, embora a primeira corresponda apenas a 2019-2020 e as duas últimas a 2021-2023.
A10: 7 | B10: Angola | C10: 239257.2228 | D10: 0.03087516054 | F10: 7 | G10: Bélgica | H10: 281937.5458 | I10: 0.02514800115 | K10: 7 | L10: Bélgica | M10: 456368.6802 | N10: 0.02406968081 | O10: -107506.4114
A11: 8 | B11: Reino Unido (sem Irlanda do Norte) pós 2020 | C11: 237665.5644 | D11: 0.03066976357 | F11: 8 | G11: Ucrânia | H11: 218361.6698 | I11: 0.0194772197 | K11: 8 | L11: Estados Unidos | M11: 399330.4322 | N11: 0.02106138405 | O11: -4827.0378
A12: 9 | B12: Estados Unidos | C12: 197251.6972 | D12: 0.02545452023 | F12: 9 | G12: Polónia | H12: 216535.6918 | I12: 0.01931434783 | K12: 9 | L12: Polónia | M12: 361974.8712 | N12: 0.01909118656 | O12: -71096.5124
A13: 10 | B13: Israel | C13: 180621.8384 | D13: 0.02330850535 | F13: 10 | G13: Estados Unidos | H13: 202078.735 | I13: 0.01802482974 | K13: 10 | L13: Reino Unido (sem Irlanda do Norte) pós 2020 | M13: 312259.9708 | N13: 0.01646913593 | O13: 163071.158
A14: 11 | B14: Bélgica | C14: 174431.1344 | D14: 0.02250962046 | F14: 11 | G14: Roménia | H14: 147819.1428 | I14: 0.01318503345 | K14: 11 | L14: Angola | M14: 248843.2282 | N14: 0.01312442623 | O14: 229671.2174
A15: 12 | B15: Polónia | C15: 145439.1794 | D15: 0.01876832791 | F15: 12 | G15: África do Sul | H15: 122030.5704 | I15: 0.01088476852 | K15: 12 | L15: Ucrânia | M15: 226323.7844 | N15: 0.01193671145 | O15: -210399.5552
A16: 13 | B16: Reino Unido | C16: 140181.6612 | D16: 0.01808986681 | F16: 13 | G16: Canadá | H16: 114587.6202 | I16: 0.01022087922 | K16: 13 | L16: Reino Unido | M16: 218445.519 | N16: 0.01152119798 | O16: 61917.8034
A17: 14 | B17: Suíça | C17: 101113.552 | D17: 0.01304828801 | F17: 14 | G17: Irlanda | H17: 113672.616 | I17: 0.01013926354 | K17: 14 | L17: Canadá | M17: 187938.0432 | N17: 0.009912180456 | O17: -41237.1972
A18: 15 | B18: Cabo Verde | C18: 93274.1312 | D18: 0.012036643 | F18: 15 | G18: Argentina | H18: 81740.7412 | I18: 0.007291034075 | K18: 15 | L18: Israel | M18: 185954.1124 | N18: 0.009807544482 | O18: 175289.5644
A19: 16 | B19: Canadá | C19: 73350.423 | D19: 0.009465570399 | F19: 16 | G19: Reino Unido | H19: 78263.8578 | I19: 0.006980906286 | K19: 16 | L19: Roménia | M19: 164554.4432 | N19: 0.008678888574 | O19: -131083.8424
A20: 17 | B20: China, República Popular da | C20: 65002.3268 | D20: 0.00838828292 | F20: 17 | G20: Dinamarca | H20: 77997.3668 | I20: 0.006957136071 | K20: 17 | L20: Irlanda | M20: 144233.3214 | N20: 0.007607117139 | O20: -83111.9106
A21: 18 | B21: Japão | C21: 61056.1688 | D21: 0.007879047461 | F21: 18 | G21: Reino Unido (sem Irlanda do Norte) pós 2020 | H21: 74594.4064 | I21: 0.006653601997 | K21: 18 | L21: África do Sul | M21: 144191.7208 | N21: 0.007604923051 | O21: -99869.42
A22: 19 | B22: Suécia | C22: 55331.0614 | D22: 0.007140245898 | F22: 19 | G22: Costa Rica | H22: 70756.5738 | I22: 0.006311278599 | K22: 19 | L22: Dinamarca | M22: 126432.8158 | N22: 0.006668287402 | O22: -29561.9178
A23: 20 | B23: Marrocos | C23: 49767.4468 | D23: 0.006422284317 | F23: 20 | G23: China, República Popular da | H23: 48106.5576 | I23: 0.004290963668 | K23: 20 | L23: China, República Popular da | M23: 113108.8844 | N23: 0.005965560002 | O23: 16895.7692
A24: 21 | B24: Dinamarca | C24: 48435.449 | D24: 0.00625039548 | F24: 21 | G24: Bulgária | H24: 41813.1574 | I24: 0.003729610851 | K24: 21 | L24: Suíça | M24: 103785.579 | N24: 0.005473832601 | O24: 98441.525
A25: 22 | B25: Luxemburgo | C25: 48405.0208 | D25: 0.006246468845 | F25: 22 | G25: Grécia | H25: 35188.6176 | I25: 0.003138721355 | K25: 22 | L25: Cabo Verde | M25: 93419.3098 | N25: 0.004927097468 | O25: 93128.9526
A26: 23 | B26: Rússia, Federação da | C26: 47519.044 | D26: 0.006132137183 | F26: 23 | G26: Colômbia | H26: 31210.9096 | I26: 0.002783921482 | K26: 23 | L26: Argentina | M26: 82057.1494 | N26: 0.004327837295 | O26: -81424.333
A27: 24 | B27: Guiné-Bissau | C27: 33196.0112 | D27: 0.004283808711 | F27: 24 | G27: Guiana | H27: 31014.2578 | I27: 0.002766380719 | K27: 24 | L27: Japão | M27: 72872.0242 | N27: 0.003843397759 | O27: 49240.3134
A28: 25 | B28: Irlanda | C28: 30560.7054 | D28: 0.003943733336 | F28: 25 | G28: Vietname | H28: 30892.5166 | I28: 0.002755521762 | K28: 25 | L28: Costa Rica | M28: 72068.7862 | N28: 0.003801033585 | O28: -69444.3614
A29: 26 | B29: Arábia Saudita | C29: 29146.6976 | D29: 0.003761261446 | F29: 26 | G29: Cuba | H29: 28789.5394 | I29: 0.002567942371 | K29: 26 | L29: Suécia | M29: 68872.8558 | N29: 0.003632474637 | O29: 41789.267
A30: 27 | B30: Moçambique | C30: 28593.946 | D30: 0.003689931125 | F30: 27 | G30: Áustria | H30: 27561.0174 | I30: 0.002458361816 | K30: 27 | L30: Marrocos | M30: 61090.9854 | N30: 0.003222045208 | O30: 38443.9082
A31: 28 | B31: São Tomé e Príncipe | C31: 25047.189 | D31: 0.003232236722 | F31: 28 | G31: Chile | H31: 26079.5266 | I31: 0.002326217187 | K31: 28 | L31: Grécia | M31: 60085.0254 | N31: 0.003168989122 | O31: -10292.2098
A32: 29 | B32: Grécia | C32: 24896.4078 | D32: 0.003212779028 | F32: 29 | G32: Checa, República | H32: 24316.1738 | I32: 0.002168931296 | K32: 29 | L32: Rússia, Federação da | M32: 59387.4766 | N32: 0.00313219918 | O32: 35650.6114
A33: 30 | B33: Finlândia | C33: 22500.2588 | D33: 0.002903565855 | F33: 30 | G33: Índia | H33: 24071.1366 | I33: 0.002147074697 | K33: 30 | L33: Luxemburgo | M33: 56663.1448 | N33: 0.002988513166 | O33: 40146.8968
A34: 31 | B34: África do Sul | C34: 22161.1504 | D34: 0.002859805311 | F34: 31 | G34: Uruguai | H34: 22728.6906 | I34: 0.002027332456 | K34: 31 | L34: Bulgária | M34: 50834.8076 | N34: 0.002681116488 | O34: -32791.5072
A35: 32 | B35: Jordânia | C35: 21893.2362 | D35: 0.002825232085 | F35: 32 | G35: Costa do Marfim | H35: 22619.1534 | I35: 0.00201756206 | K35: 32 | L35: Checa, República | M35: 43760.0556 | N35: 0.002307981718 | O35: -4872.292
A36: 33 | B36: Argélia | C36: 20568.7852 | D36: 0.002654317131 | F36: 33 | G36: Turquia | H36: 19669.1464 | I36: 0.001754430098 | K36: 33 | L36: Áustria | M36: 42114.8324 | N36: 0.002221209775 | O36: -13007.2024
A37: 34 | B37: Checa, República | C37: 19443.8818 | D37: 0.002509152974 | F37: 34 | G37: Hungria | H37: 19114.934 | I37: 0.00170499598 | K37: 34 | L37: Moçambique | M37: 38413.508 | N37: 0.002025995465 | O37: 18774.384
A38: 35 | B38: Noruega | C38: 18383.7692 | D38: 0.002372349803 | F38: 35 | G38: Suazilândia | H38: 17908.3876 | I38: 0.001597375584 | K38: 35 | L38: Colômbia | M38: 37783.0652 | N38: 0.001992744811 | O38: -24638.754
A39: 36 | B39: Coreia, República da | C39: 16791.4172 | D39: 0.002166863327 | F39: 36 | G39: Letónia | H39: 17561.7186 | I39: 0.001566453727 | K39: 36 | L39: Guiné-Bissau | M39: 33466.8492 | N39: 0.001765100045 | O39: 32925.1732
A40: 37 | B40: Roménia | C40: 16735.3004 | D40: 0.002159621685 | F40: 37 | G40: Uganda | H40: 17520.2176 | I40: 0.00156275196 | K40: 37 | L40: Austrália | M40: 33457.4934 | N40: 0.001764606604 | O40: -224.9866
A41: 38 | B41: Austrália | C41: 16616.2534 | D41: 0.002144259159 | F41: 38 | G41: Austrália | H41: 16841.24 | I41: 0.001502189152 | K41: 38 | L41: Cuba | M41: 33227.7552 | N41: 0.00175248981 | O41: -24351.3236
A42: 39 | B42: Áustria | C42: 14553.815 | D42: 0.001878109966 | F42: 39 | G42: Lituânia | H42: 14646.1226 | I42: 0.001306391126 | K42: 39 | L42: Vietname | M42: 32990.675 | N42: 0.001739985787 | O42: -28794.3582
A43: 40 | B43: Emirados Árabes Unidos | C43: 13772.665 | D43: 0.001777305772 | F43: 40 | G43: México | H43: 13942.9954 | I43: 0.001243674245 | K43: 40 | L43: Hungria | M43: 31183.5242 | N43: 0.001644673499 | O43: -7046.3438
A44: 41 | B44: Iraque | C44: 13213.736 | D44: 0.001705178283 | F44: 41 | G44: Peru | H44: 13551.1124 | I44: 0.001208719432 | K44: 41 | L44: Chile | M44: 31046.9382 | N44: 0.001637469715 | O44: -21112.115
A45: 42 | B45: Nigéria | C45: 12563.3872 | D45: 0.001621253445 | F45: 42 | G45: Suécia | H45: 13541.7944 | I45: 0.001207888294 | K45: 42 | L45: Guiana | M45: 31034.393 | N45: 0.001636808059 | O45: -30994.1226
A46: 43 | B46: Hungria | C46: 12068.5902 | D46: 0.001557401927 | F46: 43 | G46: Egito | H46: 13444.2972 | I46: 0.00119919183 | K46: 43 | L46: Finlândia | M46: 30625.0708 | N46: 0.001615219692 | O46: 14375.4468
A47: 44 | B47: Macau | C47: 11451.795 | D47: 0.001477807044 | F47: 44 | G47: Indonésia | H47: 13373.0146 | I47: 0.001192833631 | K47: 44 | L47: Costa do Marfim | M47: 30195.695 | N47: 0.001592573663 | O47: -15042.6118
A48: 45 | B48: Território Palestiniano Ocupado | C48: 11126.9966 | D48: 0.001435893146 | F48: 45 | G48: Paquistão | H48: 12392.2934 | I48: 0.00110535618 | K48: 45 | L48: Turquia | M48: 29730.2176 | N48: 0.001568023572 | O48: -9608.0752
A49: 46 | B49: Líbia, Jamahira Árabe da | C49: 10747.1924 | D49: 0.001386880976 | F49: 46 | G49: Moldava, República de | H49: 12169.9448 | I49: 0.001085523338 | K49: 46 | L49: Arábia Saudita | M49: 29183.7518 | N49: 0.001539202012 | O49: 29109.6434
A50: 47 | B50: Senegal | C50: 10277.8906 | D50: 0.001326319509 | F50: 47 | G50: Rússia, Federação da | H50: 11868.4326 | I50: 0.001058629335 | K50: 47 | L50: Índia | M50: 27213.734 | N50: 0.001435299834 | O50: -20928.5392
A51: 48 | B51: Turquia | C51: 10061.0712 | D51: 0.001298339857 | F51: 48 | G51: Japão | H51: 11815.8554 | I51: 0.001053939603 | K51: 48 | L51: São Tomé e Príncipe | M51: 26136.022 | N51: 0.001378459422 | O51: 23958.356
A52: 49 | B52: Kuwait | C52: 9238.6512 | D52: 0.001192209939 | F52: 49 | G52: Marrocos | H52: 11323.5386 | I52: 0.00101002639 | K52: 49 | L52: Uruguai | M52: 24804.8014 | N52: 0.001308248524 | O52: -20652.5798
A53: 50 | B53: Bulgária | C53: 9021.6502 | D53: 0.001164206852 | F53: 50 | G53: Tailândia | H53: 10221.1584 | I53: 0.0009116973138 | K53: 50 | L53: Letónia | M53: 24563.5132 | N53: 0.001295522563 | O53: -10559.924
A54: 51 | B54: Eslováquia | C54: 8977.9814 | D54: 0.001158571573 | F54: 51 | G54: Paraguai | H54: 9863.0808 | I54: 0.0008797578434 | K54: 51 | L54: Argélia | M54: 22398.8544 | N54: 0.00118135468 | O54: 18738.716
A55: 52 | B55: Ucrânia | C55: 7962.1146 | D55: 0.001027478141 | F55: 52 | G55: Moçambique | H55: 9819.562 | I55: 0.0008758760942 | K55: 52 | L55: Jordânia | M55: 22013.8634 | N55: 0.001161049582 | O55: 21772.609
A56: 53 | B56: Costa do Marfim | C56: 7576.5416 | D56: 0.0009777215313 | F56: 53 | G56: Angola | H56: 9586.0054 | I56: 0.0008550435314 | K56: 53 | L56: México | M56: 20411.1484 | N56: 0.001076519596 | O56: -7474.8424
A57: 54 | B57: Letónia | C57: 7001.7946 | D57: 0.0009035527949 | F57: 54 | G57: Equador | H57: 9434.7056 | I57: 0.0008415480335 | K57: 54 | L57: Lituânia | M57: 20297.1126 | N57: 0.001070505148 | O57: -8995.1326
A58: 55 | B58: Gibraltar | C58: 6867.0166 | D58: 0.0008861602483 | F58: 55 | G58: Sérvia | H58: 8961.3684 | I58: 0.0007993277453 | K58: 55 | L58: Suazilândia | M58: 19974.7344 | N58: 0.001053502359 | O58: -15842.0408
A59: 56 | B59: Maurícias | C59: 6601.9064 | D59: 0.0008519488674 | F59: 56 | G59: Belize | H59: 8481.6488 | I59: 0.0007565381657 | K59: 56 | L59: Noruega | M59: 19562.9914 | N59: 0.001031786315 | O59: 17204.547
A60: 57 | B60: Colômbia | C60: 6572.1556 | D60: 0.000848109649 | F60: 57 | G60: Luxemburgo | H60: 8258.124 | I60: 0.00073660041 | K60: 57 | L60: Uganda | M60: 18130.6166 | N60: 0.0009562403676 | O60: -16909.8186
A61: 58 | B61: México | C61: 6468.153 | D61: 0.0008346885413 | F61: 58 | G61: Finlândia | H61: 8124.812 | I61: 0.000724709371 | K61: 58 | L61: Coreia, República da | M61: 18110.515 | N61: 0.0009551801741 | O61: 15472.3194
A62: 59 | B62: Malta | C62: 5886.9876 | D62: 0.0007596915367 | F62: 59 | G62: Estónia | H62: 8074.939 | I62: 0.0007202608459 | K62: 59 | L62: Peru | M62: 15535.3046 | N62: 0.0008193590824 | O62: -11566.9202
A63: 60 | B63: Andorra | C63: 5880.33 | D63: 0.0007588324008 | F63: 60 | G63: Nova Zelânda | H63: 7373.8184 | I63: 0.0006577229473 | K63: 60 | L63: Egito | M63: 15081.7762 | N63: 0.000795439203 | O63: -11806.8182
A64: 61 | B64: Lituânia | C64: 5650.99 | D64: 0.0007292370171 | F64: 61 | G64: Malásia | H64: 6878.308 | I64: 0.0006135248747 | K64: 61 | L64: Indonésia | M64: 14601.4892 | N64: 0.0007701080282 | O64: -12144.54
A65: 62 | B65: Estónia | C65: 5362.261 | D65: 0.0006919777272 | F65: 62 | G65: Camarões | H65: 6873.6916 | I65: 0.0006131131054 | K65: 62 | L65: Emirados Árabes Unidos | M65: 14301.0792 | N65: 0.0007542638804 | O65: 13244.2508
A66: 63 | B66: HongKong | C66: 4973.9084 | D66: 0.0006418624214 | F66: 63 | G66: Eslovénia | H66: 5854.3092 | I66: 0.0005221871888 | K66: 63 | L66: Eslováquia | M66: 14074.743 | N66: 0.0007423265142 | O66: 3881.2198
A67: 64 | B67: Chile | C67: 4967.4116 | D67: 0.0006410240361 | F67: 64 | G67: Israel | H67: 5332.274 | I67: 0.000475623182 | K67: 64 | L67: Tailândia | M67: 13545.1598 | N67: 0.0007143953718 | O67: -6897.157
A68: 65 | B68: Chipre | C68: 4590.055 | D68: 0.000592327719 | F68: 65 | G68: Honduras | H68: 5320.7232 | I68: 0.0004745928846 | K68: 65 | L68: Estónia | M68: 13437.2 | N68: 0.0007087013835 | O68: -2712.678
A69: 66 | B69: Cuba | C69: 4438.2158 | D69: 0.0005727334947 | F69: 66 | G69: Camboja | H69: 5251.2876 | I69: 0.000468399433 | K69: 66 | L69: Iraque | M69: 13226 | N69: 0.0006975623268 | O69: 13201.472
A70: 67 | B70: Mali | C70: 4408.7876 | D70: 0.0005689359065 | F70: 67 | G70: Zimbabwe | H70: 5172.692 | I70: 0.0004613889362 | K70: 67 | L70: Paquistão | M70: 12653.1142 | N70: 0.0006673473297 | O70: -12131.4726
A71: 68 | B71: Omã | C71: 4251.3822 | D71: 0.0005486233871 | F71: 68 | G71: Eslováquia | H71: 5096.7616 | I71: 0.0004546161675 | K71: 68 | L71: Nigéria | M71: 12613.3818 | N71: 0.0006652517736 | O71: 12513.3926
A72: 69 | B72: Sérvia | C72: 3643.2286 | D72: 0.0004701436663 | F72: 69 | G72: Reino Unido (Irlanda do Norte) pós-2020 | H72: 4870.1284 | I72: 0.0004344011516 | K72: 69 | L72: Sérvia | M72: 12604.597 | N72: 0.0006647884479 | O72: -5318.1398
A73: 70 | B73: Gana | C73: 3561.703 | D73: 0.0004596231229 | F73: 70 | G73: Etiópia | H73: 4865.161 | I73: 0.0004339580741 | K73: 70 | L73: Moldava, República de | M73: 12435.7646 | N73: 0.0006558839324 | O73: -11904.125
A74: 71 | B74: Síria, República Árabe da | C74: 3557.076 | D74: 0.0004590260276 | F74: 71 | G74: Tanzânia, República Unida da | H74: 4645.6104 | I74: 0.0004143748054 | K74: 71 | L74: Macau | M74: 11470.0196 | N74: 0.0006049488553 | O74: 11433.5704
A75: 72 | B75: Tailândia | C75: 3324.0014 | D75: 0.0004289487091 | F75: 72 | G75: Filipinas | H75: 4316.8954 | I75: 0.0003850543927 | K75: 72 | L75: Território Palestiniano Ocupado | M75: 11138.6664 | N75: 0.0005874727092 | O75: 11115.3268
A76: 73 | B76: Singapura | C76: 3292.5498 | D76: 0.0004248900095 | F76: 73 | G76: Macedónia, Antiga República jugoslava da | H76: 4269.76 | I76: 0.0003808500534 | K76: 73 | L76: Kuwait | M76: 10781.5982 | N76: 0.000568640309 | O76: 7695.7042
A77: 74 | B77: Eslovénia | C77: 3210.916 | D77: 0.0004143555034 | F77: 74 | G77: Myanmar | H77: 4258.6984 | I77: 0.0003798633912 | K77: 74 | L77: Senegal | M77: 10777.8706 | N77: 0.0005684437089 | O77: 9777.9106
A78: 75 | B78: Índia | C78: 3142.5974 | D78: 0.000405539269 | F78: 75 | G78: Tunísia | H78: 4096.3914 | I78: 0.0003653860834 | K78: 75 | L78: Líbia, Jamahira Árabe da | M78: 10763.4438 | N78: 0.0005676828143 | O78: 10730.941
A79: 76 | B79: Taiwan | C79: 3027.0112 | D79: 0.0003906233453 | F79: 76 | G79: Quénia | H79: 3999.6272 | I79: 0.0003567550009 | K79: 76 | L79: Paraguai | M79: 10570.8508 | N79: 0.0005575251233 | O79: -9155.3108
A80: 77 | B80: Guiné | C80: 2745.3572 | D80: 0.0003542770551 | F80: 77 | G80: Chipre | H80: 3962.962 | I80: 0.0003534845727 | K80: 77 | L80: Equador | M80: 10263.4314 | N80: 0.0005413112875 | O80: -8605.9798
A81: 78 | B81: Burquina Faso | C81: 2525.8832 | D81: 0.0003259548381 | F81: 78 | G81: Suriname | H81: 3877.4378 | I81: 0.0003458560653 | K81: 78 | L81: Nova Zelânda | M81: 9856.0686 | N81: 0.0005198262623 | O81: -4891.5682
A82: 79 | B82: Venezuela | C82: 2486.9168 | D82: 0.0003209263844 | F82: 79 | G82: Malavi | H82: 3756.8802 | I82: 0.0003351026814 | K82: 79 | L82: Maurícias | M82: 9426.6558 | N82: 0.0004971782817 | O82: 3777.157
A83: 80 | B83: Nova Zelânda | C83: 2482.2502 | D83: 0.0003203241789 | F83: 80 | G83: Guatemala | H83: 3336.065 | I83: 0.0002975672013 | K83: 80 | L83: Eslovénia | M83: 9065.2252 | N83: 0.000478115801 | O83: -2643.3932
A84: 81 | B84: Timor-Leste | C84: 2425.5014 | D84: 0.0003130009796 | F84: 81 | G84: Sri Lanca | H84: 3081.7828 | I84: 0.0002748859758 | K84: 81 | L84: Camarões | M84: 8912.7596 | N84: 0.0004700744991 | O84: -4834.6236
A85: 82 | B85: Filipinas | C85: 2423.494 | D85: 0.0003127419329 | F85: 82 | G85: Nicarágua | H85: 3050.9764 | I85: 0.0002721381354 | K85: 82 | L85: Chipre | M85: 8553.017 | N85: 0.0004511010464 | O85: 627.093
A86: 83 | B86: Congo | C86: 2401.0914 | D86: 0.0003098509695 | F86: 83 | G86: Maurícias | H86: 2824.7494 | I86: 0.0002519593513 | K86: 83 | L86: Belize | M86: 8501.158 | N86: 0.0004483659122 | O86: -8462.1396
A87: 84 | B87: Dominicana, República | C87: 2366.1238 | D87: 0.0003053385446 | F87: 84 | G87: Suíça | H87: 2672.027 | I87: 0.0002383369617 | K87: 84 | L87: Malásia | M87: 8478.9536 | N87: 0.0004471948134 | O87: -5277.6624
A88: 85 | B88: Seychelles | C88: 2266.2448 | D88: 0.0002924495704 | F88: 85 | G88: Taiwan | H88: 2620.89 | I88: 0.0002337756915 | K88: 85 | L88: Mali | M88: 6882.4546 | N88: 0.0003629926694 | O88: 1935.1206
A89: 86 | B89: Belarus | C89: 2265.0334 | D89: 0.0002922932442 | F89: 86 | G89: Dominicana, República | H89: 2590.705 | I89: 0.0002310832781 | K89: 86 | L89: Gibraltar | M89: 6867.0382 | N89: 0.0003621795815 | O89: 6866.995
A90: 87 | B90: Benim | C90: 2254.9256 | D90: 0.0002909888742 | F90: 87 | G90: Mali | H90: 2473.667 | I90: 0.0002206438322 | K90: 87 | L90: Filipinas | M90: 6740.3894 | N90: 0.0003554999027 | O90: -1893.4014
A91: 88 | B91: Guiné Equatorial | C91: 2237.2378 | D91: 0.0002887063364 | F91: 88 | G91: Gana | H91: 2244.213 | I91: 0.0002001772092 | K91: 88 | L91: Reino Unido (Irlanda do Norte) pós-2020 | M91: 6635.6924 | N91: 0.0003499780002 | O91: -3104.5644
A92: 89 | B92: Líbano | C92: 2221.1552 | D92: 0.000286630943 | F92: 89 | G92: Croácia | H92: 2133.6594 | I92: 0.0001903161528 | K92: 89 | L92: HongKong | M92: 6486.7258 | N92: 0.0003421212417 | O92: 3461.091
A93: 90 | B93: Gabão | C93: 2209.6904 | D93: 0.0002851514577 | F93: 90 | G93: Congo, República Democrática do | H93: 1937.5966 | I93: 0.0001728279268 | K93: 90 | L93: Malta | M93: 6408.603 | N93: 0.0003380009088 | O93: 5365.3722
A94: 91 | B94: Croácia | C94: 2104.1314 | D94: 0.0002715295029 | F94: 91 | G94: Benim | H94: 1901.2374 | I94: 0.0001695847929 | K94: 91 | L94: Honduras | M94: 6000.5624 | N94: 0.0003164801353 | O94: -4640.884
A95: 92 | B95: Vietname | C95: 2098.1584 | D95: 0.0002707587118 | F95: 92 | G95: Serra Leoa | H95: 1900.5094 | I95: 0.0001695198574 | K95: 92 | L95: Andorra | M95: 5897.0704 | N95: 0.0003110217866 | O95: 5863.5896
A96: 93 | B96: Uruguai | C96: 2076.1108 | D96: 0.0002679135597 | F96: 93 | G96: Argélia | H96: 1830.0692 | I96: 0.0001632367984 | K96: 93 | L96: Gana | M96: 5805.916 | N96: 0.0003062141444 | O96: 1317.49
A97: 94 | B97: Suazilândia | C97: 2066.3468 | D97: 0.0002666535557 | F97: 94 | G97: Laos, República Democrática Popular do | H97: 1764.7672 | I97: 0.0001574120518 | K97: 94 | L97: Camboja | M97: 5661.8046 | N97: 0.0002986134576 | O97: -4840.7706
A98: 95 | B98: Camarões | C98: 2039.068 | D98: 0.0002631333388 | F98: 95 | G98: Burquina Faso | H98: 1596.6714 | I98: 0.0001424184001 | K98: 95 | L98: Taiwan | M98: 5647.9012 | N98: 0.000297880168 | O98: 406.1212
A99: 96 | B99: Peru | C99: 1984.1922 | D99: 0.0002560518425 | F99: 96 | G99: Kuwait | H99: 1542.947 | I99: 0.0001376263414 | K99: 96 | L99: Etiópia | M99: 5274.7014 | N99: 0.0002781969592 | O99: -4455.6206
A100: 97 | B100: Catar | C100: 1923.0908 | D100: 0.0002481669581 | F100: 97 | G100: HongKong | H100: 1512.8174 | I100: 0.0001349388695 | K100: 97 | L100: Zimbabwe | M100: 5238.022 | N100: 0.0002762624236 | O100: -5107.362
A101: 98 | B101: Irão, República Islâmica do | C101: 1920.529 | D101: 0.0002478363684 | F101: 98 | G101: Panamá | H101: 1505.4946 | I101: 0.0001342856973 | K101: 98 | L101: Tunísia | M101: 5011.6662 | N101: 0.0002643240236 | O101: -3181.1166
A102: 99 | B102: Geórgia | C102: 1916.3824 | D102: 0.0002473012667 | F102: 99 | G102: Madagáscar | H102: 1471.794 | I102: 0.0001312797027 | K102: 99 | L102: Tanzânia, República Unida da | M102: 4986.1414 | N102: 0.0002629778011 | O102: -4305.0794
A103: 100 | B103: Reino Unido (Irlanda do Norte) pós-2020 | C103: 1765.564 | D103: 0.0002278387725 | F103: 100 | G103: Coreia, República da | H103: 1319.0978 | I103: 0.0001176596501 | K103: 100 | L103: Dominicana, República | M103: 4956.8288 | N103: 0.0002614318034 | O103: -224.5812
A104: 101 | B104: Egito | C104: 1637.479 | D104: 0.00021130993 | F104: 101 | G104: Singapura | H104: 1313.0876 | I104: 0.0001171235579 | K104: 101 | L104: Omã | M104: 4826.1814 | N104: 0.0002545412314 | O104: 3676.583
A105: 102 | B105: Malásia | C105: 1600.6456 | D105: 0.0002065567313 | F105: 102 | G105: Noruega | H105: 1179.2222 | I105: 0.0001051831573 | K105: 102 | L105: Singapura | M105: 4605.6374 | N105: 0.0002429093559 | O105: 1979.4622
A106: 103 | B106: Bangladesh | C106: 1592.1082 | D106: 0.0002054550149 | F106: 103 | G106: São Tomé e Príncipe | H106: 1088.833 | I106: 9.712070613e-05 | K106: 103 | L106: Myanmar | M106: 4593.3818 | N106: 0.0002422629742 | O106: -3924.015
A107: 104 | B107: Congo, República Democrática do | C107: 1487.5888 | D107: 0.0001919672162 | F107: 104 | G107: Timor-Leste | H107: 773.0574 | I107: 6.895444992e-05 | K107: 104 | L107: Macedónia, Antiga República jugoslava da | M107: 4569.63 | N107: 0.0002410102628 | O107: -3969.89
A108: 105 | B108: Costa Rica | C108: 1312.2124 | D108: 0.0001693356131 | F108: 105 | G108: El Salvador | H108: 699.8376 | I108: 6.242345877e-05 | K108: 105 | L108: Quénia | M108: 4449.3114 | N108: 0.0002346644498 | O108: -3549.943
A109: 106 | B109: Sudão | C109: 1307.024 | D109: 0.0001686660714 | F109: 106 | G109: Turquemenistão | H109: 693.7048 | I109: 6.187643102e-05 | K109: 106 | L109: Croácia | M109: 4237.7908 | N109: 0.0002235084841 | O109: -29.528
A110: 107 | B110: Togo | C110: 1248.9136 | D110: 0.0001611671633 | F110: 107 | G110: Cazaquistão | H110: 686.1514 | I110: 6.120268992e-05 | K110: 107 | L110: Benim | M110: 4156.163 | N110: 0.0002192032915 | O110: 353.6882
A111: 108 | B111: Indonésia | C111: 1228.4746 | D111: 0.0001585295944 | F111: 108 | G111: Omã | H111: 574.7992 | I111: 5.127040068e-05 | K111: 108 | L111: Burquina Faso | M111: 4122.5546 | N111: 0.0002174307258 | O111: 929.2118
A112: 109 | B112: Islândia | C112: 1198.9784 | D112: 0.0001547232311 | F112: 109 | G112: Geórgia | H112: 547.4606 | I112: 4.883187784e-05 | K112: 109 | L112: Suriname | M112: 4115.4388 | N112: 0.0002170554261 | O112: -3639.4368
A113: 110 | B113: Panamá | C113: 1014.5438 | D113: 0.0001309227046 | F113: 110 | G113: Emirados Árabes Unidos | H113: 528.4142 | I113: 4.71329949e-05 | K113: 110 | L113: Guatemala | M113: 3875.6304 | N113: 0.0002044075124 | O113: -2796.4996
A114: 111 | B114: Tunísia | C114: 915.2748 | D114: 0.0001181124484 | F114: 111 | G114: Malta | H114: 521.6154 | I114: 4.65265619e-05 | K114: 111 | L114: Malavi | M114: 3763.5146 | N114: 0.0001984943295 | O114: -3750.2458
A115: 112 | B115: Equador | C115: 828.7258 | D115: 0.000106943656 | F115: 112 | G115: Senegal | H115: 499.98 | I115: 4.459674776e-05 | K115: 112 | L115: Síria, República Árabe da | M115: 3703.4868 | N115: 0.0001953283585 | O115: 3410.6652
A116: 113 | B116: Bermudas | C116: 818.2718 | D116: 0.0001055946103 | F116: 113 | G116: Usbequistão | H116: 380.3558 | I116: 3.392662041e-05 | K116: 113 | L116: Sri Lanca | M116: 3487.054 | N116: 0.0001839133148 | O116: -2676.5116
A117: 114 | B117: Kosovo | C117: 799.843 | D117: 0.0001032164494 | F117: 114 | G117: Líbano | H117: 342.8862 | I117: 3.058444212e-05 | K117: 114 | L117: Nicarágua | M117: 3449.8386 | N117: 0.0001819505097 | O117: -2652.1142
A118: 115 | B118: Paraguai | C118: 707.77 | D118: 9.133480746e-05 | F118: 115 | G118: Chade | H118: 303.1764 | I118: 2.704244457e-05 | K118: 115 | L118: Congo, República Democrática do | M118: 3425.1854 | N118: 0.0001806502569 | O118: -450.0078
A119: 116 | B119: Honduras | C119: 679.8392 | D119: 8.77304526e-05 | F119: 116 | G119: Bangladesh | H119: 298.8156 | I119: 2.665347402e-05 | K119: 116 | L119: Timor-Leste | M119: 3198.5588 | N119: 0.0001686975744 | O119: 1652.444
A120: 117 | B120: Aruba | C120: 651.3298 | D120: 8.405143178e-05 | F120: 117 | G120: Bolívia | H120: 296.509 | I120: 2.644773207e-05 | K120: 117 | L120: Guiné | M120: 3020.6542 | N120: 0.0001593145752 | O120: 2470.0602
A121: 118 | B121: Mauritânia | C121: 615.705 | D121: 7.945419787e-05 | F121: 118 | G121: Venezuela | H121: 285.0498 | I121: 2.542560508e-05 | K121: 118 | L121: Venezuela | M121: 2771.9666 | N121: 0.0001461983571 | O121: 2201.867
A122: 119 | B122: Uganda | C122: 610.399 | D122: 7.876948039e-05 | F122: 119 | G122: Guiné | H122: 275.297 | I122: 2.455568396e-05 | K122: 119 | L122: Congo | M122: 2655.1662 | N122: 0.0001400381001 | O122: 2147.0166
A123: 120 | B123: Namíbia | C123: 600.2532 | D123: 7.746020663e-05 | F123: 120 | G123: Guiné-Bissau | H123: 270.838 | I123: 2.415795426e-05 | K123: 120 | L123: Líbano | M123: 2564.0414 | N123: 0.0001352320191 | O123: 1878.269
A124: 121 | B124: Cazaquistão | C124: 584.6762 | D124: 7.545005885e-05 | F124: 121 | G124: Congo | H124: 254.0748 | I124: 2.266272604e-05 | K124: 121 | L124: Panamá | M124: 2520.0384 | N124: 0.0001329112241 | O124: -490.9508
A125: 122 | B125: Albânia | C125: 582.0574 | D125: 7.511211348e-05 | F125: 122 | G125: Belarus | H125: 241.8304 | I125: 2.157056152e-05 | K125: 122 | L125: Belarus | M125: 2506.8638 | N125: 0.0001322163727 | O125: 2023.203
A126: 123 | B126: Ruanda | C126: 580.43 | D126: 7.49021042e-05 | F126: 123 | G126: Togo | H126: 238.6312 | I126: 2.128520227e-05 | K126: 123 | L126: Geórgia | M126: 2463.843 | N126: 0.0001299473806 | O126: 1368.9218
A127: 124 | B127: Azerbaijão | C127: 564.159 | D127: 7.280239858e-05 | F127: 124 | G127: Irão, República Islâmica do | H127: 186.7426 | I127: 1.665689153e-05 | K127: 124 | L127: Serra Leoa | M127: 2326.8524 | N127: 0.0001227222572 | O127: -1474.1664
A128: 125 | B128: São Bartolomeu | C128: 548.5216 | D128: 7.078445642e-05 | F128: 125 | G128: Zâmbia | H128: 183.9494 | I128: 1.640774629e-05 | K128: 125 | L128: Seychelles | M128: 2267.3882 | N128: 0.0001195860115 | O128: 2265.1014
A129: 126 | B129: Guatemala | C129: 539.5654 | D129: 6.962869565e-05 | F129: 126 | G129: Islândia | H129: 183.9414 | I129: 1.640703272e-05 | K129: 126 | L129: Guiné Equatorial | M129: 2237.2378 | N129: 0.0001179958268 | O129: 2237.2378
A130: 127 | B130: Arménia | C130: 525.5354 | D130: 6.781818185e-05 | F130: 127 | G130: Síria, República Árabe da | H130: 146.4108 | I130: 1.305941341e-05 | K130: 127 | L130: Gabão | M130: 2210.0274 | N130: 0.0001165607028 | O130: 2209.3534
A131: 128 | B131: Barém | C131: 502.4658 | D131: 6.484114486e-05 | F131: 128 | G131: Cabo Verde | H131: 145.1786 | I131: 1.294950479e-05 | K131: 128 | L131: Irão, República Islâmica do | M131: 2107.2716 | N131: 0.0001111411826 | O131: 1733.7864
A132: 129 | B132: Bolívia | C132: 494.4554 | D132: 6.380743569e-05 | F132: 129 | G132: Azerbaijão | H132: 124.8964 | I132: 1.114039211e-05 | K132: 129 | L132: Catar | M132: 1939.3412 | N132: 0.0001022842401 | O132: 1906.8404
A133: 130 | B133: Burundi | C133: 484.978 | D133: 6.25844162e-05 | F133: 130 | G133: Jordânia | H133: 120.6272 | I133: 1.075959201e-05 | K133: 130 | L133: Bangladesh | M133: 1890.9238 | N133: 9.973062194e-05 | O133: 1293.2926
A134: 131 | B134: Quénia | C134: 449.6842 | D134: 5.802989647e-05 | F134: 131 | G134: Albânia | H134: 120.2784 | I134: 1.072848007e-05 | K134: 131 | L134: Laos, República Democrática Popular do | M134: 1777.8864 | N134: 9.376883215e-05 | O134: -1751.648
A135: 132 | B135: Gâmbia | C135: 434.028 | D135: 5.600952825e-05 | F135: 132 | G135: Iémen | H135: 84.6154 | I135: 7.547445198e-06 | K135: 132 | L135: Madagáscar | M135: 1602.4536 | N135: 8.451620005e-05 | O135: -1341.1344
A136: 133 | B136: Serra Leoa | C136: 426.343 | D136: 5.501781061e-05 | F136: 133 | G136: Kosovo | H136: 79.8322 | I136: 7.120797804e-06 | K136: 133 | L136: Togo | M136: 1487.5448 | N136: 7.845570935e-05 | O136: 1010.2824
A137: 134 | B137: Camboja | C137: 410.517 | D137: 5.29755304e-05 | F137: 134 | G137: Tajiquistão | H137: 74.7168 | I137: 6.664519146e-06 | K137: 134 | L137: Islândia | M137: 1382.9198 | N137: 7.293760422e-05 | O137: 1015.037
A138: 135 | B138: Etiópia | C138: 409.5404 | D138: 5.284950419e-05 | F138: 135 | G138: Namíbia | H138: 64.9894 | I138: 5.796863632e-06 | K138: 135 | L138: Sudão | M138: 1318.1622 | N138: 6.952217536e-05 | O138: 1295.8858
A139: 136 | B139: Sri Lanca | C139: 405.2712 | D139: 5.229858149e-05 | F139: 136 | G139: Libéria | H139: 54.4472 | I139: 4.85653035e-06 | K139: 136 | L139: Cazaquistão | M139: 1270.8276 | N139: 6.702566593e-05 | O139: -101.4752
A140: 137 | B140: Antígua e Barbuda | C140: 403.3246 | D140: 5.204738076e-05 | F140: 137 | G140: Nigéria | H140: 49.9946 | I140: 4.459371506e-06 | K140: 137 | L140: El Salvador | M140: 1081.0474 | N140: 5.701632691e-05 | O140: -318.6278
A141: 138 | B141: Nicarágua | C141: 398.8622 | D141: 5.14715264e-05 | F141: 138 | G141: Aruba | H141: 45.6144 | I141: 4.068670529e-06 | K141: 138 | L141: Kosovo | M141: 879.6752 | N141: 4.639560558e-05 | O141: 720.0108
A142: 139 | B142: El Salvador | C142: 381.2098 | D142: 4.919355678e-05 | F142: 139 | G142: Bósnia-Herzegovina | H142: 42.5574 | I142: 3.795995106e-06 | K142: 139 | L142: Bermudas | M142: 818.9736 | N142: 4.319409723e-05 | O142: 817.57
A143: 140 | B143: São Martinho (parte holandesa) | C143: 373.2376 | D143: 4.816477716e-05 | F143: 140 | G143: Curaçau | H143: 39.2148 | I143: 3.497845002e-06 | K143: 140 | L143: Bolívia | M143: 790.9644 | N143: 4.171684313e-05 | O143: 197.9464
A144: 141 | B144: Iémen | C144: 360.3172 | D144: 4.649745268e-05 | F144: 141 | G144: Arménia | H144: 37.5752 | I144: 3.351597496e-06 | K144: 141 | L144: Albânia | M144: 702.3358 | N144: 3.704241606e-05 | O144: 461.779
A145: 142 | B145: Tanzânia, República Unida da | C145: 340.531 | D145: 4.394412495e-05 | F145: 142 | G145: Arábia Saudita | H145: 37.0542 | I145: 3.305125826e-06 | K145: 142 | L145: Turquemenistão | M145: 700.9924 | N145: 3.69715628e-05 | O145: -686.4172
A146: 143 | B146: Myanmar | C146: 334.6834 | D146: 4.318951622e-05 | F146: 143 | G146: Botswana | H146: 30.037 | I146: 2.679212193e-06 | K146: 143 | L146: Aruba | M146: 696.9442 | N146: 3.675805367e-05 | O146: 605.7154
A147: 144 | B147: Comores | C147: 333.8038 | D147: 4.307600746e-05 | F147: 144 | G147: Ruanda | H147: 26.8278 | I147: 2.392960977e-06 | K147: 144 | L147: Azerbaijão | M147: 689.0554 | N147: 3.634198458e-05 | O147: 439.2626
A148: 145 | B148: Argentina | C148: 316.4082 | D148: 4.083117683e-05 | F148: 145 | G148: São Marino | H148: 25.2246 | I148: 2.249960245e-06 | K148: 145 | L148: Namíbia | M148: 665.2426 | N148: 3.508605595e-05 | O148: 535.2638
A149: 146 | B149: Jamaica | C149: 302.5728 | D149: 3.904577536e-05 | F149: 146 | G149: Macau | H149: 18.2246 | I149: 1.625580802e-06 | K149: 146 | L149: Mauritânia | M149: 617.715 | N149: 3.257936736e-05 | O149: 613.695
A150: 147 | B150: Libéria | C150: 301.9358 | D150: 3.896357313e-05 | F150: 147 | G150: Quirguizistão | H150: 17.5046 | I150: 1.561358916e-06 | K150: 147 | L150: Ruanda | M150: 607.2578 | N150: 3.202783638e-05 | O150: 553.6022
A151: 148 | B151: Macedónia, Antiga República jugoslava da | C151: 299.87 | D151: 3.869699014e-05 | F151: 148 | G151: Andorra | H151: 16.7404 | I151: 1.49319452e-06 | K151: 148 | L151: Arménia | M151: 563.1106 | N151: 2.969943599e-05 | O151: 487.9602
A152: 149 | B152: Somália | C152: 292.8384 | D152: 3.778959108e-05 | F152: 149 | G152: Líbia, Jamahira Árabe da | H152: 16.2514 | I152: 1.449577156e-06 | K152: 149 | L152: São Bartolomeu | M152: 548.8046 | N152: 2.894491258e-05 | O152: 548.2386
A153: 150 | B153: Moldava, República de | C153: 265.8198 | D153: 3.430295188e-05 | F153: 150 | G153: Catar | H153: 16.2504 | I153: 1.449487959e-06 | K153: 150 | L153: Barém | M153: 506.7884 | N153: 2.672890485e-05 | O153: 498.1432
A154: 151 | B154: Paquistão | C154: 260.8208 | D154: 3.365785149e-05 | F154: 151 | G154: Jamaica | H154: 14.6512 | I154: 1.306844015e-06 | K154: 151 | L154: Burundi | M154: 485.092 | N154: 2.558459884e-05 | O154: 484.864
A155: 152 | B155: Curaçau | C155: 251.4226 | D155: 3.244505243e-05 | F155: 152 | G155: São Cristovão e Nevis | H155: 12.4064 | I155: 1.106614447e-06 | K155: 152 | L155: Iémen | M155: 444.9326 | N155: 2.346652198e-05 | O155: 275.7018
A156: 153 | B156: Suriname | C156: 238.001 | D156: 3.071305016e-05 | F156: 153 | G156: Iraque | H156: 12.264 | I156: 1.093912785e-06 | K156: 153 | L156: Gâmbia | M156: 434.067 | N156: 2.289345127e-05 | O156: 433.989
A157: 154 | B157: Nova Caledónia | C157: 206.2626 | D157: 2.661734018e-05 | F157: 154 | G157: Território Palestiniano Ocupado | H157: 11.6698 | I157: 1.04091189e-06 | K157: 154 | L157: Usbequistão | M157: 421.6984 | N157: 2.224110972e-05 | O157: -339.0132
A158: 155 | B158: Trindade e Tobago | C158: 189.8074 | D158: 2.44938643e-05 | F158: 155 | G158: Sudão | H158: 11.1382 | I158: 9.934947315e-07 | K158: 155 | L158: Antígua e Barbuda | M158: 403.7924 | N158: 2.129671602e-05 | O158: 402.8568
A159: 156 | B159: Haiti | C159: 187.225 | D159: 2.41606162e-05 | F159: 156 | G159: Barém | H159: 4.3226 | I159: 3.855632262e-07 | K159: 156 | L159: São Martinho (parte holandesa) | M159: 373.2376 | N159: 1.968520253e-05 | O159: 373.2376
A160: 157 | B160: Zâmbia | C160: 152.2624 | D160: 1.964883647e-05 | F160: 157 | G160: Nepal | H160: 2.6584 | I160: 2.371214733e-07 | K160: 157 | L160: Libéria | M160: 356.383 | N160: 1.879626151e-05 | O160: 247.4886
A161: 158 | B161: Maldivas | C161: 137.7162 | D161: 1.777170919e-05 | F161: 158 | G161: Fiji, Ilhas | H161: 2.251 | I161: 2.007825897e-07 | K161: 158 | L161: Zâmbia | M161: 336.2118 | N161: 1.773239721e-05 | O161: -31.687
A162: 159 | B162: Liechtenstein | C162: 135.8048 | D162: 1.752505088e-05 | F162: 159 | G162: Mauritânia | H162: 2.01 | I162: 1.792860974e-07 | K162: 159 | L162: Comores | M162: 333.8038 | N162: 1.760539509e-05 | O162: 333.8038
A163: 160 | B163: Polinésia Francesa | C163: 133.9344 | D163: 1.728368345e-05 | F163: 160 | G163: Liechtenstein | H163: 1.7982 | I163: 1.603941594e-07 | K163: 160 | L163: Jamaica | M163: 317.224 | N163: 1.673094749e-05 | O163: 287.9216
A164: 161 | B164: Madagáscar | C164: 130.6596 | D164: 1.686108398e-05 | F164: 161 | G164: Lesoto | H164: 1.7136 | I164: 1.528480878e-07 | K164: 161 | L164: Chade | M164: 303.1804 | N164: 1.599026352e-05 | O164: -303.1724
A165: 162 | B165: Niger | C165: 126.732 | D165: 1.635424335e-05 | F165: 162 | G165: Seychelles | H165: 1.1434 | I165: 1.019879223e-07 | K165: 162 | L165: Somália | M165: 292.8384 | N165: 1.544480838e-05 | O165: 292.8384
A166: 163 | B166: Bósnia-Herzegovina | C166: 90.5322 | D166: 1.168280805e-05 | F166: 163 | G166: Bermudas | H166: 0.7018 | I166: 6.259849909e-08 | K166: 163 | L166: Curaçau | M166: 290.6374 | N166: 1.53287238e-05 | O166: 212.2078
A167: 164 | B167: Centro-Africana, República | C167: 89.9082 | D167: 1.160228342e-05 | F167: 164 | G167: Afeganistão | H167: 0.5848 | I167: 5.216244267e-08 | K167: 164 | L167: Nova Caledónia | M167: 206.2906 | N167: 1.088012634e-05 | O167: 206.2346
A168: 165 | B168: Nepal | C168: 87.8934 | D168: 1.134228177e-05 | F168: 165 | G168: Antígua e Barbuda | H168: 0.4678 | I168: 4.172638626e-08 | K168: 165 | L168: Trindade e Tobago | M168: 189.8764 | N168: 1.001441278e-05 | O168: 189.7384
A169: 166 | B169: Jibuti | C169: 70.7204 | D169: 9.126176749e-06 | F169: 166 | G169: Gabão | H169: 0.337 | I169: 3.005941036e-08 | K169: 166 | L169: Haiti | M169: 187.2274 | N169: 9.874699893e-06 | O169: 187.2226
A170: 167 | B170: Zimbabwe | C170: 65.33 | D170: 8.430567799e-06 | F170: 167 | G170: São Bartolomeu | H170: 0.283 | I170: 2.524276894e-08 | K170: 167 | L170: Maldivas | M170: 137.7198 | N170: 7.26358265e-06 | O170: 137.7126
A171: 168 | B171: Montenegro | C171: 54.6326 | D171: 7.050112327e-06 | F171: 168 | G171: Barbados | H171: 0.1636 | I171: 1.459263957e-08 | K171: 168 | L171: Liechtenstein | M171: 137.603 | N171: 7.257422415e-06 | O171: 134.0066
A172: 169 | B172: Caimão, Ilhas | C172: 53.1296 | D172: 6.856156359e-06 | F172: 169 | G172: Oceano Indico, Território Britânico do | H172: 0.1384 | I172: 1.234487357e-08 | K172: 169 | L172: Polinésia Francesa | M172: 133.9626 | N172: 7.065421364e-06 | O172: 133.9062
A173: 170 | B173: Ceuta e Melilha | C173: 51.6648 | D173: 6.667129944e-06 | F173: 170 | G173: Niger | H173: 0.1252 | I173: 1.116747234e-08 | K173: 170 | L173: Bósnia-Herzegovina | M173: 133.0896 | N173: 7.01937782e-06 | O173: 47.9748
A174: 171 | B174: Bahamas | C174: 43.9552 | D174: 5.672237773e-06 | F174: 171 | G174: Burundi | H174: 0.114 | I174: 1.016846523e-08 | K174: 171 | L174: Niger | M174: 126.8572 | N174: 6.690670165e-06 | O174: 126.6068
A175: 172 | B175: Usbequistão | C175: 41.3426 | D175: 5.335092489e-06 | F175: 172 | G175: Trindade e Tobago | H175: 0.069 | I175: 6.154597374e-09 | K175: 172 | L175: Nepal | M175: 90.5518 | N175: 4.775859996e-06 | O175: 85.235
A176: 173 | B176: Virgens dos Estados Unidos, Ilhas | C176: 26.0742 | D176: 3.364768267e-06 | F176: 173 | G176: Gâmbia | H176: 0.039 | I176: 3.478685472e-09 | K176: 173 | L176: Centro-Africana, República | M176: 89.9082 | N176: 4.741915408e-06 | O176: 89.9082
A177: 174 | B177: Turcas e Caicos, Ilhas | C177: 25.0024 | D177: 3.226456886e-06 | F177: 174 | G177: Polinésia Francesa | H177: 0.0282 | I177: 2.515357188e-09 | K177: 174 | L177: Tajiquistão | M177: 74.7168 | N177: 3.940694455e-06 | O177: -74.7168
A178: 175 | B178: Quirguizistão | C178: 23.7908 | D178: 3.070104889e-06 | F178: 175 | G178: Nova Caledónia | H178: 0.028 | I178: 2.497517775e-09 | K178: 175 | L178: Jibuti | M178: 70.7204 | N178: 3.729917343e-06 | O178: 70.7204
A179: 176 | B179: Guiana | C179: 20.1352 | D179: 2.598364744e-06 | F179: 176 | G179: Papuásia-Nova Guiné | H179: 0.0222 | I179: 1.980174807e-09 | K179: 176 | L179: Montenegro | M179: 54.634 | N179: 2.881492527e-06 | O179: 54.6312
A180: 177 | B180: Belize | C180: 19.5092 | D180: 2.517582019e-06 | F180: 177 | G180: Gibraltar | H180: 0.0216 | I180: 1.926656569e-09 | K180: 177 | L180: Caimão, Ilhas | M180: 53.1304 | N180: 2.802190038e-06 | O180: 53.1288
A181: 178 | B181: Mongólia | C181: 19.1206 | D181: 2.467434787e-06 | F181: 178 | G181: São Vicente e Granadinas | H181: 0.0144 | I181: 1.284437713e-09 | K181: 178 | L181: Ceuta e Melilha | M181: 51.6648 | N181: 2.724891736e-06 | O181: 51.6648
A182: 179 | B182: Afeganistão | C182: 18.9718 | D182: 2.448232759e-06 | F182: 179 | G182: Mongólia | H182: 0.0112 | I182: 9.9900711e-10 | K182: 179 | L182: Bahamas | M182: 43.9552 | N182: 2.318273975e-06 | O182: 43.9552
A183: 180 | B183: Barbados | C183: 15.4724 | D183: 1.996649582e-06 | F183: 180 | G183: Santa Lúcia | H183: 0.009 | I183: 8.027735706e-10 | K183: 180 | L183: Quirguizistão | M183: 41.2954 | N183: 2.17799148e-06 | O183: 6.2862
A184: 181 | B184: Virgens Britânicas, Ilhas | C184: 13.47 | D184: 1.738248098e-06 | F184: 181 | G184: Virgens Britânicas, Ilhas | H184: 0.007 | I184: 6.243794438e-10 | K184: 181 | L184: Botswana | M184: 30.0886 | N184: 1.586925286e-06 | O184: -29.9854
A185: 182 | B185: Laos, República Democrática Popular do | C185: 13.1192 | D185: 1.692978801e-06 | F185: 182 | G185: Maldivas | H185: 0.0036 | I185: 3.211094282e-10 | K185: 182 | L185: Virgens dos Estados Unidos, Ilhas | M185: 26.0742 | N185: 1.375198822e-06 | O185: 26.0742
A186: 183 | B186: Brunei Darussalam | C186: 12.819 | D186: 1.654239226e-06 | F186: 183 | G186: Faroé, Ilhas | H186: 0.0026 | I186: 2.319123648e-10 | K186: 183 | L186: São Marino | M186: 25.2486 | N186: 1.331655237e-06 | O186: -25.2006
A187: 184 | B187: Fiji, Ilhas | C187: 11.4226 | D187: 1.474039549e-06 | F187: 184 | G187: Haiti | H187: 0.0024 | I187: 2.140729521e-10 | K187: 184 | L187: Turcas e Caicos, Ilhas | M187: 25.0024 | N187: 1.318670219e-06 | O187: 25.0024
A188: 185 | B188: Turquemenistão | C188: 7.2876 | D188: 9.404348063e-07 | F188: 185 | G188: Montenegro | H188: 0.0014 | I188: 1.248758888e-10 | K188: 185 | L188: Afeganistão | M188: 19.5566 | N188: 1.031449221e-06 | O188: 18.387
A189: 186 | B189: Santa Lúcia | C189: 7.138 | D189: 9.211295416e-07 | F189: 186 | G189: Caimão, Ilhas | H189: 0.0008 | I189: 7.135765072e-11 | K189: 186 | L189: Mongólia | M189: 19.1318 | N189: 1.009044528e-06 | O189: 19.1094
A190: 187 | B190: Malavi | C190: 6.6344 | D190: 8.561420329e-07 | F190: 187 | G190: Anguila | H190: 0 | I190: 0 | K190: 187 | L190: Barbados | M190: 15.636 | N190: 8.246699336e-07 | O190: 15.3088
A191: 188 | B191: Bonaire, Santo Eustáquio e Saba | C191: 6.6316 | D191: 8.557807044e-07 | F191: 188 | G191: Antárctica | H191: 0 | I191: 0 | K191: 188 | L191: Fiji, Ilhas | M191: 13.6736 | N191: 7.211695321e-07 | O191: 9.1716
A192: 189 | B192: Guam | C192: 6.3336 | D192: 8.1732503e-07 | F192: 189 | G192: Antilhas Holandesas | H192: 0 | I192: 0 | K192: 189 | L192: Virgens Britânicas, Ilhas | M192: 13.477 | N192: 7.108005049e-07 | O192: 13.463
A193: 190 | B193: São Vicente e Granadinas | C193: 4.3128 | D193: 5.565491015e-07 | F193: 190 | G193: Bahamas | H193: 0 | I193: 0 | K193: 190 | L193: São Cristovão e Nevis | M193: 13.1558 | N193: 6.938598563e-07 | O193: -11.657
A194: 191 | B194: Sudão do Sul | C194: 3.771 | D194: 4.8663204e-07 | F194: 191 | G194: Bonaire, Santo Eustáquio e Saba | H194: 0 | I194: 0 | K194: 191 | L194: Brunei Darussalam | M194: 12.819 | N194: 6.760964364e-07 | O194: 12.819
A195: 192 | B195: Marianas do Norte, Ilhas | C195: 2.9244 | D195: 3.77381792e-07 | F195: 192 | G195: Bouvet, Ilha | H195: 0 | I195: 0 | K195: 192 | L195: Santa Lúcia | M195: 7.147 | N195: 3.769452555e-07 | O195: 7.129
A196: 193 | B196: Papuásia-Nova Guiné | C196: 2.8856 | D196: 3.723748116e-07 | F196: 193 | G196: Brunei Darussalam | H196: 0 | I196: 0 | K196: 193 | L196: Bonaire, Santo Eustáquio e Saba | M196: 6.6316 | N196: 3.497621599e-07 | O196: 6.6316
A197: 194 | B197: Anguila | C197: 2.7816 | D197: 3.589540393e-07 | F197: 194 | G197: Butão | H197: 0 | I197: 0 | K197: 194 | L197: Guam | M197: 6.3336 | N197: 3.340451197e-07 | O197: 6.3336
A198: 195 | B198: Domínica | C198: 1.4248 | D198: 1.838645798e-07 | F198: 195 | G198: Centro-Africana, República | H198: 0 | I198: 0 | K198: 195 | L198: São Vicente e Granadinas | M198: 4.3272 | N198: 2.282240814e-07 | O198: 4.2984
A199: 196 | B199: São Cristovão e Nevis | C199: 0.7494 | D199: 9.670698773e-08 | F199: 196 | G199: Ceuta | H199: 0 | I199: 0 | K199: 196 | L199: Sudão do Sul | M199: 3.771 | N199: 1.988891225e-07 | O199: 3.771
A200: 197 | B200: Granada | C200: 0.6942 | D200: 8.958365477e-08 | F200: 197 | G200: Ceuta e Melilha | H200: 0 | I200: 0 | K200: 197 | L200: Marianas do Norte, Ilhas | M200: 2.9244 | N200: 1.542379607e-07 | O200: 2.9244
... 58 more rows

Sheet 2A
A1: Parceiros comerciais de Portugal - União Europeia vs. Países Terceiros (média 2019-2023 em milhões de euros) produtos agrícolas e agroalimentares, do mar e da floresta
A2: Exportações | F2: Importações | K2: Trocas comerciais (total e saldo)
A3: P | B3: Grupo de Países | C3: média quinquénio | D3: % do Total | F3: P | G3: Grupo de Países | H3: média quinquénio | I3: % do Total | K3: P | L3: Grupo de Países | M3: média quinquénio | N3: % do Total | O3: Saldo (exp-imp)
A4: 1 | B4: União Europeia | C4: 9409.176433 | D4: 0.6779928854 | F4: 1 | G4: União Europeia | H4: 12697.74833 | I4: 0.7853388315 | K4: 1 | L4: União Europeia | M4: 22106.92477 | N4: 0.7357574677 | O4: -3288.571901
A5: 2 | B5: Países Terceiros | C5: 4469.107497 | D5: 0.3220285122 | F5: 2 | G5: Países Terceiros | H5: 3470.768386 | I5: 0.2146624045 | K5: 2 | L5: Países Terceiros | M5: 7939.875883 | N5: 0.2642530806 | O5: 998.3391116
B6: Outros | C6: -0.2969558 | D6: -2.13976134e-05 | G6: Outros | H6: -0.0199838 | I6: -1.235971428e-06 | L6: Outros | M6: -0.3169396 | N6: -1.054830918e-05 | O6: -0.276972
B7: Total | C7: 13877.98697 | D7: 1 | G7: Total | H7: 16168.49674 | I7: 1.000001236 | L7: Total | M7: 30046.48371 | N7: 1 | O7: -2290.509762
F27: valores em milhões de euros
A28: Nota: Outros = Países não determinados, abastecimentos de bordo, etc.
A29: Fonte: GPP a partir de dados INE/Comércio Internacional (2022 provisórios) | M29: 2024-07-09

Sheet 3
A1: Principais produtos agrícolas e agroalimentares, do mar e da floresta transacionados entre Portugal e União Europeia em 2019-2023 (NC a 2 e 4 dígitos) em milhões de euros
AC4: P | AE4: Cód.NC | AF4: Descritivo | AG4: Média export quinquénio | AH4: % do total | AI4: % acumulada | AN4: P | AO4: NC | AP4: Exportações | AQ4: 2019 | AR4: 2020 | AS4: 2021 | AT4: 2022 | AU4: 2023 | AV4: média quinquénio
AC5: 1 | AD5: º | AE5: 48 | AF5: Papel e cartão | AG5: 1387.330556 | AH5: 0.1474444194 | AN5: 1º | AO5: 48 | AP5: Papel e cartão | AQ5: 1238.545307 | AR5: 1082.179251 | AS5: 1248.480364 | AT5: 1849.127988 | AU5: 1518.319872 | AV5: 1387.330556
AC6: 2 | AD6: º | AE6: 08 | AF6: Frutas | AG6: 743.2493784 | AH6: 0.07899196956 | AN6: 2º | AO6: 08 | AP6: Frutas | AQ6: 615.718745 | AR6: 688.122075 | AS6: 726.704939 | AT6: 825.685339 | AU6: 860.015794 | AV6: 743.2493784
AC7: 3 | AD7: º | AE7: 15 | AF7: Gorduras e óleos animais ou vegetais | AG7: 694.6237272 | AH7: 0.07382407293 | AI7: 0.3002604619 | AN7: 3º | AO7: 15 | AP7: Gorduras e óleos animais ou vegetais | AQ7: 380.510229 | AR7: 417.465702 | AS7: 651.328816 | AT7: 1001.857676 | AU7: 1021.956213 | AV7: 694.6237272
AC8: 4 | AD8: º | AE8: 24 | AF8: Tabaco | AG8: 680.8434918 | AH8: 0.07235952016 | AO8: - | AP8: Outros | AQ8: 5550.86227 | AR8: 5478.152707 | AS8: 6477.107962 | AT8: 7551.143725 | AU8: 7862.597192 | AV8: 6583.972771
AC9: 5 | AD9: º | AE9: 03 | AF9: Peixes e crustáceos | AG9: 671.9546992 | AH9: 0.07141482615 | AP9: Total | AQ9: 7785.636551 | AR9: 7665.919735 | AS9: 9103.622081 | AT9: 11227.81473 | AU9: 11262.88907 | AV9: 9409.176433
AC10: 6 | AD10: º | AE10: 45 | AF10: Cortiça e suas obras | AG10: 652.886213 | AH10: 0.06938824217
AC11: 7 | AD11: º | AE11: 22 | AF11: Bebidas, líquidos alcoólicos e vinagres | AG11: 644.3051434 | AH11: 0.06847625273
AC12: 8 | AD12: º | AE12: 44 | AF12: Madeira e suas obras | AG12: 590.9045888 | AH12: 0.06280088305
AC13: 9 | AD13: º | AE13: 47 | AF13: Pastas de madeira | AG13: 465.1867092 | AH13: 0.04943968396
AC14: 10 | AD14: º | AE14: 07 | AF14: Produtos hortícolas | AG14: 332.4855332 | AH14: 0.03533630553 | AI14: 0.7294761757
AE15: - | AF15: Outros | AG15: 2545.406393 | AH15: 0.2705238243
AE16: Total | AG16: 9409.176433 | AH16: 1
AC38: P | AE38: Cód.NC | AF38: Descritivo | AG38: Média import quinquénio | AH38: % do total | AI38: % acumulada | AN38: P | AO38: NC | AP38: Importações | AQ38: 2019 | AR38: 2020 | AS38: 2021 | AT38: 2022 | AU38: 2023 | AV38: média quinquénio
AC39: 1 | AD39: º | AE39: 03 | AF39: Peixes e crustáceos | AG39: 1431.28335 | AH39: 0.1127194612 | AN39: 1º | AO39: 03 | AP39: Peixes e crustáceos | AQ39: 1309.35086 | AR39: 1208.648448 | AS39: 1354.407484 | AT39: 1666.315931 | AU39: 1617.694029 | AV39: 1431.28335
AC40: 2 | AD40: º | AE40: 02 | AF40: Carnes e miudezas | AG40: 1249.376891 | AH40: 0.09839357802 | AN40: 2º | AO40: 02 | AP40: Carnes e miudezas | AQ40: 1122.918205 | AR40: 984.993098 | AS40: 1090.762714 | AT40: 1459.419725 | AU40: 1588.790715 | AV40: 1249.376891
AC41: 3 | AD41: º | AE41: 48 | AF41: Papel e cartão | AG41: 1137.431028 | AH41: 0.08957738002 | AI41: 0.3006904192 | AN41: 3º | AO41: 48 | AP41: Papel e cartão | AQ41: 1007.487339 | AR41: 890.236902 | AS41: 1106.671445 | AT41: 1445.581786 | AU41: 1237.177668 | AV41: 1137.431028
AC42: 4 | AD42: º | AE42: 15 | AF42: Gorduras e óleos animais ou vegetais | AG42: 814.4519284 | AH42: 0.06414144516 | AO42: - | AP42: Outros | AQ42: 7298.502938 | AR42: 7211.867623 | AS42: 8290.932601 | AT42: 10349.76721 | AU42: 11247.21495 | AV42: 8879.657065
AC43: 5 | AD43: º | AE43: 19a | AF43: Preparações à base de cereais (exc. NC 19022010) (a) | AG43: 692.1832012 | AH43: 0.0545122791 | AP43: Total | AQ43: 10738.25934 | AR43: 10295.74607 | AS43: 11842.77424 | AT43: 14921.08466 | AU43: 15690.87736 | AV43: 12697.74833
AC44: 6 | AD44: º | AE44: 44 | AF44: Madeira e suas obras | AG44: 673.4293396 | AH44: 0.05303533523
AC45: 7 | AD45: º | AE45: 04 | AF45: Leite e laticínios; ovos; mel, etc. | AG45: 668.0387458 | AH45: 0.05261080376
AC46: 8 | AD46: º | AE46: 08 | AF46: Frutas | AG46: 586.8885358 | AH46: 0.04621989036
AC47: 9 | AD47: º | AE47: 10 | AF47: Cereais | AG47: 518.5560696 | AH47: 0.04083842709
AC48: 10 | AD48: º | AE48: 22 | AF48: Bebidas, líquidos alcoólicos e vinagres | AG48: 507.7130302 | AH48: 0.03998449306 | AI48: 0.652033093
AE49: - | AF49: Outros | AG49: 4418.396214 | AH49: 0.347966907
AE50: Total | AG50: 12697.74833 | AH50: 1
AC62: DESAGREGAÇÃO A 4 DÍGITOS | AN62: DESAGREGAÇÃO A 4 DÍGITOS
AC64: P | AE64: Cód.NC | AF64: Descritivo | AG64: Média export quinquénio | AH64: % do total | AI64: % acumulada | AN64: P | AO64: NC | AP64: Exportações | AQ64: 2019 | AR64: 2020 | AS64: 2021 | AT64: 2022 | AU64: 2023 | AV64: média quinquénio
AC65: 1 | AD65: º | AE65: 2402 | AF65: Charutos, cigarrilhas e cigarros | AG65: 662.973402 | AH65: 0.07046030083 | AN65: 1º | AO65: 2402 | AP65: Charutos, cigarrilhas e cigarros | AQ65: 558.51348 | AR65: 646.085361 | AS65: 683.609995 | AT65: 678.868412 | AU65: 747.789762 | AV65: 662.973402
AC66: 2 | AD66: º | AE66: 4802 | AF66: Papel e cartão p/ escrita, etc. | AG66: 636.0267088 | AH66: 0.0675964271 | AN66: 2º | AO66: 4802 | AP66: Papel e cartão p/ escrita, etc. | AQ66: 603.778628 | AR66: 485.437067 | AS66: 524.823995 | AT66: 907.306618 | AU66: 658.787236 | AV66: 636.0267088
AC67: 3 | AD67: º | AE67: 1509 | AF67: Azeite (processos mecânicos ou físicos) | AG67: 447.6706676 | AH67: 0.0475780926 | AI67: 0.1856348205 | AN67: 3º | AO67: 1509 | AP67: Azeite (processos mecânicos ou físicos) | AQ67: 271.610505 | AR67: 282.625156 | AS67: 427.353925 | AT67: 576.067152 | AU67: 680.6966 | AV67: 447.6706676
AC68: 4 | AD68: º | AE68: 4703 | AF68: Pastas químicas de madeira, à soda ou ao sulfato | AG68: 427.4299856 | AH68: 0.04542692856 | AN68: - | AO68: - | AP68: Outros | AQ68: 6351.733938 | AR68: 6251.772151 | AS68: 7467.834166 | AT68: 9065.572546 | AU68: 9175.615473 | AV68: 7662.505655
AC69: 5 | AD69: º | AE69: 2204 | AF69: Vinhos de uvas frescas | AG69: 404.2976428 | AH69: 0.04296844104 | AP69: Total | AQ69: 7785.636551 | AR69: 7665.919735 | AS69: 9103.622081 | AT69: 11227.81473 | AU69: 11262.88907 | AV69: 9409.176433
AC70: 6 | AD70: º | AE70: 4504 | AF70: Cortiça aglomerada e suas obras | AG70: 349.4986192 | AH70: 0.03714444316
AC71: 7 | AD71: º | AE71: 0810 | AF71: Outras frutas frescas | AG71: 278.7376972 | AH71: 0.02962402705
AC72: 8 | AD72: º | AE72: 4503 | AF72: Obras de cortiça natural | AG72: 221.3743338 | AH72: 0.02352749312
AC73: 9 | AD73: º | AE73: 1604 | AF73: Preparações e conservas de peixes, etc. | AG73: 202.9209448 | AH73: 0.0215662812
AC74: 10 | AD74: º | AE74: 4818 | AF74: Papel para toucador, etc., pasta de celulose, etc. | AG74: 193.7110304 | AH74: 0.02058745861 | AI74: 0.4064798933
AE75: - | AF75: Outros | AG75: 5584.535401 | AH75: 0.5935201067
AE76: Total | AG76: 9409.176433 | AH76: 1
AC89: DESAGREGAÇÃO A 4 DÍGITOS | AN89: DESAGREGAÇÃO A 4 DÍGITOS
G91: média 2019-2023 em milhões de euros | I91: Cód. NC | J91: Descritivo | K91: Export | L91: Import | M91: Saldo | AC91: P | AE91: Cód.NC | AF91: Descritivo | AG91: Média import quinquénio | AH91: % do total | AI91: % acumulada | AN91: P | AO91: NC | AP91: Importações | AQ91: 2019 | AR91: 2020 | AS91: 2021 | AT91: 2022 | AU91: 2023 | AV91: média quinquénio
I92: 4802 | J92: Papel e cartão p/ escrita, etc. | K92: 636.0267088 | L92: 60.469057 | M92: 575.5576518 | AC92: 1 | AD92: º | AE92: 0201 | AF92: Carnes de bovino, frescas ou refrigeradas | AG92: 526.7193232 | AH92: 0.04148131695 | AN92: 1º | AO92: 0201 | AP92: Carnes de bovino, frescas ou refrigeradas | AQ92: 472.568533 | AR92: 413.229778 | AS92: 455.508136 | AT92: 622.183473 | AU92: 670.106696 | AV92: 526.7193232
I93: 2402 | J93: Charutos, cigarrilhas e cigarros | K93: 662.973402 | L93: 120.4976382 | M93: 542.4757638 | AC93: 2 | AD93: º | AE93: 1905 | AF93: Produtos de padaria, pastelaria, etc. | AG93: 455.4463186 | AH93: 0.03586827417 | AN93: 2º | AO93: 1905 | AP93: Produtos de padaria, pastelaria, etc. | AQ93: 371.761011 | AR93: 359.139422 | AS93: 397.940424 | AT93: 508.901616 | AU93: 639.48912 | AV93: 455.4463186
I94: 4703 | J94: Pastas químicas de madeira, à soda ou ao sulfato | K94: 427.4299856 | L94: 78.7597278 | M94: 348.6702578 | AC94: 3 | AD94: º | AE94: 1509 | AF94: Azeite (processos mecânicos ou físicos) | AG94: 369.5588592 | AH94: 0.02910428286 | AI94: 0.106453874 | AN94: 3º | AO94: 1509 | AP94: Azeite (processos mecânicos ou físicos) | AQ94: 289.543048 | AR94: 293.613984 | AS94: 367.077968 | AT94: 414.390378 | AU94: 483.168918 | AV94: 369.5588592
I95: 4504 | J95: Cortiça aglomerada e suas obras | K95: 349.4986192 | L95: 23.3074578 | M95: 326.1911614 | AC95: 4 | AD95: º | AE95: 0305 | AF95: Peixes secos, salgados ou fumados | AG95: 367.8511426 | AH95: 0.02896979314 | AN95: - | AO95: - | AP95: Outros | AQ95: 9604.38675 | AR95: 9229.762887 | AS95: 10622.24772 | AT95: 13375.60919 | AU95: 13898.11263 | AV95: 11346.02383
I96: 2204 | J96: Vinhos de uvas frescas | K96: 404.2976428 | L96: 180.0340318 | M96: 224.263611 | AC96: 5 | AD96: º | AE96: 0302 | AF96: Peixes frescos ou refrigerados | AG96: 357.2102436 | AH96: 0.0281317785 | AP96: Total | AQ96: 10738.25934 | AR96: 10295.74607 | AS96: 11842.77424 | AT96: 14921.08465 | AU96: 15690.87736 | AV96: 12697.74833
I97: 4503 | J97: Obras de cortiça natural | K97: 221.3743338 | L97: 11.3974442 | M97: 209.9768896 | AC97: 6 | AD97: º | AE97: 2309 | AF97: Preparações p/ alimentação animal | AG97: 347.7312524 | AH97: 0.02738526889
I98: 0810 | J98: Outras frutas frescas | K98: 278.7376972 | L98: 89.8410046 | M98: 188.8966926 | AC98: 7 | AD98: º | AE98: 0203 | AF98: Carnes de suíno | AG98: 298.5933908 | AH98: 0.02351545982
I99: 2002 | J99: Tomates preparados | K99: 148.637872 | L99: 23.2369864 | M99: 125.4008856 | AC99: 8 | AD99: º | AE99: 1001 | AF99: Trigo e mistura trigo/centeio | AG99: 281.3081048 | AH99: 0.02215417233
I100: 4818 | J100: Papel para toucador, etc., pasta de celulose, etc. | K100: 193.7110304 | L100: 84.4356014 | M100: 109.275429 | AC100: 9 | AD100: º | AE100: 0406 | AF100: Queijos e requeijão | AG100: 274.3976274 | AH100: 0.02160994376
I101: 0805 | J101: Citrinos, frescos ou secos | K101: 161.9421342 | L101: 64.866048 | M101: 97.0760862 | AC101: 10 | AD101: º | AE101: 0303 | AF101: Peixes congelados | AG101: 264.3544296 | AH101: 0.02081900055 | AI101: 0.279039291
I102: - | J102: Outros | K102: 5267.196983 | L102: 8584.889001 | M102: -3317.692019 | AE102: - | AF102: Outros | AG102: 9154.577642 | AH102: 0.720960709
I103: 2106 | J103: Outras preparações alimentícias | K103: 49.1688048 | L103: 228.2579918 | M103: -179.089187 | AE103: Total | AG103: 12697.74833 | AH103: 1
I104: 0302 | J104: Peixes frescos ou refrigerados | K104: 146.1229224 | L104: 357.2102436 | M104: -211.0873212
I105: 1806 | J105: Chocolate e outras preparações com cacau | K105: 23.3538176 | L105: 238.4989408 | M105: -215.1451232
I106: 0406 | J106: Queijos e requeijão | K106: 27.7255592 | L106: 274.3976274 | M106: -246.6720682
I107: 0203 | J107: Carnes de suíno | K107: 48.1682638 | L107: 298.5933908 | M107: -250.425127
I108: 1905 | J108: Produtos de padaria, pastelaria, etc. | K108: 189.5361078 | L108: 455.4463186 | M108: -265.9102108
I109: 2309 | J109: Preparações p/ alimentação animal | K109: 80.6778742 | L109: 347.7312524 | M109: -267.0533782
I110: 1001 | J110: Trigo e mistura trigo/centeio | K110: 5.2222854 | L110: 281.3081048 | M110: -276.0858194
I111: 0305 | J111: Peixes secos, salgados ou fumados | K111: 37.6768596 | L111: 367.8511426 | M111: -330.174283
I112: 0201 | J112: Carnes de bovino, frescas ou refrigeradas | K112: 49.6975298 | L112: 526.7193232 | M112: -477.0217934
I113: Total | K113: 9409.176433 | L113: 12697.74833 | M113: -3288.571901
A116: Fonte: GPP a partir de dados INE/Comércio Internacional (2022 definitivos) | Y116: 2024-07-09T12:57:08.150

Sheet 3A
A1: Principais produtos agrícolas e agroalimentares transacionados entre Portugal e União Europeia em 2019-2023 (NC a 2 e 4 dígitos) em milhões de euros
AC4: P | AE4: Cód.NC | AF4: Descritivo | AG4: Média export quinquénio | AH4: % do total | AI4: % acumulada | AN4: P | AO4: NC | AP4: Exportações | AQ4: 2019 | AR4: 2020 | AS4: 2021 | AT4: 2022 | AU4: 2023 | AV4: média quinquénio
AC5: 1 | AD5: º | AE5: 08 | AF5: Frutas | AG5: 743.2493784 | AH5: 0.1401246682 | AN5: 1º | AO5: 08 | AP5: Frutas | AQ5: 615.718745 | AR5: 688.122075 | AS5: 726.704939 | AT5: 825.685339 | AU5: 860.015794 | AV5: 743.2493784
AC6: 2 | AD6: º | AE6: 15 | AF6: Gorduras e óleos animais ou vegetais | AG6: 694.6237272 | AH6: 0.1309572832 | AN6: 2º | AO6: 15 | AP6: Gorduras e óleos animais ou vegetais | AQ6: 380.510229 | AR6: 417.465702 | AS6: 651.328816 | AT6: 1001.857676 | AU6: 1021.956213 | AV6: 694.6237272
AC7: 3 | AD7: º | AE7: 24 | AF7: Tabaco | AG7: 680.8434918 | AH7: 0.128359298 | AI7: 0.3994412494 | AN7: 3º | AO7: 24 | AP7: Tabaco | AQ7: 582.131477 | AR7: 664.930813 | AS7: 699.14752 | AT7: 695.582703 | AU7: 762.424946 | AV7: 680.8434918
AC8: 4 | AD8: º | AE8: 22 | AF8: Bebidas, líquidos alcoólicos e vinagres | AG8: 644.3051434 | AH8: 0.1214707299 | AO8: - | AP8: Outros | AQ8: 2536.786524 | AR8: 2660.215278 | AS8: 3033.532436 | AT8: 3588.906053 | AU8: 4107.980758 | AV8: 3185.48421
AC9: 5 | AD9: º | AE9: 07 | AF9: Produtos hortícolas | AG9: 332.4855332 | AH9: 0.06268343626 | AP9: Total | AQ9: 4115.146975 | AR9: 4430.733868 | AS9: 5110.713711 | AT9: 6112.031771 | AU9: 6752.377711 | AV9: 5304.200807
AC10: 6 | AD10: º | AE10: 20 | AF10: Preparações de produtos vegetais | AG10: 314.6078496 | AH10: 0.05931295987
AC11: 7 | AD11: º | AE11: 04 | AF11: Leite e laticínios; ovos; mel, etc. | AG11: 289.8818196 | AH11: 0.05465136599
AC12: 8 | AD12: º | AE12: 19a | AF12: Preparações à base de cereais (exc. NC 19022010) (a) | AG12: 267.702262 | AH12: 0.05046985809
AC13: 9 | AD13: º | AE13: 21 | AF13: Preparações alimentícias diversas | AG13: 185.9804704 | AH13: 0.03506286379
AC14: 10 | AD14: º | AE14: 02 | AF14: Carnes e miudezas | AG14: 162.80551 | AH14: 0.03069369278 | AI14: 0.813786156
AE15: - | AF15: Outros | AG15: 987.7156216 | AH15: 0.186213844
AE16: Total | AG16: 5304.200807 | AH16: 1
AC38: P | AE38: Cód.NC | AF38: Descritivo | AG38: Média import quinquénio | AH38: % do total | AI38: % acumulada | AN38: P | AO38: NC | AP38: Importações | AQ38: 2019 | AR38: 2020 | AS38: 2021 | AT38: 2022 | AU38: 2023 | AV38: média quinquénio
AC39: 1 | AD39: º | AE39: 02 | AF39: Carnes e miudezas | AG39: 1249.376891 | AH39: 0.1398429672 | AN39: 1º | AO39: 02 | AP39: Carnes e miudezas | AQ39: 1122.918205 | AR39: 984.993098 | AS39: 1090.762714 | AT39: 1459.419725 | AU39: 1588.790715 | AV39: 1249.376891
AC40: 2 | AD40: º | AE40: 15 | AF40: Gorduras e óleos animais ou vegetais | AG40: 814.4519284 | AH40: 0.0911617424 | AN40: 2º | AO40: 15 | AP40: Gorduras e óleos animais ou vegetais | AQ40: 596.605061 | AR40: 555.895986 | AS40: 774.299546 | AT40: 1049.101443 | AU40: 1096.357606 | AV40: 814.4519284
AC41: 3 | AD41: º | AE41: 19a | AF41: Preparações à base de cereais (exc. NC 19022010) (a) | AG41: 692.1832012 | AH41: 0.07747618304 | AI41: 0.3084808927 | AN41: 3º | AO41: 19a | AP41: Preparações à base de cereais (exc. NC 19022010) (a) | AQ41: 564.115524 | AR41: 560.248867 | AS41: 613.623609 | AT41: 779.054196 | AU41: 943.87381 | AV41: 692.1832012
AC42: 4 | AD42: º | AE42: 04 | AF42: Leite e laticínios; ovos; mel, etc. | AG42: 668.0387458 | AH42: 0.07477369006 | AO42: - | AP42: Outros | AQ42: 5117.718054 | AR42: 5107.179359 | AS42: 5766.377744 | AT42: 7088.993546 | AU42: 7810.37992 | AV42: 6178.129725
AC43: 5 | AD43: º | AE43: 08 | AF43: Frutas | AG43: 586.8885358 | AH43: 0.06569053329 | AP43: Total | AQ43: 7401.356844 | AR43: 7208.31731 | AS43: 8245.063613 | AT43: 10376.56891 | AU43: 11439.40205 | AV43: 8934.141746
AC44: 6 | AD44: º | AE44: 10 | AF44: Cereais | AG44: 518.5560696 | AH44: 0.05804206877
AC45: 7 | AD45: º | AE45: 22 | AF45: Bebidas, líquidos alcoólicos e vinagres | AG45: 507.7130302 | AH45: 0.05682840553
AC46: 8 | AD46: º | AE46: 21 | AF46: Preparações alimentícias diversas | AG46: 490.9846414 | AH46: 0.05495599414
AC47: 9 | AD47: º | AE47: 07 | AF47: Produtos hortícolas | AG47: 461.3229572 | AH47: 0.0516359568
AC48: 10 | AD48: º | AE48: 23a | AF48: Resíduos indústrias alimentares; alimentos p/ animais (exc. NC 230120) (a) | AG48: 425.8992334 | AH48: 0.04767097339 | AI48: 0.7180785147
AE49: - | AF49: Outros | AG49: 2518.726511 | AH49: 0.2819214853
AE50: Total | AG50: 8934.141746 | AH50: 1
AC62: DESAGREGAÇÃO A 4 DÍGITOS | AN62: DESAGREGAÇÃO A 4 DÍGITOS
AC64: P | AE64: Cód.NC | AF64: Descritivo | AG64: Média export quinquénio | AH64: % do total | AI64: % acumulada | AN64: P | AO64: NC | AP64: Exportações | AQ64: 2019 | AR64: 2020 | AS64: 2021 | AT64: 2022 | AU64: 2023 | AV64: média quinquénio
AC65: 1 | AD65: º | AE65: 2402 | AF65: Charutos, cigarrilhas e cigarros | AG65: 662.973402 | AH65: 0.1249902532 | AN65: 1º | AO65: 2402 | AP65: Charutos, cigarrilhas e cigarros | AQ65: 558.51348 | AR65: 646.085361 | AS65: 683.609995 | AT65: 678.868412 | AU65: 747.789762 | AV65: 662.973402
AC66: 2 | AD66: º | AE66: 1509 | AF66: Azeite (processos mecânicos ou físicos) | AG66: 447.6706676 | AH66: 0.0843992684 | AN66: 2º | AO66: 1509 | AP66: Azeite (processos mecânicos ou físicos) | AQ66: 271.610505 | AR66: 282.625156 | AS66: 427.353925 | AT66: 576.067152 | AU66: 680.6966 | AV66: 447.6706676
AC67: 3 | AD67: º | AE67: 2204 | AF67: Vinhos de uvas frescas | AG67: 404.2976428 | AH67: 0.07622216004 | AI67: 0.2856116817 | AN67: 3º | AO67: 2204 | AP67: Vinhos de uvas frescas | AQ67: 376.896661 | AR67: 393.887277 | AS67: 427.689585 | AT67: 416.911861 | AU67: 406.10283 | AV67: 404.2976428
AC68: 4 | AD68: º | AE68: 0810 | AF68: Outras frutas frescas | AG68: 278.7376972 | AH68: 0.05255036665 | AN68: - | AO68: - | AP68: Outros | AQ68: 2908.126329 | AR68: 3108.136074 | AS68: 3572.060206 | AT68: 4440.184346 | AU68: 4917.788519 | AV68: 3789.259095
AC69: 5 | AD69: º | AE69: 1905 | AF69: Produtos de padaria, pastelaria, etc. | AG69: 189.5361078 | AH69: 0.03573320745 | AP69: Total | AQ69: 4115.146975 | AR69: 4430.733868 | AS69: 5110.713711 | AT69: 6112.031771 | AU69: 6752.377711 | AV69: 5304.200807
AC70: 6 | AD70: º | AE70: 0805 | AF70: Citrinos, frescos ou secos | AG70: 161.9421342 | AH70: 0.0305309207
AC71: 7 | AD71: º | AE71: 2002 | AF71: Tomates preparados | AG71: 148.637872 | AH71: 0.0280226706
AC72: 8 | AD72: º | AE72: 1701 | AF72: Açúcares (cana/beterraba); sacarose pura | AG72: 128.737199 | AH72: 0.02427080039
AC73: 9 | AD73: º | AE73: 2202 | AF73: Águas com açúcar ou outros produtos; outras bebidas | AG73: 103.3370932 | AH73: 0.01948212312
AC74: 10 | AD74: º | AE74: 2203 | AF74: Cervejas de malte | AG74: 84.0311438 | AH74: 0.01584237604 | AI74: 0.4920441466
AE75: - | AF75: Outros | AG75: 2694.299848 | AH75: 0.5079558534
AE76: Total | AG76: 5304.200807 | AH76: 1
AC89: DESAGREGAÇÃO A 4 DÍGITOS | AN89: DESAGREGAÇÃO A 4 DÍGITOS
G91: média 2019-2023 em milhões de euros | I91: Cód. NC | J91: Descritivo | K91: Export | L91: Import | M91: Saldo | AC91: P | AE91: Cód.NC | AF91: Descritivo | AG91: Média import quinquénio | AH91: % do total | AI91: % acumulada | AN91: P | AO91: NC | AP91: Importações | AQ91: 2019 | AR91: 2020 | AS91: 2021 | AT91: 2022 | AU91: 2023 | AV91: média quinquénio
I92: 2402 | J92: Charutos, cigarrilhas e cigarros | K92: 662.973402 | L92: 120.4976382 | M92: 542.4757638 | AC92: 1 | AD92: º | AE92: 0201 | AF92: Carnes de bovino, frescas ou refrigeradas | AG92: 526.7193232 | AH92: 0.05895578313 | AN92: 1º | AO92: 0201 | AP92: Carnes de bovino, frescas ou refrigeradas | AQ92: 472.568533 | AR92: 413.229778 | AS92: 455.508136 | AT92: 622.183473 | AU92: 670.106696 | AV92: 526.7193232
I93: 2204 | J93: Vinhos de uvas frescas | K93: 404.2976428 | L93: 180.0340318 | M93: 224.263611 | AC93: 2 | AD93: º | AE93: 1905 | AF93: Produtos de padaria, pastelaria, etc. | AG93: 455.4463186 | AH93: 0.05097818364 | AN93: 2º | AO93: 1905 | AP93: Produtos de padaria, pastelaria, etc. | AQ93: 371.761011 | AR93: 359.139422 | AS93: 397.940424 | AT93: 508.901616 | AU93: 639.48912 | AV93: 455.4463186
I94: 0810 | J94: Outras frutas frescas | K94: 278.7376972 | L94: 89.8410046 | M94: 188.8966926 | AC94: 3 | AD94: º | AE94: 1509 | AF94: Azeite (processos mecânicos ou físicos) | AG94: 369.5588592 | AH94: 0.04136478575 | AI94: 0.1512987525 | AN94: 3º | AO94: 1509 | AP94: Azeite (processos mecânicos ou físicos) | AQ94: 289.543048 | AR94: 293.613984 | AS94: 367.077968 | AT94: 414.390378 | AU94: 483.168918 | AV94: 369.5588592
I95: 2002 | J95: Tomates preparados | K95: 148.637872 | L95: 23.2369864 | M95: 125.4008856 | AC95: 4 | AD95: º | AE95: 2309 | AF95: Preparações p/ alimentação animal | AG95: 347.7312524 | AH95: 0.03892161802 | AN95: - | AO95: - | AP95: Outros | AQ95: 6267.484252 | AR95: 6142.334126 | AS95: 7024.537085 | AT95: 8831.093443 | AU95: 9646.637317 | AV95: 7582.417245
I96: 0805 | J96: Citrinos, frescos ou secos | K96: 161.9421342 | L96: 64.866048 | M96: 97.0760862 | AC96: 5 | AD96: º | AE96: 0203 | AF96: Carnes de suíno | AG96: 298.5933908 | AH96: 0.03342160885 | AP96: Total | AQ96: 7401.356844 | AR96: 7208.31731 | AS96: 8245.063613 | AT96: 10376.56891 | AU96: 11439.40205 | AV96: 8934.141746
I97: 1509 | J97: Azeite (processos mecânicos ou físicos) | K97: 447.6706676 | L97: 369.5588592 | M97: 78.1118084 | AC97: 6 | AD97: º | AE97: 1001 | AF97: Trigo e mistura trigo/centeio | AG97: 281.3081048 | AH97: 0.03148686385
I98: 1701 | J98: Açúcares (cana/beterraba); sacarose pura | K98: 128.737199 | L98: 51.565305 | M98: 77.171894 | AC98: 7 | AD98: º | AE98: 0406 | AF98: Queijos e requeijão | AG98: 274.3976274 | AH98: 0.03071337295
I99: 1212 | J99: Alfarroba, algas, beterraba sacarina, etc. | K99: 53.6996544 | L99: 3.7410902 | M99: 49.9585642 | AC99: 8 | AD99: º | AE99: 1806 | AF99: Chocolate e outras preparações com cacau | AG99: 238.4989408 | AH99: 0.02669522687
I100: 0802 | J100: Frutas de casca rija | K100: 82.1108848 | L100: 49.1782458 | M100: 32.932639 | AC100: 9 | AD100: º | AE100: 2106 | AF100: Outras preparações alimentícias | AG100: 228.2579918 | AH100: 0.02554895571
I101: 2203 | J101: Cervejas de malte | K101: 84.0311438 | L101: 51.3597158 | M101: 32.671428 | AC101: 10 | AD101: º | AE101: 0901 | AF101: Café | AG101: 191.2841564 | AH101: 0.02141046805 | AI101: 0.3594968668
I102: - | J102: Outros | K102: 2309.394652 | L102: 4912.129825 | M102: -2602.735173 | AE102: - | AF102: Outros | AG102: 5722.34578 | AH102: 0.6405031332
I103: 0403 | J103: Leitelho, leite coalhado, iogurte, etc. | K103: 35.7068288 | L103: 181.7888692 | M103: -146.0820404 | AE103: Total | AG103: 8934.141746 | AH103: 1
I104: 0207 | J104: Carnes e miudezas de aves de capoeira | K104: 32.7107862 | L104: 185.3911768 | M104: -152.6803906
I105: 2106 | J105: Outras preparações alimentícias | K105: 49.1688048 | L105: 228.2579918 | M105: -179.089187
I106: 1806 | J106: Chocolate e outras preparações com cacau | K106: 23.3538176 | L106: 238.4989408 | M106: -215.1451232
I107: 0406 | J107: Queijos e requeijão | K107: 27.7255592 | L107: 274.3976274 | M107: -246.6720682
I108: 0203 | J108: Carnes de suíno | K108: 48.1682638 | L108: 298.5933908 | M108: -250.425127
I109: 1905 | J109: Produtos de padaria, pastelaria, etc. | K109: 189.5361078 | L109: 455.4463186 | M109: -265.9102108
I110: 2309 | J110: Preparações p/ alimentação animal | K110: 80.6778742 | L110: 347.7312524 | M110: -267.0533782
I111: 1001 | J111: Trigo e mistura trigo/centeio | K111: 5.2222854 | L111: 281.3081048 | M111: -276.0858194
I112: 0201 | J112: Carnes de bovino, frescas ou refrigeradas | K112: 49.6975298 | L112: 526.7193232 | M112: -477.0217934
I113: Total | K113: 5304.200807 | L113: 8934.141746 | M113: -3629.940938
A116: Fonte: GPP a partir de dados INE/Comércio Internacional (2022 definitivos) | Y116: 2024-07-09T12:57:08.150

Sheet 3B
A1: Principais origens e destinos em União Europeia para os produtos agrícolas, agroalimentares, do mar e da floresta (2019-2023) em milhões de euros
AC4: P | AE4: País | AF4: Média export quinquénio | AG4: % do total | AH4: % acumulada | AM4: P | AN4: Exportações | AO4: 2019 | AP4: 2020 | AQ4: 2021 | AR4: 2022 | AS4: 2023 | AT4: média quinquénio
AC5: 1 | AD5: º | AE5: Espanha | AF5: 4592.550996 | AG5: 0.4880927708 | AM5: 1º | AN5: Espanha | AO5: 3619.480855 | AP5: 3571.177168 | AQ5: 4349.596588 | AR5: 5581.183937 | AS5: 5841.316432 | AT5: 4592.550996
AC6: 2 | AD6: º | AE6: França | AF6: 1475.406133 | AG6: 0.1568050236 | AM6: 2º | AN6: França | AO6: 1239.711501 | AP6: 1289.6302 | AQ6: 1423.772421 | AR6: 1686.508285 | AS6: 1737.408257 | AT6: 1475.406133
AC7: 3 | AD7: º | AE7: Itália | AF7: 914.4881622 | AG7: 0.09719109517 | AH7: 0.7420888896 | AM7: 3º | AN7: Itália | AO7: 809.80502 | AP7: 745.258255 | AQ7: 934.390659 | AR7: 1085.088009 | AS7: 997.898868 | AT7: 914.4881622
AC8: 4 | AD8: º | AE8: Alemanha | AF8: 650.4174182 | AG8: 0.06912586057 | AN8: Outros | AO8: 2116.639175 | AP8: 2059.854112 | AQ8: 2395.862413 | AR8: 2875.034497 | AS8: 2686.265514 | AT8: 2426.731142
AC9: 5 | AD9: º | AE9: Países Baixos | AF9: 633.3952502 | AG9: 0.06731675771 | AN9: Total | AO9: 7785.636551 | AP9: 7665.919735 | AQ9: 9103.622081 | AR9: 11227.81473 | AS9: 11262.88907 | AT9: 9409.176433
AC10: 6 | AD10: º | AE10: Polónia | AF10: 259.4406238 | AG10: 0.027573149
AC11: 7 | AD11: º | AE11: Bélgica | AF11: 254.6143566 | AG11: 0.02706021706
AC12: 8 | AD12: º | AE12: Suécia | AF12: 99.2836948 | AG12: 0.01055179436
AC13: 9 | AD13: º | AE13: Dinamarca | AF13: 84.4635588 | AG13: 0.008976721757
AC14: 10 | AD14: º | AE14: Irlanda | AF14: 73.3337292 | AG14: 0.007793852068 | AH14: 0.9604872421
AE15: Outros | AF15: 371.7825106 | AG15: 0.03951275792
AE16: Total | AF16: 9409.176433 | AG16: 1
AC38: P | AE38: País | AF38: Média import quinquénio | AG38: % do total | AH38: % acumulada | AM38: P | AN38: Importações | AO38: 2019 | AP38: 2020 | AQ38: 2021 | AR38: 2022 | AS38: 2023 | AT38: média quinquénio
AC39: 1 | AD39: º | AE39: Espanha | AF39: 7532.755764 | AG39: 0.5932355537 | AM39: 1º | AN39: Espanha | AO39: 6368.376895 | AP39: 6104.930576 | AQ39: 6978.855206 | AR39: 8798.283131 | AS39: 9413.333014 | AT39: 7532.755764
AC40: 2 | AD40: º | AE40: França | AF40: 1064.68034 | AG40: 0.0838479636 | AM40: 2º | AN40: França | AO40: 891.441917 | AP40: 859.741826 | AQ40: 998.446518 | AR40: 1257.207407 | AS40: 1316.564033 | AT40: 1064.68034
AC41: 3 | AD41: º | AE41: Países Baixos | AF41: 945.995408 | AG41: 0.07450103617 | AH41: 0.7515845535 | AM41: 3º | AN41: Países Baixos | AO41: 765.516362 | AP41: 750.480963 | AQ41: 793.860668 | AR41: 1146.784582 | AS41: 1273.334465 | AT41: 945.995408
AC42: 4 | AD42: º | AE42: Alemanha | AF42: 908.2453624 | AG42: 0.07152806454 | AN42: Outros | AO42: 2712.924168 | AP42: 2580.592706 | AQ42: 3071.611852 | AR42: 3718.809535 | AS42: 3687.645848 | AT42: 3154.316822
AC43: 5 | AD43: º | AE43: Itália | AF43: 493.2489222 | AG43: 0.03884538496 | AN43: Total | AO43: 10738.25934 | AP43: 10295.74607 | AQ43: 11842.77424 | AR43: 14921.08465 | AS43: 15690.87736 | AT43: 12697.74833
AC44: 6 | AD44: º | AE44: Suécia | AF44: 338.9050652 | AG44: 0.02669017028
AC45: 7 | AD45: º | AE45: Bélgica | AF45: 312.2360226 | AG45: 0.02458987329
AC46: 8 | AD46: º | AE46: Polónia | AF46: 241.404995 | AG46: 0.01901163802
AC47: 9 | AD47: º | AE47: Dinamarca | AF47: 157.3831058 | AG47: 0.01239456805
AC48: 10 | AD48: º | AE48: Roménia | AF48: 151.2334708 | AG48: 0.01191025895 | AH48: 0.9565545116
AE49: Outros | AF49: 551.6598778 | AG49: 0.04344548839
AE50: Total | AF50: 12697.74833 | AG50: 1
A57: Fonte: GPP a partir de dados INE/Comércio Internacional (2022 definitivos) | Y57: 2024-07-09T12:57:08.150

Sheet 3C
A1: Principais origens e destinos em União Europeia para os produtos agrícolas e agroalimentares (2019-2023) em milhões de euros
AC4: P | AE4: País | AF4: Média export quinquénio | AG4: % do total | AH4: % acumulada | AM4: P | AN4: Exportações | AO4: 2019 | AP4: 2020 | AQ4: 2021 | AR4: 2022 | AS4: 2023 | AT4: média quinquénio
AC5: 1 | AD5: º | AE5: Espanha | AF5: 2759.114782 | AG5: 0.5201754009 | AM5: 1º | AN5: Espanha | AO5: 2005.829268 | AP5: 2174.802431 | AQ5: 2557.436888 | AR5: 3319.192061 | AS5: 3738.31326 | AT5: 2759.114782
AC6: 2 | AD6: º | AE6: França | AF6: 750.3360628 | AG6: 0.1414607195 | AM6: 2º | AN6: França | AO6: 592.609494 | AP6: 699.50772 | AQ6: 756.220109 | AR6: 807.013797 | AS6: 896.329194 | AT6: 750.3360628
AC7: 3 | AD7: º | AE7: Itália | AF7: 479.9343466 | AG7: 0.09048193386 | AH7: 0.7521180544 | AM7: 3º | AN7: Itália | AO7: 413.774588 | AP7: 400.299293 | AQ7: 502.661732 | AR7: 536.065068 | AS7: 546.871052 | AT7: 479.9343466
AC8: 4 | AD8: º | AE8: Países Baixos | AF8: 368.6217128 | AG8: 0.06949618353 | AN8: Outros | AO8: 1102.933625 | AP8: 1156.124424 | AQ8: 1294.394982 | AR8: 1449.760845 | AS8: 1570.864205 | AT8: 1314.815616
AC9: 5 | AD9: º | AE9: Alemanha | AF9: 281.5863318 | AG9: 0.05308741921 | AN9: Total | AO9: 4115.146975 | AP9: 4430.733868 | AQ9: 5110.713711 | AR9: 6112.031771 | AS9: 6752.377711 | AT9: 5304.200807
AC10: 6 | AD10: º | AE10: Bélgica | AF10: 174.4311344 | AG10: 0.0328854696
AC11: 7 | AD11: º | AE11: Polónia | AF11: 145.4391794 | AG11: 0.02741962167
AC12: 8 | AD12: º | AE12: Suécia | AF12: 55.3310614 | AG12: 0.0104315548
AC13: 9 | AD13: º | AE13: Dinamarca | AF13: 48.435449 | AG13: 0.009131526268
AC14: 10 | AD14: º | AE14: Luxemburgo | AF14: 48.4050208 | AG14: 0.009125789645 | AH14: 0.9636956191
AE15: Outros | AF15: 192.5657266 | AG15: 0.03630438092
AE16: Total | AF16: 5304.200807 | AG16: 1
AC38: P | AE38: País | AF38: Média import quinquénio | AG38: % do total | AH38: % acumulada | AM38: P | AN38: Importações | AO38: 2019 | AP38: 2020 | AQ38: 2021 | AR38: 2022 | AS38: 2023 | AT38: média quinquénio
AC39: 1 | AD39: º | AE39: Espanha | AF39: 5216.246404 | AG39: 0.5838553442 | AM39: 1º | AN39: Espanha | AO39: 4336.237173 | AP39: 4225.256956 | AQ39: 4734.990129 | AR39: 6017.211108 | AS39: 6767.536652 | AT39: 5216.246404
AC40: 2 | AD40: º | AE40: França | AF40: 878.4047086 | AG40: 0.09831998793 | AM40: 2º | AN40: França | AO40: 722.27167 | AP40: 706.244575 | AQ40: 818.949388 | AR40: 1036.31528 | AS40: 1108.24263 | AT40: 878.4047086
AC41: 3 | AD41: º | AE41: Alemanha | AF41: 716.5636986 | AG41: 0.08020509625 | AH41: 0.7623804283 | AM41: 3º | AN41: Alemanha | AO41: 621.191676 | AP41: 652.168166 | AQ41: 702.372937 | AR41: 790.258103 | AS41: 816.827611 | AT41: 716.5636986
AC42: 4 | AD42: º | AE42: Países Baixos | AF42: 679.079593 | AG42: 0.07600949395 | AN42: Outros | AO42: 1721.656325 | AP42: 1624.647613 | AQ42: 1988.751159 | AR42: 2532.784419 | AS42: 2746.795158 | AT42: 2122.926935
AC43: 5 | AD43: º | AE43: Itália | AF43: 370.1142602 | AG43: 0.04142695188 | AN43: Total | AO43: 7401.356844 | AP43: 7208.31731 | AQ43: 8245.063613 | AR43: 10376.56891 | AS43: 11439.40205 | AT43: 8934.141746
AC44: 6 | AD44: º | AE44: Bélgica | AF44: 281.9375458 | AG44: 0.03155731729
AC45: 7 | AD45: º | AE45: Polónia | AF45: 216.5356918 | AG45: 0.02423687669
AC46: 8 | AD46: º | AE46: Roménia | AF46: 147.8191428 | AG46: 0.01654542171
AC47: 9 | AD47: º | AE47: Irlanda | AF47: 113.672616 | AG47: 0.01272339518
AC48: 10 | AD48: º | AE48: Dinamarca | AF48: 77.9973668 | AG48: 0.008730258487 | AH48: 0.9736101435
AE49: Outros | AF49: 235.7707184 | AG49: 0.02638985648
AE50: Total | AF50: 8934.141746 | AG50: 1
A57: Fonte: GPP a partir de dados INE/Comércio Internacional (2022 definitivos) | Y57: 2024-07-09T12:57:08.150

Sheet 4
A1: Evolução da balança comercial Portugal-União Europeia por país e por produto 2019-2023 em euros (NC 2 dígitos) produtos agrícolas, agroalimentares, do mar e da floresta
A2: =+aux!A55 -> Evolução da balança comercial Portugal-Espanha
A4: Selecione o país:
A19: =+aux!A56 -> Evolução da balança comercial Portugal-Espanha para Frutas
I21: Selecione o produto:
A38: Fonte: GPP a partir de dados INE/Comércio Internacional (2022 definitivos) | N38: 2024-07-09T12:57:08.150

Sheet 4A
A1: Evolução da balança comercial Portugal-União Europeia 2019-2023 por produto em euros (NC 2 dígitos)
A3: =+aux!A31 -> Evolução da balança comercial Portugal-União Europeia para Frutas
A5: Selecione o produto:
Q7: Para obter uma maior desagregação deste produto, clique no botão respetivo:
A20: =+aux!A43 -> Evolução da balança comercial Portugal-União Europeia para Peixes e crustáceos
A22: Selecione o produto:
A38: Fonte: GPP a partir de dados INE/Comércio Internacional (2022 definitivos) | N38: 2024-07-09T12:57:08.150

Sheet 5.1
A1: ="Trocas comerciais Portugal-"& aux!B54 &" ("& aux!B53 &") por país em milhares de euros" -> Trocas comerciais Portugal-União Europeia (2019-2023) por país em milhares de euros | C1: Produtos agrícolas, agroalimentares, do mar e da floresta
A2: Cód. País | B2: País | C2: Importações | J2: Exportações | Q2: Saldo quinquénio (exp-imp) | R2: Evolução das importações | S2: =+"Variação das Importações " & INDEX(J3:N3,1,aux!$AL$1) & "-"& '5.2'!O3 &"" -> Variação das Importações 2019-2023 | W2: Evolução das exportações | X2: ="Variação das Exportações " & INDEX(J3:M3,1,aux!$AL$1) & "-"& '5.2'!O3 &"" -> Variação das Exportações 2019-2023
C3: ='5.2'!C3 -> 2019 | D3: ='5.2'!D3 -> 2020 | E3: ='5.2'!E3 -> 2021 | F3: ='5.2'!F3 -> 2022 | G3: ='5.2'!G3 -> 2023 | H3: média quinquénio | I3: % Total | J3: ='5.2'!K3 -> 2019 | K3: ='5.2'!L3 -> 2020 | L3: ='5.2'!M3 -> 2021 | M3: ='5.2'!N3 -> 2022 | N3: ='5.2'!O3 -> 2023 | O3: média quinquénio | P3: % Total | S3: variação total em valor | T3: % no total de variação | U3: taxa de variação média anual | V3: taxa de variação total | X3: variação total em valor | Y3: % no total de variação | Z3: taxa de variação média anual | AA3: taxa de variação total | BS3: filtro
A4: 0660 | B4: Afeganistão | C4: =+SUMIF(AUX_2d_pais!$A$2:$A$28000,'5.1'!$A4&'5.1'!C$3&1,AUX_2d_pais!$J$2:$J$28000)/1000 -> 0 | D4: =+SUMIF(AUX_2d_pais!$A$2:$A$28000,'5.1'!$A4&'5.1'!D$3&1,AUX_2d_pais!$J$2:$J$28000)/1000 -> 0 | E4: =+SUMIF(AUX_2d_pais!$A$2:$A$28000,'5.1'!$A4&'5.1'!E$3&1,AUX_2d_pais!$J$2:$J$28000)/1000 -> 0 | F4: =+SUMIF(AUX_2d_pais!$A$2:$A$28000,'5.1'!$A4&'5.1'!F$3&1,AUX_2d_pais!$J$2:$J$28000)/1000 -> 0 | G4: =+SUMIF(AUX_2d_pais!$A$2:$A$28000,'5.1'!$A4&'5.1'!G$3&1,AUX_2d_pais!$J$2:$J$28000)/1000 -> 0 | H4: =SUM(C4:G4)/5 -> 0 | I4: =H4/$H$254 -> 0 | J4: =+SUMIF(AUX_2d_pais!$A$2:$A$28000,'5.1'!$A4&'5.1'!J$3&2,AUX_2d_pais!$J$2:$J$28000)/1000 -> 0 | K4: =+SUMIF(AUX_2d_pais!$A$2:$A$28000,'5.1'!$A4&'5.1'!K$3&2,AUX_2d_pais!$J$2:$J$28000)/1000 -> 0 | L4: =+SUMIF(AUX_2d_pais!$A$2:$A$28000,'5.1'!$A4&'5.1'!L$3&2,AUX_2d_pais!$J$2:$J$28000)/1000 -> 0 | M4: =+SUMIF(AUX_2d_pais!$A$2:$A$28000,'5.1'!$A4&'5.1'!M$3&2,AUX_2d_pais!$J$2:$J$28000)/1000 -> 0 | N4: =+SUMIF(AUX_2d_pais!$A$2:$A$28000,'5.1'!$A4&'5.1'!N$3&2,AUX_2d_pais!$J$2:$J$28000)/1000 -> 0 | O4: =SUM(J4:N4)/5 -> 0 | P4: =O4/$O$254 -> 0 | Q4: =O4-H4 -> 0 | S4: =G4-INDEX($C4:$G4,1,aux!$AL$1) -> 0 | T4: =S4/$S$254 -> 0 | U4: =+IF(INDEX($C4:$G4,1,aux!$AL$1)>0,(G4/INDEX($C4:$G4,1,aux!$AL$1))^(1/($G$3-INDEX($C$3:$G$3,1,aux!$AL$1)))-1,"n.d.") -> n.d. | V4: =IF(INDEX($C4:$G4,1,aux!$AL$1)>0,(G4-INDEX($C4:$G4,1,aux!$AL$1))/INDEX($C4:$G4,1,aux!$AL$1),"n.d.") -> n.d. | X4: =N4-INDEX($J4:$N4,1,aux!$AL$1) -> 0 | Y4: =X4/$X$254 -> 0 | Z4: =+IF(INDEX($J4:$N4,1,aux!$AL$1)>0,(N4/INDEX($J4:$N4,1,aux!$AL$1))^(1/($N$3-INDEX($J$3:$N$3,1,aux!$AL$1)))-1,"n.d.") -> n.d. | AA4: =IF(INDEX($J4:$N4,1,aux!$AL$1)>0,(N4-INDEX($J4:$N4,1,aux!$AL$1))/INDEX($J4:$N4,1,aux!$AL$1),"n.d.") -> n.d. | AC4: =SUM(A4:Q4) -> 0 | BS4: =+MATCH('5.1'!A4,AUX_2d_pais!$G$2:$G$20001,0) -> 
A5: 0388 | B5: África do Sul | C5: =+SUMIF(AUX_2d_pais!$A$2:$A$28000,'5.1'!$A5&'5.1'!C$3&1,AUX_2d_pais!$J$2:$J$28000)/1000 -> 0 | D5: =+SUMIF(AUX_2d_pais!$A$2:$A$28000,'5.1'!$A5&'5.1'!D$3&1,AUX_2d_pais!$J$2:$J$28000)/1000 -> 0 | E5: =+SUMIF(AUX_2d_pais!$A$2:$A$28000,'5.1'!$A5&'5.1'!E$3&1,AUX_2d_pais!$J$2:$J$28000)/1000 -> 0 | F5: =+SUMIF(AUX_2d_pais!$A$2:$A$28000,'5.1'!$A5&'5.1'!F$3&1,AUX_2d_pais!$J$2:$J$28000)/1000 -> 0 | G5: =+SUMIF(AUX_2d_pais!$A$2:$A$28000,'5.1'!$A5&'5.1'!G$3&1,AUX_2d_pais!$J$2:$J$28000)/1000 -> 0 | H5: 0 | I5: 0 | J5: =+SUMIF(AUX_2d_pais!$A$2:$A$28000,'5.1'!$A5&'5.1'!J$3&2,AUX_2d_pais!$J$2:$J$28000)/1000 -> 0 | K5: =+SUMIF(AUX_2d_pais!$A$2:$A$28000,'5.1'!$A5&'5.1'!K$3&2,AUX_2d_pais!$J$2:$J$28000)/1000 -> 0 | L5: =+SUMIF(AUX_2d_pais!$A$2:$A$28000,'5.1'!$A5&'5.1'!L$3&2,AUX_2d_pais!$J$2:$J$28000)/1000 -> 0 | M5: =+SUMIF(AUX_2d_pais!$A$2:$A$28000,'5.1'!$A5&'5.1'!M$3&2,AUX_2d_pais!$J$2:$J$28000)/1000 -> 0 | N5: =+SUMIF(AUX_2d_pais!$A$2:$A$28000,'5.1'!$A5&'5.1'!N$3&2,AUX_2d_pais!$J$2:$J$28000)/1000 -> 0 | O5: 0 | P5: 0 | Q5: =O5-H5 -> 0 | S5: =G5-INDEX($C5:$G5,1,aux!$AL$1) -> 0 | T5: 0 | U5: =+IF(INDEX($C5:$G5,1,aux!$AL$1)>0,(G5/INDEX($C5:$G5,1,aux!$AL$1))^(1/($G$3-INDEX($C$3:$G$3,1,aux!$AL$1)))-1,"n.d.") -> n.d. | V5: =IF(INDEX($C5:$G5,1,aux!$AL$1)>0,(G5-INDEX($C5:$G5,1,aux!$AL$1))/INDEX($C5:$G5,1,aux!$AL$1),"n.d.") -> n.d. | X5: =N5-INDEX($J5:$N5,1,aux!$AL$1) -> 0 | Y5: 0 | Z5: =+IF(INDEX($J5:$N5,1,aux!$AL$1)>0,(N5/INDEX($J5:$N5,1,aux!$AL$1))^(1/($N$3-INDEX($J$3:$N$3,1,aux!$AL$1)))-1,"n.d.") -> n.d. | AA5: =IF(INDEX($J5:$N5,1,aux!$AL$1)>0,(N5-INDEX($J5:$N5,1,aux!$AL$1))/INDEX($J5:$N5,1,aux!$AL$1),"n.d.") -> n.d. | AC5: 0 | BS5: =+MATCH('5.1'!A5,AUX_2d_pais!$G$2:$G$20001,0) -> 
A6: 0070 | B6: Albânia | C6: =+SUMIF(AUX_2d_pais!$A$2:$A$28000,'5.1'!$A6&'5.1'!C$3&1,AUX_2d_pais!$J$2:$J$28000)/1000 -> 0 | D6: =+SUMIF(AUX_2d_pais!$A$2:$A$28000,'5.1'!$A6&'5.1'!D$3&1,AUX_2d_pais!$J$2:$J$28000)/1000 -> 0 | E6: =+SUMIF(AUX_2d_pais!$A$2:$A$28000,'5.1'!$A6&'5.1'!E$3&1,AUX_2d_pais!$J$2:$J$28000)/1000 -> 0 | F6: =+SUMIF(AUX_2d_pais!$A$2:$A$28000,'5.1'!$A6&'5.1'!F$3&1,AUX_2d_pais!$J$2:$J$28000)/1000 -> 0 | G6: =+SUMIF(AUX_2d_pais!$A$2:$A$28000,'5.1'!$A6&'5.1'!G$3&1,AUX_2d_pais!$J$2:$J$28000)/1000 -> 0 | H6: 0 | I6: 0 | J6: =+SUMIF(AUX_2d_pais!$A$2:$A$28000,'5.1'!$A6&'5.1'!J$3&2,AUX_2d_pais!$J$2:$J$28000)/1000 -> 0 | K6: =+SUMIF(AUX_2d_pais!$A$2:$A$28000,'5.1'!$A6&'5.1'!K$3&2,AUX_2d_pais!$J$2:$J$28000)/1000 -> 0 | L6: =+SUMIF(AUX_2d_pais!$A$2:$A$28000,'5.1'!$A6&'5.1'!L$3&2,AUX_2d_pais!$J$2:$J$28000)/1000 -> 0 | M6: =+SUMIF(AUX_2d_pais!$A$2:$A$28000,'5.1'!$A6&'5.1'!M$3&2,AUX_2d_pais!$J$2:$J$28000)/1000 -> 0 | N6: =+SUMIF(AUX_2d_pais!$A$2:$A$28000,'5.1'!$A6&'5.1'!N$3&2,AUX_2d_pais!$J$2:$J$28000)/1000 -> 0 | O6: 0 | P6: 0 | Q6: 0 | S6: =G6-INDEX($C6:$G6,1,aux!$AL$1) -> 0 | T6: 0 | U6: =+IF(INDEX($C6:$G6,1,aux!$AL$1)>0,(G6/INDEX($C6:$G6,1,aux!$AL$1))^(1/($G$3-INDEX($C$3:$G$3,1,aux!$AL$1)))-1,"n.d.") -> n.d. | V6: =IF(INDEX($C6:$G6,1,aux!$AL$1)>0,(G6-INDEX($C6:$G6,1,aux!$AL$1))/INDEX($C6:$G6,1,aux!$AL$1),"n.d.") -> n.d. | X6: =N6-INDEX($J6:$N6,1,aux!$AL$1) -> 0 | Y6: 0 | Z6: =+IF(INDEX($J6:$N6,1,aux!$AL$1)>0,(N6/INDEX($J6:$N6,1,aux!$AL$1))^(1/($N$3-INDEX($J$3:$N$3,1,aux!$AL$1)))-1,"n.d.") -> n.d. | AA6: =IF(INDEX($J6:$N6,1,aux!$AL$1)>0,(N6-INDEX($J6:$N6,1,aux!$AL$1))/INDEX($J6:$N6,1,aux!$AL$1),"n.d.") -> n.d. | AC6: 0 | BS6: =+MATCH('5.1'!A6,AUX_2d_pais!$G$2:$G$20001,0) -> 
A7: 0004 | B7: Alemanha | C7: =+SUMIF(AUX_2d_pais!$A$2:$A$28000,'5.1'!$A7&'5.1'!C$3&1,AUX_2d_pais!$J$2:$J$28000)/1000 -> 795631.136 | D7: =+SUMIF(AUX_2d_pais!$A$2:$A$28000,'5.1'!$A7&'5.1'!D$3&1,AUX_2d_pais!$J$2:$J$28000)/1000 -> 813527.016 | E7: =+SUMIF(AUX_2d_pais!$A$2:$A$28000,'5.1'!$A7&'5.1'!E$3&1,AUX_2d_pais!$J$2:$J$28000)/1000 -> 888023.647 | F7: =+SUMIF(AUX_2d_pais!$A$2:$A$28000,'5.1'!$A7&'5.1'!F$3&1,AUX_2d_pais!$J$2:$J$28000)/1000 -> 1028150.819 | G7: =+SUMIF(AUX_2d_pais!$A$2:$A$28000,'5.1'!$A7&'5.1'!G$3&1,AUX_2d_pais!$J$2:$J$28000)/1000 -> 1015894.194 | H7: 908245.3624 | I7: 0.07152806454 | J7: =+SUMIF(AUX_2d_pais!$A$2:$A$28000,'5.1'!$A7&'5.1'!J$3&2,AUX_2d_pais!$J$2:$J$28000)/1000 -> 592412.119 | K7: =+SUMIF(AUX_2d_pais!$A$2:$A$28000,'5.1'!$A7&'5.1'!K$3&2,AUX_2d_pais!$J$2:$J$28000)/1000 -> 558584.993 | L7: =+SUMIF(AUX_2d_pais!$A$2:$A$28000,'5.1'!$A7&'5.1'!L$3&2,AUX_2d_pais!$J$2:$J$28000)/1000 -> 628139.859 | M7: =+SUMIF(AUX_2d_pais!$A$2:$A$28000,'5.1'!$A7&'5.1'!M$3&2,AUX_2d_pais!$J$2:$J$28000)/1000 -> 794914.674 | N7: =+SUMIF(AUX_2d_pais!$A$2:$A$28000,'5.1'!$A7&'5.1'!N$3&2,AUX_2d_pais!$J$2:$J$28000)/1000 -> 678035.446 | O7: 650417.4182 | P7: 0.06912586057 | Q7: -257827.9442 | S7: =G7-INDEX($C7:$G7,1,aux!$AL$1) -> 220263.058 | T7: 0.04447406547 | U7: =+IF(INDEX($C7:$G7,1,aux!$AL$1)>0,(G7/INDEX($C7:$G7,1,aux!$AL$1))^(1/($G$3-INDEX($C$3:$G$3,1,aux!$AL$1)))-1,"n.d.") -> 0.06300223338 | V7: =IF(INDEX($C7:$G7,1,aux!$AL$1)>0,(G7-INDEX($C7:$G7,1,aux!$AL$1))/INDEX($C7:$G7,1,aux!$AL$1),"n.d.") -> 0.2768406716 | X7: =N7-INDEX($J7:$N7,1,aux!$AL$1) -> 85623.327 | Y7: 0.02462384498 | Z7: =+IF(INDEX($J7:$N7,1,aux!$AL$1)>0,(N7/INDEX($J7:$N7,1,aux!$AL$1))^(1/($N$3-INDEX($J$3:$N$3,1,aux!$AL$1)))-1,"n.d.") -> 0.03432522418 | AA7: =IF(INDEX($J7:$N7,1,aux!$AL$1)>0,(N7-INDEX($J7:$N7,1,aux!$AL$1))/INDEX($J7:$N7,1,aux!$AL$1),"n.d.") -> 0.1445333818 | BS7: =+MATCH('5.1'!A7,AUX_2d_pais!$G$2:$G$20001,0) -> 21
A8: 0043 | B8: Andorra | C8: =+SUMIF(AUX_2d_pais!$A$2:$A$28000,'5.1'!$A8&'5.1'!C$3&1,AUX_2d_pais!$J$2:$J$28000)/1000 -> 0 | D8: =+SUMIF(AUX_2d_pais!$A$2:$A$28000,'5.1'!$A8&'5.1'!D$3&1,AUX_2d_pais!$J$2:$J$28000)/1000 -> 0 | E8: =+SUMIF(AUX_2d_pais!$A$2:$A$28000,'5.1'!$A8&'5.1'!E$3&1,AUX_2d_pais!$J$2:$J$28000)/1000 -> 0 | F8: =+SUMIF(AUX_2d_pais!$A$2:$A$28000,'5.1'!$A8&'5.1'!F$3&1,AUX_2d_pais!$J$2:$J$28000)/1000 -> 0 | G8: =+SUMIF(AUX_2d_pais!$A$2:$A$28000,'5.1'!$A8&'5.1'!G$3&1,AUX_2d_pais!$J$2:$J$28000)/1000 -> 0 | H8: 0 | I8: 0 | J8: =+SUMIF(AUX_2d_pais!$A$2:$A$28000,'5.1'!$A8&'5.1'!J$3&2,AUX_2d_pais!$J$2:$J$28000)/1000 -> 0 | K8: =+SUMIF(AUX_2d_pais!$A$2:$A$28000,'5.1'!$A8&'5.1'!K$3&2,AUX_2d_pais!$J$2:$J$28000)/1000 -> 0 | L8: =+SUMIF(AUX_2d_pais!$A$2:$A$28000,'5.1'!$A8&'5.1'!L$3&2,AUX_2d_pais!$J$2:$J$28000)/1000 -> 0 | M8: =+SUMIF(AUX_2d_pais!$A$2:$A$28000,'5.1'!$A8&'5.1'!M$3&2,AUX_2d_pais!$J$2:$J$28000)/1000 -> 0 | N8: =+SUMIF(AUX_2d_pais!$A$2:$A$28000,'5.1'!$A8&'5.1'!N$3&2,AUX_2d_pais!$J$2:$J$28000)/1000 -> 0 | O8: 0 | P8: 0 | Q8: 0 | S8: =G8-INDEX($C8:$G8,1,aux!$AL$1) -> 0 | T8: 0 | U8: =+IF(INDEX($C8:$G8,1,aux!$AL$1)>0,(G8/INDEX($C8:$G8,1,aux!$AL$1))^(1/($G$3-INDEX($C$3:$G$3,1,aux!$AL$1)))-1,"n.d.") -> n.d. | V8: =IF(INDEX($C8:$G8,1,aux!$AL$1)>0,(G8-INDEX($C8:$G8,1,aux!$AL$1))/INDEX($C8:$G8,1,aux!$AL$1),"n.d.") -> n.d. | X8: =N8-INDEX($J8:$N8,1,aux!$AL$1) -> 0 | Y8: 0 | Z8: =+IF(INDEX($J8:$N8,1,aux!$AL$1)>0,(N8/INDEX($J8:$N8,1,aux!$AL$1))^(1/($N$3-INDEX($J$3:$N$3,1,aux!$AL$1)))-1,"n.d.") -> n.d. | AA8: =IF(INDEX($J8:$N8,1,aux!$AL$1)>0,(N8-INDEX($J8:$N8,1,aux!$AL$1))/INDEX($J8:$N8,1,aux!$AL$1),"n.d.") -> n.d. | AC8: 0 | BS8: =+MATCH('5.1'!A8,AUX_2d_pais!$G$2:$G$20001,0) -> 
A9: 0330 | B9: Angola | C9: =+SUMIF(AUX_2d_pais!$A$2:$A$28000,'5.1'!$A9&'5.1'!C$3&1,AUX_2d_pais!$J$2:$J$28000)/1000 -> 0 | D9: =+SUMIF(AUX_2d_pais!$A$2:$A$28000,'5.1'!$A9&'5.1'!D$3&1,AUX_2d_pais!$J$2:$J$28000)/1000 -> 0 | E9: =+SUMIF(AUX_2d_pais!$A$2:$A$28000,'5.1'!$A9&'5.1'!E$3&1,AUX_2d_pais!$J$2:$J$28000)/1000 -> 0 | F9: =+SUMIF(AUX_2d_pais!$A$2:$A$28000,'5.1'!$A9&'5.1'!F$3&1,AUX_2d_pais!$J$2:$J$28000)/1000 -> 0 | G9: =+SUMIF(AUX_2d_pais!$A$2:$A$28000,'5.1'!$A9&'5.1'!G$3&1,AUX_2d_pais!$J$2:$J$28000)/1000 -> 0 | H9: 0 | I9: 0 | J9: =+SUMIF(AUX_2d_pais!$A$2:$A$28000,'5.1'!$A9&'5.1'!J$3&2,AUX_2d_pais!$J$2:$J$28000)/1000 -> 0 | K9: =+SUMIF(AUX_2d_pais!$A$2:$A$28000,'5.1'!$A9&'5.1'!K$3&2,AUX_2d_pais!$J$2:$J$28000)/1000 -> 0 | L9: =+SUMIF(AUX_2d_pais!$A$2:$A$28000,'5.1'!$A9&'5.1'!L$3&2,AUX_2d_pais!$J$2:$J$28000)/1000 -> 0 | M9: =+SUMIF(AUX_2d_pais!$A$2:$A$28000,'5.1'!$A9&'5.1'!M$3&2,AUX_2d_pais!$J$2:$J$28000)/1000 -> 0 | N9: =+SUMIF(AUX_2d_pais!$A$2:$A$28000,'5.1'!$A9&'5.1'!N$3&2,AUX_2d_pais!$J$2:$J$28000)/1000 -> 0 | O9: 0 | P9: 0 | Q9: 0 | S9: =G9-INDEX($C9:$G9,1,aux!$AL$1) -> 0 | T9: 0 | U9: =+IF(INDEX($C9:$G9,1,aux!$AL$1)>0,(G9/INDEX($C9:$G9,1,aux!$AL$1))^(1/($G$3-INDEX($C$3:$G$3,1,aux!$AL$1)))-1,"n.d.") -> n.d. | V9: =IF(INDEX($C9:$G9,1,aux!$AL$1)>0,(G9-INDEX($C9:$G9,1,aux!$AL$1))/INDEX($C9:$G9,1,aux!$AL$1),"n.d.") -> n.d. | X9: =N9-INDEX($J9:$N9,1,aux!$AL$1) -> 0 | Y9: 0 | Z9: =+IF(INDEX($J9:$N9,1,aux!$AL$1)>0,(N9/INDEX($J9:$N9,1,aux!$AL$1))^(1/($N$3-INDEX($J$3:$N$3,1,aux!$AL$1)))-1,"n.d.") -> n.d. | AA9: =IF(INDEX($J9:$N9,1,aux!$AL$1)>0,(N9-INDEX($J9:$N9,1,aux!$AL$1))/INDEX($J9:$N9,1,aux!$AL$1),"n.d.") -> n.d. | AC9: 0 | BS9: =+MATCH('5.1'!A9,AUX_2d_pais!$G$2:$G$20001,0) -> 
A10: 0446 | B10: Anguila | C10: =+SUMIF(AUX_2d_pais!$A$2:$A$28000,'5.1'!$A10&'5.1'!C$3&1,AUX_2d_pais!$J$2:$J$28000)/1000 -> 0 | D10: =+SUMIF(AUX_2d_pais!$A$2:$A$28000,'5.1'!$A10&'5.1'!D$3&1,AUX_2d_pais!$J$2:$J$28000)/1000 -> 0 | E10: =+SUMIF(AUX_2d_pais!$A$2:$A$28000,'5.1'!$A10&'5.1'!E$3&1,AUX_2d_pais!$J$2:$J$28000)/1000 -> 0 | F10: =+SUMIF(AUX_2d_pais!$A$2:$A$28000,'5.1'!$A10&'5.1'!F$3&1,AUX_2d_pais!$J$2:$J$28000)/1000 -> 0 | G10: =+SUMIF(AUX_2d_pais!$A$2:$A$28000,'5.1'!$A10&'5.1'!G$3&1,AUX_2d_pais!$J$2:$J$28000)/1000 -> 0 | H10: 0 | I10: 0 | J10: =+SUMIF(AUX_2d_pais!$A$2:$A$28000,'5.1'!$A10&'5.1'!J$3&2,AUX_2d_pais!$J$2:$J$28000)/1000 -> 0 | K10: =+SUMIF(AUX_2d_pais!$A$2:$A$28000,'5.1'!$A10&'5.1'!K$3&2,AUX_2d_pais!$J$2:$J$28000)/1000 -> 0 | L10: =+SUMIF(AUX_2d_pais!$A$2:$A$28000,'5.1'!$A10&'5.1'!L$3&2,AUX_2d_pais!$J$2:$J$28000)/1000 -> 0 | M10: =+SUMIF(AUX_2d_pais!$A$2:$A$28000,'5.1'!$A10&'5.1'!M$3&2,AUX_2d_pais!$J$2:$J$28000)/1000 -> 0 | N10: =+SUMIF(AUX_2d_pais!$A$2:$A$28000,'5.1'!$A10&'5.1'!N$3&2,AUX_2d_pais!$J$2:$J$28000)/1000 -> 0 | O10: 0 | P10: 0 | Q10: 0 | S10: =G10-INDEX($C10:$G10,1,aux!$AL$1) -> 0 | T10: 0 | U10: =+IF(INDEX($C10:$G10,1,aux!$AL$1)>0,(G10/INDEX($C10:$G10,1,aux!$AL$1))^(1/($G$3-INDEX($C$3:$G$3,1,aux!$AL$1)))-1,"n.d.") -> n.d. | V10: =IF(INDEX($C10:$G10,1,aux!$AL$1)>0,(G10-INDEX($C10:$G10,1,aux!$AL$1))/INDEX($C10:$G10,1,aux!$AL$1),"n.d.") -> n.d. | X10: =N10-INDEX($J10:$N10,1,aux!$AL$1) -> 0 | Y10: 0 | Z10: =+IF(INDEX($J10:$N10,1,aux!$AL$1)>0,(N10/INDEX($J10:$N10,1,aux!$AL$1))^(1/($N$3-INDEX($J$3:$N$3,1,aux!$AL$1)))-1,"n.d.") -> n.d. | AA10: =IF(INDEX($J10:$N10,1,aux!$AL$1)>0,(N10-INDEX($J10:$N10,1,aux!$AL$1))/INDEX($J10:$N10,1,aux!$AL$1),"n.d.") -> n.d. | AC10: 0 | BS10: =+MATCH('5.1'!A10,AUX_2d_pais!$G$2:$G$20001,0) -> 
A11: 0891 | B11: Antárctica | C11: =+SUMIF(AUX_2d_pais!$A$2:$A$28000,'5.1'!$A11&'5.1'!C$3&1,AUX_2d_pais!$J$2:$J$28000)/1000 -> 0 | D11: =+SUMIF(AUX_2d_pais!$A$2:$A$28000,'5.1'!$A11&'5.1'!D$3&1,AUX_2d_pais!$J$2:$J$28000)/1000 -> 0 | E11: =+SUMIF(AUX_2d_pais!$A$2:$A$28000,'5.1'!$A11&'5.1'!E$3&1,AUX_2d_pais!$J$2:$J$28000)/1000 -> 0 | F11: =+SUMIF(AUX_2d_pais!$A$2:$A$28000,'5.1'!$A11&'5.1'!F$3&1,AUX_2d_pais!$J$2:$J$28000)/1000 -> 0 | G11: =+SUMIF(AUX_2d_pais!$A$2:$A$28000,'5.1'!$A11&'5.1'!G$3&1,AUX_2d_pais!$J$2:$J$28000)/1000 -> 0 | H11: 0 | I11: 0 | J11: =+SUMIF(AUX_2d_pais!$A$2:$A$28000,'5.1'!$A11&'5.1'!J$3&2,AUX_2d_pais!$J$2:$J$28000)/1000 -> 0 | K11: =+SUMIF(AUX_2d_pais!$A$2:$A$28000,'5.1'!$A11&'5.1'!K$3&2,AUX_2d_pais!$J$2:$J$28000)/1000 -> 0 | L11: =+SUMIF(AUX_2d_pais!$A$2:$A$28000,'5.1'!$A11&'5.1'!L$3&2,AUX_2d_pais!$J$2:$J$28000)/1000 -> 0 | M11: =+SUMIF(AUX_2d_pais!$A$2:$A$28000,'5.1'!$A11&'5.1'!M$3&2,AUX_2d_pais!$J$2:$J$28000)/1000 -> 0 | N11: =+SUMIF(AUX_2d_pais!$A$2:$A$28000,'5.1'!$A11&'5.1'!N$3&2,AUX_2d_pais!$J$2:$J$28000)/1000 -> 0 | O11: 0 | P11: 0 | Q11: 0 | S11: =G11-INDEX($C11:$G11,1,aux!$AL$1) -> 0 | T11: 0 | U11: =+IF(INDEX($C11:$G11,1,aux!$AL$1)>0,(G11/INDEX($C11:$G11,1,aux!$AL$1))^(1/($G$3-INDEX($C$3:$G$3,1,aux!$AL$1)))-1,"n.d.") -> n.d. | V11: =IF(INDEX($C11:$G11,1,aux!$AL$1)>0,(G11-INDEX($C11:$G11,1,aux!$AL$1))/INDEX($C11:$G11,1,aux!$AL$1),"n.d.") -> n.d. | X11: =N11-INDEX($J11:$N11,1,aux!$AL$1) -> 0 | Y11: 0 | Z11: =+IF(INDEX($J11:$N11,1,aux!$AL$1)>0,(N11/INDEX($J11:$N11,1,aux!$AL$1))^(1/($N$3-INDEX($J$3:$N$3,1,aux!$AL$1)))-1,"n.d.") -> n.d. | AA11: =IF(INDEX($J11:$N11,1,aux!$AL$1)>0,(N11-INDEX($J11:$N11,1,aux!$AL$1))/INDEX($J11:$N11,1,aux!$AL$1),"n.d.") -> n.d. | AC11: 0 | BS11: =+MATCH('5.1'!A11,AUX_2d_pais!$G$2:$G$20001,0) -> 
A12: 0459 | B12: Antígua e Barbuda | C12: =+SUMIF(AUX_2d_pais!$A$2:$A$28000,'5.1'!$A12&'5.1'!C$3&1,AUX_2d_pais!$J$2:$J$28000)/1000 -> 0 | D12: =+SUMIF(AUX_2d_pais!$A$2:$A$28000,'5.1'!$A12&'5.1'!D$3&1,AUX_2d_pais!$J$2:$J$28000)/1000 -> 0 | E12: =+SUMIF(AUX_2d_pais!$A$2:$A$28000,'5.1'!$A12&'5.1'!E$3&1,AUX_2d_pais!$J$2:$J$28000)/1000 -> 0 | F12: =+SUMIF(AUX_2d_pais!$A$2:$A$28000,'5.1'!$A12&'5.1'!F$3&1,AUX_2d_pais!$J$2:$J$28000)/1000 -> 0 | G12: =+SUMIF(AUX_2d_pais!$A$2:$A$28000,'5.1'!$A12&'5.1'!G$3&1,AUX_2d_pais!$J$2:$J$28000)/1000 -> 0 | H12: 0 | I12: 0 | J12: =+SUMIF(AUX_2d_pais!$A$2:$A$28000,'5.1'!$A12&'5.1'!J$3&2,AUX_2d_pais!$J$2:$J$28000)/1000 -> 0 | K12: =+SUMIF(AUX_2d_pais!$A$2:$A$28000,'5.1'!$A12&'5.1'!K$3&2,AUX_2d_pais!$J$2:$J$28000)/1000 -> 0 | L12: =+SUMIF(AUX_2d_pais!$A$2:$A$28000,'5.1'!$A12&'5.1'!L$3&2,AUX_2d_pais!$J$2:$J$28000)/1000 -> 0 | M12: =+SUMIF(AUX_2d_pais!$A$2:$A$28000,'5.1'!$A12&'5.1'!M$3&2,AUX_2d_pais!$J$2:$J$28000)/1000 -> 0 | N12: =+SUMIF(AUX_2d_pais!$A$2:$A$28000,'5.1'!$A12&'5.1'!N$3&2,AUX_2d_pais!$J$2:$J$28000)/1000 -> 0 | O12: 0 | P12: 0 | Q12: 0 | S12: =G12-INDEX($C12:$G12,1,aux!$AL$1) -> 0 | T12: 0 | U12: =+IF(INDEX($C12:$G12,1,aux!$AL$1)>0,(G12/INDEX($C12:$G12,1,aux!$AL$1))^(1/($G$3-INDEX($C$3:$G$3,1,aux!$AL$1)))-1,"n.d.") -> n.d. | V12: =IF(INDEX($C12:$G12,1,aux!$AL$1)>0,(G12-INDEX($C12:$G12,1,aux!$AL$1))/INDEX($C12:$G12,1,aux!$AL$1),"n.d.") -> n.d. | X12: =N12-INDEX($J12:$N12,1,aux!$AL$1) -> 0 | Y12: 0 | Z12: =+IF(INDEX($J12:$N12,1,aux!$AL$1)>0,(N12/INDEX($J12:$N12,1,aux!$AL$1))^(1/($N$3-INDEX($J$3:$N$3,1,aux!$AL$1)))-1,"n.d.") -> n.d. | AA12: =IF(INDEX($J12:$N12,1,aux!$AL$1)>0,(N12-INDEX($J12:$N12,1,aux!$AL$1))/INDEX($J12:$N12,1,aux!$AL$1),"n.d.") -> n.d. | AC12: 0 | BS12: =+MATCH('5.1'!A12,AUX_2d_pais!$G$2:$G$20001,0) -> 
A13: 0478 | B13: Antilhas Holandesas | C13: =+SUMIF(AUX_2d_pais!$A$2:$A$28000,'5.1'!$A13&'5.1'!C$3&1,AUX_2d_pais!$J$2:$J$28000)/1000 -> 0 | D13: =+SUMIF(AUX_2d_pais!$A$2:$A$28000,'5.1'!$A13&'5.1'!D$3&1,AUX_2d_pais!$J$2:$J$28000)/1000 -> 0 | E13: =+SUMIF(AUX_2d_pais!$A$2:$A$28000,'5.1'!$A13&'5.1'!E$3&1,AUX_2d_pais!$J$2:$J$28000)/1000 -> 0 | F13: =+SUMIF(AUX_2d_pais!$A$2:$A$28000,'5.1'!$A13&'5.1'!F$3&1,AUX_2d_pais!$J$2:$J$28000)/1000 -> 0 | G13: =+SUMIF(AUX_2d_pais!$A$2:$A$28000,'5.1'!$A13&'5.1'!G$3&1,AUX_2d_pais!$J$2:$J$28000)/1000 -> 0 | H13: 0 | I13: 0 | J13: =+SUMIF(AUX_2d_pais!$A$2:$A$28000,'5.1'!$A13&'5.1'!J$3&2,AUX_2d_pais!$J$2:$J$28000)/1000 -> 0 | K13: =+SUMIF(AUX_2d_pais!$A$2:$A$28000,'5.1'!$A13&'5.1'!K$3&2,AUX_2d_pais!$J$2:$J$28000)/1000 -> 0 | L13: =+SUMIF(AUX_2d_pais!$A$2:$A$28000,'5.1'!$A13&'5.1'!L$3&2,AUX_2d_pais!$J$2:$J$28000)/1000 -> 0 | M13: =+SUMIF(AUX_2d_pais!$A$2:$A$28000,'5.1'!$A13&'5.1'!M$3&2,AUX_2d_pais!$J$2:$J$28000)/1000 -> 0 | N13: =+SUMIF(AUX_2d_pais!$A$2:$A$28000,'5.1'!$A13&'5.1'!N$3&2,AUX_2d_pais!$J$2:$J$28000)/1000 -> 0 | O13: 0 | P13: 0 | Q13: 0 | S13: =G13-INDEX($C13:$G13,1,aux!$AL$1) -> 0 | T13: 0 | U13: =+IF(INDEX($C13:$G13,1,aux!$AL$1)>0,(G13/INDEX($C13:$G13,1,aux!$AL$1))^(1/($G$3-INDEX($C$3:$G$3,1,aux!$AL$1)))-1,"n.d.") -> n.d. | V13: =IF(INDEX($C13:$G13,1,aux!$AL$1)>0,(G13-INDEX($C13:$G13,1,aux!$AL$1))/INDEX($C13:$G13,1,aux!$AL$1),"n.d.") -> n.d. | X13: =N13-INDEX($J13:$N13,1,aux!$AL$1) -> 0 | Y13: 0 | Z13: =+IF(INDEX($J13:$N13,1,aux!$AL$1)>0,(N13/INDEX($J13:$N13,1,aux!$AL$1))^(1/($N$3-INDEX($J$3:$N$3,1,aux!$AL$1)))-1,"n.d.") -> n.d. | AA13: =IF(INDEX($J13:$N13,1,aux!$AL$1)>0,(N13-INDEX($J13:$N13,1,aux!$AL$1))/INDEX($J13:$N13,1,aux!$AL$1),"n.d.") -> n.d. | AC13: 0 | BS13: =+MATCH('5.1'!A13,AUX_2d_pais!$G$2:$G$20001,0) -> 
A14: 0632 | B14: Arábia Saudita | C14: =+SUMIF(AUX_2d_pais!$A$2:$A$28000,'5.1'!$A14&'5.1'!C$3&1,AUX_2d_pais!$J$2:$J$28000)/1000 -> 0 | D14: =+SUMIF(AUX_2d_pais!$A$2:$A$28000,'5.1'!$A14&'5.1'!D$3&1,AUX_2d_pais!$J$2:$J$28000)/1000 -> 0 | E14: =+SUMIF(AUX_2d_pais!$A$2:$A$28000,'5.1'!$A14&'5.1'!E$3&1,AUX_2d_pais!$J$2:$J$28000)/1000 -> 0 | F14: =+SUMIF(AUX_2d_pais!$A$2:$A$28000,'5.1'!$A14&'5.1'!F$3&1,AUX_2d_pais!$J$2:$J$28000)/1000 -> 0 | G14: =+SUMIF(AUX_2d_pais!$A$2:$A$28000,'5.1'!$A14&'5.1'!G$3&1,AUX_2d_pais!$J$2:$J$28000)/1000 -> 0 | H14: 0 | I14: 0 | J14: =+SUMIF(AUX_2d_pais!$A$2:$A$28000,'5.1'!$A14&'5.1'!J$3&2,AUX_2d_pais!$J$2:$J$28000)/1000 -> 0 | K14: =+SUMIF(AUX_2d_pais!$A$2:$A$28000,'5.1'!$A14&'5.1'!K$3&2,AUX_2d_pais!$J$2:$J$28000)/1000 -> 0 | L14: =+SUMIF(AUX_2d_pais!$A$2:$A$28000,'5.1'!$A14&'5.1'!L$3&2,AUX_2d_pais!$J$2:$J$28000)/1000 -> 0 | M14: =+SUMIF(AUX_2d_pais!$A$2:$A$28000,'5.1'!$A14&'5.1'!M$3&2,AUX_2d_pais!$J$2:$J$28000)/1000 -> 0 | N14: =+SUMIF(AUX_2d_pais!$A$2:$A$28000,'5.1'!$A14&'5.1'!N$3&2,AUX_2d_pais!$J$2:$J$28000)/1000 -> 0 | O14: 0 | P14: 0 | Q14: 0 | S14: =G14-INDEX($C14:$G14,1,aux!$AL$1) -> 0 | T14: 0 | U14: =+IF(INDEX($C14:$G14,1,aux!$AL$1)>0,(G14/INDEX($C14:$G14,1,aux!$AL$1))^(1/($G$3-INDEX($C$3:$G$3,1,aux!$AL$1)))-1,"n.d.") -> n.d. | V14: =IF(INDEX($C14:$G14,1,aux!$AL$1)>0,(G14-INDEX($C14:$G14,1,aux!$AL$1))/INDEX($C14:$G14,1,aux!$AL$1),"n.d.") -> n.d. | X14: =N14-INDEX($J14:$N14,1,aux!$AL$1) -> 0 | Y14: 0 | Z14: =+IF(INDEX($J14:$N14,1,aux!$AL$1)>0,(N14/INDEX($J14:$N14,1,aux!$AL$1))^(1/($N$3-INDEX($J$3:$N$3,1,aux!$AL$1)))-1,"n.d.") -> n.d. | AA14: =IF(INDEX($J14:$N14,1,aux!$AL$1)>0,(N14-INDEX($J14:$N14,1,aux!$AL$1))/INDEX($J14:$N14,1,aux!$AL$1),"n.d.") -> n.d. | AC14: 0 | BS14: =+MATCH('5.1'!A14,AUX_2d_pais!$G$2:$G$20001,0) -> 
A15: 0208 | B15: Argélia | C15: =+SUMIF(AUX_2d_pais!$A$2:$A$28000,'5.1'!$A15&'5.1'!C$3&1,AUX_2d_pais!$J$2:$J$28000)/1000 -> 0 | D15: =+SUMIF(AUX_2d_pais!$A$2:$A$28000,'5.1'!$A15&'5.1'!D$3&1,AUX_2d_pais!$J$2:$J$28000)/1000 -> 0 | E15: =+SUMIF(AUX_2d_pais!$A$2:$A$28000,'5.1'!$A15&'5.1'!E$3&1,AUX_2d_pais!$J$2:$J$28000)/1000 -> 0 | F15: =+SUMIF(AUX_2d_pais!$A$2:$A$28000,'5.1'!$A15&'5.1'!F$3&1,AUX_2d_pais!$J$2:$J$28000)/1000 -> 0 | G15: =+SUMIF(AUX_2d_pais!$A$2:$A$28000,'5.1'!$A15&'5.1'!G$3&1,AUX_2d_pais!$J$2:$J$28000)/1000 -> 0 | H15: 0 | I15: 0 | J15: =+SUMIF(AUX_2d_pais!$A$2:$A$28000,'5.1'!$A15&'5.1'!J$3&2,AUX_2d_pais!$J$2:$J$28000)/1000 -> 0 | K15: =+SUMIF(AUX_2d_pais!$A$2:$A$28000,'5.1'!$A15&'5.1'!K$3&2,AUX_2d_pais!$J$2:$J$28000)/1000 -> 0 | L15: =+SUMIF(AUX_2d_pais!$A$2:$A$28000,'5.1'!$A15&'5.1'!L$3&2,AUX_2d_pais!$J$2:$J$28000)/1000 -> 0 | M15: =+SUMIF(AUX_2d_pais!$A$2:$A$28000,'5.1'!$A15&'5.1'!M$3&2,AUX_2d_pais!$J$2:$J$28000)/1000 -> 0 | N15: =+SUMIF(AUX_2d_pais!$A$2:$A$28000,'5.1'!$A15&'5.1'!N$3&2,AUX_2d_pais!$J$2:$J$28000)/1000 -> 0 | O15: 0 | P15: 0 | Q15: 0 | S15: =G15-INDEX($C15:$G15,1,aux!$AL$1) -> 0 | T15: 0 | U15: =+IF(INDEX($C15:$G15,1,aux!$AL$1)>0,(G15/INDEX($C15:$G15,1,aux!$AL$1))^(1/($G$3-INDEX($C$3:$G$3,1,aux!$AL$1)))-1,"n.d.") -> n.d. | V15: =IF(INDEX($C15:$G15,1,aux!$AL$1)>0,(G15-INDEX($C15:$G15,1,aux!$AL$1))/INDEX($C15:$G15,1,aux!$AL$1),"n.d.") -> n.d. | X15: =N15-INDEX($J15:$N15,1,aux!$AL$1) -> 0 | Y15: 0 | Z15: =+IF(INDEX($J15:$N15,1,aux!$AL$1)>0,(N15/INDEX($J15:$N15,1,aux!$AL$1))^(1/($N$3-INDEX($J$3:$N$3,1,aux!$AL$1)))-1,"n.d.") -> n.d. | AA15: =IF(INDEX($J15:$N15,1,aux!$AL$1)>0,(N15-INDEX($J15:$N15,1,aux!$AL$1))/INDEX($J15:$N15,1,aux!$AL$1),"n.d.") -> n.d. | AC15: 0 | BS15: =+MATCH('5.1'!A15,AUX_2d_pais!$G$2:$G$20001,0) -> 
A16: 0528 | B16: Argentina | C16: =+SUMIF(AUX_2d_pais!$A$2:$A$28000,'5.1'!$A16&'5.1'!C$3&1,AUX_2d_pais!$J$2:$J$28000)/1000 -> 0 | D16: =+SUMIF(AUX_2d_pais!$A$2:$A$28000,'5.1'!$A16&'5.1'!D$3&1,AUX_2d_pais!$J$2:$J$28000)/1000 -> 0 | E16: =+SUMIF(AUX_2d_pais!$A$2:$A$28000,'5.1'!$A16&'5.1'!E$3&1,AUX_2d_pais!$J$2:$J$28000)/1000 -> 0 | F16: =+SUMIF(AUX_2d_pais!$A$2:$A$28000,'5.1'!$A16&'5.1'!F$3&1,AUX_2d_pais!$J$2:$J$28000)/1000 -> 0 | G16: =+SUMIF(AUX_2d_pais!$A$2:$A$28000,'5.1'!$A16&'5.1'!G$3&1,AUX_2d_pais!$J$2:$J$28000)/1000 -> 0 | H16: 0 | I16: 0 | J16: =+SUMIF(AUX_2d_pais!$A$2:$A$28000,'5.1'!$A16&'5.1'!J$3&2,AUX_2d_pais!$J$2:$J$28000)/1000 -> 0 | K16: =+SUMIF(AUX_2d_pais!$A$2:$A$28000,'5.1'!$A16&'5.1'!K$3&2,AUX_2d_pais!$J$2:$J$28000)/1000 -> 0 | L16: =+SUMIF(AUX_2d_pais!$A$2:$A$28000,'5.1'!$A16&'5.1'!L$3&2,AUX_2d_pais!$J$2:$J$28000)/1000 -> 0 | M16: =+SUMIF(AUX_2d_pais!$A$2:$A$28000,'5.1'!$A16&'5.1'!M$3&2,AUX_2d_pais!$J$2:$J$28000)/1000 -> 0 | N16: =+SUMIF(AUX_2d_pais!$A$2:$A$28000,'5.1'!$A16&'5.1'!N$3&2,AUX_2d_pais!$J$2:$J$28000)/1000 -> 0 | O16: 0 | P16: 0 | Q16: 0 | S16: =G16-INDEX($C16:$G16,1,aux!$AL$1) -> 0 | T16: 0 | U16: =+IF(INDEX($C16:$G16,1,aux!$AL$1)>0,(G16/INDEX($C16:$G16,1,aux!$AL$1))^(1/($G$3-INDEX($C$3:$G$3,1,aux!$AL$1)))-1,"n.d.") -> n.d. | V16: =IF(INDEX($C16:$G16,1,aux!$AL$1)>0,(G16-INDEX($C16:$G16,1,aux!$AL$1))/INDEX($C16:$G16,1,aux!$AL$1),"n.d.") -> n.d. | X16: =N16-INDEX($J16:$N16,1,aux!$AL$1) -> 0 | Y16: 0 | Z16: =+IF(INDEX($J16:$N16,1,aux!$AL$1)>0,(N16/INDEX($J16:$N16,1,aux!$AL$1))^(1/($N$3-INDEX($J$3:$N$3,1,aux!$AL$1)))-1,"n.d.") -> n.d. | AA16: =IF(INDEX($J16:$N16,1,aux!$AL$1)>0,(N16-INDEX($J16:$N16,1,aux!$AL$1))/INDEX($J16:$N16,1,aux!$AL$1),"n.d.") -> n.d. | AC16: 0 | BS16: =+MATCH('5.1'!A16,AUX_2d_pais!$G$2:$G$20001,0) -> 
A17: 0077 | B17: Arménia | C17: =+SUMIF(AUX_2d_pais!$A$2:$A$28000,'5.1'!$A17&'5.1'!C$3&1,AUX_2d_pais!$J$2:$J$28000)/1000 -> 0 | D17: =+SUMIF(AUX_2d_pais!$A$2:$A$28000,'5.1'!$A17&'5.1'!D$3&1,AUX_2d_pais!$J$2:$J$28000)/1000 -> 0 | E17: =+SUMIF(AUX_2d_pais!$A$2:$A$28000,'5.1'!$A17&'5.1'!E$3&1,AUX_2d_pais!$J$2:$J$28000)/1000 -> 0 | F17: =+SUMIF(AUX_2d_pais!$A$2:$A$28000,'5.1'!$A17&'5.1'!F$3&1,AUX_2d_pais!$J$2:$J$28000)/1000 -> 0 | G17: =+SUMIF(AUX_2d_pais!$A$2:$A$28000,'5.1'!$A17&'5.1'!G$3&1,AUX_2d_pais!$J$2:$J$28000)/1000 -> 0 | H17: 0 | I17: 0 | J17: =+SUMIF(AUX_2d_pais!$A$2:$A$28000,'5.1'!$A17&'5.1'!J$3&2,AUX_2d_pais!$J$2:$J$28000)/1000 -> 0 | K17: =+SUMIF(AUX_2d_pais!$A$2:$A$28000,'5.1'!$A17&'5.1'!K$3&2,AUX_2d_pais!$J$2:$J$28000)/1000 -> 0 | L17: =+SUMIF(AUX_2d_pais!$A$2:$A$28000,'5.1'!$A17&'5.1'!L$3&2,AUX_2d_pais!$J$2:$J$28000)/1000 -> 0 | M17: =+SUMIF(AUX_2d_pais!$A$2:$A$28000,'5.1'!$A17&'5.1'!M$3&2,AUX_2d_pais!$J$2:$J$28000)/1000 -> 0 | N17: =+SUMIF(AUX_2d_pais!$A$2:$A$28000,'5.1'!$A17&'5.1'!N$3&2,AUX_2d_pais!$J$2:$J$28000)/1000 -> 0 | O17: 0 | P17: 0 | Q17: 0 | S17: =G17-INDEX($C17:$G17,1,aux!$AL$1) -> 0 | T17: 0 | U17: =+IF(INDEX($C17:$G17,1,aux!$AL$1)>0,(G17/INDEX($C17:$G17,1,aux!$AL$1))^(1/($G$3-INDEX($C$3:$G$3,1,aux!$AL$1)))-1,"n.d.") -> n.d. | V17: =IF(INDEX($C17:$G17,1,aux!$AL$1)>0,(G17-INDEX($C17:$G17,1,aux!$AL$1))/INDEX($C17:$G17,1,aux!$AL$1),"n.d.") -> n.d. | X17: =N17-INDEX($J17:$N17,1,aux!$AL$1) -> 0 | Y17: 0 | Z17: =+IF(INDEX($J17:$N17,1,aux!$AL$1)>0,(N17/INDEX($J17:$N17,1,aux!$AL$1))^(1/($N$3-INDEX($J$3:$N$3,1,aux!$AL$1)))-1,"n.d.") -> n.d. | AA17: =IF(INDEX($J17:$N17,1,aux!$AL$1)>0,(N17-INDEX($J17:$N17,1,aux!$AL$1))/INDEX($J17:$N17,1,aux!$AL$1),"n.d.") -> n.d. | AC17: 0 | BS17: =+MATCH('5.1'!A17,AUX_2d_pais!$G$2:$G$20001,0) -> 
A18: 0474 | B18: Aruba | C18: =+SUMIF(AUX_2d_pais!$A$2:$A$28000,'5.1'!$A18&'5.1'!C$3&1,AUX_2d_pais!$J$2:$J$28000)/1000 -> 0 | D18: =+SUMIF(AUX_2d_pais!$A$2:$A$28000,'5.1'!$A18&'5.1'!D$3&1,AUX_2d_pais!$J$2:$J$28000)/1000 -> 0 | E18: =+SUMIF(AUX_2d_pais!$A$2:$A$28000,'5.1'!$A18&'5.1'!E$3&1,AUX_2d_pais!$J$2:$J$28000)/1000 -> 0 | F18: =+SUMIF(AUX_2d_pais!$A$2:$A$28000,'5.1'!$A18&'5.1'!F$3&1,AUX_2d_pais!$J$2:$J$28000)/1000 -> 0 | G18: =+SUMIF(AUX_2d_pais!$A$2:$A$28000,'5.1'!$A18&'5.1'!G$3&1,AUX_2d_pais!$J$2:$J$28000)/1000 -> 0 | H18: 0 | I18: 0 | J18: =+SUMIF(AUX_2d_pais!$A$2:$A$28000,'5.1'!$A18&'5.1'!J$3&2,AUX_2d_pais!$J$2:$J$28000)/1000 -> 0 | K18: =+SUMIF(AUX_2d_pais!$A$2:$A$28000,'5.1'!$A18&'5.1'!K$3&2,AUX_2d_pais!$J$2:$J$28000)/1000 -> 0 | L18: =+SUMIF(AUX_2d_pais!$A$2:$A$28000,'5.1'!$A18&'5.1'!L$3&2,AUX_2d_pais!$J$2:$J$28000)/1000 -> 0 | M18: =+SUMIF(AUX_2d_pais!$A$2:$A$28000,'5.1'!$A18&'5.1'!M$3&2,AUX_2d_pais!$J$2:$J$28000)/1000 -> 0 | N18: =+SUMIF(AUX_2d_pais!$A$2:$A$28000,'5.1'!$A18&'5.1'!N$3&2,AUX_2d_pais!$J$2:$J$28000)/1000 -> 0 | O18: 0 | P18: 0 | Q18: 0 | S18: =G18-INDEX($C18:$G18,1,aux!$AL$1) -> 0 | T18: 0 | U18: =+IF(INDEX($C18:$G18,1,aux!$AL$1)>0,(G18/INDEX($C18:$G18,1,aux!$AL$1))^(1/($G$3-INDEX($C$3:$G$3,1,aux!$AL$1)))-1,"n.d.") -> n.d. | V18: =IF(INDEX($C18:$G18,1,aux!$AL$1)>0,(G18-INDEX($C18:$G18,1,aux!$AL$1))/INDEX($C18:$G18,1,aux!$AL$1),"n.d.") -> n.d. | X18: =N18-INDEX($J18:$N18,1,aux!$AL$1) -> 0 | Y18: 0 | Z18: =+IF(INDEX($J18:$N18,1,aux!$AL$1)>0,(N18/INDEX($J18:$N18,1,aux!$AL$1))^(1/($N$3-INDEX($J$3:$N$3,1,aux!$AL$1)))-1,"n.d.") -> n.d. | AA18: =IF(INDEX($J18:$N18,1,aux!$AL$1)>0,(N18-INDEX($J18:$N18,1,aux!$AL$1))/INDEX($J18:$N18,1,aux!$AL$1),"n.d.") -> n.d. | AC18: 0 | BS18: =+MATCH('5.1'!A18,AUX_2d_pais!$G$2:$G$20001,0) -> 
A19: 0800 | B19: Austrália | C19: =+SUMIF(AUX_2d_pais!$A$2:$A$28000,'5.1'!$A19&'5.1'!C$3&1,AUX_2d_pais!$J$2:$J$28000)/1000 -> 0 | D19: =+SUMIF(AUX_2d_pais!$A$2:$A$28000,'5.1'!$A19&'5.1'!D$3&1,AUX_2d_pais!$J$2:$J$28000)/1000 -> 0 | E19: =+SUMIF(AUX_2d_pais!$A$2:$A$28000,'5.1'!$A19&'5.1'!E$3&1,AUX_2d_pais!$J$2:$J$28000)/1000 -> 0 | F19: =+SUMIF(AUX_2d_pais!$A$2:$A$28000,'5.1'!$A19&'5.1'!F$3&1,AUX_2d_pais!$J$2:$J$28000)/1000 -> 0 | G19: =+SUMIF(AUX_2d_pais!$A$2:$A$28000,'5.1'!$A19&'5.1'!G$3&1,AUX_2d_pais!$J$2:$J$28000)/1000 -> 0 | H19: 0 | I19: 0 | J19: =+SUMIF(AUX_2d_pais!$A$2:$A$28000,'5.1'!$A19&'5.1'!J$3&2,AUX_2d_pais!$J$2:$J$28000)/1000 -> 0 | K19: =+SUMIF(AUX_2d_pais!$A$2:$A$28000,'5.1'!$A19&'5.1'!K$3&2,AUX_2d_pais!$J$2:$J$28000)/1000 -> 0 | L19: =+SUMIF(AUX_2d_pais!$A$2:$A$28000,'5.1'!$A19&'5.1'!L$3&2,AUX_2d_pais!$J$2:$J$28000)/1000 -> 0 | M19: =+SUMIF(AUX_2d_pais!$A$2:$A$28000,'5.1'!$A19&'5.1'!M$3&2,AUX_2d_pais!$J$2:$J$28000)/1000 -> 0 | N19: =+SUMIF(AUX_2d_pais!$A$2:$A$28000,'5.1'!$A19&'5.1'!N$3&2,AUX_2d_pais!$J$2:$J$28000)/1000 -> 0 | O19: 0 | P19: 0 | Q19: 0 | S19: =G19-INDEX($C19:$G19,1,aux!$AL$1) -> 0 | T19: 0 | U19: =+IF(INDEX($C19:$G19,1,aux!$AL$1)>0,(G19/INDEX($C19:$G19,1,aux!$AL$1))^(1/($G$3-INDEX($C$3:$G$3,1,aux!$AL$1)))-1,"n.d.") -> n.d. | V19: =IF(INDEX($C19:$G19,1,aux!$AL$1)>0,(G19-INDEX($C19:$G19,1,aux!$AL$1))/INDEX($C19:$G19,1,aux!$AL$1),"n.d.") -> n.d. | X19: =N19-INDEX($J19:$N19,1,aux!$AL$1) -> 0 | Y19: 0 | Z19: =+IF(INDEX($J19:$N19,1,aux!$AL$1)>0,(N19/INDEX($J19:$N19,1,aux!$AL$1))^(1/($N$3-INDEX($J$3:$N$3,1,aux!$AL$1)))-1,"n.d.") -> n.d. | AA19: =IF(INDEX($J19:$N19,1,aux!$AL$1)>0,(N19-INDEX($J19:$N19,1,aux!$AL$1))/INDEX($J19:$N19,1,aux!$AL$1),"n.d.") -> n.d. | AC19: 0 | BS19: =+MATCH('5.1'!A19,AUX_2d_pais!$G$2:$G$20001,0) -> 
A20: 0038 | B20: Áustria | C20: =+SUMIF(AUX_2d_pais!$A$2:$A$28000,'5.1'!$A20&'5.1'!C$3&1,AUX_2d_pais!$J$2:$J$28000)/1000 -> 53564.823 | D20: =+SUMIF(AUX_2d_pais!$A$2:$A$28000,'5.1'!$A20&'5.1'!D$3&1,AUX_2d_pais!$J$2:$J$28000)/1000 -> 52648.983 | E20: =+SUMIF(AUX_2d_pais!$A$2:$A$28000,'5.1'!$A20&'5.1'!E$3&1,AUX_2d_pais!$J$2:$J$28000)/1000 -> 67533.746 | F20: =+SUMIF(AUX_2d_pais!$A$2:$A$28000,'5.1'!$A20&'5.1'!F$3&1,AUX_2d_pais!$J$2:$J$28000)/1000 -> 90895.991 | G20: =+SUMIF(AUX_2d_pais!$A$2:$A$28000,'5.1'!$A20&'5.1'!G$3&1,AUX_2d_pais!$J$2:$J$28000)/1000 -> 88944.798 | H20: 70717.6682 | I20: 0.00556930775 | J20: =+SUMIF(AUX_2d_pais!$A$2:$A$28000,'5.1'!$A20&'5.1'!J$3&2,AUX_2d_pais!$J$2:$J$28000)/1000 -> 33336.949 | K20: =+SUMIF(AUX_2d_pais!$A$2:$A$28000,'5.1'!$A20&'5.1'!K$3&2,AUX_2d_pais!$J$2:$J$28000)/1000 -> 32047.692 | L20: =+SUMIF(AUX_2d_pais!$A$2:$A$28000,'5.1'!$A20&'5.1'!L$3&2,AUX_2d_pais!$J$2:$J$28000)/1000 -> 39128.019 | M20: =+SUMIF(AUX_2d_pais!$A$2:$A$28000,'5.1'!$A20&'5.1'!M$3&2,AUX_2d_pais!$J$2:$J$28000)/1000 -> 57284.93 | N20: =+SUMIF(AUX_2d_pais!$A$2:$A$28000,'5.1'!$A20&'5.1'!N$3&2,AUX_2d_pais!$J$2:$J$28000)/1000 -> 49007.835 | O20: 42161.085 | P20: 0.004480847532 | Q20: -28556.5832 | S20: =G20-INDEX($C20:$G20,1,aux!$AL$1) -> 35379.975 | T20: 0.007143691452 | U20: =+IF(INDEX($C20:$G20,1,aux!$AL$1)>0,(G20/INDEX($C20:$G20,1,aux!$AL$1))^(1/($G$3-INDEX($C$3:$G$3,1,aux!$AL$1)))-1,"n.d.") -> 0.1351682084 | V20: =IF(INDEX($C20:$G20,1,aux!$AL$1)>0,(G20-INDEX($C20:$G20,1,aux!$AL$1))/INDEX($C20:$G20,1,aux!$AL$1),"n.d.") -> 0.6605076432 | X20: =N20-INDEX($J20:$N20,1,aux!$AL$1) -> 15670.886 | Y20: 0.004506686216 | Z20: =+IF(INDEX($J20:$N20,1,aux!$AL$1)>0,(N20/INDEX($J20:$N20,1,aux!$AL$1))^(1/($N$3-INDEX($J$3:$N$3,1,aux!$AL$1)))-1,"n.d.") -> 0.1011206737 | AA20: =IF(INDEX($J20:$N20,1,aux!$AL$1)>0,(N20-INDEX($J20:$N20,1,aux!$AL$1))/INDEX($J20:$N20,1,aux!$AL$1),"n.d.") -> 0.4700755909 | BS20: =+MATCH('5.1'!A20,AUX_2d_pais!$G$2:$G$20001,0) -> 80
A21: 0078 | B21: Azerbaijão | C21: =+SUMIF(AUX_2d_pais!$A$2:$A$28000,'5.1'!$A21&'5.1'!C$3&1,AUX_2d_pais!$J$2:$J$28000)/1000 -> 0 | D21: =+SUMIF(AUX_2d_pais!$A$2:$A$28000,'5.1'!$A21&'5.1'!D$3&1,AUX_2d_pais!$J$2:$J$28000)/1000 -> 0 | E21: =+SUMIF(AUX_2d_pais!$A$2:$A$28000,'5.1'!$A21&'5.1'!E$3&1,AUX_2d_pais!$J$2:$J$28000)/1000 -> 0 | F21: =+SUMIF(AUX_2d_pais!$A$2:$A$28000,'5.1'!$A21&'5.1'!F$3&1,AUX_2d_pais!$J$2:$J$28000)/1000 -> 0 | G21: =+SUMIF(AUX_2d_pais!$A$2:$A$28000,'5.1'!$A21&'5.1'!G$3&1,AUX_2d_pais!$J$2:$J$28000)/1000 -> 0 | H21: 0 | I21: 0 | J21: =+SUMIF(AUX_2d_pais!$A$2:$A$28000,'5.1'!$A21&'5.1'!J$3&2,AUX_2d_pais!$J$2:$J$28000)/1000 -> 0 | K21: =+SUMIF(AUX_2d_pais!$A$2:$A$28000,'5.1'!$A21&'5.1'!K$3&2,AUX_2d_pais!$J$2:$J$28000)/1000 -> 0 | L21: =+SUMIF(AUX_2d_pais!$A$2:$A$28000,'5.1'!$A21&'5.1'!L$3&2,AUX_2d_pais!$J$2:$J$28000)/1000 -> 0 | M21: =+SUMIF(AUX_2d_pais!$A$2:$A$28000,'5.1'!$A21&'5.1'!M$3&2,AUX_2d_pais!$J$2:$J$28000)/1000 -> 0 | N21: =+SUMIF(AUX_2d_pais!$A$2:$A$28000,'5.1'!$A21&'5.1'!N$3&2,AUX_2d_pais!$J$2:$J$28000)/1000 -> 0 | O21: 0 | P21: 0 | Q21: 0 | S21: =G21-INDEX($C21:$G21,1,aux!$AL$1) -> 0 | T21: 0 | U21: =+IF(INDEX($C21:$G21,1,aux!$AL$1)>0,(G21/INDEX($C21:$G21,1,aux!$AL$1))^(1/($G$3-INDEX($C$3:$G$3,1,aux!$AL$1)))-1,"n.d.") -> n.d. | V21: =IF(INDEX($C21:$G21,1,aux!$AL$1)>0,(G21-INDEX($C21:$G21,1,aux!$AL$1))/INDEX($C21:$G21,1,aux!$AL$1),"n.d.") -> n.d. | X21: =N21-INDEX($J21:$N21,1,aux!$AL$1) -> 0 | Y21: 0 | Z21: =+IF(INDEX($J21:$N21,1,aux!$AL$1)>0,(N21/INDEX($J21:$N21,1,aux!$AL$1))^(1/($N$3-INDEX($J$3:$N$3,1,aux!$AL$1)))-1,"n.d.") -> n.d. | AA21: =IF(INDEX($J21:$N21,1,aux!$AL$1)>0,(N21-INDEX($J21:$N21,1,aux!$AL$1))/INDEX($J21:$N21,1,aux!$AL$1),"n.d.") -> n.d. | AC21: 0 | BS21: =+MATCH('5.1'!A21,AUX_2d_pais!$G$2:$G$20001,0) -> 
A22: 0453 | B22: Bahamas | C22: =+SUMIF(AUX_2d_pais!$A$2:$A$28000,'5.1'!$A22&'5.1'!C$3&1,AUX_2d_pais!$J$2:$J$28000)/1000 -> 0 | D22: =+SUMIF(AUX_2d_pais!$A$2:$A$28000,'5.1'!$A22&'5.1'!D$3&1,AUX_2d_pais!$J$2:$J$28000)/1000 -> 0 | E22: =+SUMIF(AUX_2d_pais!$A$2:$A$28000,'5.1'!$A22&'5.1'!E$3&1,AUX_2d_pais!$J$2:$J$28000)/1000 -> 0 | F22: =+SUMIF(AUX_2d_pais!$A$2:$A$28000,'5.1'!$A22&'5.1'!F$3&1,AUX_2d_pais!$J$2:$J$28000)/1000 -> 0 | G22: =+SUMIF(AUX_2d_pais!$A$2:$A$28000,'5.1'!$A22&'5.1'!G$3&1,AUX_2d_pais!$J$2:$J$28000)/1000 -> 0 | H22: 0 | I22: 0 | J22: =+SUMIF(AUX_2d_pais!$A$2:$A$28000,'5.1'!$A22&'5.1'!J$3&2,AUX_2d_pais!$J$2:$J$28000)/1000 -> 0 | K22: =+SUMIF(AUX_2d_pais!$A$2:$A$28000,'5.1'!$A22&'5.1'!K$3&2,AUX_2d_pais!$J$2:$J$28000)/1000 -> 0 | L22: =+SUMIF(AUX_2d_pais!$A$2:$A$28000,'5.1'!$A22&'5.1'!L$3&2,AUX_2d_pais!$J$2:$J$28000)/1000 -> 0 | M22: =+SUMIF(AUX_2d_pais!$A$2:$A$28000,'5.1'!$A22&'5.1'!M$3&2,AUX_2d_pais!$J$2:$J$28000)/1000 -> 0 | N22: =+SUMIF(AUX_2d_pais!$A$2:$A$28000,'5.1'!$A22&'5.1'!N$3&2,AUX_2d_pais!$J$2:$J$28000)/1000 -> 0 | O22: 0 | P22: 0 | Q22: 0 | S22: =G22-INDEX($C22:$G22,1,aux!$AL$1) -> 0 | T22: 0 | U22: =+IF(INDEX($C22:$G22,1,aux!$AL$1)>0,(G22/INDEX($C22:$G22,1,aux!$AL$1))^(1/($G$3-INDEX($C$3:$G$3,1,aux!$AL$1)))-1,"n.d.") -> n.d. | V22: =IF(INDEX($C22:$G22,1,aux!$AL$1)>0,(G22-INDEX($C22:$G22,1,aux!$AL$1))/INDEX($C22:$G22,1,aux!$AL$1),"n.d.") -> n.d. | X22: =N22-INDEX($J22:$N22,1,aux!$AL$1) -> 0 | Y22: 0 | Z22: =+IF(INDEX($J22:$N22,1,aux!$AL$1)>0,(N22/INDEX($J22:$N22,1,aux!$AL$1))^(1/($N$3-INDEX($J$3:$N$3,1,aux!$AL$1)))-1,"n.d.") -> n.d. | AA22: =IF(INDEX($J22:$N22,1,aux!$AL$1)>0,(N22-INDEX($J22:$N22,1,aux!$AL$1))/INDEX($J22:$N22,1,aux!$AL$1),"n.d.") -> n.d. | AC22: 0 | BS22: =+MATCH('5.1'!A22,AUX_2d_pais!$G$2:$G$20001,0) -> 
A23: 0666 | B23: Bangladesh | C23: =+SUMIF(AUX_2d_pais!$A$2:$A$28000,'5.1'!$A23&'5.1'!C$3&1,AUX_2d_pais!$J$2:$J$28000)/1000 -> 0 | D23: =+SUMIF(AUX_2d_pais!$A$2:$A$28000,'5.1'!$A23&'5.1'!D$3&1,AUX_2d_pais!$J$2:$J$28000)/1000 -> 0 | E23: =+SUMIF(AUX_2d_pais!$A$2:$A$28000,'5.1'!$A23&'5.1'!E$3&1,AUX_2d_pais!$J$2:$J$28000)/1000 -> 0 | F23: =+SUMIF(AUX_2d_pais!$A$2:$A$28000,'5.1'!$A23&'5.1'!F$3&1,AUX_2d_pais!$J$2:$J$28000)/1000 -> 0 | G23: =+SUMIF(AUX_2d_pais!$A$2:$A$28000,'5.1'!$A23&'5.1'!G$3&1,AUX_2d_pais!$J$2:$J$28000)/1000 -> 0 | H23: 0 | I23: 0 | J23: =+SUMIF(AUX_2d_pais!$A$2:$A$28000,'5.1'!$A23&'5.1'!J$3&2,AUX_2d_pais!$J$2:$J$28000)/1000 -> 0 | K23: =+SUMIF(AUX_2d_pais!$A$2:$A$28000,'5.1'!$A23&'5.1'!K$3&2,AUX_2d_pais!$J$2:$J$28000)/1000 -> 0 | L23: =+SUMIF(AUX_2d_pais!$A$2:$A$28000,'5.1'!$A23&'5.1'!L$3&2,AUX_2d_pais!$J$2:$J$28000)/1000 -> 0 | M23: =+SUMIF(AUX_2d_pais!$A$2:$A$28000,'5.1'!$A23&'5.1'!M$3&2,AUX_2d_pais!$J$2:$J$28000)/1000 -> 0 | N23: =+SUMIF(AUX_2d_pais!$A$2:$A$28000,'5.1'!$A23&'5.1'!N$3&2,AUX_2d_pais!$J$2:$J$28000)/1000 -> 0 | O23: 0 | P23: 0 | Q23: 0 | S23: =G23-INDEX($C23:$G23,1,aux!$AL$1) -> 0 | T23: 0 | U23: =+IF(INDEX($C23:$G23,1,aux!$AL$1)>0,(G23/INDEX($C23:$G23,1,aux!$AL$1))^(1/($G$3-INDEX($C$3:$G$3,1,aux!$AL$1)))-1,"n.d.") -> n.d. | V23: =IF(INDEX($C23:$G23,1,aux!$AL$1)>0,(G23-INDEX($C23:$G23,1,aux!$AL$1))/INDEX($C23:$G23,1,aux!$AL$1),"n.d.") -> n.d. | X23: =N23-INDEX($J23:$N23,1,aux!$AL$1) -> 0 | Y23: 0 | Z23: =+IF(INDEX($J23:$N23,1,aux!$AL$1)>0,(N23/INDEX($J23:$N23,1,aux!$AL$1))^(1/($N$3-INDEX($J$3:$N$3,1,aux!$AL$1)))-1,"n.d.") -> n.d. | AA23: =IF(INDEX($J23:$N23,1,aux!$AL$1)>0,(N23-INDEX($J23:$N23,1,aux!$AL$1))/INDEX($J23:$N23,1,aux!$AL$1),"n.d.") -> n.d. | AC23: 0 | BS23: =+MATCH('5.1'!A23,AUX_2d_pais!$G$2:$G$20001,0) -> 
A24: 0469 | B24: Barbados | C24: =+SUMIF(AUX_2d_pais!$A$2:$A$28000,'5.1'!$A24&'5.1'!C$3&1,AUX_2d_pais!$J$2:$J$28000)/1000 -> 0 | D24: =+SUMIF(AUX_2d_pais!$A$2:$A$28000,'5.1'!$A24&'5.1'!D$3&1,AUX_2d_pais!$J$2:$J$28000)/1000 -> 0 | E24: =+SUMIF(AUX_2d_pais!$A$2:$A$28000,'5.1'!$A24&'5.1'!E$3&1,AUX_2d_pais!$J$2:$J$28000)/1000 -> 0 | F24: =+SUMIF(AUX_2d_pais!$A$2:$A$28000,'5.1'!$A24&'5.1'!F$3&1,AUX_2d_pais!$J$2:$J$28000)/1000 -> 0 | G24: =+SUMIF(AUX_2d_pais!$A$2:$A$28000,'5.1'!$A24&'5.1'!G$3&1,AUX_2d_pais!$J$2:$J$28000)/1000 -> 0 | H24: 0 | I24: 0 | J24: =+SUMIF(AUX_2d_pais!$A$2:$A$28000,'5.1'!$A24&'5.1'!J$3&2,AUX_2d_pais!$J$2:$J$28000)/1000 -> 0 | K24: =+SUMIF(AUX_2d_pais!$A$2:$A$28000,'5.1'!$A24&'5.1'!K$3&2,AUX_2d_pais!$J$2:$J$28000)/1000 -> 0 | L24: =+SUMIF(AUX_2d_pais!$A$2:$A$28000,'5.1'!$A24&'5.1'!L$3&2,AUX_2d_pais!$J$2:$J$28000)/1000 -> 0 | M24: =+SUMIF(AUX_2d_pais!$A$2:$A$28000,'5.1'!$A24&'5.1'!M$3&2,AUX_2d_pais!$J$2:$J$28000)/1000 -> 0 | N24: =+SUMIF(AUX_2d_pais!$A$2:$A$28000,'5.1'!$A24&'5.1'!N$3&2,AUX_2d_pais!$J$2:$J$28000)/1000 -> 0 | O24: 0 | P24: 0 | Q24: 0 | S24: =G24-INDEX($C24:$G24,1,aux!$AL$1) -> 0 | T24: 0 | U24: =+IF(INDEX($C24:$G24,1,aux!$AL$1)>0,(G24/INDEX($C24:$G24,1,aux!$AL$1))^(1/($G$3-INDEX($C$3:$G$3,1,aux!$AL$1)))-1,"n.d.") -> n.d. | V24: =IF(INDEX($C24:$G24,1,aux!$AL$1)>0,(G24-INDEX($C24:$G24,1,aux!$AL$1))/INDEX($C24:$G24,1,aux!$AL$1),"n.d.") -> n.d. | X24: =N24-INDEX($J24:$N24,1,aux!$AL$1) -> 0 | Y24: 0 | Z24: =+IF(INDEX($J24:$N24,1,aux!$AL$1)>0,(N24/INDEX($J24:$N24,1,aux!$AL$1))^(1/($N$3-INDEX($J$3:$N$3,1,aux!$AL$1)))-1,"n.d.") -> n.d. | AA24: =IF(INDEX($J24:$N24,1,aux!$AL$1)>0,(N24-INDEX($J24:$N24,1,aux!$AL$1))/INDEX($J24:$N24,1,aux!$AL$1),"n.d.") -> n.d. | AC24: 0 | BS24: =+MATCH('5.1'!A24,AUX_2d_pais!$G$2:$G$20001,0) -> 
A25: 0640 | B25: Barém | C25: =+SUMIF(AUX_2d_pais!$A$2:$A$28000,'5.1'!$A25&'5.1'!C$3&1,AUX_2d_pais!$J$2:$J$28000)/1000 -> 0 | D25: =+SUMIF(AUX_2d_pais!$A$2:$A$28000,'5.1'!$A25&'5.1'!D$3&1,AUX_2d_pais!$J$2:$J$28000)/1000 -> 0 | E25: =+SUMIF(AUX_2d_pais!$A$2:$A$28000,'5.1'!$A25&'5.1'!E$3&1,AUX_2d_pais!$J$2:$J$28000)/1000 -> 0 | F25: =+SUMIF(AUX_2d_pais!$A$2:$A$28000,'5.1'!$A25&'5.1'!F$3&1,AUX_2d_pais!$J$2:$J$28000)/1000 -> 0 | G25: =+SUMIF(AUX_2d_pais!$A$2:$A$28000,'5.1'!$A25&'5.1'!G$3&1,AUX_2d_pais!$J$2:$J$28000)/1000 -> 0 | H25: 0 | I25: 0 | J25: =+SUMIF(AUX_2d_pais!$A$2:$A$28000,'5.1'!$A25&'5.1'!J$3&2,AUX_2d_pais!$J$2:$J$28000)/1000 -> 0 | K25: =+SUMIF(AUX_2d_pais!$A$2:$A$28000,'5.1'!$A25&'5.1'!K$3&2,AUX_2d_pais!$J$2:$J$28000)/1000 -> 0 | L25: =+SUMIF(AUX_2d_pais!$A$2:$A$28000,'5.1'!$A25&'5.1'!L$3&2,AUX_2d_pais!$J$2:$J$28000)/1000 -> 0 | M25: =+SUMIF(AUX_2d_pais!$A$2:$A$28000,'5.1'!$A25&'5.1'!M$3&2,AUX_2d_pais!$J$2:$J$28000)/1000 -> 0 | N25: =+SUMIF(AUX_2d_pais!$A$2:$A$28000,'5.1'!$A25&'5.1'!N$3&2,AUX_2d_pais!$J$2:$J$28000)/1000 -> 0 | O25: 0 | P25: 0 | Q25: 0 | S25: =G25-INDEX($C25:$G25,1,aux!$AL$1) -> 0 | T25: 0 | U25: =+IF(INDEX($C25:$G25,1,aux!$AL$1)>0,(G25/INDEX($C25:$G25,1,aux!$AL$1))^(1/($G$3-INDEX($C$3:$G$3,1,aux!$AL$1)))-1,"n.d.") -> n.d. | V25: =IF(INDEX($C25:$G25,1,aux!$AL$1)>0,(G25-INDEX($C25:$G25,1,aux!$AL$1))/INDEX($C25:$G25,1,aux!$AL$1),"n.d.") -> n.d. | X25: =N25-INDEX($J25:$N25,1,aux!$AL$1) -> 0 | Y25: 0 | Z25: =+IF(INDEX($J25:$N25,1,aux!$AL$1)>0,(N25/INDEX($J25:$N25,1,aux!$AL$1))^(1/($N$3-INDEX($J$3:$N$3,1,aux!$AL$1)))-1,"n.d.") -> n.d. | AA25: =IF(INDEX($J25:$N25,1,aux!$AL$1)>0,(N25-INDEX($J25:$N25,1,aux!$AL$1))/INDEX($J25:$N25,1,aux!$AL$1),"n.d.") -> n.d. | AC25: 0 | BS25: =+MATCH('5.1'!A25,AUX_2d_pais!$G$2:$G$20001,0) -> 
A26: 0073 | B26: Belarus | C26: =+SUMIF(AUX_2d_pais!$A$2:$A$28000,'5.1'!$A26&'5.1'!C$3&1,AUX_2d_pais!$J$2:$J$28000)/1000 -> 0 | D26: =+SUMIF(AUX_2d_pais!$A$2:$A$28000,'5.1'!$A26&'5.1'!D$3&1,AUX_2d_pais!$J$2:$J$28000)/1000 -> 0 | E26: =+SUMIF(AUX_2d_pais!$A$2:$A$28000,'5.1'!$A26&'5.1'!E$3&1,AUX_2d_pais!$J$2:$J$28000)/1000 -> 0 | F26: =+SUMIF(AUX_2d_pais!$A$2:$A$28000,'5.1'!$A26&'5.1'!F$3&1,AUX_2d_pais!$J$2:$J$28000)/1000 -> 0 | G26: =+SUMIF(AUX_2d_pais!$A$2:$A$28000,'5.1'!$A26&'5.1'!G$3&1,AUX_2d_pais!$J$2:$J$28000)/1000 -> 0 | H26: 0 | I26: 0 | J26: =+SUMIF(AUX_2d_pais!$A$2:$A$28000,'5.1'!$A26&'5.1'!J$3&2,AUX_2d_pais!$J$2:$J$28000)/1000 -> 0 | K26: =+SUMIF(AUX_2d_pais!$A$2:$A$28000,'5.1'!$A26&'5.1'!K$3&2,AUX_2d_pais!$J$2:$J$28000)/1000 -> 0 | L26: =+SUMIF(AUX_2d_pais!$A$2:$A$28000,'5.1'!$A26&'5.1'!L$3&2,AUX_2d_pais!$J$2:$J$28000)/1000 -> 0 | M26: =+SUMIF(AUX_2d_pais!$A$2:$A$28000,'5.1'!$A26&'5.1'!M$3&2,AUX_2d_pais!$J$2:$J$28000)/1000 -> 0 | N26: =+SUMIF(AUX_2d_pais!$A$2:$A$28000,'5.1'!$A26&'5.1'!N$3&2,AUX_2d_pais!$J$2:$J$28000)/1000 -> 0 | O26: 0 | P26: 0 | Q26: 0 | S26: =G26-INDEX($C26:$G26,1,aux!$AL$1) -> 0 | T26: 0 | U26: =+IF(INDEX($C26:$G26,1,aux!$AL$1)>0,(G26/INDEX($C26:$G26,1,aux!$AL$1))^(1/($G$3-INDEX($C$3:$G$3,1,aux!$AL$1)))-1,"n.d.") -> n.d. | V26: =IF(INDEX($C26:$G26,1,aux!$AL$1)>0,(G26-INDEX($C26:$G26,1,aux!$AL$1))/INDEX($C26:$G26,1,aux!$AL$1),"n.d.") -> n.d. | X26: =N26-INDEX($J26:$N26,1,aux!$AL$1) -> 0 | Y26: 0 | Z26: =+IF(INDEX($J26:$N26,1,aux!$AL$1)>0,(N26/INDEX($J26:$N26,1,aux!$AL$1))^(1/($N$3-INDEX($J$3:$N$3,1,aux!$AL$1)))-1,"n.d.") -> n.d. | AA26: =IF(INDEX($J26:$N26,1,aux!$AL$1)>0,(N26-INDEX($J26:$N26,1,aux!$AL$1))/INDEX($J26:$N26,1,aux!$AL$1),"n.d.") -> n.d. | AC26: 0 | BS26: =+MATCH('5.1'!A26,AUX_2d_pais!$G$2:$G$20001,0) -> 
A27: 0017 | B27: Bélgica | C27: =+SUMIF(AUX_2d_pais!$A$2:$A$28000,'5.1'!$A27&'5.1'!C$3&1,AUX_2d_pais!$J$2:$J$28000)/1000 -> 278516.003 | D27: =+SUMIF(AUX_2d_pais!$A$2:$A$28000,'5.1'!$A27&'5.1'!D$3&1,AUX_2d_pais!$J$2:$J$28000)/1000 -> 218023.792 | E27: =+SUMIF(AUX_2d_pais!$A$2:$A$28000,'5.1'!$A27&'5.1'!E$3&1,AUX_2d_pais!$J$2:$J$28000)/1000 -> 304040.829 | F27: =+SUMIF(AUX_2d_pais!$A$2:$A$28000,'5.1'!$A27&'5.1'!F$3&1,AUX_2d_pais!$J$2:$J$28000)/1000 -> 379358.11 | G27: =+SUMIF(AUX_2d_pais!$A$2:$A$28000,'5.1'!$A27&'5.1'!G$3&1,AUX_2d_pais!$J$2:$J$28000)/1000 -> 381241.379 | H27: 312236.0226 | I27: 0.02458987329 | J27: =+SUMIF(AUX_2d_pais!$A$2:$A$28000,'5.1'!$A27&'5.1'!J$3&2,AUX_2d_pais!$J$2:$J$28000)/1000 -> 229579.37 | K27: =+SUMIF(AUX_2d_pais!$A$2:$A$28000,'5.1'!$A27&'5.1'!K$3&2,AUX_2d_pais!$J$2:$J$28000)/1000 -> 220344.361 | L27: =+SUMIF(AUX_2d_pais!$A$2:$A$28000,'5.1'!$A27&'5.1'!L$3&2,AUX_2d_pais!$J$2:$J$28000)/1000 -> 234919.183 | M27: =+SUMIF(AUX_2d_pais!$A$2:$A$28000,'5.1'!$A27&'5.1'!M$3&2,AUX_2d_pais!$J$2:$J$28000)/1000 -> 289491.012 | N27: =+SUMIF(AUX_2d_pais!$A$2:$A$28000,'5.1'!$A27&'5.1'!N$3&2,AUX_2d_pais!$J$2:$J$28000)/1000 -> 298737.857 | O27: 254614.3566 | P27: 0.02706021706 | Q27: -57621.666 | S27: =G27-INDEX($C27:$G27,1,aux!$AL$1) -> 102725.376 | T27: 0.02074163112 | U27: =+IF(INDEX($C27:$G27,1,aux!$AL$1)>0,(G27/INDEX($C27:$G27,1,aux!$AL$1))^(1/($G$3-INDEX($C$3:$G$3,1,aux!$AL$1)))-1,"n.d.") -> 0.08165178037 | V27: =IF(INDEX($C27:$G27,1,aux!$AL$1)>0,(G27-INDEX($C27:$G27,1,aux!$AL$1))/INDEX($C27:$G27,1,aux!$AL$1),"n.d.") -> 0.368831144 | X27: =N27-INDEX($J27:$N27,1,aux!$AL$1) -> 69158.487 | Y27: 0.01988883079 | Z27: =+IF(INDEX($J27:$N27,1,aux!$AL$1)>0,(N27/INDEX($J27:$N27,1,aux!$AL$1))^(1/($N$3-INDEX($J$3:$N$3,1,aux!$AL$1)))-1,"n.d.") -> 0.06804450602 | AA27: =IF(INDEX($J27:$N27,1,aux!$AL$1)>0,(N27-INDEX($J27:$N27,1,aux!$AL$1))/INDEX($J27:$N27,1,aux!$AL$1),"n.d.") -> 0.3012399895 | BS27: =+MATCH('5.1'!A27,AUX_2d_pais!$G$2:$G$20001,0) -> 60
A28: 0421 | B28: Belize | C28: =+SUMIF(AUX_2d_pais!$A$2:$A$28000,'5.1'!$A28&'5.1'!C$3&1,AUX_2d_pais!$J$2:$J$28000)/1000 -> 0 | D28: =+SUMIF(AUX_2d_pais!$A$2:$A$28000,'5.1'!$A28&'5.1'!D$3&1,AUX_2d_pais!$J$2:$J$28000)/1000 -> 0 | E28: =+SUMIF(AUX_2d_pais!$A$2:$A$28000,'5.1'!$A28&'5.1'!E$3&1,AUX_2d_pais!$J$2:$J$28000)/1000 -> 0 | F28: =+SUMIF(AUX_2d_pais!$A$2:$A$28000,'5.1'!$A28&'5.1'!F$3&1,AUX_2d_pais!$J$2:$J$28000)/1000 -> 0 | G28: =+SUMIF(AUX_2d_pais!$A$2:$A$28000,'5.1'!$A28&'5.1'!G$3&1,AUX_2d_pais!$J$2:$J$28000)/1000 -> 0 | H28: 0 | I28: 0 | J28: =+SUMIF(AUX_2d_pais!$A$2:$A$28000,'5.1'!$A28&'5.1'!J$3&2,AUX_2d_pais!$J$2:$J$28000)/1000 -> 0 | K28: =+SUMIF(AUX_2d_pais!$A$2:$A$28000,'5.1'!$A28&'5.1'!K$3&2,AUX_2d_pais!$J$2:$J$28000)/1000 -> 0 | L28: =+SUMIF(AUX_2d_pais!$A$2:$A$28000,'5.1'!$A28&'5.1'!L$3&2,AUX_2d_pais!$J$2:$J$28000)/1000 -> 0 | M28: =+SUMIF(AUX_2d_pais!$A$2:$A$28000,'5.1'!$A28&'5.1'!M$3&2,AUX_2d_pais!$J$2:$J$28000)/1000 -> 0 | N28: =+SUMIF(AUX_2d_pais!$A$2:$A$28000,'5.1'!$A28&'5.1'!N$3&2,AUX_2d_pais!$J$2:$J$28000)/1000 -> 0 | O28: 0 | P28: 0 | Q28: 0 | S28: =G28-INDEX($C28:$G28,1,aux!$AL$1) -> 0 | T28: 0 | U28: =+IF(INDEX($C28:$G28,1,aux!$AL$1)>0,(G28/INDEX($C28:$G28,1,aux!$AL$1))^(1/($G$3-INDEX($C$3:$G$3,1,aux!$AL$1)))-1,"n.d.") -> n.d. | V28: =IF(INDEX($C28:$G28,1,aux!$AL$1)>0,(G28-INDEX($C28:$G28,1,aux!$AL$1))/INDEX($C28:$G28,1,aux!$AL$1),"n.d.") -> n.d. | X28: =N28-INDEX($J28:$N28,1,aux!$AL$1) -> 0 | Y28: 0 | Z28: =+IF(INDEX($J28:$N28,1,aux!$AL$1)>0,(N28/INDEX($J28:$N28,1,aux!$AL$1))^(1/($N$3-INDEX($J$3:$N$3,1,aux!$AL$1)))-1,"n.d.") -> n.d. | AA28: =IF(INDEX($J28:$N28,1,aux!$AL$1)>0,(N28-INDEX($J28:$N28,1,aux!$AL$1))/INDEX($J28:$N28,1,aux!$AL$1),"n.d.") -> n.d. | AC28: 0 | BS28: =+MATCH('5.1'!A28,AUX_2d_pais!$G$2:$G$20001,0) -> 
A29: 0284 | B29: Benim | C29: =+SUMIF(AUX_2d_pais!$A$2:$A$28000,'5.1'!$A29&'5.1'!C$3&1,AUX_2d_pais!$J$2:$J$28000)/1000 -> 0 | D29: =+SUMIF(AUX_2d_pais!$A$2:$A$28000,'5.1'!$A29&'5.1'!D$3&1,AUX_2d_pais!$J$2:$J$28000)/1000 -> 0 | E29: =+SUMIF(AUX_2d_pais!$A$2:$A$28000,'5.1'!$A29&'5.1'!E$3&1,AUX_2d_pais!$J$2:$J$28000)/1000 -> 0 | F29: =+SUMIF(AUX_2d_pais!$A$2:$A$28000,'5.1'!$A29&'5.1'!F$3&1,AUX_2d_pais!$J$2:$J$28000)/1000 -> 0 | G29: =+SUMIF(AUX_2d_pais!$A$2:$A$28000,'5.1'!$A29&'5.1'!G$3&1,AUX_2d_pais!$J$2:$J$28000)/1000 -> 0 | H29: 0 | I29: 0 | J29: =+SUMIF(AUX_2d_pais!$A$2:$A$28000,'5.1'!$A29&'5.1'!J$3&2,AUX_2d_pais!$J$2:$J$28000)/1000 -> 0 | K29: =+SUMIF(AUX_2d_pais!$A$2:$A$28000,'5.1'!$A29&'5.1'!K$3&2,AUX_2d_pais!$J$2:$J$28000)/1000 -> 0 | L29: =+SUMIF(AUX_2d_pais!$A$2:$A$28000,'5.1'!$A29&'5.1'!L$3&2,AUX_2d_pais!$J$2:$J$28000)/1000 -> 0 | M29: =+SUMIF(AUX_2d_pais!$A$2:$A$28000,'5.1'!$A29&'5.1'!M$3&2,AUX_2d_pais!$J$2:$J$28000)/1000 -> 0 | N29: =+SUMIF(AUX_2d_pais!$A$2:$A$28000,'5.1'!$A29&'5.1'!N$3&2,AUX_2d_pais!$J$2:$J$28000)/1000 -> 0 | O29: 0 | P29: 0 | Q29: 0 | S29: =G29-INDEX($C29:$G29,1,aux!$AL$1) -> 0 | T29: 0 | U29: =+IF(INDEX($C29:$G29,1,aux!$AL$1)>0,(G29/INDEX($C29:$G29,1,aux!$AL$1))^(1/($G$3-INDEX($C$3:$G$3,1,aux!$AL$1)))-1,"n.d.") -> n.d. | V29: =IF(INDEX($C29:$G29,1,aux!$AL$1)>0,(G29-INDEX($C29:$G29,1,aux!$AL$1))/INDEX($C29:$G29,1,aux!$AL$1),"n.d.") -> n.d. | X29: =N29-INDEX($J29:$N29,1,aux!$AL$1) -> 0 | Y29: 0 | Z29: =+IF(INDEX($J29:$N29,1,aux!$AL$1)>0,(N29/INDEX($J29:$N29,1,aux!$AL$1))^(1/($N$3-INDEX($J$3:$N$3,1,aux!$AL$1)))-1,"n.d.") -> n.d. | AA29: =IF(INDEX($J29:$N29,1,aux!$AL$1)>0,(N29-INDEX($J29:$N29,1,aux!$AL$1))/INDEX($J29:$N29,1,aux!$AL$1),"n.d.") -> n.d. | AC29: 0 | BS29: =+MATCH('5.1'!A29,AUX_2d_pais!$G$2:$G$20001,0) -> 
A30: 0413 | B30: Bermudas | C30: =+SUMIF(AUX_2d_pais!$A$2:$A$28000,'5.1'!$A30&'5.1'!C$3&1,AUX_2d_pais!$J$2:$J$28000)/1000 -> 0 | D30: =+SUMIF(AUX_2d_pais!$A$2:$A$28000,'5.1'!$A30&'5.1'!D$3&1,AUX_2d_pais!$J$2:$J$28000)/1000 -> 0 | E30: =+SUMIF(AUX_2d_pais!$A$2:$A$28000,'5.1'!$A30&'5.1'!E$3&1,AUX_2d_pais!$J$2:$J$28000)/1000 -> 0 | F30: =+SUMIF(AUX_2d_pais!$A$2:$A$28000,'5.1'!$A30&'5.1'!F$3&1,AUX_2d_pais!$J$2:$J$28000)/1000 -> 0 | G30: =+SUMIF(AUX_2d_pais!$A$2:$A$28000,'5.1'!$A30&'5.1'!G$3&1,AUX_2d_pais!$J$2:$J$28000)/1000 -> 0 | H30: 0 | I30: 0 | J30: =+SUMIF(AUX_2d_pais!$A$2:$A$28000,'5.1'!$A30&'5.1'!J$3&2,AUX_2d_pais!$J$2:$J$28000)/1000 -> 0 | K30: =+SUMIF(AUX_2d_pais!$A$2:$A$28000,'5.1'!$A30&'5.1'!K$3&2,AUX_2d_pais!$J$2:$J$28000)/1000 -> 0 | L30: =+SUMIF(AUX_2d_pais!$A$2:$A$28000,'5.1'!$A30&'5.1'!L$3&2,AUX_2d_pais!$J$2:$J$28000)/1000 -> 0 | M30: =+SUMIF(AUX_2d_pais!$A$2:$A$28000,'5.1'!$A30&'5.1'!M$3&2,AUX_2d_pais!$J$2:$J$28000)/1000 -> 0 | N30: =+SUMIF(AUX_2d_pais!$A$2:$A$28000,'5.1'!$A30&'5.1'!N$3&2,AUX_2d_pais!$J$2:$J$28000)/1000 -> 0 | O30: 0 | P30: 0 | Q30: 0 | S30: =G30-INDEX($C30:$G30,1,aux!$AL$1) -> 0 | T30: 0 | U30: =+IF(INDEX($C30:$G30,1,aux!$AL$1)>0,(G30/INDEX($C30:$G30,1,aux!$AL$1))^(1/($G$3-INDEX($C$3:$G$3,1,aux!$AL$1)))-1,"n.d.") -> n.d. | V30: =IF(INDEX($C30:$G30,1,aux!$AL$1)>0,(G30-INDEX($C30:$G30,1,aux!$AL$1))/INDEX($C30:$G30,1,aux!$AL$1),"n.d.") -> n.d. | X30: =N30-INDEX($J30:$N30,1,aux!$AL$1) -> 0 | Y30: 0 | Z30: =+IF(INDEX($J30:$N30,1,aux!$AL$1)>0,(N30/INDEX($J30:$N30,1,aux!$AL$1))^(1/($N$3-INDEX($J$3:$N$3,1,aux!$AL$1)))-1,"n.d.") -> n.d. | AA30: =IF(INDEX($J30:$N30,1,aux!$AL$1)>0,(N30-INDEX($J30:$N30,1,aux!$AL$1))/INDEX($J30:$N30,1,aux!$AL$1),"n.d.") -> n.d. | AC30: 0 | BS30: =+MATCH('5.1'!A30,AUX_2d_pais!$G$2:$G$20001,0) -> 
A31: 0516 | B31: Bolívia | C31: =+SUMIF(AUX_2d_pais!$A$2:$A$28000,'5.1'!$A31&'5.1'!C$3&1,AUX_2d_pais!$J$2:$J$28000)/1000 -> 0 | D31: =+SUMIF(AUX_2d_pais!$A$2:$A$28000,'5.1'!$A31&'5.1'!D$3&1,AUX_2d_pais!$J$2:$J$28000)/1000 -> 0 | E31: =+SUMIF(AUX_2d_pais!$A$2:$A$28000,'5.1'!$A31&'5.1'!E$3&1,AUX_2d_pais!$J$2:$J$28000)/1000 -> 0 | F31: =+SUMIF(AUX_2d_pais!$A$2:$A$28000,'5.1'!$A31&'5.1'!F$3&1,AUX_2d_pais!$J$2:$J$28000)/1000 -> 0 | G31: =+SUMIF(AUX_2d_pais!$A$2:$A$28000,'5.1'!$A31&'5.1'!G$3&1,AUX_2d_pais!$J$2:$J$28000)/1000 -> 0 | H31: =SUM(C31:G31)/5 -> 0 | I31: 0 | J31: =+SUMIF(AUX_2d_pais!$A$2:$A$28000,'5.1'!$A31&'5.1'!J$3&2,AUX_2d_pais!$J$2:$J$28000)/1000 -> 0 | K31: =+SUMIF(AUX_2d_pais!$A$2:$A$28000,'5.1'!$A31&'5.1'!K$3&2,AUX_2d_pais!$J$2:$J$28000)/1000 -> 0 | L31: =+SUMIF(AUX_2d_pais!$A$2:$A$28000,'5.1'!$A31&'5.1'!L$3&2,AUX_2d_pais!$J$2:$J$28000)/1000 -> 0 | M31: =+SUMIF(AUX_2d_pais!$A$2:$A$28000,'5.1'!$A31&'5.1'!M$3&2,AUX_2d_pais!$J$2:$J$28000)/1000 -> 0 | N31: =+SUMIF(AUX_2d_pais!$A$2:$A$28000,'5.1'!$A31&'5.1'!N$3&2,AUX_2d_pais!$J$2:$J$28000)/1000 -> 0 | O31: =SUM(J31:N31)/5 -> 0 | P31: 0 | Q31: =O31-H31 -> 0 | S31: =G31-INDEX($C31:$G31,1,aux!$AL$1) -> 0 | T31: 0 | U31: =+IF(INDEX($C31:$G31,1,aux!$AL$1)>0,(G31/INDEX($C31:$G31,1,aux!$AL$1))^(1/($G$3-INDEX($C$3:$G$3,1,aux!$AL$1)))-1,"n.d.") -> n.d. | V31: =IF(INDEX($C31:$G31,1,aux!$AL$1)>0,(G31-INDEX($C31:$G31,1,aux!$AL$1))/INDEX($C31:$G31,1,aux!$AL$1),"n.d.") -> n.d. | X31: =N31-INDEX($J31:$N31,1,aux!$AL$1) -> 0 | Y31: 0 | Z31: =+IF(INDEX($J31:$N31,1,aux!$AL$1)>0,(N31/INDEX($J31:$N31,1,aux!$AL$1))^(1/($N$3-INDEX($J$3:$N$3,1,aux!$AL$1)))-1,"n.d.") -> n.d. | AA31: =IF(INDEX($J31:$N31,1,aux!$AL$1)>0,(N31-INDEX($J31:$N31,1,aux!$AL$1))/INDEX($J31:$N31,1,aux!$AL$1),"n.d.") -> n.d. | AC31: 0 | BS31: =+MATCH('5.1'!A31,AUX_2d_pais!$G$2:$G$20001,0) -> 
A32: 0477 | B32: Bonaire, Santo Eustáquio e Saba | C32: =+SUMIF(AUX_2d_pais!$A$2:$A$28000,'5.1'!$A32&'5.1'!C$3&1,AUX_2d_pais!$J$2:$J$28000)/1000 -> 0 | D32: =+SUMIF(AUX_2d_pais!$A$2:$A$28000,'5.1'!$A32&'5.1'!D$3&1,AUX_2d_pais!$J$2:$J$28000)/1000 -> 0 | E32: =+SUMIF(AUX_2d_pais!$A$2:$A$28000,'5.1'!$A32&'5.1'!E$3&1,AUX_2d_pais!$J$2:$J$28000)/1000 -> 0 | F32: =+SUMIF(AUX_2d_pais!$A$2:$A$28000,'5.1'!$A32&'5.1'!F$3&1,AUX_2d_pais!$J$2:$J$28000)/1000 -> 0 | G32: =+SUMIF(AUX_2d_pais!$A$2:$A$28000,'5.1'!$A32&'5.1'!G$3&1,AUX_2d_pais!$J$2:$J$28000)/1000 -> 0 | H32: =SUM(C32:G32)/5 -> 0 | I32: 0 | J32: =+SUMIF(AUX_2d_pais!$A$2:$A$28000,'5.1'!$A32&'5.1'!J$3&2,AUX_2d_pais!$J$2:$J$28000)/1000 -> 0 | K32: =+SUMIF(AUX_2d_pais!$A$2:$A$28000,'5.1'!$A32&'5.1'!K$3&2,AUX_2d_pais!$J$2:$J$28000)/1000 -> 0 | L32: =+SUMIF(AUX_2d_pais!$A$2:$A$28000,'5.1'!$A32&'5.1'!L$3&2,AUX_2d_pais!$J$2:$J$28000)/1000 -> 0 | M32: =+SUMIF(AUX_2d_pais!$A$2:$A$28000,'5.1'!$A32&'5.1'!M$3&2,AUX_2d_pais!$J$2:$J$28000)/1000 -> 0 | N32: =+SUMIF(AUX_2d_pais!$A$2:$A$28000,'5.1'!$A32&'5.1'!N$3&2,AUX_2d_pais!$J$2:$J$28000)/1000 -> 0 | O32: =SUM(J32:N32)/5 -> 0 | P32: 0 | Q32: =O32-H32 -> 0 | S32: =G32-INDEX($C32:$G32,1,aux!$AL$1) -> 0 | T32: 0 | U32: =+IF(INDEX($C32:$G32,1,aux!$AL$1)>0,(G32/INDEX($C32:$G32,1,aux!$AL$1))^(1/($G$3-INDEX($C$3:$G$3,1,aux!$AL$1)))-1,"n.d.") -> n.d. | V32: =IF(INDEX($C32:$G32,1,aux!$AL$1)>0,(G32-INDEX($C32:$G32,1,aux!$AL$1))/INDEX($C32:$G32,1,aux!$AL$1),"n.d.") -> n.d. | X32: =N32-INDEX($J32:$N32,1,aux!$AL$1) -> 0 | Y32: 0 | Z32: =+IF(INDEX($J32:$N32,1,aux!$AL$1)>0,(N32/INDEX($J32:$N32,1,aux!$AL$1))^(1/($N$3-INDEX($J$3:$N$3,1,aux!$AL$1)))-1,"n.d.") -> n.d. | AA32: =IF(INDEX($J32:$N32,1,aux!$AL$1)>0,(N32-INDEX($J32:$N32,1,aux!$AL$1))/INDEX($J32:$N32,1,aux!$AL$1),"n.d.") -> n.d. | AC32: 0 | BS32: =+MATCH('5.1'!A32,AUX_2d_pais!$G$2:$G$20001,0) -> 
A33: 0093 | B33: Bósnia-Herzegovina | C33: =+SUMIF(AUX_2d_pais!$A$2:$A$28000,'5.1'!$A33&'5.1'!C$3&1,AUX_2d_pais!$J$2:$J$28000)/1000 -> 0 | D33: =+SUMIF(AUX_2d_pais!$A$2:$A$28000,'5.1'!$A33&'5.1'!D$3&1,AUX_2d_pais!$J$2:$J$28000)/1000 -> 0 | E33: =+SUMIF(AUX_2d_pais!$A$2:$A$28000,'5.1'!$A33&'5.1'!E$3&1,AUX_2d_pais!$J$2:$J$28000)/1000 -> 0 | F33: =+SUMIF(AUX_2d_pais!$A$2:$A$28000,'5.1'!$A33&'5.1'!F$3&1,AUX_2d_pais!$J$2:$J$28000)/1000 -> 0 | G33: =+SUMIF(AUX_2d_pais!$A$2:$A$28000,'5.1'!$A33&'5.1'!G$3&1,AUX_2d_pais!$J$2:$J$28000)/1000 -> 0 | H33: =SUM(C33:G33)/5 -> 0 | I33: 0 | J33: =+SUMIF(AUX_2d_pais!$A$2:$A$28000,'5.1'!$A33&'5.1'!J$3&2,AUX_2d_pais!$J$2:$J$28000)/1000 -> 0 | K33: =+SUMIF(AUX_2d_pais!$A$2:$A$28000,'5.1'!$A33&'5.1'!K$3&2,AUX_2d_pais!$J$2:$J$28000)/1000 -> 0 | L33: =+SUMIF(AUX_2d_pais!$A$2:$A$28000,'5.1'!$A33&'5.1'!L$3&2,AUX_2d_pais!$J$2:$J$28000)/1000 -> 0 | M33: =+SUMIF(AUX_2d_pais!$A$2:$A$28000,'5.1'!$A33&'5.1'!M$3&2,AUX_2d_pais!$J$2:$J$28000)/1000 -> 0 | N33: =+SUMIF(AUX_2d_pais!$A$2:$A$28000,'5.1'!$A33&'5.1'!N$3&2,AUX_2d_pais!$J$2:$J$28000)/1000 -> 0 | O33: =SUM(J33:N33)/5 -> 0 | P33: 0 | Q33: =O33-H33 -> 0 | S33: =G33-INDEX($C33:$G33,1,aux!$AL$1) -> 0 | T33: 0 | U33: =+IF(INDEX($C33:$G33,1,aux!$AL$1)>0,(G33/INDEX($C33:$G33,1,aux!$AL$1))^(1/($G$3-INDEX($C$3:$G$3,1,aux!$AL$1)))-1,"n.d.") -> n.d. | V33: =IF(INDEX($C33:$G33,1,aux!$AL$1)>0,(G33-INDEX($C33:$G33,1,aux!$AL$1))/INDEX($C33:$G33,1,aux!$AL$1),"n.d.") -> n.d. | X33: =N33-INDEX($J33:$N33,1,aux!$AL$1) -> 0 | Y33: 0 | Z33: =+IF(INDEX($J33:$N33,1,aux!$AL$1)>0,(N33/INDEX($J33:$N33,1,aux!$AL$1))^(1/($N$3-INDEX($J$3:$N$3,1,aux!$AL$1)))-1,"n.d.") -> n.d. | AA33: =IF(INDEX($J33:$N33,1,aux!$AL$1)>0,(N33-INDEX($J33:$N33,1,aux!$AL$1))/INDEX($J33:$N33,1,aux!$AL$1),"n.d.") -> n.d. | AC33: 0 | BS33: =+MATCH('5.1'!A33,AUX_2d_pais!$G$2:$G$20001,0) -> 
A34: 0391 | B34: Botswana | C34: =+SUMIF(AUX_2d_pais!$A$2:$A$28000,'5.1'!$A34&'5.1'!C$3&1,AUX_2d_pais!$J$2:$J$28000)/1000 -> 0 | D34: =+SUMIF(AUX_2d_pais!$A$2:$A$28000,'5.1'!$A34&'5.1'!D$3&1,AUX_2d_pais!$J$2:$J$28000)/1000 -> 0 | E34: =+SUMIF(AUX_2d_pais!$A$2:$A$28000,'5.1'!$A34&'5.1'!E$3&1,AUX_2d_pais!$J$2:$J$28000)/1000 -> 0 | F34: =+SUMIF(AUX_2d_pais!$A$2:$A$28000,'5.1'!$A34&'5.1'!F$3&1,AUX_2d_pais!$J$2:$J$28000)/1000 -> 0 | G34: =+SUMIF(AUX_2d_pais!$A$2:$A$28000,'5.1'!$A34&'5.1'!G$3&1,AUX_2d_pais!$J$2:$J$28000)/1000 -> 0 | H34: =SUM(C34:G34)/5 -> 0 | I34: 0 | J34: =+SUMIF(AUX_2d_pais!$A$2:$A$28000,'5.1'!$A34&'5.1'!J$3&2,AUX_2d_pais!$J$2:$J$28000)/1000 -> 0 | K34: =+SUMIF(AUX_2d_pais!$A$2:$A$28000,'5.1'!$A34&'5.1'!K$3&2,AUX_2d_pais!$J$2:$J$28000)/1000 -> 0 | L34: =+SUMIF(AUX_2d_pais!$A$2:$A$28000,'5.1'!$A34&'5.1'!L$3&2,AUX_2d_pais!$J$2:$J$28000)/1000 -> 0 | M34: =+SUMIF(AUX_2d_pais!$A$2:$A$28000,'5.1'!$A34&'5.1'!M$3&2,AUX_2d_pais!$J$2:$J$28000)/1000 -> 0 | N34: =+SUMIF(AUX_2d_pais!$A$2:$A$28000,'5.1'!$A34&'5.1'!N$3&2,AUX_2d_pais!$J$2:$J$28000)/1000 -> 0 | O34: =SUM(J34:N34)/5 -> 0 | P34: 0 | Q34: =O34-H34 -> 0 | S34: =G34-INDEX($C34:$G34,1,aux!$AL$1) -> 0 | T34: 0 | U34: =+IF(INDEX($C34:$G34,1,aux!$AL$1)>0,(G34/INDEX($C34:$G34,1,aux!$AL$1))^(1/($G$3-INDEX($C$3:$G$3,1,aux!$AL$1)))-1,"n.d.") -> n.d. | V34: =IF(INDEX($C34:$G34,1,aux!$AL$1)>0,(G34-INDEX($C34:$G34,1,aux!$AL$1))/INDEX($C34:$G34,1,aux!$AL$1),"n.d.") -> n.d. | X34: =N34-INDEX($J34:$N34,1,aux!$AL$1) -> 0 | Y34: 0 | Z34: =+IF(INDEX($J34:$N34,1,aux!$AL$1)>0,(N34/INDEX($J34:$N34,1,aux!$AL$1))^(1/($N$3-INDEX($J$3:$N$3,1,aux!$AL$1)))-1,"n.d.") -> n.d. | AA34: =IF(INDEX($J34:$N34,1,aux!$AL$1)>0,(N34-INDEX($J34:$N34,1,aux!$AL$1))/INDEX($J34:$N34,1,aux!$AL$1),"n.d.") -> n.d. | AC34: 0 | BS34: =+MATCH('5.1'!A34,AUX_2d_pais!$G$2:$G$20001,0) -> 
A35: 0892 | B35: Bouvet, Ilha | C35: =+SUMIF(AUX_2d_pais!$A$2:$A$28000,'5.1'!$A35&'5.1'!C$3&1,AUX_2d_pais!$J$2:$J$28000)/1000 -> 0 | D35: =+SUMIF(AUX_2d_pais!$A$2:$A$28000,'5.1'!$A35&'5.1'!D$3&1,AUX_2d_pais!$J$2:$J$28000)/1000 -> 0 | E35: =+SUMIF(AUX_2d_pais!$A$2:$A$28000,'5.1'!$A35&'5.1'!E$3&1,AUX_2d_pais!$J$2:$J$28000)/1000 -> 0 | F35: =+SUMIF(AUX_2d_pais!$A$2:$A$28000,'5.1'!$A35&'5.1'!F$3&1,AUX_2d_pais!$J$2:$J$28000)/1000 -> 0 | G35: =+SUMIF(AUX_2d_pais!$A$2:$A$28000,'5.1'!$A35&'5.1'!G$3&1,AUX_2d_pais!$J$2:$J$28000)/1000 -> 0 | H35: =SUM(C35:G35)/5 -> 0 | I35: 0 | J35: =+SUMIF(AUX_2d_pais!$A$2:$A$28000,'5.1'!$A35&'5.1'!J$3&2,AUX_2d_pais!$J$2:$J$28000)/1000 -> 0 | K35: =+SUMIF(AUX_2d_pais!$A$2:$A$28000,'5.1'!$A35&'5.1'!K$3&2,AUX_2d_pais!$J$2:$J$28000)/1000 -> 0 | L35: =+SUMIF(AUX_2d_pais!$A$2:$A$28000,'5.1'!$A35&'5.1'!L$3&2,AUX_2d_pais!$J$2:$J$28000)/1000 -> 0 | M35: =+SUMIF(AUX_2d_pais!$A$2:$A$28000,'5.1'!$A35&'5.1'!M$3&2,AUX_2d_pais!$J$2:$J$28000)/1000 -> 0 | N35: =+SUMIF(AUX_2d_pais!$A$2:$A$28000,'5.1'!$A35&'5.1'!N$3&2,AUX_2d_pais!$J$2:$J$28000)/1000 -> 0 | O35: =SUM(J35:N35)/5 -> 0 | P35: 0 | Q35: 0 | S35: =G35-INDEX($C35:$G35,1,aux!$AL$1) -> 0 | T35: 0 | U35: =+IF(INDEX($C35:$G35,1,aux!$AL$1)>0,(G35/INDEX($C35:$G35,1,aux!$AL$1))^(1/($G$3-INDEX($C$3:$G$3,1,aux!$AL$1)))-1,"n.d.") -> n.d. | V35: =IF(INDEX($C35:$G35,1,aux!$AL$1)>0,(G35-INDEX($C35:$G35,1,aux!$AL$1))/INDEX($C35:$G35,1,aux!$AL$1),"n.d.") -> n.d. | X35: =N35-INDEX($J35:$N35,1,aux!$AL$1) -> 0 | Y35: 0 | Z35: =+IF(INDEX($J35:$N35,1,aux!$AL$1)>0,(N35/INDEX($J35:$N35,1,aux!$AL$1))^(1/($N$3-INDEX($J$3:$N$3,1,aux!$AL$1)))-1,"n.d.") -> n.d. | AA35: =IF(INDEX($J35:$N35,1,aux!$AL$1)>0,(N35-INDEX($J35:$N35,1,aux!$AL$1))/INDEX($J35:$N35,1,aux!$AL$1),"n.d.") -> n.d. | AC35: 0 | BS35: =+MATCH('5.1'!A35,AUX_2d_pais!$G$2:$G$20001,0) -> 
A36: 0508 | B36: Brasil | C36: =+SUMIF(AUX_2d_pais!$A$2:$A$28000,'5.1'!$A36&'5.1'!C$3&1,AUX_2d_pais!$J$2:$J$28000)/1000 -> 0 | D36: =+SUMIF(AUX_2d_pais!$A$2:$A$28000,'5.1'!$A36&'5.1'!D$3&1,AUX_2d_pais!$J$2:$J$28000)/1000 -> 0 | E36: =+SUMIF(AUX_2d_pais!$A$2:$A$28000,'5.1'!$A36&'5.1'!E$3&1,AUX_2d_pais!$J$2:$J$28000)/1000 -> 0 | F36: =+SUMIF(AUX_2d_pais!$A$2:$A$28000,'5.1'!$A36&'5.1'!F$3&1,AUX_2d_pais!$J$2:$J$28000)/1000 -> 0 | G36: =+SUMIF(AUX_2d_pais!$A$2:$A$28000,'5.1'!$A36&'5.1'!G$3&1,AUX_2d_pais!$J$2:$J$28000)/1000 -> 0 | H36: 0 | I36: =H36/$H$254 -> 0 | J36: =+SUMIF(AUX_2d_pais!$A$2:$A$28000,'5.1'!$A36&'5.1'!J$3&2,AUX_2d_pais!$J$2:$J$28000)/1000 -> 0 | K36: =+SUMIF(AUX_2d_pais!$A$2:$A$28000,'5.1'!$A36&'5.1'!K$3&2,AUX_2d_pais!$J$2:$J$28000)/1000 -> 0 | L36: =+SUMIF(AUX_2d_pais!$A$2:$A$28000,'5.1'!$A36&'5.1'!L$3&2,AUX_2d_pais!$J$2:$J$28000)/1000 -> 0 | M36: =+SUMIF(AUX_2d_pais!$A$2:$A$28000,'5.1'!$A36&'5.1'!M$3&2,AUX_2d_pais!$J$2:$J$28000)/1000 -> 0 | N36: =+SUMIF(AUX_2d_pais!$A$2:$A$28000,'5.1'!$A36&'5.1'!N$3&2,AUX_2d_pais!$J$2:$J$28000)/1000 -> 0 | O36: 0 | P36: =O36/$O$254 -> 0 | Q36: 0 | S36: =G36-INDEX($C36:$G36,1,aux!$AL$1) -> 0 | T36: =S36/$S$254 -> 0 | U36: =+IF(INDEX($C36:$G36,1,aux!$AL$1)>0,(G36/INDEX($C36:$G36,1,aux!$AL$1))^(1/($G$3-INDEX($C$3:$G$3,1,aux!$AL$1)))-1,"n.d.") -> n.d. | V36: =IF(INDEX($C36:$G36,1,aux!$AL$1)>0,(G36-INDEX($C36:$G36,1,aux!$AL$1))/INDEX($C36:$G36,1,aux!$AL$1),"n.d.") -> n.d. | X36: =N36-INDEX($J36:$N36,1,aux!$AL$1) -> 0 | Y36: =X36/$X$254 -> 0 | Z36: =+IF(INDEX($J36:$N36,1,aux!$AL$1)>0,(N36/INDEX($J36:$N36,1,aux!$AL$1))^(1/($N$3-INDEX($J$3:$N$3,1,aux!$AL$1)))-1,"n.d.") -> n.d. | AA36: =IF(INDEX($J36:$N36,1,aux!$AL$1)>0,(N36-INDEX($J36:$N36,1,aux!$AL$1))/INDEX($J36:$N36,1,aux!$AL$1),"n.d.") -> n.d. | AC36: 0 | BS36: =+MATCH('5.1'!A36,AUX_2d_pais!$G$2:$G$20001,0) -> 
A37: 0703 | B37: Brunei Darussalam | C37: =+SUMIF(AUX_2d_pais!$A$2:$A$28000,'5.1'!$A37&'5.1'!C$3&1,AUX_2d_pais!$J$2:$J$28000)/1000 -> 0 | D37: =+SUMIF(AUX_2d_pais!$A$2:$A$28000,'5.1'!$A37&'5.1'!D$3&1,AUX_2d_pais!$J$2:$J$28000)/1000 -> 0 | E37: =+SUMIF(AUX_2d_pais!$A$2:$A$28000,'5.1'!$A37&'5.1'!E$3&1,AUX_2d_pais!$J$2:$J$28000)/1000 -> 0 | F37: =+SUMIF(AUX_2d_pais!$A$2:$A$28000,'5.1'!$A37&'5.1'!F$3&1,AUX_2d_pais!$J$2:$J$28000)/1000 -> 0 | G37: =+SUMIF(AUX_2d_pais!$A$2:$A$28000,'5.1'!$A37&'5.1'!G$3&1,AUX_2d_pais!$J$2:$J$28000)/1000 -> 0 | H37: 0 | I37: 0 | J37: =+SUMIF(AUX_2d_pais!$A$2:$A$28000,'5.1'!$A37&'5.1'!J$3&2,AUX_2d_pais!$J$2:$J$28000)/1000 -> 0 | K37: =+SUMIF(AUX_2d_pais!$A$2:$A$28000,'5.1'!$A37&'5.1'!K$3&2,AUX_2d_pais!$J$2:$J$28000)/1000 -> 0 | L37: =+SUMIF(AUX_2d_pais!$A$2:$A$28000,'5.1'!$A37&'5.1'!L$3&2,AUX_2d_pais!$J$2:$J$28000)/1000 -> 0 | M37: =+SUMIF(AUX_2d_pais!$A$2:$A$28000,'5.1'!$A37&'5.1'!M$3&2,AUX_2d_pais!$J$2:$J$28000)/1000 -> 0 | N37: =+SUMIF(AUX_2d_pais!$A$2:$A$28000,'5.1'!$A37&'5.1'!N$3&2,AUX_2d_pais!$J$2:$J$28000)/1000 -> 0 | O37: 0 | P37: 0 | Q37: 0 | S37: =G37-INDEX($C37:$G37,1,aux!$AL$1) -> 0 | T37: 0 | U37: =+IF(INDEX($C37:$G37,1,aux!$AL$1)>0,(G37/INDEX($C37:$G37,1,aux!$AL$1))^(1/($G$3-INDEX($C$3:$G$3,1,aux!$AL$1)))-1,"n.d.") -> n.d. | V37: =IF(INDEX($C37:$G37,1,aux!$AL$1)>0,(G37-INDEX($C37:$G37,1,aux!$AL$1))/INDEX($C37:$G37,1,aux!$AL$1),"n.d.") -> n.d. | X37: =N37-INDEX($J37:$N37,1,aux!$AL$1) -> 0 | Y37: 0 | Z37: =+IF(INDEX($J37:$N37,1,aux!$AL$1)>0,(N37/INDEX($J37:$N37,1,aux!$AL$1))^(1/($N$3-INDEX($J$3:$N$3,1,aux!$AL$1)))-1,"n.d.") -> n.d. | AA37: =IF(INDEX($J37:$N37,1,aux!$AL$1)>0,(N37-INDEX($J37:$N37,1,aux!$AL$1))/INDEX($J37:$N37,1,aux!$AL$1),"n.d.") -> n.d. | AC37: 0 | BS37: =+MATCH('5.1'!A37,AUX_2d_pais!$G$2:$G$20001,0) -> 
A38: 0068 | B38: Bulgária | C38: =+SUMIF(AUX_2d_pais!$A$2:$A$28000,'5.1'!$A38&'5.1'!C$3&1,AUX_2d_pais!$J$2:$J$28000)/1000 -> 73213.317 | D38: =+SUMIF(AUX_2d_pais!$A$2:$A$28000,'5.1'!$A38&'5.1'!D$3&1,AUX_2d_pais!$J$2:$J$28000)/1000 -> 47808.413 | E38: =+SUMIF(AUX_2d_pais!$A$2:$A$28000,'5.1'!$A38&'5.1'!E$3&1,AUX_2d_pais!$J$2:$J$28000)/1000 -> 47544.932 | F38: =+SUMIF(AUX_2d_pais!$A$2:$A$28000,'5.1'!$A38&'5.1'!F$3&1,AUX_2d_pais!$J$2:$J$28000)/1000 -> 25649.976 | G38: =+SUMIF(AUX_2d_pais!$A$2:$A$28000,'5.1'!$A38&'5.1'!G$3&1,AUX_2d_pais!$J$2:$J$28000)/1000 -> 26050.462 | H38: 44053.42 | I38: 0.003469388339 | J38: =+SUMIF(AUX_2d_pais!$A$2:$A$28000,'5.1'!$A38&'5.1'!J$3&2,AUX_2d_pais!$J$2:$J$28000)/1000 -> 12259.22 | K38: =+SUMIF(AUX_2d_pais!$A$2:$A$28000,'5.1'!$A38&'5.1'!K$3&2,AUX_2d_pais!$J$2:$J$28000)/1000 -> 11487.517 | L38: =+SUMIF(AUX_2d_pais!$A$2:$A$28000,'5.1'!$A38&'5.1'!L$3&2,AUX_2d_pais!$J$2:$J$28000)/1000 -> 12240.468 | M38: =+SUMIF(AUX_2d_pais!$A$2:$A$28000,'5.1'!$A38&'5.1'!M$3&2,AUX_2d_pais!$J$2:$J$28000)/1000 -> 18485.041 | N38: =+SUMIF(AUX_2d_pais!$A$2:$A$28000,'5.1'!$A38&'5.1'!N$3&2,AUX_2d_pais!$J$2:$J$28000)/1000 -> 16919.226 | O38: 14278.2944 | P38: 0.001517486095 | Q38: -29775.1256 | S38: =G38-INDEX($C38:$G38,1,aux!$AL$1) -> -47162.855 | T38: -0.00952281295 | U38: =+IF(INDEX($C38:$G38,1,aux!$AL$1)>0,(G38/INDEX($C38:$G38,1,aux!$AL$1))^(1/($G$3-INDEX($C$3:$G$3,1,aux!$AL$1)))-1,"n.d.") -> -0.2276638968 | V38: =IF(INDEX($C38:$G38,1,aux!$AL$1)>0,(G38-INDEX($C38:$G38,1,aux!$AL$1))/INDEX($C38:$G38,1,aux!$AL$1),"n.d.") -> -0.6441841038 | X38: =N38-INDEX($J38:$N38,1,aux!$AL$1) -> 4660.006 | Y38: 0.001340140232 | Z38: =+IF(INDEX($J38:$N38,1,aux!$AL$1)>0,(N38/INDEX($J38:$N38,1,aux!$AL$1))^(1/($N$3-INDEX($J$3:$N$3,1,aux!$AL$1)))-1,"n.d.") -> 0.08387553398 | AA38: =IF(INDEX($J38:$N38,1,aux!$AL$1)>0,(N38-INDEX($J38:$N38,1,aux!$AL$1))/INDEX($J38:$N38,1,aux!$AL$1),"n.d.") -> 0.3801225527 | BS38: =+MATCH('5.1'!A38,AUX_2d_pais!$G$2:$G$20001,0) -> 113
A39: 0236 | B39: Burquina Faso | C39: =+SUMIF(AUX_2d_pais!$A$2:$A$28000,'5.1'!$A39&'5.1'!C$3&1,AUX_2d_pais!$J$2:$J$28000)/1000 -> 0 | D39: =+SUMIF(AUX_2d_pais!$A$2:$A$28000,'5.1'!$A39&'5.1'!D$3&1,AUX_2d_pais!$J$2:$J$28000)/1000 -> 0 | E39: =+SUMIF(AUX_2d_pais!$A$2:$A$28000,'5.1'!$A39&'5.1'!E$3&1,AUX_2d_pais!$J$2:$J$28000)/1000 -> 0 | F39: =+SUMIF(AUX_2d_pais!$A$2:$A$28000,'5.1'!$A39&'5.1'!F$3&1,AUX_2d_pais!$J$2:$J$28000)/1000 -> 0 | G39: =+SUMIF(AUX_2d_pais!$A$2:$A$28000,'5.1'!$A39&'5.1'!G$3&1,AUX_2d_pais!$J$2:$J$28000)/1000 -> 0 | H39: =SUM(C39:G39)/5 -> 0 | I39: 0 | J39: =+SUMIF(AUX_2d_pais!$A$2:$A$28000,'5.1'!$A39&'5.1'!J$3&2,AUX_2d_pais!$J$2:$J$28000)/1000 -> 0 | K39: =+SUMIF(AUX_2d_pais!$A$2:$A$28000,'5.1'!$A39&'5.1'!K$3&2,AUX_2d_pais!$J$2:$J$28000)/1000 -> 0 | L39: =+SUMIF(AUX_2d_pais!$A$2:$A$28000,'5.1'!$A39&'5.1'!L$3&2,AUX_2d_pais!$J$2:$J$28000)/1000 -> 0 | M39: =+SUMIF(AUX_2d_pais!$A$2:$A$28000,'5.1'!$A39&'5.1'!M$3&2,AUX_2d_pais!$J$2:$J$28000)/1000 -> 0 | N39: =+SUMIF(AUX_2d_pais!$A$2:$A$28000,'5.1'!$A39&'5.1'!N$3&2,AUX_2d_pais!$J$2:$J$28000)/1000 -> 0 | O39: =SUM(J39:N39)/5 -> 0 | P39: 0 | Q39: =O39-H39 -> 0 | S39: =G39-INDEX($C39:$G39,1,aux!$AL$1) -> 0 | T39: 0 | U39: =+IF(INDEX($C39:$G39,1,aux!$AL$1)>0,(G39/INDEX($C39:$G39,1,aux!$AL$1))^(1/($G$3-INDEX($C$3:$G$3,1,aux!$AL$1)))-1,"n.d.") -> n.d. | V39: =IF(INDEX($C39:$G39,1,aux!$AL$1)>0,(G39-INDEX($C39:$G39,1,aux!$AL$1))/INDEX($C39:$G39,1,aux!$AL$1),"n.d.") -> n.d. | X39: =N39-INDEX($J39:$N39,1,aux!$AL$1) -> 0 | Y39: 0 | Z39: =+IF(INDEX($J39:$N39,1,aux!$AL$1)>0,(N39/INDEX($J39:$N39,1,aux!$AL$1))^(1/($N$3-INDEX($J$3:$N$3,1,aux!$AL$1)))-1,"n.d.") -> n.d. | AA39: =IF(INDEX($J39:$N39,1,aux!$AL$1)>0,(N39-INDEX($J39:$N39,1,aux!$AL$1))/INDEX($J39:$N39,1,aux!$AL$1),"n.d.") -> n.d. | AC39: 0 | BS39: =+MATCH('5.1'!A39,AUX_2d_pais!$G$2:$G$20001,0) -> 
A40: 0328 | B40: Burundi | C40: =+SUMIF(AUX_2d_pais!$A$2:$A$28000,'5.1'!$A40&'5.1'!C$3&1,AUX_2d_pais!$J$2:$J$28000)/1000 -> 0 | D40: =+SUMIF(AUX_2d_pais!$A$2:$A$28000,'5.1'!$A40&'5.1'!D$3&1,AUX_2d_pais!$J$2:$J$28000)/1000 -> 0 | E40: =+SUMIF(AUX_2d_pais!$A$2:$A$28000,'5.1'!$A40&'5.1'!E$3&1,AUX_2d_pais!$J$2:$J$28000)/1000 -> 0 | F40: =+SUMIF(AUX_2d_pais!$A$2:$A$28000,'5.1'!$A40&'5.1'!F$3&1,AUX_2d_pais!$J$2:$J$28000)/1000 -> 0 | G40: =+SUMIF(AUX_2d_pais!$A$2:$A$28000,'5.1'!$A40&'5.1'!G$3&1,AUX_2d_pais!$J$2:$J$28000)/1000 -> 0 | H40: 0 | I40: 0 | J40: =+SUMIF(AUX_2d_pais!$A$2:$A$28000,'5.1'!$A40&'5.1'!J$3&2,AUX_2d_pais!$J$2:$J$28000)/1000 -> 0 | K40: =+SUMIF(AUX_2d_pais!$A$2:$A$28000,'5.1'!$A40&'5.1'!K$3&2,AUX_2d_pais!$J$2:$J$28000)/1000 -> 0 | L40: =+SUMIF(AUX_2d_pais!$A$2:$A$28000,'5.1'!$A40&'5.1'!L$3&2,AUX_2d_pais!$J$2:$J$28000)/1000 -> 0 | M40: =+SUMIF(AUX_2d_pais!$A$2:$A$28000,'5.1'!$A40&'5.1'!M$3&2,AUX_2d_pais!$J$2:$J$28000)/1000 -> 0 | N40: =+SUMIF(AUX_2d_pais!$A$2:$A$28000,'5.1'!$A40&'5.1'!N$3&2,AUX_2d_pais!$J$2:$J$28000)/1000 -> 0 | O40: 0 | P40: 0 | Q40: 0 | S40: =G40-INDEX($C40:$G40,1,aux!$AL$1) -> 0 | T40: 0 | U40: =+IF(INDEX($C40:$G40,1,aux!$AL$1)>0,(G40/INDEX($C40:$G40,1,aux!$AL$1))^(1/($G$3-INDEX($C$3:$G$3,1,aux!$AL$1)))-1,"n.d.") -> n.d. | V40: =IF(INDEX($C40:$G40,1,aux!$AL$1)>0,(G40-INDEX($C40:$G40,1,aux!$AL$1))/INDEX($C40:$G40,1,aux!$AL$1),"n.d.") -> n.d. | X40: =N40-INDEX($J40:$N40,1,aux!$AL$1) -> 0 | Y40: 0 | Z40: =+IF(INDEX($J40:$N40,1,aux!$AL$1)>0,(N40/INDEX($J40:$N40,1,aux!$AL$1))^(1/($N$3-INDEX($J$3:$N$3,1,aux!$AL$1)))-1,"n.d.") -> n.d. | AA40: =IF(INDEX($J40:$N40,1,aux!$AL$1)>0,(N40-INDEX($J40:$N40,1,aux!$AL$1))/INDEX($J40:$N40,1,aux!$AL$1),"n.d.") -> n.d. | AC40: 0 | BS40: =+MATCH('5.1'!A40,AUX_2d_pais!$G$2:$G$20001,0) -> 
A41: 0675 | B41: Butão | C41: =+SUMIF(AUX_2d_pais!$A$2:$A$28000,'5.1'!$A41&'5.1'!C$3&1,AUX_2d_pais!$J$2:$J$28000)/1000 -> 0 | D41: =+SUMIF(AUX_2d_pais!$A$2:$A$28000,'5.1'!$A41&'5.1'!D$3&1,AUX_2d_pais!$J$2:$J$28000)/1000 -> 0 | E41: =+SUMIF(AUX_2d_pais!$A$2:$A$28000,'5.1'!$A41&'5.1'!E$3&1,AUX_2d_pais!$J$2:$J$28000)/1000 -> 0 | F41: =+SUMIF(AUX_2d_pais!$A$2:$A$28000,'5.1'!$A41&'5.1'!F$3&1,AUX_2d_pais!$J$2:$J$28000)/1000 -> 0 | G41: =+SUMIF(AUX_2d_pais!$A$2:$A$28000,'5.1'!$A41&'5.1'!G$3&1,AUX_2d_pais!$J$2:$J$28000)/1000 -> 0 | H41: 0 | I41: 0 | J41: =+SUMIF(AUX_2d_pais!$A$2:$A$28000,'5.1'!$A41&'5.1'!J$3&2,AUX_2d_pais!$J$2:$J$28000)/1000 -> 0 | K41: =+SUMIF(AUX_2d_pais!$A$2:$A$28000,'5.1'!$A41&'5.1'!K$3&2,AUX_2d_pais!$J$2:$J$28000)/1000 -> 0 | L41: =+SUMIF(AUX_2d_pais!$A$2:$A$28000,'5.1'!$A41&'5.1'!L$3&2,AUX_2d_pais!$J$2:$J$28000)/1000 -> 0 | M41: =+SUMIF(AUX_2d_pais!$A$2:$A$28000,'5.1'!$A41&'5.1'!M$3&2,AUX_2d_pais!$J$2:$J$28000)/1000 -> 0 | N41: =+SUMIF(AUX_2d_pais!$A$2:$A$28000,'5.1'!$A41&'5.1'!N$3&2,AUX_2d_pais!$J$2:$J$28000)/1000 -> 0 | O41: 0 | P41: 0 | Q41: 0 | S41: =G41-INDEX($C41:$G41,1,aux!$AL$1) -> 0 | T41: 0 | U41: =+IF(INDEX($C41:$G41,1,aux!$AL$1)>0,(G41/INDEX($C41:$G41,1,aux!$AL$1))^(1/($G$3-INDEX($C$3:$G$3,1,aux!$AL$1)))-1,"n.d.") -> n.d. | V41: =IF(INDEX($C41:$G41,1,aux!$AL$1)>0,(G41-INDEX($C41:$G41,1,aux!$AL$1))/INDEX($C41:$G41,1,aux!$AL$1),"n.d.") -> n.d. | X41: =N41-INDEX($J41:$N41,1,aux!$AL$1) -> 0 | Y41: 0 | Z41: =+IF(INDEX($J41:$N41,1,aux!$AL$1)>0,(N41/INDEX($J41:$N41,1,aux!$AL$1))^(1/($N$3-INDEX($J$3:$N$3,1,aux!$AL$1)))-1,"n.d.") -> n.d. | AA41: =IF(INDEX($J41:$N41,1,aux!$AL$1)>0,(N41-INDEX($J41:$N41,1,aux!$AL$1))/INDEX($J41:$N41,1,aux!$AL$1),"n.d.") -> n.d. | AC41: 0 | BS41: =+MATCH('5.1'!A41,AUX_2d_pais!$G$2:$G$20001,0) -> 
A42: 0247 | B42: Cabo Verde | C42: =+SUMIF(AUX_2d_pais!$A$2:$A$28000,'5.1'!$A42&'5.1'!C$3&1,AUX_2d_pais!$J$2:$J$28000)/1000 -> 0 | D42: =+SUMIF(AUX_2d_pais!$A$2:$A$28000,'5.1'!$A42&'5.1'!D$3&1,AUX_2d_pais!$J$2:$J$28000)/1000 -> 0 | E42: =+SUMIF(AUX_2d_pais!$A$2:$A$28000,'5.1'!$A42&'5.1'!E$3&1,AUX_2d_pais!$J$2:$J$28000)/1000 -> 0 | F42: =+SUMIF(AUX_2d_pais!$A$2:$A$28000,'5.1'!$A42&'5.1'!F$3&1,AUX_2d_pais!$J$2:$J$28000)/1000 -> 0 | G42: =+SUMIF(AUX_2d_pais!$A$2:$A$28000,'5.1'!$A42&'5.1'!G$3&1,AUX_2d_pais!$J$2:$J$28000)/1000 -> 0 | H42: 0 | I42: 0 | J42: =+SUMIF(AUX_2d_pais!$A$2:$A$28000,'5.1'!$A42&'5.1'!J$3&2,AUX_2d_pais!$J$2:$J$28000)/1000 -> 0 | K42: =+SUMIF(AUX_2d_pais!$A$2:$A$28000,'5.1'!$A42&'5.1'!K$3&2,AUX_2d_pais!$J$2:$J$28000)/1000 -> 0 | L42: =+SUMIF(AUX_2d_pais!$A$2:$A$28000,'5.1'!$A42&'5.1'!L$3&2,AUX_2d_pais!$J$2:$J$28000)/1000 -> 0 | M42: =+SUMIF(AUX_2d_pais!$A$2:$A$28000,'5.1'!$A42&'5.1'!M$3&2,AUX_2d_pais!$J$2:$J$28000)/1000 -> 0 | N42: =+SUMIF(AUX_2d_pais!$A$2:$A$28000,'5.1'!$A42&'5.1'!N$3&2,AUX_2d_pais!$J$2:$J$28000)/1000 -> 0 | O42: 0 | P42: 0 | Q42: 0 | S42: =G42-INDEX($C42:$G42,1,aux!$AL$1) -> 0 | T42: 0 | U42: =+IF(INDEX($C42:$G42,1,aux!$AL$1)>0,(G42/INDEX($C42:$G42,1,aux!$AL$1))^(1/($G$3-INDEX($C$3:$G$3,1,aux!$AL$1)))-1,"n.d.") -> n.d. | V42: =IF(INDEX($C42:$G42,1,aux!$AL$1)>0,(G42-INDEX($C42:$G42,1,aux!$AL$1))/INDEX($C42:$G42,1,aux!$AL$1),"n.d.") -> n.d. | X42: =N42-INDEX($J42:$N42,1,aux!$AL$1) -> 0 | Y42: 0 | Z42: =+IF(INDEX($J42:$N42,1,aux!$AL$1)>0,(N42/INDEX($J42:$N42,1,aux!$AL$1))^(1/($N$3-INDEX($J$3:$N$3,1,aux!$AL$1)))-1,"n.d.") -> n.d. | AA42: =IF(INDEX($J42:$N42,1,aux!$AL$1)>0,(N42-INDEX($J42:$N42,1,aux!$AL$1))/INDEX($J42:$N42,1,aux!$AL$1),"n.d.") -> n.d. | AC42: 0 | BS42: =+MATCH('5.1'!A42,AUX_2d_pais!$G$2:$G$20001,0) -> 
A43: 0463 | B43: Caimão, Ilhas | C43: =+SUMIF(AUX_2d_pais!$A$2:$A$28000,'5.1'!$A43&'5.1'!C$3&1,AUX_2d_pais!$J$2:$J$28000)/1000 -> 0 | D43: =+SUMIF(AUX_2d_pais!$A$2:$A$28000,'5.1'!$A43&'5.1'!D$3&1,AUX_2d_pais!$J$2:$J$28000)/1000 -> 0 | E43: =+SUMIF(AUX_2d_pais!$A$2:$A$28000,'5.1'!$A43&'5.1'!E$3&1,AUX_2d_pais!$J$2:$J$28000)/1000 -> 0 | F43: =+SUMIF(AUX_2d_pais!$A$2:$A$28000,'5.1'!$A43&'5.1'!F$3&1,AUX_2d_pais!$J$2:$J$28000)/1000 -> 0 | G43: =+SUMIF(AUX_2d_pais!$A$2:$A$28000,'5.1'!$A43&'5.1'!G$3&1,AUX_2d_pais!$J$2:$J$28000)/1000 -> 0 | H43: 0 | I43: 0 | J43: =+SUMIF(AUX_2d_pais!$A$2:$A$28000,'5.1'!$A43&'5.1'!J$3&2,AUX_2d_pais!$J$2:$J$28000)/1000 -> 0 | K43: =+SUMIF(AUX_2d_pais!$A$2:$A$28000,'5.1'!$A43&'5.1'!K$3&2,AUX_2d_pais!$J$2:$J$28000)/1000 -> 0 | L43: =+SUMIF(AUX_2d_pais!$A$2:$A$28000,'5.1'!$A43&'5.1'!L$3&2,AUX_2d_pais!$J$2:$J$28000)/1000 -> 0 | M43: =+SUMIF(AUX_2d_pais!$A$2:$A$28000,'5.1'!$A43&'5.1'!M$3&2,AUX_2d_pais!$J$2:$J$28000)/1000 -> 0 | N43: =+SUMIF(AUX_2d_pais!$A$2:$A$28000,'5.1'!$A43&'5.1'!N$3&2,AUX_2d_pais!$J$2:$J$28000)/1000 -> 0 | O43: 0 | P43: 0 | Q43: 0 | S43: =G43-INDEX($C43:$G43,1,aux!$AL$1) -> 0 | T43: 0 | U43: =+IF(INDEX($C43:$G43,1,aux!$AL$1)>0,(G43/INDEX($C43:$G43,1,aux!$AL$1))^(1/($G$3-INDEX($C$3:$G$3,1,aux!$AL$1)))-1,"n.d.") -> n.d. | V43: =IF(INDEX($C43:$G43,1,aux!$AL$1)>0,(G43-INDEX($C43:$G43,1,aux!$AL$1))/INDEX($C43:$G43,1,aux!$AL$1),"n.d.") -> n.d. | X43: =N43-INDEX($J43:$N43,1,aux!$AL$1) -> 0 | Y43: 0 | Z43: =+IF(INDEX($J43:$N43,1,aux!$AL$1)>0,(N43/INDEX($J43:$N43,1,aux!$AL$1))^(1/($N$3-INDEX($J$3:$N$3,1,aux!$AL$1)))-1,"n.d.") -> n.d. | AA43: =IF(INDEX($J43:$N43,1,aux!$AL$1)>0,(N43-INDEX($J43:$N43,1,aux!$AL$1))/INDEX($J43:$N43,1,aux!$AL$1),"n.d.") -> n.d. | AC43: 0 | BS43: =+MATCH('5.1'!A43,AUX_2d_pais!$G$2:$G$20001,0) -> 
A44: 0302 | B44: Camarões | C44: =+SUMIF(AUX_2d_pais!$A$2:$A$28000,'5.1'!$A44&'5.1'!C$3&1,AUX_2d_pais!$J$2:$J$28000)/1000 -> 0 | D44: =+SUMIF(AUX_2d_pais!$A$2:$A$28000,'5.1'!$A44&'5.1'!D$3&1,AUX_2d_pais!$J$2:$J$28000)/1000 -> 0 | E44: =+SUMIF(AUX_2d_pais!$A$2:$A$28000,'5.1'!$A44&'5.1'!E$3&1,AUX_2d_pais!$J$2:$J$28000)/1000 -> 0 | F44: =+SUMIF(AUX_2d_pais!$A$2:$A$28000,'5.1'!$A44&'5.1'!F$3&1,AUX_2d_pais!$J$2:$J$28000)/1000 -> 0 | G44: =+SUMIF(AUX_2d_pais!$A$2:$A$28000,'5.1'!$A44&'5.1'!G$3&1,AUX_2d_pais!$J$2:$J$28000)/1000 -> 0 | H44: 0 | I44: 0 | J44: =+SUMIF(AUX_2d_pais!$A$2:$A$28000,'5.1'!$A44&'5.1'!J$3&2,AUX_2d_pais!$J$2:$J$28000)/1000 -> 0 | K44: =+SUMIF(AUX_2d_pais!$A$2:$A$28000,'5.1'!$A44&'5.1'!K$3&2,AUX_2d_pais!$J$2:$J$28000)/1000 -> 0 | L44: =+SUMIF(AUX_2d_pais!$A$2:$A$28000,'5.1'!$A44&'5.1'!L$3&2,AUX_2d_pais!$J$2:$J$28000)/1000 -> 0 | M44: =+SUMIF(AUX_2d_pais!$A$2:$A$28000,'5.1'!$A44&'5.1'!M$3&2,AUX_2d_pais!$J$2:$J$28000)/1000 -> 0 | N44: =+SUMIF(AUX_2d_pais!$A$2:$A$28000,'5.1'!$A44&'5.1'!N$3&2,AUX_2d_pais!$J$2:$J$28000)/1000 -> 0 | O44: 0 | P44: 0 | Q44: 0 | S44: =G44-INDEX($C44:$G44,1,aux!$AL$1) -> 0 | T44: 0 | U44: =+IF(INDEX($C44:$G44,1,aux!$AL$1)>0,(G44/INDEX($C44:$G44,1,aux!$AL$1))^(1/($G$3-INDEX($C$3:$G$3,1,aux!$AL$1)))-1,"n.d.") -> n.d. | V44: =IF(INDEX($C44:$G44,1,aux!$AL$1)>0,(G44-INDEX($C44:$G44,1,aux!$AL$1))/INDEX($C44:$G44,1,aux!$AL$1),"n.d.") -> n.d. | X44: =N44-INDEX($J44:$N44,1,aux!$AL$1) -> 0 | Y44: 0 | Z44: =+IF(INDEX($J44:$N44,1,aux!$AL$1)>0,(N44/INDEX($J44:$N44,1,aux!$AL$1))^(1/($N$3-INDEX($J$3:$N$3,1,aux!$AL$1)))-1,"n.d.") -> n.d. | AA44: =IF(INDEX($J44:$N44,1,aux!$AL$1)>0,(N44-INDEX($J44:$N44,1,aux!$AL$1))/INDEX($J44:$N44,1,aux!$AL$1),"n.d.") -> n.d. | AC44: 0 | BS44: =+MATCH('5.1'!A44,AUX_2d_pais!$G$2:$G$20001,0) -> 
A45: 0696 | B45: Camboja | C45: =+SUMIF(AUX_2d_pais!$A$2:$A$28000,'5.1'!$A45&'5.1'!C$3&1,AUX_2d_pais!$J$2:$J$28000)/1000 -> 0 | D45: =+SUMIF(AUX_2d_pais!$A$2:$A$28000,'5.1'!$A45&'5.1'!D$3&1,AUX_2d_pais!$J$2:$J$28000)/1000 -> 0 | E45: =+SUMIF(AUX_2d_pais!$A$2:$A$28000,'5.1'!$A45&'5.1'!E$3&1,AUX_2d_pais!$J$2:$J$28000)/1000 -> 0 | F45: =+SUMIF(AUX_2d_pais!$A$2:$A$28000,'5.1'!$A45&'5.1'!F$3&1,AUX_2d_pais!$J$2:$J$28000)/1000 -> 0 | G45: =+SUMIF(AUX_2d_pais!$A$2:$A$28000,'5.1'!$A45&'5.1'!G$3&1,AUX_2d_pais!$J$2:$J$28000)/1000 -> 0 | H45: 0 | I45: 0 | J45: =+SUMIF(AUX_2d_pais!$A$2:$A$28000,'5.1'!$A45&'5.1'!J$3&2,AUX_2d_pais!$J$2:$J$28000)/1000 -> 0 | K45: =+SUMIF(AUX_2d_pais!$A$2:$A$28000,'5.1'!$A45&'5.1'!K$3&2,AUX_2d_pais!$J$2:$J$28000)/1000 -> 0 | L45: =+SUMIF(AUX_2d_pais!$A$2:$A$28000,'5.1'!$A45&'5.1'!L$3&2,AUX_2d_pais!$J$2:$J$28000)/1000 -> 0 | M45: =+SUMIF(AUX_2d_pais!$A$2:$A$28000,'5.1'!$A45&'5.1'!M$3&2,AUX_2d_pais!$J$2:$J$28000)/1000 -> 0 | N45: =+SUMIF(AUX_2d_pais!$A$2:$A$28000,'5.1'!$A45&'5.1'!N$3&2,AUX_2d_pais!$J$2:$J$28000)/1000 -> 0 | O45: 0 | P45: 0 | Q45: 0 | S45: =G45-INDEX($C45:$G45,1,aux!$AL$1) -> 0 | T45: 0 | U45: =+IF(INDEX($C45:$G45,1,aux!$AL$1)>0,(G45/INDEX($C45:$G45,1,aux!$AL$1))^(1/($G$3-INDEX($C$3:$G$3,1,aux!$AL$1)))-1,"n.d.") -> n.d. | V45: =IF(INDEX($C45:$G45,1,aux!$AL$1)>0,(G45-INDEX($C45:$G45,1,aux!$AL$1))/INDEX($C45:$G45,1,aux!$AL$1),"n.d.") -> n.d. | X45: =N45-INDEX($J45:$N45,1,aux!$AL$1) -> 0 | Y45: 0 | Z45: =+IF(INDEX($J45:$N45,1,aux!$AL$1)>0,(N45/INDEX($J45:$N45,1,aux!$AL$1))^(1/($N$3-INDEX($J$3:$N$3,1,aux!$AL$1)))-1,"n.d.") -> n.d. | AA45: =IF(INDEX($J45:$N45,1,aux!$AL$1)>0,(N45-INDEX($J45:$N45,1,aux!$AL$1))/INDEX($J45:$N45,1,aux!$AL$1),"n.d.") -> n.d. | AC45: 0 | BS45: =+MATCH('5.1'!A45,AUX_2d_pais!$G$2:$G$20001,0) -> 
A46: 0404 | B46: Canadá | C46: =+SUMIF(AUX_2d_pais!$A$2:$A$28000,'5.1'!$A46&'5.1'!C$3&1,AUX_2d_pais!$J$2:$J$28000)/1000 -> 0 | D46: =+SUMIF(AUX_2d_pais!$A$2:$A$28000,'5.1'!$A46&'5.1'!D$3&1,AUX_2d_pais!$J$2:$J$28000)/1000 -> 0 | E46: =+SUMIF(AUX_2d_pais!$A$2:$A$28000,'5.1'!$A46&'5.1'!E$3&1,AUX_2d_pais!$J$2:$J$28000)/1000 -> 0 | F46: =+SUMIF(AUX_2d_pais!$A$2:$A$28000,'5.1'!$A46&'5.1'!F$3&1,AUX_2d_pais!$J$2:$J$28000)/1000 -> 0 | G46: =+SUMIF(AUX_2d_pais!$A$2:$A$28000,'5.1'!$A46&'5.1'!G$3&1,AUX_2d_pais!$J$2:$J$28000)/1000 -> 0 | H46: 0 | I46: 0 | J46: =+SUMIF(AUX_2d_pais!$A$2:$A$28000,'5.1'!$A46&'5.1'!J$3&2,AUX_2d_pais!$J$2:$J$28000)/1000 -> 0 | K46: =+SUMIF(AUX_2d_pais!$A$2:$A$28000,'5.1'!$A46&'5.1'!K$3&2,AUX_2d_pais!$J$2:$J$28000)/1000 -> 0 | L46: =+SUMIF(AUX_2d_pais!$A$2:$A$28000,'5.1'!$A46&'5.1'!L$3&2,AUX_2d_pais!$J$2:$J$28000)/1000 -> 0 | M46: =+SUMIF(AUX_2d_pais!$A$2:$A$28000,'5.1'!$A46&'5.1'!M$3&2,AUX_2d_pais!$J$2:$J$28000)/1000 -> 0 | N46: =+SUMIF(AUX_2d_pais!$A$2:$A$28000,'5.1'!$A46&'5.1'!N$3&2,AUX_2d_pais!$J$2:$J$28000)/1000 -> 0 | O46: 0 | P46: 0 | Q46: 0 | S46: =G46-INDEX($C46:$G46,1,aux!$AL$1) -> 0 | T46: 0 | U46: =+IF(INDEX($C46:$G46,1,aux!$AL$1)>0,(G46/INDEX($C46:$G46,1,aux!$AL$1))^(1/($G$3-INDEX($C$3:$G$3,1,aux!$AL$1)))-1,"n.d.") -> n.d. | V46: =IF(INDEX($C46:$G46,1,aux!$AL$1)>0,(G46-INDEX($C46:$G46,1,aux!$AL$1))/INDEX($C46:$G46,1,aux!$AL$1),"n.d.") -> n.d. | X46: =N46-INDEX($J46:$N46,1,aux!$AL$1) -> 0 | Y46: 0 | Z46: =+IF(INDEX($J46:$N46,1,aux!$AL$1)>0,(N46/INDEX($J46:$N46,1,aux!$AL$1))^(1/($N$3-INDEX($J$3:$N$3,1,aux!$AL$1)))-1,"n.d.") -> n.d. | AA46: =IF(INDEX($J46:$N46,1,aux!$AL$1)>0,(N46-INDEX($J46:$N46,1,aux!$AL$1))/INDEX($J46:$N46,1,aux!$AL$1),"n.d.") -> n.d. | AC46: 0 | BS46: =+MATCH('5.1'!A46,AUX_2d_pais!$G$2:$G$20001,0) -> 
A47: 0644 | B47: Catar | C47: =+SUMIF(AUX_2d_pais!$A$2:$A$28000,'5.1'!$A47&'5.1'!C$3&1,AUX_2d_pais!$J$2:$J$28000)/1000 -> 0 | D47: =+SUMIF(AUX_2d_pais!$A$2:$A$28000,'5.1'!$A47&'5.1'!D$3&1,AUX_2d_pais!$J$2:$J$28000)/1000 -> 0 | E47: =+SUMIF(AUX_2d_pais!$A$2:$A$28000,'5.1'!$A47&'5.1'!E$3&1,AUX_2d_pais!$J$2:$J$28000)/1000 -> 0 | F47: =+SUMIF(AUX_2d_pais!$A$2:$A$28000,'5.1'!$A47&'5.1'!F$3&1,AUX_2d_pais!$J$2:$J$28000)/1000 -> 0 | G47: =+SUMIF(AUX_2d_pais!$A$2:$A$28000,'5.1'!$A47&'5.1'!G$3&1,AUX_2d_pais!$J$2:$J$28000)/1000 -> 0 | H47: 0 | I47: 0 | J47: =+SUMIF(AUX_2d_pais!$A$2:$A$28000,'5.1'!$A47&'5.1'!J$3&2,AUX_2d_pais!$J$2:$J$28000)/1000 -> 0 | K47: =+SUMIF(AUX_2d_pais!$A$2:$A$28000,'5.1'!$A47&'5.1'!K$3&2,AUX_2d_pais!$J$2:$J$28000)/1000 -> 0 | L47: =+SUMIF(AUX_2d_pais!$A$2:$A$28000,'5.1'!$A47&'5.1'!L$3&2,AUX_2d_pais!$J$2:$J$28000)/1000 -> 0 | M47: =+SUMIF(AUX_2d_pais!$A$2:$A$28000,'5.1'!$A47&'5.1'!M$3&2,AUX_2d_pais!$J$2:$J$28000)/1000 -> 0 | N47: =+SUMIF(AUX_2d_pais!$A$2:$A$28000,'5.1'!$A47&'5.1'!N$3&2,AUX_2d_pais!$J$2:$J$28000)/1000 -> 0 | O47: 0 | P47: 0 | Q47: 0 | S47: =G47-INDEX($C47:$G47,1,aux!$AL$1) -> 0 | T47: 0 | U47: =+IF(INDEX($C47:$G47,1,aux!$AL$1)>0,(G47/INDEX($C47:$G47,1,aux!$AL$1))^(1/($G$3-INDEX($C$3:$G$3,1,aux!$AL$1)))-1,"n.d.") -> n.d. | V47: =IF(INDEX($C47:$G47,1,aux!$AL$1)>0,(G47-INDEX($C47:$G47,1,aux!$AL$1))/INDEX($C47:$G47,1,aux!$AL$1),"n.d.") -> n.d. | X47: =N47-INDEX($J47:$N47,1,aux!$AL$1) -> 0 | Y47: 0 | Z47: =+IF(INDEX($J47:$N47,1,aux!$AL$1)>0,(N47/INDEX($J47:$N47,1,aux!$AL$1))^(1/($N$3-INDEX($J$3:$N$3,1,aux!$AL$1)))-1,"n.d.") -> n.d. | AA47: =IF(INDEX($J47:$N47,1,aux!$AL$1)>0,(N47-INDEX($J47:$N47,1,aux!$AL$1))/INDEX($J47:$N47,1,aux!$AL$1),"n.d.") -> n.d. | AC47: 0 | BS47: =+MATCH('5.1'!A47,AUX_2d_pais!$G$2:$G$20001,0) -> 
A48: 0079 | B48: Cazaquistão | C48: =+SUMIF(AUX_2d_pais!$A$2:$A$28000,'5.1'!$A48&'5.1'!C$3&1,AUX_2d_pais!$J$2:$J$28000)/1000 -> 0 | D48: =+SUMIF(AUX_2d_pais!$A$2:$A$28000,'5.1'!$A48&'5.1'!D$3&1,AUX_2d_pais!$J$2:$J$28000)/1000 -> 0 | E48: =+SUMIF(AUX_2d_pais!$A$2:$A$28000,'5.1'!$A48&'5.1'!E$3&1,AUX_2d_pais!$J$2:$J$28000)/1000 -> 0 | F48: =+SUMIF(AUX_2d_pais!$A$2:$A$28000,'5.1'!$A48&'5.1'!F$3&1,AUX_2d_pais!$J$2:$J$28000)/1000 -> 0 | G48: =+SUMIF(AUX_2d_pais!$A$2:$A$28000,'5.1'!$A48&'5.1'!G$3&1,AUX_2d_pais!$J$2:$J$28000)/1000 -> 0 | H48: 0 | I48: 0 | J48: =+SUMIF(AUX_2d_pais!$A$2:$A$28000,'5.1'!$A48&'5.1'!J$3&2,AUX_2d_pais!$J$2:$J$28000)/1000 -> 0 | K48: =+SUMIF(AUX_2d_pais!$A$2:$A$28000,'5.1'!$A48&'5.1'!K$3&2,AUX_2d_pais!$J$2:$J$28000)/1000 -> 0 | L48: =+SUMIF(AUX_2d_pais!$A$2:$A$28000,'5.1'!$A48&'5.1'!L$3&2,AUX_2d_pais!$J$2:$J$28000)/1000 -> 0 | M48: =+SUMIF(AUX_2d_pais!$A$2:$A$28000,'5.1'!$A48&'5.1'!M$3&2,AUX_2d_pais!$J$2:$J$28000)/1000 -> 0 | N48: =+SUMIF(AUX_2d_pais!$A$2:$A$28000,'5.1'!$A48&'5.1'!N$3&2,AUX_2d_pais!$J$2:$J$28000)/1000 -> 0 | O48: 0 | P48: 0 | Q48: 0 | S48: =G48-INDEX($C48:$G48,1,aux!$AL$1) -> 0 | T48: 0 | U48: =+IF(INDEX($C48:$G48,1,aux!$AL$1)>0,(G48/INDEX($C48:$G48,1,aux!$AL$1))^(1/($G$3-INDEX($C$3:$G$3,1,aux!$AL$1)))-1,"n.d.") -> n.d. | V48: =IF(INDEX($C48:$G48,1,aux!$AL$1)>0,(G48-INDEX($C48:$G48,1,aux!$AL$1))/INDEX($C48:$G48,1,aux!$AL$1),"n.d.") -> n.d. | X48: =N48-INDEX($J48:$N48,1,aux!$AL$1) -> 0 | Y48: 0 | Z48: =+IF(INDEX($J48:$N48,1,aux!$AL$1)>0,(N48/INDEX($J48:$N48,1,aux!$AL$1))^(1/($N$3-INDEX($J$3:$N$3,1,aux!$AL$1)))-1,"n.d.") -> n.d. | AA48: =IF(INDEX($J48:$N48,1,aux!$AL$1)>0,(N48-INDEX($J48:$N48,1,aux!$AL$1))/INDEX($J48:$N48,1,aux!$AL$1),"n.d.") -> n.d. | AC48: 0 | BS48: =+MATCH('5.1'!A48,AUX_2d_pais!$G$2:$G$20001,0) -> 
A49: 0306 | B49: Centro-Africana, República | C49: =+SUMIF(AUX_2d_pais!$A$2:$A$28000,'5.1'!$A49&'5.1'!C$3&1,AUX_2d_pais!$J$2:$J$28000)/1000 -> 0 | D49: =+SUMIF(AUX_2d_pais!$A$2:$A$28000,'5.1'!$A49&'5.1'!D$3&1,AUX_2d_pais!$J$2:$J$28000)/1000 -> 0 | E49: =+SUMIF(AUX_2d_pais!$A$2:$A$28000,'5.1'!$A49&'5.1'!E$3&1,AUX_2d_pais!$J$2:$J$28000)/1000 -> 0 | F49: =+SUMIF(AUX_2d_pais!$A$2:$A$28000,'5.1'!$A49&'5.1'!F$3&1,AUX_2d_pais!$J$2:$J$28000)/1000 -> 0 | G49: =+SUMIF(AUX_2d_pais!$A$2:$A$28000,'5.1'!$A49&'5.1'!G$3&1,AUX_2d_pais!$J$2:$J$28000)/1000 -> 0 | H49: 0 | I49: 0 | J49: =+SUMIF(AUX_2d_pais!$A$2:$A$28000,'5.1'!$A49&'5.1'!J$3&2,AUX_2d_pais!$J$2:$J$28000)/1000 -> 0 | K49: =+SUMIF(AUX_2d_pais!$A$2:$A$28000,'5.1'!$A49&'5.1'!K$3&2,AUX_2d_pais!$J$2:$J$28000)/1000 -> 0 | L49: =+SUMIF(AUX_2d_pais!$A$2:$A$28000,'5.1'!$A49&'5.1'!L$3&2,AUX_2d_pais!$J$2:$J$28000)/1000 -> 0 | M49: =+SUMIF(AUX_2d_pais!$A$2:$A$28000,'5.1'!$A49&'5.1'!M$3&2,AUX_2d_pais!$J$2:$J$28000)/1000 -> 0 | N49: =+SUMIF(AUX_2d_pais!$A$2:$A$28000,'5.1'!$A49&'5.1'!N$3&2,AUX_2d_pais!$J$2:$J$28000)/1000 -> 0 | O49: 0 | P49: 0 | Q49: 0 | S49: =G49-INDEX($C49:$G49,1,aux!$AL$1) -> 0 | T49: 0 | U49: =+IF(INDEX($C49:$G49,1,aux!$AL$1)>0,(G49/INDEX($C49:$G49,1,aux!$AL$1))^(1/($G$3-INDEX($C$3:$G$3,1,aux!$AL$1)))-1,"n.d.") -> n.d. | V49: =IF(INDEX($C49:$G49,1,aux!$AL$1)>0,(G49-INDEX($C49:$G49,1,aux!$AL$1))/INDEX($C49:$G49,1,aux!$AL$1),"n.d.") -> n.d. | X49: =N49-INDEX($J49:$N49,1,aux!$AL$1) -> 0 | Y49: 0 | Z49: =+IF(INDEX($J49:$N49,1,aux!$AL$1)>0,(N49/INDEX($J49:$N49,1,aux!$AL$1))^(1/($N$3-INDEX($J$3:$N$3,1,aux!$AL$1)))-1,"n.d.") -> n.d. | AA49: =IF(INDEX($J49:$N49,1,aux!$AL$1)>0,(N49-INDEX($J49:$N49,1,aux!$AL$1))/INDEX($J49:$N49,1,aux!$AL$1),"n.d.") -> n.d. | AC49: 0 | BS49: =+MATCH('5.1'!A49,AUX_2d_pais!$G$2:$G$20001,0) -> 
A50: 0021 | B50: Ceuta | C50: =+SUMIF(AUX_2d_pais!$A$2:$A$28000,'5.1'!$A50&'5.1'!C$3&1,AUX_2d_pais!$J$2:$J$28000)/1000 -> 0 | D50: =+SUMIF(AUX_2d_pais!$A$2:$A$28000,'5.1'!$A50&'5.1'!D$3&1,AUX_2d_pais!$J$2:$J$28000)/1000 -> 0 | E50: =+SUMIF(AUX_2d_pais!$A$2:$A$28000,'5.1'!$A50&'5.1'!E$3&1,AUX_2d_pais!$J$2:$J$28000)/1000 -> 0 | F50: =+SUMIF(AUX_2d_pais!$A$2:$A$28000,'5.1'!$A50&'5.1'!F$3&1,AUX_2d_pais!$J$2:$J$28000)/1000 -> 0 | G50: =+SUMIF(AUX_2d_pais!$A$2:$A$28000,'5.1'!$A50&'5.1'!G$3&1,AUX_2d_pais!$J$2:$J$28000)/1000 -> 0 | H50: 0 | I50: 0 | J50: =+SUMIF(AUX_2d_pais!$A$2:$A$28000,'5.1'!$A50&'5.1'!J$3&2,AUX_2d_pais!$J$2:$J$28000)/1000 -> 0 | K50: =+SUMIF(AUX_2d_pais!$A$2:$A$28000,'5.1'!$A50&'5.1'!K$3&2,AUX_2d_pais!$J$2:$J$28000)/1000 -> 0 | L50: =+SUMIF(AUX_2d_pais!$A$2:$A$28000,'5.1'!$A50&'5.1'!L$3&2,AUX_2d_pais!$J$2:$J$28000)/1000 -> 0 | M50: =+SUMIF(AUX_2d_pais!$A$2:$A$28000,'5.1'!$A50&'5.1'!M$3&2,AUX_2d_pais!$J$2:$J$28000)/1000 -> 0 | N50: =+SUMIF(AUX_2d_pais!$A$2:$A$28000,'5.1'!$A50&'5.1'!N$3&2,AUX_2d_pais!$J$2:$J$28000)/1000 -> 0 | O50: 0 | P50: 0 | Q50: 0 | S50: =G50-INDEX($C50:$G50,1,aux!$AL$1) -> 0 | T50: 0 | U50: =+IF(INDEX($C50:$G50,1,aux!$AL$1)>0,(G50/INDEX($C50:$G50,1,aux!$AL$1))^(1/($G$3-INDEX($C$3:$G$3,1,aux!$AL$1)))-1,"n.d.") -> n.d. | V50: =IF(INDEX($C50:$G50,1,aux!$AL$1)>0,(G50-INDEX($C50:$G50,1,aux!$AL$1))/INDEX($C50:$G50,1,aux!$AL$1),"n.d.") -> n.d. | X50: =N50-INDEX($J50:$N50,1,aux!$AL$1) -> 0 | Y50: 0 | Z50: =+IF(INDEX($J50:$N50,1,aux!$AL$1)>0,(N50/INDEX($J50:$N50,1,aux!$AL$1))^(1/($N$3-INDEX($J$3:$N$3,1,aux!$AL$1)))-1,"n.d.") -> n.d. | AA50: =IF(INDEX($J50:$N50,1,aux!$AL$1)>0,(N50-INDEX($J50:$N50,1,aux!$AL$1))/INDEX($J50:$N50,1,aux!$AL$1),"n.d.") -> n.d. | AC50: 0 | BS50: =+MATCH('5.1'!A50,AUX_2d_pais!$G$2:$G$20001,0) -> 
A51: 0022 | B51: Ceuta e Melilha | C51: =+SUMIF(AUX_2d_pais!$A$2:$A$28000,'5.1'!$A51&'5.1'!C$3&1,AUX_2d_pais!$J$2:$J$28000)/1000 -> 0 | D51: =+SUMIF(AUX_2d_pais!$A$2:$A$28000,'5.1'!$A51&'5.1'!D$3&1,AUX_2d_pais!$J$2:$J$28000)/1000 -> 0 | E51: =+SUMIF(AUX_2d_pais!$A$2:$A$28000,'5.1'!$A51&'5.1'!E$3&1,AUX_2d_pais!$J$2:$J$28000)/1000 -> 0 | F51: =+SUMIF(AUX_2d_pais!$A$2:$A$28000,'5.1'!$A51&'5.1'!F$3&1,AUX_2d_pais!$J$2:$J$28000)/1000 -> 0 | G51: =+SUMIF(AUX_2d_pais!$A$2:$A$28000,'5.1'!$A51&'5.1'!G$3&1,AUX_2d_pais!$J$2:$J$28000)/1000 -> 0 | H51: 0 | I51: 0 | J51: =+SUMIF(AUX_2d_pais!$A$2:$A$28000,'5.1'!$A51&'5.1'!J$3&2,AUX_2d_pais!$J$2:$J$28000)/1000 -> 0 | K51: =+SUMIF(AUX_2d_pais!$A$2:$A$28000,'5.1'!$A51&'5.1'!K$3&2,AUX_2d_pais!$J$2:$J$28000)/1000 -> 0 | L51: =+SUMIF(AUX_2d_pais!$A$2:$A$28000,'5.1'!$A51&'5.1'!L$3&2,AUX_2d_pais!$J$2:$J$28000)/1000 -> 0 | M51: =+SUMIF(AUX_2d_pais!$A$2:$A$28000,'5.1'!$A51&'5.1'!M$3&2,AUX_2d_pais!$J$2:$J$28000)/1000 -> 0 | N51: =+SUMIF(AUX_2d_pais!$A$2:$A$28000,'5.1'!$A51&'5.1'!N$3&2,AUX_2d_pais!$J$2:$J$28000)/1000 -> 0 | O51: 0 | P51: 0 | Q51: 0 | S51: =G51-INDEX($C51:$G51,1,aux!$AL$1) -> 0 | T51: 0 | U51: =+IF(INDEX($C51:$G51,1,aux!$AL$1)>0,(G51/INDEX($C51:$G51,1,aux!$AL$1))^(1/($G$3-INDEX($C$3:$G$3,1,aux!$AL$1)))-1,"n.d.") -> n.d. | V51: =IF(INDEX($C51:$G51,1,aux!$AL$1)>0,(G51-INDEX($C51:$G51,1,aux!$AL$1))/INDEX($C51:$G51,1,aux!$AL$1),"n.d.") -> n.d. | X51: =N51-INDEX($J51:$N51,1,aux!$AL$1) -> 0 | Y51: 0 | Z51: =+IF(INDEX($J51:$N51,1,aux!$AL$1)>0,(N51/INDEX($J51:$N51,1,aux!$AL$1))^(1/($N$3-INDEX($J$3:$N$3,1,aux!$AL$1)))-1,"n.d.") -> n.d. | AA51: =IF(INDEX($J51:$N51,1,aux!$AL$1)>0,(N51-INDEX($J51:$N51,1,aux!$AL$1))/INDEX($J51:$N51,1,aux!$AL$1),"n.d.") -> n.d. | AC51: 0 | BS51: =+MATCH('5.1'!A51,AUX_2d_pais!$G$2:$G$20001,0) -> 
A52: 0244 | B52: Chade | C52: =+SUMIF(AUX_2d_pais!$A$2:$A$28000,'5.1'!$A52&'5.1'!C$3&1,AUX_2d_pais!$J$2:$J$28000)/1000 -> 0 | D52: =+SUMIF(AUX_2d_pais!$A$2:$A$28000,'5.1'!$A52&'5.1'!D$3&1,AUX_2d_pais!$J$2:$J$28000)/1000 -> 0 | E52: =+SUMIF(AUX_2d_pais!$A$2:$A$28000,'5.1'!$A52&'5.1'!E$3&1,AUX_2d_pais!$J$2:$J$28000)/1000 -> 0 | F52: =+SUMIF(AUX_2d_pais!$A$2:$A$28000,'5.1'!$A52&'5.1'!F$3&1,AUX_2d_pais!$J$2:$J$28000)/1000 -> 0 | G52: =+SUMIF(AUX_2d_pais!$A$2:$A$28000,'5.1'!$A52&'5.1'!G$3&1,AUX_2d_pais!$J$2:$J$28000)/1000 -> 0 | H52: 0 | I52: 0 | J52: =+SUMIF(AUX_2d_pais!$A$2:$A$28000,'5.1'!$A52&'5.1'!J$3&2,AUX_2d_pais!$J$2:$J$28000)/1000 -> 0 | K52: =+SUMIF(AUX_2d_pais!$A$2:$A$28000,'5.1'!$A52&'5.1'!K$3&2,AUX_2d_pais!$J$2:$J$28000)/1000 -> 0 | L52: =+SUMIF(AUX_2d_pais!$A$2:$A$28000,'5.1'!$A52&'5.1'!L$3&2,AUX_2d_pais!$J$2:$J$28000)/1000 -> 0 | M52: =+SUMIF(AUX_2d_pais!$A$2:$A$28000,'5.1'!$A52&'5.1'!M$3&2,AUX_2d_pais!$J$2:$J$28000)/1000 -> 0 | N52: =+SUMIF(AUX_2d_pais!$A$2:$A$28000,'5.1'!$A52&'5.1'!N$3&2,AUX_2d_pais!$J$2:$J$28000)/1000 -> 0 | O52: 0 | P52: 0 | Q52: 0 | S52: =G52-INDEX($C52:$G52,1,aux!$AL$1) -> 0 | T52: 0 | U52: =+IF(INDEX($C52:$G52,1,aux!$AL$1)>0,(G52/INDEX($C52:$G52,1,aux!$AL$1))^(1/($G$3-INDEX($C$3:$G$3,1,aux!$AL$1)))-1,"n.d.") -> n.d. | V52: =IF(INDEX($C52:$G52,1,aux!$AL$1)>0,(G52-INDEX($C52:$G52,1,aux!$AL$1))/INDEX($C52:$G52,1,aux!$AL$1),"n.d.") -> n.d. | X52: =N52-INDEX($J52:$N52,1,aux!$AL$1) -> 0 | Y52: 0 | Z52: =+IF(INDEX($J52:$N52,1,aux!$AL$1)>0,(N52/INDEX($J52:$N52,1,aux!$AL$1))^(1/($N$3-INDEX($J$3:$N$3,1,aux!$AL$1)))-1,"n.d.") -> n.d. | AA52: =IF(INDEX($J52:$N52,1,aux!$AL$1)>0,(N52-INDEX($J52:$N52,1,aux!$AL$1))/INDEX($J52:$N52,1,aux!$AL$1),"n.d.") -> n.d. | AC52: 0 | BS52: =+MATCH('5.1'!A52,AUX_2d_pais!$G$2:$G$20001,0) -> 
A53: 0061 | B53: Checa, República | C53: =+SUMIF(AUX_2d_pais!$A$2:$A$28000,'5.1'!$A53&'5.1'!C$3&1,AUX_2d_pais!$J$2:$J$28000)/1000 -> 34687.447 | D53: =+SUMIF(AUX_2d_pais!$A$2:$A$28000,'5.1'!$A53&'5.1'!D$3&1,AUX_2d_pais!$J$2:$J$28000)/1000 -> 32916.293 | E53: =+SUMIF(AUX_2d_pais!$A$2:$A$28000,'5.1'!$A53&'5.1'!E$3&1,AUX_2d_pais!$J$2:$J$28000)/1000 -> 34404.038 | F53: =+SUMIF(AUX_2d_pais!$A$2:$A$28000,'5.1'!$A53&'5.1'!F$3&1,AUX_2d_pais!$J$2:$J$28000)/1000 -> 47436.195 | G53: =+SUMIF(AUX_2d_pais!$A$2:$A$28000,'5.1'!$A53&'5.1'!G$3&1,AUX_2d_pais!$J$2:$J$28000)/1000 -> 50865.581 | H53: 40061.9108 | I53: 0.003155040543 | J53: =+SUMIF(AUX_2d_pais!$A$2:$A$28000,'5.1'!$A53&'5.1'!J$3&2,AUX_2d_pais!$J$2:$J$28000)/1000 -> 26418.331 | K53: =+SUMIF(AUX_2d_pais!$A$2:$A$28000,'5.1'!$A53&'5.1'!K$3&2,AUX_2d_pais!$J$2:$J$28000)/1000 -> 29375.99 | L53: =+SUMIF(AUX_2d_pais!$A$2:$A$28000,'5.1'!$A53&'5.1'!L$3&2,AUX_2d_pais!$J$2:$J$28000)/1000 -> 31211.441 | M53: =+SUMIF(AUX_2d_pais!$A$2:$A$28000,'5.1'!$A53&'5.1'!M$3&2,AUX_2d_pais!$J$2:$J$28000)/1000 -> 34241.823 | N53: =+SUMIF(AUX_2d_pais!$A$2:$A$28000,'5.1'!$A53&'5.1'!N$3&2,AUX_2d_pais!$J$2:$J$28000)/1000 -> 32459.726 | O53: 30741.4622 | P53: 0.003267178846 | Q53: -9320.4486 | S53: =G53-INDEX($C53:$G53,1,aux!$AL$1) -> 16178.134 | T53: 0.003266582228 | U53: =+IF(INDEX($C53:$G53,1,aux!$AL$1)>0,(G53/INDEX($C53:$G53,1,aux!$AL$1))^(1/($G$3-INDEX($C$3:$G$3,1,aux!$AL$1)))-1,"n.d.") -> 0.1004312581 | V53: =IF(INDEX($C53:$G53,1,aux!$AL$1)>0,(G53-INDEX($C53:$G53,1,aux!$AL$1))/INDEX($C53:$G53,1,aux!$AL$1),"n.d.") -> 0.4663973685 | X53: =N53-INDEX($J53:$N53,1,aux!$AL$1) -> 6041.395 | Y53: 0.001737404737 | Z53: =+IF(INDEX($J53:$N53,1,aux!$AL$1)>0,(N53/INDEX($J53:$N53,1,aux!$AL$1))^(1/($N$3-INDEX($J$3:$N$3,1,aux!$AL$1)))-1,"n.d.") -> 0.05283391894 | AA53: =IF(INDEX($J53:$N53,1,aux!$AL$1)>0,(N53-INDEX($J53:$N53,1,aux!$AL$1))/INDEX($J53:$N53,1,aux!$AL$1),"n.d.") -> 0.228681933 | BS53: =+MATCH('5.1'!A53,AUX_2d_pais!$G$2:$G$20001,0) -> 101
A54: 0512 | B54: Chile | C54: =+SUMIF(AUX_2d_pais!$A$2:$A$28000,'5.1'!$A54&'5.1'!C$3&1,AUX_2d_pais!$J$2:$J$28000)/1000 -> 0 | D54: =+SUMIF(AUX_2d_pais!$A$2:$A$28000,'5.1'!$A54&'5.1'!D$3&1,AUX_2d_pais!$J$2:$J$28000)/1000 -> 0 | E54: =+SUMIF(AUX_2d_pais!$A$2:$A$28000,'5.1'!$A54&'5.1'!E$3&1,AUX_2d_pais!$J$2:$J$28000)/1000 -> 0 | F54: =+SUMIF(AUX_2d_pais!$A$2:$A$28000,'5.1'!$A54&'5.1'!F$3&1,AUX_2d_pais!$J$2:$J$28000)/1000 -> 0 | G54: =+SUMIF(AUX_2d_pais!$A$2:$A$28000,'5.1'!$A54&'5.1'!G$3&1,AUX_2d_pais!$J$2:$J$28000)/1000 -> 0 | H54: 0 | I54: 0 | J54: =+SUMIF(AUX_2d_pais!$A$2:$A$28000,'5.1'!$A54&'5.1'!J$3&2,AUX_2d_pais!$J$2:$J$28000)/1000 -> 0 | K54: =+SUMIF(AUX_2d_pais!$A$2:$A$28000,'5.1'!$A54&'5.1'!K$3&2,AUX_2d_pais!$J$2:$J$28000)/1000 -> 0 | L54: =+SUMIF(AUX_2d_pais!$A$2:$A$28000,'5.1'!$A54&'5.1'!L$3&2,AUX_2d_pais!$J$2:$J$28000)/1000 -> 0 | M54: =+SUMIF(AUX_2d_pais!$A$2:$A$28000,'5.1'!$A54&'5.1'!M$3&2,AUX_2d_pais!$J$2:$J$28000)/1000 -> 0 | N54: =+SUMIF(AUX_2d_pais!$A$2:$A$28000,'5.1'!$A54&'5.1'!N$3&2,AUX_2d_pais!$J$2:$J$28000)/1000 -> 0 | O54: 0 | P54: 0 | Q54: 0 | S54: =G54-INDEX($C54:$G54,1,aux!$AL$1) -> 0 | T54: 0 | U54: =+IF(INDEX($C54:$G54,1,aux!$AL$1)>0,(G54/INDEX($C54:$G54,1,aux!$AL$1))^(1/($G$3-INDEX($C$3:$G$3,1,aux!$AL$1)))-1,"n.d.") -> n.d. | V54: =IF(INDEX($C54:$G54,1,aux!$AL$1)>0,(G54-INDEX($C54:$G54,1,aux!$AL$1))/INDEX($C54:$G54,1,aux!$AL$1),"n.d.") -> n.d. | X54: =N54-INDEX($J54:$N54,1,aux!$AL$1) -> 0 | Y54: 0 | Z54: =+IF(INDEX($J54:$N54,1,aux!$AL$1)>0,(N54/INDEX($J54:$N54,1,aux!$AL$1))^(1/($N$3-INDEX($J$3:$N$3,1,aux!$AL$1)))-1,"n.d.") -> n.d. | AA54: =IF(INDEX($J54:$N54,1,aux!$AL$1)>0,(N54-INDEX($J54:$N54,1,aux!$AL$1))/INDEX($J54:$N54,1,aux!$AL$1),"n.d.") -> n.d. | AC54: 0 | BS54: =+MATCH('5.1'!A54,AUX_2d_pais!$G$2:$G$20001,0) -> 
A55: 0720 | B55: China, República Popular da | C55: =+SUMIF(AUX_2d_pais!$A$2:$A$28000,'5.1'!$A55&'5.1'!C$3&1,AUX_2d_pais!$J$2:$J$28000)/1000 -> 0 | D55: =+SUMIF(AUX_2d_pais!$A$2:$A$28000,'5.1'!$A55&'5.1'!D$3&1,AUX_2d_pais!$J$2:$J$28000)/1000 -> 0 | E55: =+SUMIF(AUX_2d_pais!$A$2:$A$28000,'5.1'!$A55&'5.1'!E$3&1,AUX_2d_pais!$J$2:$J$28000)/1000 -> 0 | F55: =+SUMIF(AUX_2d_pais!$A$2:$A$28000,'5.1'!$A55&'5.1'!F$3&1,AUX_2d_pais!$J$2:$J$28000)/1000 -> 0 | G55: =+SUMIF(AUX_2d_pais!$A$2:$A$28000,'5.1'!$A55&'5.1'!G$3&1,AUX_2d_pais!$J$2:$J$28000)/1000 -> 0 | H55: 0 | I55: 0 | J55: =+SUMIF(AUX_2d_pais!$A$2:$A$28000,'5.1'!$A55&'5.1'!J$3&2,AUX_2d_pais!$J$2:$J$28000)/1000 -> 0 | K55: =+SUMIF(AUX_2d_pais!$A$2:$A$28000,'5.1'!$A55&'5.1'!K$3&2,AUX_2d_pais!$J$2:$J$28000)/1000 -> 0 | L55: =+SUMIF(AUX_2d_pais!$A$2:$A$28000,'5.1'!$A55&'5.1'!L$3&2,AUX_2d_pais!$J$2:$J$28000)/1000 -> 0 | M55: =+SUMIF(AUX_2d_pais!$A$2:$A$28000,'5.1'!$A55&'5.1'!M$3&2,AUX_2d_pais!$J$2:$J$28000)/1000 -> 0 | N55: =+SUMIF(AUX_2d_pais!$A$2:$A$28000,'5.1'!$A55&'5.1'!N$3&2,AUX_2d_pais!$J$2:$J$28000)/1000 -> 0 | O55: 0 | P55: 0 | Q55: 0 | S55: =G55-INDEX($C55:$G55,1,aux!$AL$1) -> 0 | T55: 0 | U55: =+IF(INDEX($C55:$G55,1,aux!$AL$1)>0,(G55/INDEX($C55:$G55,1,aux!$AL$1))^(1/($G$3-INDEX($C$3:$G$3,1,aux!$AL$1)))-1,"n.d.") -> n.d. | V55: =IF(INDEX($C55:$G55,1,aux!$AL$1)>0,(G55-INDEX($C55:$G55,1,aux!$AL$1))/INDEX($C55:$G55,1,aux!$AL$1),"n.d.") -> n.d. | X55: =N55-INDEX($J55:$N55,1,aux!$AL$1) -> 0 | Y55: 0 | Z55: =+IF(INDEX($J55:$N55,1,aux!$AL$1)>0,(N55/INDEX($J55:$N55,1,aux!$AL$1))^(1/($N$3-INDEX($J$3:$N$3,1,aux!$AL$1)))-1,"n.d.") -> n.d. | AA55: =IF(INDEX($J55:$N55,1,aux!$AL$1)>0,(N55-INDEX($J55:$N55,1,aux!$AL$1))/INDEX($J55:$N55,1,aux!$AL$1),"n.d.") -> n.d. | AC55: 0 | BS55: =+MATCH('5.1'!A55,AUX_2d_pais!$G$2:$G$20001,0) -> 
A56: 0600 | B56: Chipre | C56: =+SUMIF(AUX_2d_pais!$A$2:$A$28000,'5.1'!$A56&'5.1'!C$3&1,AUX_2d_pais!$J$2:$J$28000)/1000 -> 2627.962 | D56: =+SUMIF(AUX_2d_pais!$A$2:$A$28000,'5.1'!$A56&'5.1'!D$3&1,AUX_2d_pais!$J$2:$J$28000)/1000 -> 1426.092 | E56: =+SUMIF(AUX_2d_pais!$A$2:$A$28000,'5.1'!$A56&'5.1'!E$3&1,AUX_2d_pais!$J$2:$J$28000)/1000 -> 2589.576 | F56: =+SUMIF(AUX_2d_pais!$A$2:$A$28000,'5.1'!$A56&'5.1'!F$3&1,AUX_2d_pais!$J$2:$J$28000)/1000 -> 9596.493 | G56: =+SUMIF(AUX_2d_pais!$A$2:$A$28000,'5.1'!$A56&'5.1'!G$3&1,AUX_2d_pais!$J$2:$J$28000)/1000 -> 4953.226 | H56: 4238.6698 | I56: 0.0003338127114 | J56: =+SUMIF(AUX_2d_pais!$A$2:$A$28000,'5.1'!$A56&'5.1'!J$3&2,AUX_2d_pais!$J$2:$J$28000)/1000 -> 9464.278 | K56: =+SUMIF(AUX_2d_pais!$A$2:$A$28000,'5.1'!$A56&'5.1'!K$3&2,AUX_2d_pais!$J$2:$J$28000)/1000 -> 6613.452 | L56: =+SUMIF(AUX_2d_pais!$A$2:$A$28000,'5.1'!$A56&'5.1'!L$3&2,AUX_2d_pais!$J$2:$J$28000)/1000 -> 10683.219 | M56: =+SUMIF(AUX_2d_pais!$A$2:$A$28000,'5.1'!$A56&'5.1'!M$3&2,AUX_2d_pais!$J$2:$J$28000)/1000 -> 13427.568 | N56: =+SUMIF(AUX_2d_pais!$A$2:$A$28000,'5.1'!$A56&'5.1'!N$3&2,AUX_2d_pais!$J$2:$J$28000)/1000 -> 13528.877 | O56: 10743.4788 | P56: 0.001141808624 | Q56: 6504.809 | S56: =G56-INDEX($C56:$G56,1,aux!$AL$1) -> 2325.264 | T56: 0.0004695019869 | U56: =+IF(INDEX($C56:$G56,1,aux!$AL$1)>0,(G56/INDEX($C56:$G56,1,aux!$AL$1))^(1/($G$3-INDEX($C$3:$G$3,1,aux!$AL$1)))-1,"n.d.") -> 0.1717022549 | V56: =IF(INDEX($C56:$G56,1,aux!$AL$1)>0,(G56-INDEX($C56:$G56,1,aux!$AL$1))/INDEX($C56:$G56,1,aux!$AL$1),"n.d.") -> 0.8848164471 | X56: =N56-INDEX($J56:$N56,1,aux!$AL$1) -> 4064.599 | Y56: 0.00116891108 | Z56: =+IF(INDEX($J56:$N56,1,aux!$AL$1)>0,(N56/INDEX($J56:$N56,1,aux!$AL$1))^(1/($N$3-INDEX($J$3:$N$3,1,aux!$AL$1)))-1,"n.d.") -> 0.09343649485 | AA56: =IF(INDEX($J56:$N56,1,aux!$AL$1)>0,(N56-INDEX($J56:$N56,1,aux!$AL$1))/INDEX($J56:$N56,1,aux!$AL$1),"n.d.") -> 0.4294674142 | BS56: =+MATCH('5.1'!A56,AUX_2d_pais!$G$2:$G$20001,0) -> 114
A57: 0834 | B57: Christmas, Ilha | C57: =+SUMIF(AUX_2d_pais!$A$2:$A$28000,'5.1'!$A57&'5.1'!C$3&1,AUX_2d_pais!$J$2:$J$28000)/1000 -> 0 | D57: =+SUMIF(AUX_2d_pais!$A$2:$A$28000,'5.1'!$A57&'5.1'!D$3&1,AUX_2d_pais!$J$2:$J$28000)/1000 -> 0 | E57: =+SUMIF(AUX_2d_pais!$A$2:$A$28000,'5.1'!$A57&'5.1'!E$3&1,AUX_2d_pais!$J$2:$J$28000)/1000 -> 0 | F57: =+SUMIF(AUX_2d_pais!$A$2:$A$28000,'5.1'!$A57&'5.1'!F$3&1,AUX_2d_pais!$J$2:$J$28000)/1000 -> 0 | G57: =+SUMIF(AUX_2d_pais!$A$2:$A$28000,'5.1'!$A57&'5.1'!G$3&1,AUX_2d_pais!$J$2:$J$28000)/1000 -> 0 | H57: 0 | I57: 0 | J57: =+SUMIF(AUX_2d_pais!$A$2:$A$28000,'5.1'!$A57&'5.1'!J$3&2,AUX_2d_pais!$J$2:$J$28000)/1000 -> 0 | K57: =+SUMIF(AUX_2d_pais!$A$2:$A$28000,'5.1'!$A57&'5.1'!K$3&2,AUX_2d_pais!$J$2:$J$28000)/1000 -> 0 | L57: =+SUMIF(AUX_2d_pais!$A$2:$A$28000,'5.1'!$A57&'5.1'!L$3&2,AUX_2d_pais!$J$2:$J$28000)/1000 -> 0 | M57: =+SUMIF(AUX_2d_pais!$A$2:$A$28000,'5.1'!$A57&'5.1'!M$3&2,AUX_2d_pais!$J$2:$J$28000)/1000 -> 0 | N57: =+SUMIF(AUX_2d_pais!$A$2:$A$28000,'5.1'!$A57&'5.1'!N$3&2,AUX_2d_pais!$J$2:$J$28000)/1000 -> 0 | O57: 0 | P57: 0 | Q57: 0 | S57: =G57-INDEX($C57:$G57,1,aux!$AL$1) -> 0 | T57: 0 | U57: =+IF(INDEX($C57:$G57,1,aux!$AL$1)>0,(G57/INDEX($C57:$G57,1,aux!$AL$1))^(1/($G$3-INDEX($C$3:$G$3,1,aux!$AL$1)))-1,"n.d.") -> n.d. | V57: =IF(INDEX($C57:$G57,1,aux!$AL$1)>0,(G57-INDEX($C57:$G57,1,aux!$AL$1))/INDEX($C57:$G57,1,aux!$AL$1),"n.d.") -> n.d. | X57: =N57-INDEX($J57:$N57,1,aux!$AL$1) -> 0 | Y57: 0 | Z57: =+IF(INDEX($J57:$N57,1,aux!$AL$1)>0,(N57/INDEX($J57:$N57,1,aux!$AL$1))^(1/($N$3-INDEX($J$3:$N$3,1,aux!$AL$1)))-1,"n.d.") -> n.d. | AA57: =IF(INDEX($J57:$N57,1,aux!$AL$1)>0,(N57-INDEX($J57:$N57,1,aux!$AL$1))/INDEX($J57:$N57,1,aux!$AL$1),"n.d.") -> n.d. | AC57: 0 | BS57: =+MATCH('5.1'!A57,AUX_2d_pais!$G$2:$G$20001,0) -> 
A58: 0833 | B58: Cocos (Keeling), Ilhas | C58: =+SUMIF(AUX_2d_pais!$A$2:$A$28000,'5.1'!$A58&'5.1'!C$3&1,AUX_2d_pais!$J$2:$J$28000)/1000 -> 0 | D58: =+SUMIF(AUX_2d_pais!$A$2:$A$28000,'5.1'!$A58&'5.1'!D$3&1,AUX_2d_pais!$J$2:$J$28000)/1000 -> 0 | E58: =+SUMIF(AUX_2d_pais!$A$2:$A$28000,'5.1'!$A58&'5.1'!E$3&1,AUX_2d_pais!$J$2:$J$28000)/1000 -> 0 | F58: =+SUMIF(AUX_2d_pais!$A$2:$A$28000,'5.1'!$A58&'5.1'!F$3&1,AUX_2d_pais!$J$2:$J$28000)/1000 -> 0 | G58: =+SUMIF(AUX_2d_pais!$A$2:$A$28000,'5.1'!$A58&'5.1'!G$3&1,AUX_2d_pais!$J$2:$J$28000)/1000 -> 0 | H58: 0 | I58: 0 | J58: =+SUMIF(AUX_2d_pais!$A$2:$A$28000,'5.1'!$A58&'5.1'!J$3&2,AUX_2d_pais!$J$2:$J$28000)/1000 -> 0 | K58: =+SUMIF(AUX_2d_pais!$A$2:$A$28000,'5.1'!$A58&'5.1'!K$3&2,AUX_2d_pais!$J$2:$J$28000)/1000 -> 0 | L58: =+SUMIF(AUX_2d_pais!$A$2:$A$28000,'5.1'!$A58&'5.1'!L$3&2,AUX_2d_pais!$J$2:$J$28000)/1000 -> 0 | M58: =+SUMIF(AUX_2d_pais!$A$2:$A$28000,'5.1'!$A58&'5.1'!M$3&2,AUX_2d_pais!$J$2:$J$28000)/1000 -> 0 | N58: =+SUMIF(AUX_2d_pais!$A$2:$A$28000,'5.1'!$A58&'5.1'!N$3&2,AUX_2d_pais!$J$2:$J$28000)/1000 -> 0 | O58: 0 | P58: 0 | Q58: 0 | S58: =G58-INDEX($C58:$G58,1,aux!$AL$1) -> 0 | T58: 0 | U58: =+IF(INDEX($C58:$G58,1,aux!$AL$1)>0,(G58/INDEX($C58:$G58,1,aux!$AL$1))^(1/($G$3-INDEX($C$3:$G$3,1,aux!$AL$1)))-1,"n.d.") -> n.d. | V58: =IF(INDEX($C58:$G58,1,aux!$AL$1)>0,(G58-INDEX($C58:$G58,1,aux!$AL$1))/INDEX($C58:$G58,1,aux!$AL$1),"n.d.") -> n.d. | X58: =N58-INDEX($J58:$N58,1,aux!$AL$1) -> 0 | Y58: 0 | Z58: =+IF(INDEX($J58:$N58,1,aux!$AL$1)>0,(N58/INDEX($J58:$N58,1,aux!$AL$1))^(1/($N$3-INDEX($J$3:$N$3,1,aux!$AL$1)))-1,"n.d.") -> n.d. | AA58: =IF(INDEX($J58:$N58,1,aux!$AL$1)>0,(N58-INDEX($J58:$N58,1,aux!$AL$1))/INDEX($J58:$N58,1,aux!$AL$1),"n.d.") -> n.d. | AC58: 0 | BS58: =+MATCH('5.1'!A58,AUX_2d_pais!$G$2:$G$20001,0) -> 
A59: 0480 | B59: Colômbia | C59: =+SUMIF(AUX_2d_pais!$A$2:$A$28000,'5.1'!$A59&'5.1'!C$3&1,AUX_2d_pais!$J$2:$J$28000)/1000 -> 0 | D59: =+SUMIF(AUX_2d_pais!$A$2:$A$28000,'5.1'!$A59&'5.1'!D$3&1,AUX_2d_pais!$J$2:$J$28000)/1000 -> 0 | E59: =+SUMIF(AUX_2d_pais!$A$2:$A$28000,'5.1'!$A59&'5.1'!E$3&1,AUX_2d_pais!$J$2:$J$28000)/1000 -> 0 | F59: =+SUMIF(AUX_2d_pais!$A$2:$A$28000,'5.1'!$A59&'5.1'!F$3&1,AUX_2d_pais!$J$2:$J$28000)/1000 -> 0 | G59: =+SUMIF(AUX_2d_pais!$A$2:$A$28000,'5.1'!$A59&'5.1'!G$3&1,AUX_2d_pais!$J$2:$J$28000)/1000 -> 0 | H59: 0 | I59: 0 | J59: =+SUMIF(AUX_2d_pais!$A$2:$A$28000,'5.1'!$A59&'5.1'!J$3&2,AUX_2d_pais!$J$2:$J$28000)/1000 -> 0 | K59: =+SUMIF(AUX_2d_pais!$A$2:$A$28000,'5.1'!$A59&'5.1'!K$3&2,AUX_2d_pais!$J$2:$J$28000)/1000 -> 0 | L59: =+SUMIF(AUX_2d_pais!$A$2:$A$28000,'5.1'!$A59&'5.1'!L$3&2,AUX_2d_pais!$J$2:$J$28000)/1000 -> 0 | M59: =+SUMIF(AUX_2d_pais!$A$2:$A$28000,'5.1'!$A59&'5.1'!M$3&2,AUX_2d_pais!$J$2:$J$28000)/1000 -> 0 | N59: =+SUMIF(AUX_2d_pais!$A$2:$A$28000,'5.1'!$A59&'5.1'!N$3&2,AUX_2d_pais!$J$2:$J$28000)/1000 -> 0 | O59: 0 | P59: 0 | Q59: 0 | S59: =G59-INDEX($C59:$G59,1,aux!$AL$1) -> 0 | T59: 0 | U59: =+IF(INDEX($C59:$G59,1,aux!$AL$1)>0,(G59/INDEX($C59:$G59,1,aux!$AL$1))^(1/($G$3-INDEX($C$3:$G$3,1,aux!$AL$1)))-1,"n.d.") -> n.d. | V59: =IF(INDEX($C59:$G59,1,aux!$AL$1)>0,(G59-INDEX($C59:$G59,1,aux!$AL$1))/INDEX($C59:$G59,1,aux!$AL$1),"n.d.") -> n.d. | X59: =N59-INDEX($J59:$N59,1,aux!$AL$1) -> 0 | Y59: 0 | Z59: =+IF(INDEX($J59:$N59,1,aux!$AL$1)>0,(N59/INDEX($J59:$N59,1,aux!$AL$1))^(1/($N$3-INDEX($J$3:$N$3,1,aux!$AL$1)))-1,"n.d.") -> n.d. | AA59: =IF(INDEX($J59:$N59,1,aux!$AL$1)>0,(N59-INDEX($J59:$N59,1,aux!$AL$1))/INDEX($J59:$N59,1,aux!$AL$1),"n.d.") -> n.d. | AC59: 0 | BS59: =+MATCH('5.1'!A59,AUX_2d_pais!$G$2:$G$20001,0) -> 
A60: 0375 | B60: Comores | C60: =+SUMIF(AUX_2d_pais!$A$2:$A$28000,'5.1'!$A60&'5.1'!C$3&1,AUX_2d_pais!$J$2:$J$28000)/1000 -> 0 | D60: =+SUMIF(AUX_2d_pais!$A$2:$A$28000,'5.1'!$A60&'5.1'!D$3&1,AUX_2d_pais!$J$2:$J$28000)/1000 -> 0 | E60: =+SUMIF(AUX_2d_pais!$A$2:$A$28000,'5.1'!$A60&'5.1'!E$3&1,AUX_2d_pais!$J$2:$J$28000)/1000 -> 0 | F60: =+SUMIF(AUX_2d_pais!$A$2:$A$28000,'5.1'!$A60&'5.1'!F$3&1,AUX_2d_pais!$J$2:$J$28000)/1000 -> 0 | G60: =+SUMIF(AUX_2d_pais!$A$2:$A$28000,'5.1'!$A60&'5.1'!G$3&1,AUX_2d_pais!$J$2:$J$28000)/1000 -> 0 | H60: 0 | I60: 0 | J60: =+SUMIF(AUX_2d_pais!$A$2:$A$28000,'5.1'!$A60&'5.1'!J$3&2,AUX_2d_pais!$J$2:$J$28000)/1000 -> 0 | K60: =+SUMIF(AUX_2d_pais!$A$2:$A$28000,'5.1'!$A60&'5.1'!K$3&2,AUX_2d_pais!$J$2:$J$28000)/1000 -> 0 | L60: =+SUMIF(AUX_2d_pais!$A$2:$A$28000,'5.1'!$A60&'5.1'!L$3&2,AUX_2d_pais!$J$2:$J$28000)/1000 -> 0 | M60: =+SUMIF(AUX_2d_pais!$A$2:$A$28000,'5.1'!$A60&'5.1'!M$3&2,AUX_2d_pais!$J$2:$J$28000)/1000 -> 0 | N60: =+SUMIF(AUX_2d_pais!$A$2:$A$28000,'5.1'!$A60&'5.1'!N$3&2,AUX_2d_pais!$J$2:$J$28000)/1000 -> 0 | O60: 0 | P60: 0 | Q60: 0 | S60: =G60-INDEX($C60:$G60,1,aux!$AL$1) -> 0 | T60: 0 | U60: =+IF(INDEX($C60:$G60,1,aux!$AL$1)>0,(G60/INDEX($C60:$G60,1,aux!$AL$1))^(1/($G$3-INDEX($C$3:$G$3,1,aux!$AL$1)))-1,"n.d.") -> n.d. | V60: =IF(INDEX($C60:$G60,1,aux!$AL$1)>0,(G60-INDEX($C60:$G60,1,aux!$AL$1))/INDEX($C60:$G60,1,aux!$AL$1),"n.d.") -> n.d. | X60: =N60-INDEX($J60:$N60,1,aux!$AL$1) -> 0 | Y60: 0 | Z60: =+IF(INDEX($J60:$N60,1,aux!$AL$1)>0,(N60/INDEX($J60:$N60,1,aux!$AL$1))^(1/($N$3-INDEX($J$3:$N$3,1,aux!$AL$1)))-1,"n.d.") -> n.d. | AA60: =IF(INDEX($J60:$N60,1,aux!$AL$1)>0,(N60-INDEX($J60:$N60,1,aux!$AL$1))/INDEX($J60:$N60,1,aux!$AL$1),"n.d.") -> n.d. | AC60: 0 | BS60: =+MATCH('5.1'!A60,AUX_2d_pais!$G$2:$G$20001,0) -> 
A61: 0318 | B61: Congo | C61: =+SUMIF(AUX_2d_pais!$A$2:$A$28000,'5.1'!$A61&'5.1'!C$3&1,AUX_2d_pais!$J$2:$J$28000)/1000 -> 0 | D61: =+SUMIF(AUX_2d_pais!$A$2:$A$28000,'5.1'!$A61&'5.1'!D$3&1,AUX_2d_pais!$J$2:$J$28000)/1000 -> 0 | E61: =+SUMIF(AUX_2d_pais!$A$2:$A$28000,'5.1'!$A61&'5.1'!E$3&1,AUX_2d_pais!$J$2:$J$28000)/1000 -> 0 | F61: =+SUMIF(AUX_2d_pais!$A$2:$A$28000,'5.1'!$A61&'5.1'!F$3&1,AUX_2d_pais!$J$2:$J$28000)/1000 -> 0 | G61: =+SUMIF(AUX_2d_pais!$A$2:$A$28000,'5.1'!$A61&'5.1'!G$3&1,AUX_2d_pais!$J$2:$J$28000)/1000 -> 0 | H61: 0 | I61: 0 | J61: =+SUMIF(AUX_2d_pais!$A$2:$A$28000,'5.1'!$A61&'5.1'!J$3&2,AUX_2d_pais!$J$2:$J$28000)/1000 -> 0 | K61: =+SUMIF(AUX_2d_pais!$A$2:$A$28000,'5.1'!$A61&'5.1'!K$3&2,AUX_2d_pais!$J$2:$J$28000)/1000 -> 0 | L61: =+SUMIF(AUX_2d_pais!$A$2:$A$28000,'5.1'!$A61&'5.1'!L$3&2,AUX_2d_pais!$J$2:$J$28000)/1000 -> 0 | M61: =+SUMIF(AUX_2d_pais!$A$2:$A$28000,'5.1'!$A61&'5.1'!M$3&2,AUX_2d_pais!$J$2:$J$28000)/1000 -> 0 | N61: =+SUMIF(AUX_2d_pais!$A$2:$A$28000,'5.1'!$A61&'5.1'!N$3&2,AUX_2d_pais!$J$2:$J$28000)/1000 -> 0 | O61: 0 | P61: 0 | Q61: 0 | S61: =G61-INDEX($C61:$G61,1,aux!$AL$1) -> 0 | T61: 0 | U61: =+IF(INDEX($C61:$G61,1,aux!$AL$1)>0,(G61/INDEX($C61:$G61,1,aux!$AL$1))^(1/($G$3-INDEX($C$3:$G$3,1,aux!$AL$1)))-1,"n.d.") -> n.d. | V61: =IF(INDEX($C61:$G61,1,aux!$AL$1)>0,(G61-INDEX($C61:$G61,1,aux!$AL$1))/INDEX($C61:$G61,1,aux!$AL$1),"n.d.") -> n.d. | X61: =N61-INDEX($J61:$N61,1,aux!$AL$1) -> 0 | Y61: 0 | Z61: =+IF(INDEX($J61:$N61,1,aux!$AL$1)>0,(N61/INDEX($J61:$N61,1,aux!$AL$1))^(1/($N$3-INDEX($J$3:$N$3,1,aux!$AL$1)))-1,"n.d.") -> n.d. | AA61: =IF(INDEX($J61:$N61,1,aux!$AL$1)>0,(N61-INDEX($J61:$N61,1,aux!$AL$1))/INDEX($J61:$N61,1,aux!$AL$1),"n.d.") -> n.d. | AC61: 0 | BS61: =+MATCH('5.1'!A61,AUX_2d_pais!$G$2:$G$20001,0) -> 
A62: 0322 | B62: Congo, República Democrática do | C62: =+SUMIF(AUX_2d_pais!$A$2:$A$28000,'5.1'!$A62&'5.1'!C$3&1,AUX_2d_pais!$J$2:$J$28000)/1000 -> 0 | D62: =+SUMIF(AUX_2d_pais!$A$2:$A$28000,'5.1'!$A62&'5.1'!D$3&1,AUX_2d_pais!$J$2:$J$28000)/1000 -> 0 | E62: =+SUMIF(AUX_2d_pais!$A$2:$A$28000,'5.1'!$A62&'5.1'!E$3&1,AUX_2d_pais!$J$2:$J$28000)/1000 -> 0 | F62: =+SUMIF(AUX_2d_pais!$A$2:$A$28000,'5.1'!$A62&'5.1'!F$3&1,AUX_2d_pais!$J$2:$J$28000)/1000 -> 0 | G62: =+SUMIF(AUX_2d_pais!$A$2:$A$28000,'5.1'!$A62&'5.1'!G$3&1,AUX_2d_pais!$J$2:$J$28000)/1000 -> 0 | H62: =SUM(C62:G62)/5 -> 0 | I62: 0 | J62: =+SUMIF(AUX_2d_pais!$A$2:$A$28000,'5.1'!$A62&'5.1'!J$3&2,AUX_2d_pais!$J$2:$J$28000)/1000 -> 0 | K62: =+SUMIF(AUX_2d_pais!$A$2:$A$28000,'5.1'!$A62&'5.1'!K$3&2,AUX_2d_pais!$J$2:$J$28000)/1000 -> 0 | L62: =+SUMIF(AUX_2d_pais!$A$2:$A$28000,'5.1'!$A62&'5.1'!L$3&2,AUX_2d_pais!$J$2:$J$28000)/1000 -> 0 | M62: =+SUMIF(AUX_2d_pais!$A$2:$A$28000,'5.1'!$A62&'5.1'!M$3&2,AUX_2d_pais!$J$2:$J$28000)/1000 -> 0 | N62: =+SUMIF(AUX_2d_pais!$A$2:$A$28000,'5.1'!$A62&'5.1'!N$3&2,AUX_2d_pais!$J$2:$J$28000)/1000 -> 0 | O62: =SUM(J62:N62)/5 -> 0 | P62: 0 | Q62: =O62-H62 -> 0 | S62: =G62-INDEX($C62:$G62,1,aux!$AL$1) -> 0 | T62: 0 | U62: =+IF(INDEX($C62:$G62,1,aux!$AL$1)>0,(G62/INDEX($C62:$G62,1,aux!$AL$1))^(1/($G$3-INDEX($C$3:$G$3,1,aux!$AL$1)))-1,"n.d.") -> n.d. | V62: =IF(INDEX($C62:$G62,1,aux!$AL$1)>0,(G62-INDEX($C62:$G62,1,aux!$AL$1))/INDEX($C62:$G62,1,aux!$AL$1),"n.d.") -> n.d. | X62: =N62-INDEX($J62:$N62,1,aux!$AL$1) -> 0 | Y62: 0 | Z62: =+IF(INDEX($J62:$N62,1,aux!$AL$1)>0,(N62/INDEX($J62:$N62,1,aux!$AL$1))^(1/($N$3-INDEX($J$3:$N$3,1,aux!$AL$1)))-1,"n.d.") -> n.d. | AA62: =IF(INDEX($J62:$N62,1,aux!$AL$1)>0,(N62-INDEX($J62:$N62,1,aux!$AL$1))/INDEX($J62:$N62,1,aux!$AL$1),"n.d.") -> n.d. | AC62: 0 | BS62: =+MATCH('5.1'!A62,AUX_2d_pais!$G$2:$G$20001,0) -> 
A63: 0837 | B63: Cook, Ilhas | C63: =+SUMIF(AUX_2d_pais!$A$2:$A$28000,'5.1'!$A63&'5.1'!C$3&1,AUX_2d_pais!$J$2:$J$28000)/1000 -> 0 | D63: =+SUMIF(AUX_2d_pais!$A$2:$A$28000,'5.1'!$A63&'5.1'!D$3&1,AUX_2d_pais!$J$2:$J$28000)/1000 -> 0 | E63: =+SUMIF(AUX_2d_pais!$A$2:$A$28000,'5.1'!$A63&'5.1'!E$3&1,AUX_2d_pais!$J$2:$J$28000)/1000 -> 0 | F63: =+SUMIF(AUX_2d_pais!$A$2:$A$28000,'5.1'!$A63&'5.1'!F$3&1,AUX_2d_pais!$J$2:$J$28000)/1000 -> 0 | G63: =+SUMIF(AUX_2d_pais!$A$2:$A$28000,'5.1'!$A63&'5.1'!G$3&1,AUX_2d_pais!$J$2:$J$28000)/1000 -> 0 | H63: 0 | I63: 0 | J63: =+SUMIF(AUX_2d_pais!$A$2:$A$28000,'5.1'!$A63&'5.1'!J$3&2,AUX_2d_pais!$J$2:$J$28000)/1000 -> 0 | K63: =+SUMIF(AUX_2d_pais!$A$2:$A$28000,'5.1'!$A63&'5.1'!K$3&2,AUX_2d_pais!$J$2:$J$28000)/1000 -> 0 | L63: =+SUMIF(AUX_2d_pais!$A$2:$A$28000,'5.1'!$A63&'5.1'!L$3&2,AUX_2d_pais!$J$2:$J$28000)/1000 -> 0 | M63: =+SUMIF(AUX_2d_pais!$A$2:$A$28000,'5.1'!$A63&'5.1'!M$3&2,AUX_2d_pais!$J$2:$J$28000)/1000 -> 0 | N63: =+SUMIF(AUX_2d_pais!$A$2:$A$28000,'5.1'!$A63&'5.1'!N$3&2,AUX_2d_pais!$J$2:$J$28000)/1000 -> 0 | O63: 0 | P63: 0 | Q63: 0 | S63: =G63-INDEX($C63:$G63,1,aux!$AL$1) -> 0 | T63: 0 | U63: =+IF(INDEX($C63:$G63,1,aux!$AL$1)>0,(G63/INDEX($C63:$G63,1,aux!$AL$1))^(1/($G$3-INDEX($C$3:$G$3,1,aux!$AL$1)))-1,"n.d.") -> n.d. | V63: =IF(INDEX($C63:$G63,1,aux!$AL$1)>0,(G63-INDEX($C63:$G63,1,aux!$AL$1))/INDEX($C63:$G63,1,aux!$AL$1),"n.d.") -> n.d. | X63: =N63-INDEX($J63:$N63,1,aux!$AL$1) -> 0 | Y63: 0 | Z63: =+IF(INDEX($J63:$N63,1,aux!$AL$1)>0,(N63/INDEX($J63:$N63,1,aux!$AL$1))^(1/($N$3-INDEX($J$3:$N$3,1,aux!$AL$1)))-1,"n.d.") -> n.d. | AA63: =IF(INDEX($J63:$N63,1,aux!$AL$1)>0,(N63-INDEX($J63:$N63,1,aux!$AL$1))/INDEX($J63:$N63,1,aux!$AL$1),"n.d.") -> n.d. | AC63: 0 | BS63: =+MATCH('5.1'!A63,AUX_2d_pais!$G$2:$G$20001,0) -> 
A64: 0728 | B64: Coreia, República da | C64: =+SUMIF(AUX_2d_pais!$A$2:$A$28000,'5.1'!$A64&'5.1'!C$3&1,AUX_2d_pais!$J$2:$J$28000)/1000 -> 0 | D64: =+SUMIF(AUX_2d_pais!$A$2:$A$28000,'5.1'!$A64&'5.1'!D$3&1,AUX_2d_pais!$J$2:$J$28000)/1000 -> 0 | E64: =+SUMIF(AUX_2d_pais!$A$2:$A$28000,'5.1'!$A64&'5.1'!E$3&1,AUX_2d_pais!$J$2:$J$28000)/1000 -> 0 | F64: =+SUMIF(AUX_2d_pais!$A$2:$A$28000,'5.1'!$A64&'5.1'!F$3&1,AUX_2d_pais!$J$2:$J$28000)/1000 -> 0 | G64: =+SUMIF(AUX_2d_pais!$A$2:$A$28000,'5.1'!$A64&'5.1'!G$3&1,AUX_2d_pais!$J$2:$J$28000)/1000 -> 0 | H64: 0 | I64: 0 | J64: =+SUMIF(AUX_2d_pais!$A$2:$A$28000,'5.1'!$A64&'5.1'!J$3&2,AUX_2d_pais!$J$2:$J$28000)/1000 -> 0 | K64: =+SUMIF(AUX_2d_pais!$A$2:$A$28000,'5.1'!$A64&'5.1'!K$3&2,AUX_2d_pais!$J$2:$J$28000)/1000 -> 0 | L64: =+SUMIF(AUX_2d_pais!$A$2:$A$28000,'5.1'!$A64&'5.1'!L$3&2,AUX_2d_pais!$J$2:$J$28000)/1000 -> 0 | M64: =+SUMIF(AUX_2d_pais!$A$2:$A$28000,'5.1'!$A64&'5.1'!M$3&2,AUX_2d_pais!$J$2:$J$28000)/1000 -> 0 | N64: =+SUMIF(AUX_2d_pais!$A$2:$A$28000,'5.1'!$A64&'5.1'!N$3&2,AUX_2d_pais!$J$2:$J$28000)/1000 -> 0 | O64: 0 | P64: 0 | Q64: 0 | S64: =G64-INDEX($C64:$G64,1,aux!$AL$1) -> 0 | T64: 0 | U64: =+IF(INDEX($C64:$G64,1,aux!$AL$1)>0,(G64/INDEX($C64:$G64,1,aux!$AL$1))^(1/($G$3-INDEX($C$3:$G$3,1,aux!$AL$1)))-1,"n.d.") -> n.d. | V64: =IF(INDEX($C64:$G64,1,aux!$AL$1)>0,(G64-INDEX($C64:$G64,1,aux!$AL$1))/INDEX($C64:$G64,1,aux!$AL$1),"n.d.") -> n.d. | X64: =N64-INDEX($J64:$N64,1,aux!$AL$1) -> 0 | Y64: 0 | Z64: =+IF(INDEX($J64:$N64,1,aux!$AL$1)>0,(N64/INDEX($J64:$N64,1,aux!$AL$1))^(1/($N$3-INDEX($J$3:$N$3,1,aux!$AL$1)))-1,"n.d.") -> n.d. | AA64: =IF(INDEX($J64:$N64,1,aux!$AL$1)>0,(N64-INDEX($J64:$N64,1,aux!$AL$1))/INDEX($J64:$N64,1,aux!$AL$1),"n.d.") -> n.d. | AC64: 0 | BS64: =+MATCH('5.1'!A64,AUX_2d_pais!$G$2:$G$20001,0) -> 
A65: 0724 | B65: Coreia, República Popular Democrática da | C65: =+SUMIF(AUX_2d_pais!$A$2:$A$28000,'5.1'!$A65&'5.1'!C$3&1,AUX_2d_pais!$J$2:$J$28000)/1000 -> 0 | D65: =+SUMIF(AUX_2d_pais!$A$2:$A$28000,'5.1'!$A65&'5.1'!D$3&1,AUX_2d_pais!$J$2:$J$28000)/1000 -> 0 | E65: =+SUMIF(AUX_2d_pais!$A$2:$A$28000,'5.1'!$A65&'5.1'!E$3&1,AUX_2d_pais!$J$2:$J$28000)/1000 -> 0 | F65: =+SUMIF(AUX_2d_pais!$A$2:$A$28000,'5.1'!$A65&'5.1'!F$3&1,AUX_2d_pais!$J$2:$J$28000)/1000 -> 0 | G65: =+SUMIF(AUX_2d_pais!$A$2:$A$28000,'5.1'!$A65&'5.1'!G$3&1,AUX_2d_pais!$J$2:$J$28000)/1000 -> 0 | H65: 0 | I65: 0 | J65: =+SUMIF(AUX_2d_pais!$A$2:$A$28000,'5.1'!$A65&'5.1'!J$3&2,AUX_2d_pais!$J$2:$J$28000)/1000 -> 0 | K65: =+SUMIF(AUX_2d_pais!$A$2:$A$28000,'5.1'!$A65&'5.1'!K$3&2,AUX_2d_pais!$J$2:$J$28000)/1000 -> 0 | L65: =+SUMIF(AUX_2d_pais!$A$2:$A$28000,'5.1'!$A65&'5.1'!L$3&2,AUX_2d_pais!$J$2:$J$28000)/1000 -> 0 | M65: =+SUMIF(AUX_2d_pais!$A$2:$A$28000,'5.1'!$A65&'5.1'!M$3&2,AUX_2d_pais!$J$2:$J$28000)/1000 -> 0 | N65: =+SUMIF(AUX_2d_pais!$A$2:$A$28000,'5.1'!$A65&'5.1'!N$3&2,AUX_2d_pais!$J$2:$J$28000)/1000 -> 0 | O65: 0 | P65: 0 | Q65: 0 | S65: =G65-INDEX($C65:$G65,1,aux!$AL$1) -> 0 | T65: 0 | U65: =+IF(INDEX($C65:$G65,1,aux!$AL$1)>0,(G65/INDEX($C65:$G65,1,aux!$AL$1))^(1/($G$3-INDEX($C$3:$G$3,1,aux!$AL$1)))-1,"n.d.") -> n.d. | V65: =IF(INDEX($C65:$G65,1,aux!$AL$1)>0,(G65-INDEX($C65:$G65,1,aux!$AL$1))/INDEX($C65:$G65,1,aux!$AL$1),"n.d.") -> n.d. | X65: =N65-INDEX($J65:$N65,1,aux!$AL$1) -> 0 | Y65: 0 | Z65: =+IF(INDEX($J65:$N65,1,aux!$AL$1)>0,(N65/INDEX($J65:$N65,1,aux!$AL$1))^(1/($N$3-INDEX($J$3:$N$3,1,aux!$AL$1)))-1,"n.d.") -> n.d. | AA65: =IF(INDEX($J65:$N65,1,aux!$AL$1)>0,(N65-INDEX($J65:$N65,1,aux!$AL$1))/INDEX($J65:$N65,1,aux!$AL$1),"n.d.") -> n.d. | AC65: 0 | BS65: =+MATCH('5.1'!A65,AUX_2d_pais!$G$2:$G$20001,0) -> 
A66: 0272 | B66: Costa do Marfim | C66: =+SUMIF(AUX_2d_pais!$A$2:$A$28000,'5.1'!$A66&'5.1'!C$3&1,AUX_2d_pais!$J$2:$J$28000)/1000 -> 0 | D66: =+SUMIF(AUX_2d_pais!$A$2:$A$28000,'5.1'!$A66&'5.1'!D$3&1,AUX_2d_pais!$J$2:$J$28000)/1000 -> 0 | E66: =+SUMIF(AUX_2d_pais!$A$2:$A$28000,'5.1'!$A66&'5.1'!E$3&1,AUX_2d_pais!$J$2:$J$28000)/1000 -> 0 | F66: =+SUMIF(AUX_2d_pais!$A$2:$A$28000,'5.1'!$A66&'5.1'!F$3&1,AUX_2d_pais!$J$2:$J$28000)/1000 -> 0 | G66: =+SUMIF(AUX_2d_pais!$A$2:$A$28000,'5.1'!$A66&'5.1'!G$3&1,AUX_2d_pais!$J$2:$J$28000)/1000 -> 0 | H66: 0 | I66: 0 | J66: =+SUMIF(AUX_2d_pais!$A$2:$A$28000,'5.1'!$A66&'5.1'!J$3&2,AUX_2d_pais!$J$2:$J$28000)/1000 -> 0 | K66: =+SUMIF(AUX_2d_pais!$A$2:$A$28000,'5.1'!$A66&'5.1'!K$3&2,AUX_2d_pais!$J$2:$J$28000)/1000 -> 0 | L66: =+SUMIF(AUX_2d_pais!$A$2:$A$28000,'5.1'!$A66&'5.1'!L$3&2,AUX_2d_pais!$J$2:$J$28000)/1000 -> 0 | M66: =+SUMIF(AUX_2d_pais!$A$2:$A$28000,'5.1'!$A66&'5.1'!M$3&2,AUX_2d_pais!$J$2:$J$28000)/1000 -> 0 | N66: =+SUMIF(AUX_2d_pais!$A$2:$A$28000,'5.1'!$A66&'5.1'!N$3&2,AUX_2d_pais!$J$2:$J$28000)/1000 -> 0 | O66: 0 | P66: 0 | Q66: 0 | S66: =G66-INDEX($C66:$G66,1,aux!$AL$1) -> 0 | T66: 0 | U66: =+IF(INDEX($C66:$G66,1,aux!$AL$1)>0,(G66/INDEX($C66:$G66,1,aux!$AL$1))^(1/($G$3-INDEX($C$3:$G$3,1,aux!$AL$1)))-1,"n.d.") -> n.d. | V66: =IF(INDEX($C66:$G66,1,aux!$AL$1)>0,(G66-INDEX($C66:$G66,1,aux!$AL$1))/INDEX($C66:$G66,1,aux!$AL$1),"n.d.") -> n.d. | X66: =N66-INDEX($J66:$N66,1,aux!$AL$1) -> 0 | Y66: 0 | Z66: =+IF(INDEX($J66:$N66,1,aux!$AL$1)>0,(N66/INDEX($J66:$N66,1,aux!$AL$1))^(1/($N$3-INDEX($J$3:$N$3,1,aux!$AL$1)))-1,"n.d.") -> n.d. | AA66: =IF(INDEX($J66:$N66,1,aux!$AL$1)>0,(N66-INDEX($J66:$N66,1,aux!$AL$1))/INDEX($J66:$N66,1,aux!$AL$1),"n.d.") -> n.d. | AC66: 0 | BS66: =+MATCH('5.1'!A66,AUX_2d_pais!$G$2:$G$20001,0) -> 
A67: 0436 | B67: Costa Rica | C67: =+SUMIF(AUX_2d_pais!$A$2:$A$28000,'5.1'!$A67&'5.1'!C$3&1,AUX_2d_pais!$J$2:$J$28000)/1000 -> 0 | D67: =+SUMIF(AUX_2d_pais!$A$2:$A$28000,'5.1'!$A67&'5.1'!D$3&1,AUX_2d_pais!$J$2:$J$28000)/1000 -> 0 | E67: =+SUMIF(AUX_2d_pais!$A$2:$A$28000,'5.1'!$A67&'5.1'!E$3&1,AUX_2d_pais!$J$2:$J$28000)/1000 -> 0 | F67: =+SUMIF(AUX_2d_pais!$A$2:$A$28000,'5.1'!$A67&'5.1'!F$3&1,AUX_2d_pais!$J$2:$J$28000)/1000 -> 0 | G67: =+SUMIF(AUX_2d_pais!$A$2:$A$28000,'5.1'!$A67&'5.1'!G$3&1,AUX_2d_pais!$J$2:$J$28000)/1000 -> 0 | H67: =SUM(C67:G67)/5 -> 0 | I67: 0 | J67: =+SUMIF(AUX_2d_pais!$A$2:$A$28000,'5.1'!$A67&'5.1'!J$3&2,AUX_2d_pais!$J$2:$J$28000)/1000 -> 0 | K67: =+SUMIF(AUX_2d_pais!$A$2:$A$28000,'5.1'!$A67&'5.1'!K$3&2,AUX_2d_pais!$J$2:$J$28000)/1000 -> 0 | L67: =+SUMIF(AUX_2d_pais!$A$2:$A$28000,'5.1'!$A67&'5.1'!L$3&2,AUX_2d_pais!$J$2:$J$28000)/1000 -> 0 | M67: =+SUMIF(AUX_2d_pais!$A$2:$A$28000,'5.1'!$A67&'5.1'!M$3&2,AUX_2d_pais!$J$2:$J$28000)/1000 -> 0 | N67: =+SUMIF(AUX_2d_pais!$A$2:$A$28000,'5.1'!$A67&'5.1'!N$3&2,AUX_2d_pais!$J$2:$J$28000)/1000 -> 0 | O67: =SUM(J67:N67)/5 -> 0 | P67: 0 | Q67: =O67-H67 -> 0 | S67: =G67-INDEX($C67:$G67,1,aux!$AL$1) -> 0 | T67: 0 | U67: =+IF(INDEX($C67:$G67,1,aux!$AL$1)>0,(G67/INDEX($C67:$G67,1,aux!$AL$1))^(1/($G$3-INDEX($C$3:$G$3,1,aux!$AL$1)))-1,"n.d.") -> n.d. | V67: =IF(INDEX($C67:$G67,1,aux!$AL$1)>0,(G67-INDEX($C67:$G67,1,aux!$AL$1))/INDEX($C67:$G67,1,aux!$AL$1),"n.d.") -> n.d. | X67: =N67-INDEX($J67:$N67,1,aux!$AL$1) -> 0 | Y67: 0 | Z67: =+IF(INDEX($J67:$N67,1,aux!$AL$1)>0,(N67/INDEX($J67:$N67,1,aux!$AL$1))^(1/($N$3-INDEX($J$3:$N$3,1,aux!$AL$1)))-1,"n.d.") -> n.d. | AA67: =IF(INDEX($J67:$N67,1,aux!$AL$1)>0,(N67-INDEX($J67:$N67,1,aux!$AL$1))/INDEX($J67:$N67,1,aux!$AL$1),"n.d.") -> n.d. | AC67: 0 | BS67: =+MATCH('5.1'!A67,AUX_2d_pais!$G$2:$G$20001,0) -> 
A68: 0092 | B68: Croácia | C68: =+SUMIF(AUX_2d_pais!$A$2:$A$28000,'5.1'!$A68&'5.1'!C$3&1,AUX_2d_pais!$J$2:$J$28000)/1000 -> 3135.124 | D68: =+SUMIF(AUX_2d_pais!$A$2:$A$28000,'5.1'!$A68&'5.1'!D$3&1,AUX_2d_pais!$J$2:$J$28000)/1000 -> 4805.735 | E68: =+SUMIF(AUX_2d_pais!$A$2:$A$28000,'5.1'!$A68&'5.1'!E$3&1,AUX_2d_pais!$J$2:$J$28000)/1000 -> 8098.022 | F68: =+SUMIF(AUX_2d_pais!$A$2:$A$28000,'5.1'!$A68&'5.1'!F$3&1,AUX_2d_pais!$J$2:$J$28000)/1000 -> 15673.427 | G68: =+SUMIF(AUX_2d_pais!$A$2:$A$28000,'5.1'!$A68&'5.1'!G$3&1,AUX_2d_pais!$J$2:$J$28000)/1000 -> 8946.44 | H68: 8131.7496 | I68: =H68/$H$254 -> 0.0006404087863 | J68: =+SUMIF(AUX_2d_pais!$A$2:$A$28000,'5.1'!$A68&'5.1'!J$3&2,AUX_2d_pais!$J$2:$J$28000)/1000 -> 10163.692 | K68: =+SUMIF(AUX_2d_pais!$A$2:$A$28000,'5.1'!$A68&'5.1'!K$3&2,AUX_2d_pais!$J$2:$J$28000)/1000 -> 7007.701 | L68: =+SUMIF(AUX_2d_pais!$A$2:$A$28000,'5.1'!$A68&'5.1'!L$3&2,AUX_2d_pais!$J$2:$J$28000)/1000 -> 11438.669 | M68: =+SUMIF(AUX_2d_pais!$A$2:$A$28000,'5.1'!$A68&'5.1'!M$3&2,AUX_2d_pais!$J$2:$J$28000)/1000 -> 18886.51 | N68: =+SUMIF(AUX_2d_pais!$A$2:$A$28000,'5.1'!$A68&'5.1'!N$3&2,AUX_2d_pais!$J$2:$J$28000)/1000 -> 14170.238 | O68: 12333.362 | P68: =O68/$O$254 -> 0.001310780182 | Q68: 4201.6124 | S68: =G68-INDEX($C68:$G68,1,aux!$AL$1) -> 5811.316 | T68: =S68/$S$254 -> 0.001173382639 | U68: =+IF(INDEX($C68:$G68,1,aux!$AL$1)>0,(G68/INDEX($C68:$G68,1,aux!$AL$1))^(1/($G$3-INDEX($C$3:$G$3,1,aux!$AL$1)))-1,"n.d.") -> 0.2997172493 | V68: =IF(INDEX($C68:$G68,1,aux!$AL$1)>0,(G68-INDEX($C68:$G68,1,aux!$AL$1))/INDEX($C68:$G68,1,aux!$AL$1),"n.d.") -> 1.853615997 | X68: =N68-INDEX($J68:$N68,1,aux!$AL$1) -> 4006.546 | Y68: =X68/$X$254 -> 0.001152216003 | Z68: =+IF(INDEX($J68:$N68,1,aux!$AL$1)>0,(N68/INDEX($J68:$N68,1,aux!$AL$1))^(1/($N$3-INDEX($J$3:$N$3,1,aux!$AL$1)))-1,"n.d.") -> 0.08662930249 | AA68: =IF(INDEX($J68:$N68,1,aux!$AL$1)>0,(N68-INDEX($J68:$N68,1,aux!$AL$1))/INDEX($J68:$N68,1,aux!$AL$1),"n.d.") -> 0.3942018314 | BS68: =+MATCH('5.1'!A68,AUX_2d_pais!$G$2:$G$20001,0) -> 330
A69: 0448 | B69: Cuba | C69: =+SUMIF(AUX_2d_pais!$A$2:$A$28000,'5.1'!$A69&'5.1'!C$3&1,AUX_2d_pais!$J$2:$J$28000)/1000 -> 0 | D69: =+SUMIF(AUX_2d_pais!$A$2:$A$28000,'5.1'!$A69&'5.1'!D$3&1,AUX_2d_pais!$J$2:$J$28000)/1000 -> 0 | E69: =+SUMIF(AUX_2d_pais!$A$2:$A$28000,'5.1'!$A69&'5.1'!E$3&1,AUX_2d_pais!$J$2:$J$28000)/1000 -> 0 | F69: =+SUMIF(AUX_2d_pais!$A$2:$A$28000,'5.1'!$A69&'5.1'!F$3&1,AUX_2d_pais!$J$2:$J$28000)/1000 -> 0 | G69: =+SUMIF(AUX_2d_pais!$A$2:$A$28000,'5.1'!$A69&'5.1'!G$3&1,AUX_2d_pais!$J$2:$J$28000)/1000 -> 0 | H69: 0 | I69: 0 | J69: =+SUMIF(AUX_2d_pais!$A$2:$A$28000,'5.1'!$A69&'5.1'!J$3&2,AUX_2d_pais!$J$2:$J$28000)/1000 -> 0 | K69: =+SUMIF(AUX_2d_pais!$A$2:$A$28000,'5.1'!$A69&'5.1'!K$3&2,AUX_2d_pais!$J$2:$J$28000)/1000 -> 0 | L69: =+SUMIF(AUX_2d_pais!$A$2:$A$28000,'5.1'!$A69&'5.1'!L$3&2,AUX_2d_pais!$J$2:$J$28000)/1000 -> 0 | M69: =+SUMIF(AUX_2d_pais!$A$2:$A$28000,'5.1'!$A69&'5.1'!M$3&2,AUX_2d_pais!$J$2:$J$28000)/1000 -> 0 | N69: =+SUMIF(AUX_2d_pais!$A$2:$A$28000,'5.1'!$A69&'5.1'!N$3&2,AUX_2d_pais!$J$2:$J$28000)/1000 -> 0 | O69: 0 | P69: 0 | Q69: 0 | S69: =G69-INDEX($C69:$G69,1,aux!$AL$1) -> 0 | T69: 0 | U69: =+IF(INDEX($C69:$G69,1,aux!$AL$1)>0,(G69/INDEX($C69:$G69,1,aux!$AL$1))^(1/($G$3-INDEX($C$3:$G$3,1,aux!$AL$1)))-1,"n.d.") -> n.d. | V69: =IF(INDEX($C69:$G69,1,aux!$AL$1)>0,(G69-INDEX($C69:$G69,1,aux!$AL$1))/INDEX($C69:$G69,1,aux!$AL$1),"n.d.") -> n.d. | X69: =N69-INDEX($J69:$N69,1,aux!$AL$1) -> 0 | Y69: 0 | Z69: =+IF(INDEX($J69:$N69,1,aux!$AL$1)>0,(N69/INDEX($J69:$N69,1,aux!$AL$1))^(1/($N$3-INDEX($J$3:$N$3,1,aux!$AL$1)))-1,"n.d.") -> n.d. | AA69: =IF(INDEX($J69:$N69,1,aux!$AL$1)>0,(N69-INDEX($J69:$N69,1,aux!$AL$1))/INDEX($J69:$N69,1,aux!$AL$1),"n.d.") -> n.d. | AC69: =SUM(A69:Q69) -> 0 | BS69: =+MATCH('5.1'!A69,AUX_2d_pais!$G$2:$G$20001,0) -> 
A70: 0475 | B70: Curaçau | C70: =+SUMIF(AUX_2d_pais!$A$2:$A$28000,'5.1'!$A70&'5.1'!C$3&1,AUX_2d_pais!$J$2:$J$28000)/1000 -> 0 | D70: =+SUMIF(AUX_2d_pais!$A$2:$A$28000,'5.1'!$A70&'5.1'!D$3&1,AUX_2d_pais!$J$2:$J$28000)/1000 -> 0 | E70: =+SUMIF(AUX_2d_pais!$A$2:$A$28000,'5.1'!$A70&'5.1'!E$3&1,AUX_2d_pais!$J$2:$J$28000)/1000 -> 0 | F70: =+SUMIF(AUX_2d_pais!$A$2:$A$28000,'5.1'!$A70&'5.1'!F$3&1,AUX_2d_pais!$J$2:$J$28000)/1000 -> 0 | G70: =+SUMIF(AUX_2d_pais!$A$2:$A$28000,'5.1'!$A70&'5.1'!G$3&1,AUX_2d_pais!$J$2:$J$28000)/1000 -> 0 | H70: 0 | I70: 0 | J70: =+SUMIF(AUX_2d_pais!$A$2:$A$28000,'5.1'!$A70&'5.1'!J$3&2,AUX_2d_pais!$J$2:$J$28000)/1000 -> 0 | K70: =+SUMIF(AUX_2d_pais!$A$2:$A$28000,'5.1'!$A70&'5.1'!K$3&2,AUX_2d_pais!$J$2:$J$28000)/1000 -> 0 | L70: =+SUMIF(AUX_2d_pais!$A$2:$A$28000,'5.1'!$A70&'5.1'!L$3&2,AUX_2d_pais!$J$2:$J$28000)/1000 -> 0 | M70: =+SUMIF(AUX_2d_pais!$A$2:$A$28000,'5.1'!$A70&'5.1'!M$3&2,AUX_2d_pais!$J$2:$J$28000)/1000 -> 0 | N70: =+SUMIF(AUX_2d_pais!$A$2:$A$28000,'5.1'!$A70&'5.1'!N$3&2,AUX_2d_pais!$J$2:$J$28000)/1000 -> 0 | O70: 0 | P70: 0 | Q70: 0 | S70: =G70-INDEX($C70:$G70,1,aux!$AL$1) -> 0 | T70: 0 | U70: =+IF(INDEX($C70:$G70,1,aux!$AL$1)>0,(G70/INDEX($C70:$G70,1,aux!$AL$1))^(1/($G$3-INDEX($C$3:$G$3,1,aux!$AL$1)))-1,"n.d.") -> n.d. | V70: =IF(INDEX($C70:$G70,1,aux!$AL$1)>0,(G70-INDEX($C70:$G70,1,aux!$AL$1))/INDEX($C70:$G70,1,aux!$AL$1),"n.d.") -> n.d. | X70: =N70-INDEX($J70:$N70,1,aux!$AL$1) -> 0 | Y70: 0 | Z70: =+IF(INDEX($J70:$N70,1,aux!$AL$1)>0,(N70/INDEX($J70:$N70,1,aux!$AL$1))^(1/($N$3-INDEX($J$3:$N$3,1,aux!$AL$1)))-1,"n.d.") -> n.d. | AA70: =IF(INDEX($J70:$N70,1,aux!$AL$1)>0,(N70-INDEX($J70:$N70,1,aux!$AL$1))/INDEX($J70:$N70,1,aux!$AL$1),"n.d.") -> n.d. | AC70: 0 | BS70: =+MATCH('5.1'!A70,AUX_2d_pais!$G$2:$G$20001,0) -> 
A71: 0008 | B71: Dinamarca | C71: =+SUMIF(AUX_2d_pais!$A$2:$A$28000,'5.1'!$A71&'5.1'!C$3&1,AUX_2d_pais!$J$2:$J$28000)/1000 -> 133127.56 | D71: =+SUMIF(AUX_2d_pais!$A$2:$A$28000,'5.1'!$A71&'5.1'!D$3&1,AUX_2d_pais!$J$2:$J$28000)/1000 -> 141254.915 | E71: =+SUMIF(AUX_2d_pais!$A$2:$A$28000,'5.1'!$A71&'5.1'!E$3&1,AUX_2d_pais!$J$2:$J$28000)/1000 -> 146289.589 | F71: =+SUMIF(AUX_2d_pais!$A$2:$A$28000,'5.1'!$A71&'5.1'!F$3&1,AUX_2d_pais!$J$2:$J$28000)/1000 -> 170816.365 | G71: =+SUMIF(AUX_2d_pais!$A$2:$A$28000,'5.1'!$A71&'5.1'!G$3&1,AUX_2d_pais!$J$2:$J$28000)/1000 -> 195427.1 | H71: 157383.1058 | I71: 0.01239456805 | J71: =+SUMIF(AUX_2d_pais!$A$2:$A$28000,'5.1'!$A71&'5.1'!J$3&2,AUX_2d_pais!$J$2:$J$28000)/1000 -> 93175.914 | K71: =+SUMIF(AUX_2d_pais!$A$2:$A$28000,'5.1'!$A71&'5.1'!K$3&2,AUX_2d_pais!$J$2:$J$28000)/1000 -> 86639.751 | L71: =+SUMIF(AUX_2d_pais!$A$2:$A$28000,'5.1'!$A71&'5.1'!L$3&2,AUX_2d_pais!$J$2:$J$28000)/1000 -> 77056.362 | M71: =+SUMIF(AUX_2d_pais!$A$2:$A$28000,'5.1'!$A71&'5.1'!M$3&2,AUX_2d_pais!$J$2:$J$28000)/1000 -> 85684.607 | N71: =+SUMIF(AUX_2d_pais!$A$2:$A$28000,'5.1'!$A71&'5.1'!N$3&2,AUX_2d_pais!$J$2:$J$28000)/1000 -> 79761.16 | O71: 84463.5588 | P71: 0.008976721757 | Q71: -72919.547 | S71: =G71-INDEX($C71:$G71,1,aux!$AL$1) -> 62299.54 | T71: 0.01257911266 | U71: =+IF(INDEX($C71:$G71,1,aux!$AL$1)>0,(G71/INDEX($C71:$G71,1,aux!$AL$1))^(1/($G$3-INDEX($C$3:$G$3,1,aux!$AL$1)))-1,"n.d.") -> 0.1007259464 | V71: =IF(INDEX($C71:$G71,1,aux!$AL$1)>0,(G71-INDEX($C71:$G71,1,aux!$AL$1))/INDEX($C71:$G71,1,aux!$AL$1),"n.d.") -> 0.4679687662 | X71: =N71-INDEX($J71:$N71,1,aux!$AL$1) -> -13414.754 | Y71: -0.003857860171 | Z71: =+IF(INDEX($J71:$N71,1,aux!$AL$1)>0,(N71/INDEX($J71:$N71,1,aux!$AL$1))^(1/($N$3-INDEX($J$3:$N$3,1,aux!$AL$1)))-1,"n.d.") -> -0.03811766281 | AA71: =IF(INDEX($J71:$N71,1,aux!$AL$1)>0,(N71-INDEX($J71:$N71,1,aux!$AL$1))/INDEX($J71:$N71,1,aux!$AL$1),"n.d.") -> -0.143972336 | BS71: =+MATCH('5.1'!A71,AUX_2d_pais!$G$2:$G$20001,0) -> 44
A72: 0460 | B72: Domínica | C72: =+SUMIF(AUX_2d_pais!$A$2:$A$28000,'5.1'!$A72&'5.1'!C$3&1,AUX_2d_pais!$J$2:$J$28000)/1000 -> 0 | D72: =+SUMIF(AUX_2d_pais!$A$2:$A$28000,'5.1'!$A72&'5.1'!D$3&1,AUX_2d_pais!$J$2:$J$28000)/1000 -> 0 | E72: =+SUMIF(AUX_2d_pais!$A$2:$A$28000,'5.1'!$A72&'5.1'!E$3&1,AUX_2d_pais!$J$2:$J$28000)/1000 -> 0 | F72: =+SUMIF(AUX_2d_pais!$A$2:$A$28000,'5.1'!$A72&'5.1'!F$3&1,AUX_2d_pais!$J$2:$J$28000)/1000 -> 0 | G72: =+SUMIF(AUX_2d_pais!$A$2:$A$28000,'5.1'!$A72&'5.1'!G$3&1,AUX_2d_pais!$J$2:$J$28000)/1000 -> 0 | H72: 0 | I72: 0 | J72: =+SUMIF(AUX_2d_pais!$A$2:$A$28000,'5.1'!$A72&'5.1'!J$3&2,AUX_2d_pais!$J$2:$J$28000)/1000 -> 0 | K72: =+SUMIF(AUX_2d_pais!$A$2:$A$28000,'5.1'!$A72&'5.1'!K$3&2,AUX_2d_pais!$J$2:$J$28000)/1000 -> 0 | L72: =+SUMIF(AUX_2d_pais!$A$2:$A$28000,'5.1'!$A72&'5.1'!L$3&2,AUX_2d_pais!$J$2:$J$28000)/1000 -> 0 | M72: =+SUMIF(AUX_2d_pais!$A$2:$A$28000,'5.1'!$A72&'5.1'!M$3&2,AUX_2d_pais!$J$2:$J$28000)/1000 -> 0 | N72: =+SUMIF(AUX_2d_pais!$A$2:$A$28000,'5.1'!$A72&'5.1'!N$3&2,AUX_2d_pais!$J$2:$J$28000)/1000 -> 0 | O72: 0 | P72: 0 | Q72: 0 | S72: =G72-INDEX($C72:$G72,1,aux!$AL$1) -> 0 | T72: 0 | U72: =+IF(INDEX($C72:$G72,1,aux!$AL$1)>0,(G72/INDEX($C72:$G72,1,aux!$AL$1))^(1/($G$3-INDEX($C$3:$G$3,1,aux!$AL$1)))-1,"n.d.") -> n.d. | V72: =IF(INDEX($C72:$G72,1,aux!$AL$1)>0,(G72-INDEX($C72:$G72,1,aux!$AL$1))/INDEX($C72:$G72,1,aux!$AL$1),"n.d.") -> n.d. | X72: =N72-INDEX($J72:$N72,1,aux!$AL$1) -> 0 | Y72: 0 | Z72: =+IF(INDEX($J72:$N72,1,aux!$AL$1)>0,(N72/INDEX($J72:$N72,1,aux!$AL$1))^(1/($N$3-INDEX($J$3:$N$3,1,aux!$AL$1)))-1,"n.d.") -> n.d. | AA72: =IF(INDEX($J72:$N72,1,aux!$AL$1)>0,(N72-INDEX($J72:$N72,1,aux!$AL$1))/INDEX($J72:$N72,1,aux!$AL$1),"n.d.") -> n.d. | AC72: 0 | BS72: =+MATCH('5.1'!A72,AUX_2d_pais!$G$2:$G$20001,0) -> 
A73: 0456 | B73: Dominicana, República | C73: =+SUMIF(AUX_2d_pais!$A$2:$A$28000,'5.1'!$A73&'5.1'!C$3&1,AUX_2d_pais!$J$2:$J$28000)/1000 -> 0 | D73: =+SUMIF(AUX_2d_pais!$A$2:$A$28000,'5.1'!$A73&'5.1'!D$3&1,AUX_2d_pais!$J$2:$J$28000)/1000 -> 0 | E73: =+SUMIF(AUX_2d_pais!$A$2:$A$28000,'5.1'!$A73&'5.1'!E$3&1,AUX_2d_pais!$J$2:$J$28000)/1000 -> 0 | F73: =+SUMIF(AUX_2d_pais!$A$2:$A$28000,'5.1'!$A73&'5.1'!F$3&1,AUX_2d_pais!$J$2:$J$28000)/1000 -> 0 | G73: =+SUMIF(AUX_2d_pais!$A$2:$A$28000,'5.1'!$A73&'5.1'!G$3&1,AUX_2d_pais!$J$2:$J$28000)/1000 -> 0 | H73: 0 | I73: 0 | J73: =+SUMIF(AUX_2d_pais!$A$2:$A$28000,'5.1'!$A73&'5.1'!J$3&2,AUX_2d_pais!$J$2:$J$28000)/1000 -> 0 | K73: =+SUMIF(AUX_2d_pais!$A$2:$A$28000,'5.1'!$A73&'5.1'!K$3&2,AUX_2d_pais!$J$2:$J$28000)/1000 -> 0 | L73: =+SUMIF(AUX_2d_pais!$A$2:$A$28000,'5.1'!$A73&'5.1'!L$3&2,AUX_2d_pais!$J$2:$J$28000)/1000 -> 0 | M73: =+SUMIF(AUX_2d_pais!$A$2:$A$28000,'5.1'!$A73&'5.1'!M$3&2,AUX_2d_pais!$J$2:$J$28000)/1000 -> 0 | N73: =+SUMIF(AUX_2d_pais!$A$2:$A$28000,'5.1'!$A73&'5.1'!N$3&2,AUX_2d_pais!$J$2:$J$28000)/1000 -> 0 | O73: 0 | P73: 0 | Q73: 0 | S73: =G73-INDEX($C73:$G73,1,aux!$AL$1) -> 0 | T73: 0 | U73: =+IF(INDEX($C73:$G73,1,aux!$AL$1)>0,(G73/INDEX($C73:$G73,1,aux!$AL$1))^(1/($G$3-INDEX($C$3:$G$3,1,aux!$AL$1)))-1,"n.d.") -> n.d. | V73: =IF(INDEX($C73:$G73,1,aux!$AL$1)>0,(G73-INDEX($C73:$G73,1,aux!$AL$1))/INDEX($C73:$G73,1,aux!$AL$1),"n.d.") -> n.d. | X73: =N73-INDEX($J73:$N73,1,aux!$AL$1) -> 0 | Y73: 0 | Z73: =+IF(INDEX($J73:$N73,1,aux!$AL$1)>0,(N73/INDEX($J73:$N73,1,aux!$AL$1))^(1/($N$3-INDEX($J$3:$N$3,1,aux!$AL$1)))-1,"n.d.") -> n.d. | AA73: =IF(INDEX($J73:$N73,1,aux!$AL$1)>0,(N73-INDEX($J73:$N73,1,aux!$AL$1))/INDEX($J73:$N73,1,aux!$AL$1),"n.d.") -> n.d. | AC73: 0 | BS73: =+MATCH('5.1'!A73,AUX_2d_pais!$G$2:$G$20001,0) -> 
A74: 0220 | B74: Egito | C74: =+SUMIF(AUX_2d_pais!$A$2:$A$28000,'5.1'!$A74&'5.1'!C$3&1,AUX_2d_pais!$J$2:$J$28000)/1000 -> 0 | D74: =+SUMIF(AUX_2d_pais!$A$2:$A$28000,'5.1'!$A74&'5.1'!D$3&1,AUX_2d_pais!$J$2:$J$28000)/1000 -> 0 | E74: =+SUMIF(AUX_2d_pais!$A$2:$A$28000,'5.1'!$A74&'5.1'!E$3&1,AUX_2d_pais!$J$2:$J$28000)/1000 -> 0 | F74: =+SUMIF(AUX_2d_pais!$A$2:$A$28000,'5.1'!$A74&'5.1'!F$3&1,AUX_2d_pais!$J$2:$J$28000)/1000 -> 0 | G74: =+SUMIF(AUX_2d_pais!$A$2:$A$28000,'5.1'!$A74&'5.1'!G$3&1,AUX_2d_pais!$J$2:$J$28000)/1000 -> 0 | H74: 0 | I74: 0 | J74: =+SUMIF(AUX_2d_pais!$A$2:$A$28000,'5.1'!$A74&'5.1'!J$3&2,AUX_2d_pais!$J$2:$J$28000)/1000 -> 0 | K74: =+SUMIF(AUX_2d_pais!$A$2:$A$28000,'5.1'!$A74&'5.1'!K$3&2,AUX_2d_pais!$J$2:$J$28000)/1000 -> 0 | L74: =+SUMIF(AUX_2d_pais!$A$2:$A$28000,'5.1'!$A74&'5.1'!L$3&2,AUX_2d_pais!$J$2:$J$28000)/1000 -> 0 | M74: =+SUMIF(AUX_2d_pais!$A$2:$A$28000,'5.1'!$A74&'5.1'!M$3&2,AUX_2d_pais!$J$2:$J$28000)/1000 -> 0 | N74: =+SUMIF(AUX_2d_pais!$A$2:$A$28000,'5.1'!$A74&'5.1'!N$3&2,AUX_2d_pais!$J$2:$J$28000)/1000 -> 0 | O74: 0 | P74: 0 | Q74: 0 | S74: =G74-INDEX($C74:$G74,1,aux!$AL$1) -> 0 | T74: 0 | U74: =+IF(INDEX($C74:$G74,1,aux!$AL$1)>0,(G74/INDEX($C74:$G74,1,aux!$AL$1))^(1/($G$3-INDEX($C$3:$G$3,1,aux!$AL$1)))-1,"n.d.") -> n.d. | V74: =IF(INDEX($C74:$G74,1,aux!$AL$1)>0,(G74-INDEX($C74:$G74,1,aux!$AL$1))/INDEX($C74:$G74,1,aux!$AL$1),"n.d.") -> n.d. | X74: =N74-INDEX($J74:$N74,1,aux!$AL$1) -> 0 | Y74: 0 | Z74: =+IF(INDEX($J74:$N74,1,aux!$AL$1)>0,(N74/INDEX($J74:$N74,1,aux!$AL$1))^(1/($N$3-INDEX($J$3:$N$3,1,aux!$AL$1)))-1,"n.d.") -> n.d. | AA74: =IF(INDEX($J74:$N74,1,aux!$AL$1)>0,(N74-INDEX($J74:$N74,1,aux!$AL$1))/INDEX($J74:$N74,1,aux!$AL$1),"n.d.") -> n.d. | AC74: 0 | BS74: =+MATCH('5.1'!A74,AUX_2d_pais!$G$2:$G$20001,0) -> 
A75: 0428 | B75: El Salvador | C75: =+SUMIF(AUX_2d_pais!$A$2:$A$28000,'5.1'!$A75&'5.1'!C$3&1,AUX_2d_pais!$J$2:$J$28000)/1000 -> 0 | D75: =+SUMIF(AUX_2d_pais!$A$2:$A$28000,'5.1'!$A75&'5.1'!D$3&1,AUX_2d_pais!$J$2:$J$28000)/1000 -> 0 | E75: =+SUMIF(AUX_2d_pais!$A$2:$A$28000,'5.1'!$A75&'5.1'!E$3&1,AUX_2d_pais!$J$2:$J$28000)/1000 -> 0 | F75: =+SUMIF(AUX_2d_pais!$A$2:$A$28000,'5.1'!$A75&'5.1'!F$3&1,AUX_2d_pais!$J$2:$J$28000)/1000 -> 0 | G75: =+SUMIF(AUX_2d_pais!$A$2:$A$28000,'5.1'!$A75&'5.1'!G$3&1,AUX_2d_pais!$J$2:$J$28000)/1000 -> 0 | H75: 0 | I75: 0 | J75: =+SUMIF(AUX_2d_pais!$A$2:$A$28000,'5.1'!$A75&'5.1'!J$3&2,AUX_2d_pais!$J$2:$J$28000)/1000 -> 0 | K75: =+SUMIF(AUX_2d_pais!$A$2:$A$28000,'5.1'!$A75&'5.1'!K$3&2,AUX_2d_pais!$J$2:$J$28000)/1000 -> 0 | L75: =+SUMIF(AUX_2d_pais!$A$2:$A$28000,'5.1'!$A75&'5.1'!L$3&2,AUX_2d_pais!$J$2:$J$28000)/1000 -> 0 | M75: =+SUMIF(AUX_2d_pais!$A$2:$A$28000,'5.1'!$A75&'5.1'!M$3&2,AUX_2d_pais!$J$2:$J$28000)/1000 -> 0 | N75: =+SUMIF(AUX_2d_pais!$A$2:$A$28000,'5.1'!$A75&'5.1'!N$3&2,AUX_2d_pais!$J$2:$J$28000)/1000 -> 0 | O75: 0 | P75: 0 | Q75: 0 | S75: =G75-INDEX($C75:$G75,1,aux!$AL$1) -> 0 | T75: 0 | U75: =+IF(INDEX($C75:$G75,1,aux!$AL$1)>0,(G75/INDEX($C75:$G75,1,aux!$AL$1))^(1/($G$3-INDEX($C$3:$G$3,1,aux!$AL$1)))-1,"n.d.") -> n.d. | V75: =IF(INDEX($C75:$G75,1,aux!$AL$1)>0,(G75-INDEX($C75:$G75,1,aux!$AL$1))/INDEX($C75:$G75,1,aux!$AL$1),"n.d.") -> n.d. | X75: =N75-INDEX($J75:$N75,1,aux!$AL$1) -> 0 | Y75: 0 | Z75: =+IF(INDEX($J75:$N75,1,aux!$AL$1)>0,(N75/INDEX($J75:$N75,1,aux!$AL$1))^(1/($N$3-INDEX($J$3:$N$3,1,aux!$AL$1)))-1,"n.d.") -> n.d. | AA75: =IF(INDEX($J75:$N75,1,aux!$AL$1)>0,(N75-INDEX($J75:$N75,1,aux!$AL$1))/INDEX($J75:$N75,1,aux!$AL$1),"n.d.") -> n.d. | AC75: 0 | BS75: =+MATCH('5.1'!A75,AUX_2d_pais!$G$2:$G$20001,0) -> 
A76: 0647 | B76: Emirados Árabes Unidos | C76: =+SUMIF(AUX_2d_pais!$A$2:$A$28000,'5.1'!$A76&'5.1'!C$3&1,AUX_2d_pais!$J$2:$J$28000)/1000 -> 0 | D76: =+SUMIF(AUX_2d_pais!$A$2:$A$28000,'5.1'!$A76&'5.1'!D$3&1,AUX_2d_pais!$J$2:$J$28000)/1000 -> 0 | E76: =+SUMIF(AUX_2d_pais!$A$2:$A$28000,'5.1'!$A76&'5.1'!E$3&1,AUX_2d_pais!$J$2:$J$28000)/1000 -> 0 | F76: =+SUMIF(AUX_2d_pais!$A$2:$A$28000,'5.1'!$A76&'5.1'!F$3&1,AUX_2d_pais!$J$2:$J$28000)/1000 -> 0 | G76: =+SUMIF(AUX_2d_pais!$A$2:$A$28000,'5.1'!$A76&'5.1'!G$3&1,AUX_2d_pais!$J$2:$J$28000)/1000 -> 0 | H76: 0 | I76: 0 | J76: =+SUMIF(AUX_2d_pais!$A$2:$A$28000,'5.1'!$A76&'5.1'!J$3&2,AUX_2d_pais!$J$2:$J$28000)/1000 -> 0 | K76: =+SUMIF(AUX_2d_pais!$A$2:$A$28000,'5.1'!$A76&'5.1'!K$3&2,AUX_2d_pais!$J$2:$J$28000)/1000 -> 0 | L76: =+SUMIF(AUX_2d_pais!$A$2:$A$28000,'5.1'!$A76&'5.1'!L$3&2,AUX_2d_pais!$J$2:$J$28000)/1000 -> 0 | M76: =+SUMIF(AUX_2d_pais!$A$2:$A$28000,'5.1'!$A76&'5.1'!M$3&2,AUX_2d_pais!$J$2:$J$28000)/1000 -> 0 | N76: =+SUMIF(AUX_2d_pais!$A$2:$A$28000,'5.1'!$A76&'5.1'!N$3&2,AUX_2d_pais!$J$2:$J$28000)/1000 -> 0 | O76: 0 | P76: 0 | Q76: 0 | S76: =G76-INDEX($C76:$G76,1,aux!$AL$1) -> 0 | T76: 0 | U76: =+IF(INDEX($C76:$G76,1,aux!$AL$1)>0,(G76/INDEX($C76:$G76,1,aux!$AL$1))^(1/($G$3-INDEX($C$3:$G$3,1,aux!$AL$1)))-1,"n.d.") -> n.d. | V76: =IF(INDEX($C76:$G76,1,aux!$AL$1)>0,(G76-INDEX($C76:$G76,1,aux!$AL$1))/INDEX($C76:$G76,1,aux!$AL$1),"n.d.") -> n.d. | X76: =N76-INDEX($J76:$N76,1,aux!$AL$1) -> 0 | Y76: 0 | Z76: =+IF(INDEX($J76:$N76,1,aux!$AL$1)>0,(N76/INDEX($J76:$N76,1,aux!$AL$1))^(1/($N$3-INDEX($J$3:$N$3,1,aux!$AL$1)))-1,"n.d.") -> n.d. | AA76: =IF(INDEX($J76:$N76,1,aux!$AL$1)>0,(N76-INDEX($J76:$N76,1,aux!$AL$1))/INDEX($J76:$N76,1,aux!$AL$1),"n.d.") -> n.d. | AC76: 0 | BS76: =+MATCH('5.1'!A76,AUX_2d_pais!$G$2:$G$20001,0) -> 
A77: 0500 | B77: Equador | C77: =+SUMIF(AUX_2d_pais!$A$2:$A$28000,'5.1'!$A77&'5.1'!C$3&1,AUX_2d_pais!$J$2:$J$28000)/1000 -> 0 | D77: =+SUMIF(AUX_2d_pais!$A$2:$A$28000,'5.1'!$A77&'5.1'!D$3&1,AUX_2d_pais!$J$2:$J$28000)/1000 -> 0 | E77: =+SUMIF(AUX_2d_pais!$A$2:$A$28000,'5.1'!$A77&'5.1'!E$3&1,AUX_2d_pais!$J$2:$J$28000)/1000 -> 0 | F77: =+SUMIF(AUX_2d_pais!$A$2:$A$28000,'5.1'!$A77&'5.1'!F$3&1,AUX_2d_pais!$J$2:$J$28000)/1000 -> 0 | G77: =+SUMIF(AUX_2d_pais!$A$2:$A$28000,'5.1'!$A77&'5.1'!G$3&1,AUX_2d_pais!$J$2:$J$28000)/1000 -> 0 | H77: 0 | I77: 0 | J77: =+SUMIF(AUX_2d_pais!$A$2:$A$28000,'5.1'!$A77&'5.1'!J$3&2,AUX_2d_pais!$J$2:$J$28000)/1000 -> 0 | K77: =+SUMIF(AUX_2d_pais!$A$2:$A$28000,'5.1'!$A77&'5.1'!K$3&2,AUX_2d_pais!$J$2:$J$28000)/1000 -> 0 | L77: =+SUMIF(AUX_2d_pais!$A$2:$A$28000,'5.1'!$A77&'5.1'!L$3&2,AUX_2d_pais!$J$2:$J$28000)/1000 -> 0 | M77: =+SUMIF(AUX_2d_pais!$A$2:$A$28000,'5.1'!$A77&'5.1'!M$3&2,AUX_2d_pais!$J$2:$J$28000)/1000 -> 0 | N77: =+SUMIF(AUX_2d_pais!$A$2:$A$28000,'5.1'!$A77&'5.1'!N$3&2,AUX_2d_pais!$J$2:$J$28000)/1000 -> 0 | O77: 0 | P77: 0 | Q77: 0 | S77: =G77-INDEX($C77:$G77,1,aux!$AL$1) -> 0 | T77: 0 | U77: =+IF(INDEX($C77:$G77,1,aux!$AL$1)>0,(G77/INDEX($C77:$G77,1,aux!$AL$1))^(1/($G$3-INDEX($C$3:$G$3,1,aux!$AL$1)))-1,"n.d.") -> n.d. | V77: =IF(INDEX($C77:$G77,1,aux!$AL$1)>0,(G77-INDEX($C77:$G77,1,aux!$AL$1))/INDEX($C77:$G77,1,aux!$AL$1),"n.d.") -> n.d. | X77: =N77-INDEX($J77:$N77,1,aux!$AL$1) -> 0 | Y77: 0 | Z77: =+IF(INDEX($J77:$N77,1,aux!$AL$1)>0,(N77/INDEX($J77:$N77,1,aux!$AL$1))^(1/($N$3-INDEX($J$3:$N$3,1,aux!$AL$1)))-1,"n.d.") -> n.d. | AA77: =IF(INDEX($J77:$N77,1,aux!$AL$1)>0,(N77-INDEX($J77:$N77,1,aux!$AL$1))/INDEX($J77:$N77,1,aux!$AL$1),"n.d.") -> n.d. | AC77: 0 | BS77: =+MATCH('5.1'!A77,AUX_2d_pais!$G$2:$G$20001,0) -> 
A78: 0336 | B78: Eritreia | C78: =+SUMIF(AUX_2d_pais!$A$2:$A$28000,'5.1'!$A78&'5.1'!C$3&1,AUX_2d_pais!$J$2:$J$28000)/1000 -> 0 | D78: =+SUMIF(AUX_2d_pais!$A$2:$A$28000,'5.1'!$A78&'5.1'!D$3&1,AUX_2d_pais!$J$2:$J$28000)/1000 -> 0 | E78: =+SUMIF(AUX_2d_pais!$A$2:$A$28000,'5.1'!$A78&'5.1'!E$3&1,AUX_2d_pais!$J$2:$J$28000)/1000 -> 0 | F78: =+SUMIF(AUX_2d_pais!$A$2:$A$28000,'5.1'!$A78&'5.1'!F$3&1,AUX_2d_pais!$J$2:$J$28000)/1000 -> 0 | G78: =+SUMIF(AUX_2d_pais!$A$2:$A$28000,'5.1'!$A78&'5.1'!G$3&1,AUX_2d_pais!$J$2:$J$28000)/1000 -> 0 | H78: 0 | I78: 0 | J78: =+SUMIF(AUX_2d_pais!$A$2:$A$28000,'5.1'!$A78&'5.1'!J$3&2,AUX_2d_pais!$J$2:$J$28000)/1000 -> 0 | K78: =+SUMIF(AUX_2d_pais!$A$2:$A$28000,'5.1'!$A78&'5.1'!K$3&2,AUX_2d_pais!$J$2:$J$28000)/1000 -> 0 | L78: =+SUMIF(AUX_2d_pais!$A$2:$A$28000,'5.1'!$A78&'5.1'!L$3&2,AUX_2d_pais!$J$2:$J$28000)/1000 -> 0 | M78: =+SUMIF(AUX_2d_pais!$A$2:$A$28000,'5.1'!$A78&'5.1'!M$3&2,AUX_2d_pais!$J$2:$J$28000)/1000 -> 0 | N78: =+SUMIF(AUX_2d_pais!$A$2:$A$28000,'5.1'!$A78&'5.1'!N$3&2,AUX_2d_pais!$J$2:$J$28000)/1000 -> 0 | O78: 0 | P78: 0 | Q78: 0 | S78: =G78-INDEX($C78:$G78,1,aux!$AL$1) -> 0 | T78: 0 | U78: =+IF(INDEX($C78:$G78,1,aux!$AL$1)>0,(G78/INDEX($C78:$G78,1,aux!$AL$1))^(1/($G$3-INDEX($C$3:$G$3,1,aux!$AL$1)))-1,"n.d.") -> n.d. | V78: =IF(INDEX($C78:$G78,1,aux!$AL$1)>0,(G78-INDEX($C78:$G78,1,aux!$AL$1))/INDEX($C78:$G78,1,aux!$AL$1),"n.d.") -> n.d. | X78: =N78-INDEX($J78:$N78,1,aux!$AL$1) -> 0 | Y78: 0 | Z78: =+IF(INDEX($J78:$N78,1,aux!$AL$1)>0,(N78/INDEX($J78:$N78,1,aux!$AL$1))^(1/($N$3-INDEX($J$3:$N$3,1,aux!$AL$1)))-1,"n.d.") -> n.d. | AA78: =IF(INDEX($J78:$N78,1,aux!$AL$1)>0,(N78-INDEX($J78:$N78,1,aux!$AL$1))/INDEX($J78:$N78,1,aux!$AL$1),"n.d.") -> n.d. | AC78: 0 | BS78: =+MATCH('5.1'!A78,AUX_2d_pais!$G$2:$G$20001,0) -> 
A79: 0063 | B79: Eslováquia | C79: =+SUMIF(AUX_2d_pais!$A$2:$A$28000,'5.1'!$A79&'5.1'!C$3&1,AUX_2d_pais!$J$2:$J$28000)/1000 -> 4353.484 | D79: =+SUMIF(AUX_2d_pais!$A$2:$A$28000,'5.1'!$A79&'5.1'!D$3&1,AUX_2d_pais!$J$2:$J$28000)/1000 -> 5223.348 | E79: =+SUMIF(AUX_2d_pais!$A$2:$A$28000,'5.1'!$A79&'5.1'!E$3&1,AUX_2d_pais!$J$2:$J$28000)/1000 -> 6170.695 | F79: =+SUMIF(AUX_2d_pais!$A$2:$A$28000,'5.1'!$A79&'5.1'!F$3&1,AUX_2d_pais!$J$2:$J$28000)/1000 -> 8367.367 | G79: =+SUMIF(AUX_2d_pais!$A$2:$A$28000,'5.1'!$A79&'5.1'!G$3&1,AUX_2d_pais!$J$2:$J$28000)/1000 -> 12341.32 | H79: 7291.2428 | I79: 0.0005742154127 | J79: =+SUMIF(AUX_2d_pais!$A$2:$A$28000,'5.1'!$A79&'5.1'!J$3&2,AUX_2d_pais!$J$2:$J$28000)/1000 -> 13441.735 | K79: =+SUMIF(AUX_2d_pais!$A$2:$A$28000,'5.1'!$A79&'5.1'!K$3&2,AUX_2d_pais!$J$2:$J$28000)/1000 -> 12488.857 | L79: =+SUMIF(AUX_2d_pais!$A$2:$A$28000,'5.1'!$A79&'5.1'!L$3&2,AUX_2d_pais!$J$2:$J$28000)/1000 -> 11714.139 | M79: =+SUMIF(AUX_2d_pais!$A$2:$A$28000,'5.1'!$A79&'5.1'!M$3&2,AUX_2d_pais!$J$2:$J$28000)/1000 -> 13786.034 | N79: =+SUMIF(AUX_2d_pais!$A$2:$A$28000,'5.1'!$A79&'5.1'!N$3&2,AUX_2d_pais!$J$2:$J$28000)/1000 -> 12518.422 | O79: 12789.8374 | P79: 0.001359294035 | Q79: 5498.5946 | S79: =G79-INDEX($C79:$G79,1,aux!$AL$1) -> 7987.836 | T79: 0.001612851217 | U79: =+IF(INDEX($C79:$G79,1,aux!$AL$1)>0,(G79/INDEX($C79:$G79,1,aux!$AL$1))^(1/($G$3-INDEX($C$3:$G$3,1,aux!$AL$1)))-1,"n.d.") -> 0.2975711029 | V79: =IF(INDEX($C79:$G79,1,aux!$AL$1)>0,(G79-INDEX($C79:$G79,1,aux!$AL$1))/INDEX($C79:$G79,1,aux!$AL$1),"n.d.") -> 1.834814599 | X79: =N79-INDEX($J79:$N79,1,aux!$AL$1) -> -923.313 | Y79: -0.0002655294646 | Z79: =+IF(INDEX($J79:$N79,1,aux!$AL$1)>0,(N79/INDEX($J79:$N79,1,aux!$AL$1))^(1/($N$3-INDEX($J$3:$N$3,1,aux!$AL$1)))-1,"n.d.") -> -0.01763345341 | AA79: =IF(INDEX($J79:$N79,1,aux!$AL$1)>0,(N79-INDEX($J79:$N79,1,aux!$AL$1))/INDEX($J79:$N79,1,aux!$AL$1),"n.d.") -> -0.06869001658 | BS79: =+MATCH('5.1'!A79,AUX_2d_pais!$G$2:$G$20001,0) -> 290
A80: 0091 | B80: Eslovénia | C80: =+SUMIF(AUX_2d_pais!$A$2:$A$28000,'5.1'!$A80&'5.1'!C$3&1,AUX_2d_pais!$J$2:$J$28000)/1000 -> 14698.287 | D80: =+SUMIF(AUX_2d_pais!$A$2:$A$28000,'5.1'!$A80&'5.1'!D$3&1,AUX_2d_pais!$J$2:$J$28000)/1000 -> 14857.302 | E80: =+SUMIF(AUX_2d_pais!$A$2:$A$28000,'5.1'!$A80&'5.1'!E$3&1,AUX_2d_pais!$J$2:$J$28000)/1000 -> 13323.275 | F80: =+SUMIF(AUX_2d_pais!$A$2:$A$28000,'5.1'!$A80&'5.1'!F$3&1,AUX_2d_pais!$J$2:$J$28000)/1000 -> 18183.023 | G80: =+SUMIF(AUX_2d_pais!$A$2:$A$28000,'5.1'!$A80&'5.1'!G$3&1,AUX_2d_pais!$J$2:$J$28000)/1000 -> 19041.896 | H80: 16020.7566 | I80: 0.001261700593 | J80: =+SUMIF(AUX_2d_pais!$A$2:$A$28000,'5.1'!$A80&'5.1'!J$3&2,AUX_2d_pais!$J$2:$J$28000)/1000 -> 7649.186 | K80: =+SUMIF(AUX_2d_pais!$A$2:$A$28000,'5.1'!$A80&'5.1'!K$3&2,AUX_2d_pais!$J$2:$J$28000)/1000 -> 5588.555 | L80: =+SUMIF(AUX_2d_pais!$A$2:$A$28000,'5.1'!$A80&'5.1'!L$3&2,AUX_2d_pais!$J$2:$J$28000)/1000 -> 8831.313 | M80: =+SUMIF(AUX_2d_pais!$A$2:$A$28000,'5.1'!$A80&'5.1'!M$3&2,AUX_2d_pais!$J$2:$J$28000)/1000 -> 10494.332 | N80: =+SUMIF(AUX_2d_pais!$A$2:$A$28000,'5.1'!$A80&'5.1'!N$3&2,AUX_2d_pais!$J$2:$J$28000)/1000 -> 7040.671 | O80: 7920.8114 | P80: 0.0008418177145 | Q80: -8099.9452 | S80: =G80-INDEX($C80:$G80,1,aux!$AL$1) -> 4343.609 | T80: 0.0008770329115 | U80: =+IF(INDEX($C80:$G80,1,aux!$AL$1)>0,(G80/INDEX($C80:$G80,1,aux!$AL$1))^(1/($G$3-INDEX($C$3:$G$3,1,aux!$AL$1)))-1,"n.d.") -> 0.06686843596 | V80: =IF(INDEX($C80:$G80,1,aux!$AL$1)>0,(G80-INDEX($C80:$G80,1,aux!$AL$1))/INDEX($C80:$G80,1,aux!$AL$1),"n.d.") -> 0.2955180423 | X80: =N80-INDEX($J80:$N80,1,aux!$AL$1) -> -608.515 | Y80: -0.0001749987947 | Z80: =+IF(INDEX($J80:$N80,1,aux!$AL$1)>0,(N80/INDEX($J80:$N80,1,aux!$AL$1))^(1/($N$3-INDEX($J$3:$N$3,1,aux!$AL$1)))-1,"n.d.") -> -0.02051067464 | AA80: =IF(INDEX($J80:$N80,1,aux!$AL$1)>0,(N80-INDEX($J80:$N80,1,aux!$AL$1))/INDEX($J80:$N80,1,aux!$AL$1),"n.d.") -> -0.07955290929 | BS80: =+MATCH('5.1'!A80,AUX_2d_pais!$G$2:$G$20001,0) -> 322
A81: 0011 | B81: Espanha | C81: =+SUMIF(AUX_2d_pais!$A$2:$A$28000,'5.1'!$A81&'5.1'!C$3&1,AUX_2d_pais!$J$2:$J$28000)/1000 -> 6368376.895 | D81: =+SUMIF(AUX_2d_pais!$A$2:$A$28000,'5.1'!$A81&'5.1'!D$3&1,AUX_2d_pais!$J$2:$J$28000)/1000 -> 6104930.576 | E81: =+SUMIF(AUX_2d_pais!$A$2:$A$28000,'5.1'!$A81&'5.1'!E$3&1,AUX_2d_pais!$J$2:$J$28000)/1000 -> 6978855.206 | F81: =+SUMIF(AUX_2d_pais!$A$2:$A$28000,'5.1'!$A81&'5.1'!F$3&1,AUX_2d_pais!$J$2:$J$28000)/1000 -> 8798283.131 | G81: =+SUMIF(AUX_2d_pais!$A$2:$A$28000,'5.1'!$A81&'5.1'!G$3&1,AUX_2d_pais!$J$2:$J$28000)/1000 -> 9413333.014 | H81: 7532755.764 | I81: 0.5932355537 | J81: =+SUMIF(AUX_2d_pais!$A$2:$A$28000,'5.1'!$A81&'5.1'!J$3&2,AUX_2d_pais!$J$2:$J$28000)/1000 -> 3619480.855 | K81: =+SUMIF(AUX_2d_pais!$A$2:$A$28000,'5.1'!$A81&'5.1'!K$3&2,AUX_2d_pais!$J$2:$J$28000)/1000 -> 3571177.168 | L81: =+SUMIF(AUX_2d_pais!$A$2:$A$28000,'5.1'!$A81&'5.1'!L$3&2,AUX_2d_pais!$J$2:$J$28000)/1000 -> 4349596.588 | M81: =+SUMIF(AUX_2d_pais!$A$2:$A$28000,'5.1'!$A81&'5.1'!M$3&2,AUX_2d_pais!$J$2:$J$28000)/1000 -> 5581183.937 | N81: =+SUMIF(AUX_2d_pais!$A$2:$A$28000,'5.1'!$A81&'5.1'!N$3&2,AUX_2d_pais!$J$2:$J$28000)/1000 -> 5841316.432 | O81: 4592550.996 | P81: 0.4880927708 | Q81: -2940204.768 | S81: =G81-INDEX($C81:$G81,1,aux!$AL$1) -> 3044956.119 | T81: 0.6148174779 | U81: =+IF(INDEX($C81:$G81,1,aux!$AL$1)>0,(G81/INDEX($C81:$G81,1,aux!$AL$1))^(1/($G$3-INDEX($C$3:$G$3,1,aux!$AL$1)))-1,"n.d.") -> 0.1026271102 | V81: =IF(INDEX($C81:$G81,1,aux!$AL$1)>0,(G81-INDEX($C81:$G81,1,aux!$AL$1))/INDEX($C81:$G81,1,aux!$AL$1),"n.d.") -> 0.4781369208 | X81: =N81-INDEX($J81:$N81,1,aux!$AL$1) -> 2221835.577 | Y81: 0.6389629641 | Z81: =+IF(INDEX($J81:$N81,1,aux!$AL$1)>0,(N81/INDEX($J81:$N81,1,aux!$AL$1))^(1/($N$3-INDEX($J$3:$N$3,1,aux!$AL$1)))-1,"n.d.") -> 0.1271095053 | AA81: =IF(INDEX($J81:$N81,1,aux!$AL$1)>0,(N81-INDEX($J81:$N81,1,aux!$AL$1))/INDEX($J81:$N81,1,aux!$AL$1),"n.d.") -> 0.613854767 | BS81: =+MATCH('5.1'!A81,AUX_2d_pais!$G$2:$G$20001,0) -> 50
A82: 0400 | B82: Estados Unidos | C82: =+SUMIF(AUX_2d_pais!$A$2:$A$28000,'5.1'!$A82&'5.1'!C$3&1,AUX_2d_pais!$J$2:$J$28000)/1000 -> 0 | D82: =+SUMIF(AUX_2d_pais!$A$2:$A$28000,'5.1'!$A82&'5.1'!D$3&1,AUX_2d_pais!$J$2:$J$28000)/1000 -> 0 | E82: =+SUMIF(AUX_2d_pais!$A$2:$A$28000,'5.1'!$A82&'5.1'!E$3&1,AUX_2d_pais!$J$2:$J$28000)/1000 -> 0 | F82: =+SUMIF(AUX_2d_pais!$A$2:$A$28000,'5.1'!$A82&'5.1'!F$3&1,AUX_2d_pais!$J$2:$J$28000)/1000 -> 0 | G82: =+SUMIF(AUX_2d_pais!$A$2:$A$28000,'5.1'!$A82&'5.1'!G$3&1,AUX_2d_pais!$J$2:$J$28000)/1000 -> 0 | H82: 0 | I82: 0 | J82: =+SUMIF(AUX_2d_pais!$A$2:$A$28000,'5.1'!$A82&'5.1'!J$3&2,AUX_2d_pais!$J$2:$J$28000)/1000 -> 0 | K82: =+SUMIF(AUX_2d_pais!$A$2:$A$28000,'5.1'!$A82&'5.1'!K$3&2,AUX_2d_pais!$J$2:$J$28000)/1000 -> 0 | L82: =+SUMIF(AUX_2d_pais!$A$2:$A$28000,'5.1'!$A82&'5.1'!L$3&2,AUX_2d_pais!$J$2:$J$28000)/1000 -> 0 | M82: =+SUMIF(AUX_2d_pais!$A$2:$A$28000,'5.1'!$A82&'5.1'!M$3&2,AUX_2d_pais!$J$2:$J$28000)/1000 -> 0 | N82: =+SUMIF(AUX_2d_pais!$A$2:$A$28000,'5.1'!$A82&'5.1'!N$3&2,AUX_2d_pais!$J$2:$J$28000)/1000 -> 0 | O82: 0 | P82: 0 | Q82: 0 | S82: =G82-INDEX($C82:$G82,1,aux!$AL$1) -> 0 | T82: 0 | U82: =+IF(INDEX($C82:$G82,1,aux!$AL$1)>0,(G82/INDEX($C82:$G82,1,aux!$AL$1))^(1/($G$3-INDEX($C$3:$G$3,1,aux!$AL$1)))-1,"n.d.") -> n.d. | V82: =IF(INDEX($C82:$G82,1,aux!$AL$1)>0,(G82-INDEX($C82:$G82,1,aux!$AL$1))/INDEX($C82:$G82,1,aux!$AL$1),"n.d.") -> n.d. | X82: =N82-INDEX($J82:$N82,1,aux!$AL$1) -> 0 | Y82: 0 | Z82: =+IF(INDEX($J82:$N82,1,aux!$AL$1)>0,(N82/INDEX($J82:$N82,1,aux!$AL$1))^(1/($N$3-INDEX($J$3:$N$3,1,aux!$AL$1)))-1,"n.d.") -> n.d. | AA82: =IF(INDEX($J82:$N82,1,aux!$AL$1)>0,(N82-INDEX($J82:$N82,1,aux!$AL$1))/INDEX($J82:$N82,1,aux!$AL$1),"n.d.") -> n.d. | AC82: 0 | BS82: =+MATCH('5.1'!A82,AUX_2d_pais!$G$2:$G$20001,0) -> 
A83: 0053 | B83: Estónia | C83: =+SUMIF(AUX_2d_pais!$A$2:$A$28000,'5.1'!$A83&'5.1'!C$3&1,AUX_2d_pais!$J$2:$J$28000)/1000 -> 9723.341 | D83: =+SUMIF(AUX_2d_pais!$A$2:$A$28000,'5.1'!$A83&'5.1'!D$3&1,AUX_2d_pais!$J$2:$J$28000)/1000 -> 8255.751 | E83: =+SUMIF(AUX_2d_pais!$A$2:$A$28000,'5.1'!$A83&'5.1'!E$3&1,AUX_2d_pais!$J$2:$J$28000)/1000 -> 20432.048 | F83: =+SUMIF(AUX_2d_pais!$A$2:$A$28000,'5.1'!$A83&'5.1'!F$3&1,AUX_2d_pais!$J$2:$J$28000)/1000 -> 12538.597 | G83: =+SUMIF(AUX_2d_pais!$A$2:$A$28000,'5.1'!$A83&'5.1'!G$3&1,AUX_2d_pais!$J$2:$J$28000)/1000 -> 30297.026 | H83: 16249.3526 | I83: 0.00127970347 | J83: =+SUMIF(AUX_2d_pais!$A$2:$A$28000,'5.1'!$A83&'5.1'!J$3&2,AUX_2d_pais!$J$2:$J$28000)/1000 -> 8788.04 | K83: =+SUMIF(AUX_2d_pais!$A$2:$A$28000,'5.1'!$A83&'5.1'!K$3&2,AUX_2d_pais!$J$2:$J$28000)/1000 -> 5801.253 | L83: =+SUMIF(AUX_2d_pais!$A$2:$A$28000,'5.1'!$A83&'5.1'!L$3&2,AUX_2d_pais!$J$2:$J$28000)/1000 -> 7970.299 | M83: =+SUMIF(AUX_2d_pais!$A$2:$A$28000,'5.1'!$A83&'5.1'!M$3&2,AUX_2d_pais!$J$2:$J$28000)/1000 -> 10642.891 | N83: =+SUMIF(AUX_2d_pais!$A$2:$A$28000,'5.1'!$A83&'5.1'!N$3&2,AUX_2d_pais!$J$2:$J$28000)/1000 -> 8994.144 | O83: 8439.3254 | P83: 0.0008969249817 | Q83: -7810.0272 | S83: =G83-INDEX($C83:$G83,1,aux!$AL$1) -> 20573.685 | T83: 0.004154102926 | U83: =+IF(INDEX($C83:$G83,1,aux!$AL$1)>0,(G83/INDEX($C83:$G83,1,aux!$AL$1))^(1/($G$3-INDEX($C$3:$G$3,1,aux!$AL$1)))-1,"n.d.") -> 0.3286057287 | V83: =IF(INDEX($C83:$G83,1,aux!$AL$1)>0,(G83-INDEX($C83:$G83,1,aux!$AL$1))/INDEX($C83:$G83,1,aux!$AL$1),"n.d.") -> 2.115906971 | X83: =N83-INDEX($J83:$N83,1,aux!$AL$1) -> 206.104 | Y83: 5.927208301e-05 | Z83: =+IF(INDEX($J83:$N83,1,aux!$AL$1)>0,(N83/INDEX($J83:$N83,1,aux!$AL$1))^(1/($N$3-INDEX($J$3:$N$3,1,aux!$AL$1)))-1,"n.d.") -> 0.00581232457 | AA83: =IF(INDEX($J83:$N83,1,aux!$AL$1)>0,(N83-INDEX($J83:$N83,1,aux!$AL$1))/INDEX($J83:$N83,1,aux!$AL$1),"n.d.") -> 0.02345278356 | BS83: =+MATCH('5.1'!A83,AUX_2d_pais!$G$2:$G$20001,0) -> 87
A84: 0334 | B84: Etiópia | C84: =+SUMIF(AUX_2d_pais!$A$2:$A$28000,'5.1'!$A84&'5.1'!C$3&1,AUX_2d_pais!$J$2:$J$28000)/1000 -> 0 | D84: =+SUMIF(AUX_2d_pais!$A$2:$A$28000,'5.1'!$A84&'5.1'!D$3&1,AUX_2d_pais!$J$2:$J$28000)/1000 -> 0 | E84: =+SUMIF(AUX_2d_pais!$A$2:$A$28000,'5.1'!$A84&'5.1'!E$3&1,AUX_2d_pais!$J$2:$J$28000)/1000 -> 0 | F84: =+SUMIF(AUX_2d_pais!$A$2:$A$28000,'5.1'!$A84&'5.1'!F$3&1,AUX_2d_pais!$J$2:$J$28000)/1000 -> 0 | G84: =+SUMIF(AUX_2d_pais!$A$2:$A$28000,'5.1'!$A84&'5.1'!G$3&1,AUX_2d_pais!$J$2:$J$28000)/1000 -> 0 | H84: 0 | I84: 0 | J84: =+SUMIF(AUX_2d_pais!$A$2:$A$28000,'5.1'!$A84&'5.1'!J$3&2,AUX_2d_pais!$J$2:$J$28000)/1000 -> 0 | K84: =+SUMIF(AUX_2d_pais!$A$2:$A$28000,'5.1'!$A84&'5.1'!K$3&2,AUX_2d_pais!$J$2:$J$28000)/1000 -> 0 | L84: =+SUMIF(AUX_2d_pais!$A$2:$A$28000,'5.1'!$A84&'5.1'!L$3&2,AUX_2d_pais!$J$2:$J$28000)/1000 -> 0 | M84: =+SUMIF(AUX_2d_pais!$A$2:$A$28000,'5.1'!$A84&'5.1'!M$3&2,AUX_2d_pais!$J$2:$J$28000)/1000 -> 0 | N84: =+SUMIF(AUX_2d_pais!$A$2:$A$28000,'5.1'!$A84&'5.1'!N$3&2,AUX_2d_pais!$J$2:$J$28000)/1000 -> 0 | O84: 0 | P84: 0 | Q84: 0 | S84: =G84-INDEX($C84:$G84,1,aux!$AL$1) -> 0 | T84: 0 | U84: =+IF(INDEX($C84:$G84,1,aux!$AL$1)>0,(G84/INDEX($C84:$G84,1,aux!$AL$1))^(1/($G$3-INDEX($C$3:$G$3,1,aux!$AL$1)))-1,"n.d.") -> n.d. | V84: =IF(INDEX($C84:$G84,1,aux!$AL$1)>0,(G84-INDEX($C84:$G84,1,aux!$AL$1))/INDEX($C84:$G84,1,aux!$AL$1),"n.d.") -> n.d. | X84: =N84-INDEX($J84:$N84,1,aux!$AL$1) -> 0 | Y84: 0 | Z84: =+IF(INDEX($J84:$N84,1,aux!$AL$1)>0,(N84/INDEX($J84:$N84,1,aux!$AL$1))^(1/($N$3-INDEX($J$3:$N$3,1,aux!$AL$1)))-1,"n.d.") -> n.d. | AA84: =IF(INDEX($J84:$N84,1,aux!$AL$1)>0,(N84-INDEX($J84:$N84,1,aux!$AL$1))/INDEX($J84:$N84,1,aux!$AL$1),"n.d.") -> n.d. | AC84: 0 | BS84: =+MATCH('5.1'!A84,AUX_2d_pais!$G$2:$G$20001,0) -> 
A85: 0529 | B85: Falkland Ilhas (Malvinas) | C85: =+SUMIF(AUX_2d_pais!$A$2:$A$28000,'5.1'!$A85&'5.1'!C$3&1,AUX_2d_pais!$J$2:$J$28000)/1000 -> 0 | D85: =+SUMIF(AUX_2d_pais!$A$2:$A$28000,'5.1'!$A85&'5.1'!D$3&1,AUX_2d_pais!$J$2:$J$28000)/1000 -> 0 | E85: =+SUMIF(AUX_2d_pais!$A$2:$A$28000,'5.1'!$A85&'5.1'!E$3&1,AUX_2d_pais!$J$2:$J$28000)/1000 -> 0 | F85: =+SUMIF(AUX_2d_pais!$A$2:$A$28000,'5.1'!$A85&'5.1'!F$3&1,AUX_2d_pais!$J$2:$J$28000)/1000 -> 0 | G85: =+SUMIF(AUX_2d_pais!$A$2:$A$28000,'5.1'!$A85&'5.1'!G$3&1,AUX_2d_pais!$J$2:$J$28000)/1000 -> 0 | H85: 0 | I85: 0 | J85: =+SUMIF(AUX_2d_pais!$A$2:$A$28000,'5.1'!$A85&'5.1'!J$3&2,AUX_2d_pais!$J$2:$J$28000)/1000 -> 0 | K85: =+SUMIF(AUX_2d_pais!$A$2:$A$28000,'5.1'!$A85&'5.1'!K$3&2,AUX_2d_pais!$J$2:$J$28000)/1000 -> 0 | L85: =+SUMIF(AUX_2d_pais!$A$2:$A$28000,'5.1'!$A85&'5.1'!L$3&2,AUX_2d_pais!$J$2:$J$28000)/1000 -> 0 | M85: =+SUMIF(AUX_2d_pais!$A$2:$A$28000,'5.1'!$A85&'5.1'!M$3&2,AUX_2d_pais!$J$2:$J$28000)/1000 -> 0 | N85: =+SUMIF(AUX_2d_pais!$A$2:$A$28000,'5.1'!$A85&'5.1'!N$3&2,AUX_2d_pais!$J$2:$J$28000)/1000 -> 0 | O85: 0 | P85: 0 | Q85: 0 | S85: =G85-INDEX($C85:$G85,1,aux!$AL$1) -> 0 | T85: 0 | U85: =+IF(INDEX($C85:$G85,1,aux!$AL$1)>0,(G85/INDEX($C85:$G85,1,aux!$AL$1))^(1/($G$3-INDEX($C$3:$G$3,1,aux!$AL$1)))-1,"n.d.") -> n.d. | V85: =IF(INDEX($C85:$G85,1,aux!$AL$1)>0,(G85-INDEX($C85:$G85,1,aux!$AL$1))/INDEX($C85:$G85,1,aux!$AL$1),"n.d.") -> n.d. | X85: =N85-INDEX($J85:$N85,1,aux!$AL$1) -> 0 | Y85: 0 | Z85: =+IF(INDEX($J85:$N85,1,aux!$AL$1)>0,(N85/INDEX($J85:$N85,1,aux!$AL$1))^(1/($N$3-INDEX($J$3:$N$3,1,aux!$AL$1)))-1,"n.d.") -> n.d. | AA85: =IF(INDEX($J85:$N85,1,aux!$AL$1)>0,(N85-INDEX($J85:$N85,1,aux!$AL$1))/INDEX($J85:$N85,1,aux!$AL$1),"n.d.") -> n.d. | AC85: 0 | BS85: =+MATCH('5.1'!A85,AUX_2d_pais!$G$2:$G$20001,0) -> 
A86: 0041 | B86: Faroé, Ilhas | C86: =+SUMIF(AUX_2d_pais!$A$2:$A$28000,'5.1'!$A86&'5.1'!C$3&1,AUX_2d_pais!$J$2:$J$28000)/1000 -> 0 | D86: =+SUMIF(AUX_2d_pais!$A$2:$A$28000,'5.1'!$A86&'5.1'!D$3&1,AUX_2d_pais!$J$2:$J$28000)/1000 -> 0 | E86: =+SUMIF(AUX_2d_pais!$A$2:$A$28000,'5.1'!$A86&'5.1'!E$3&1,AUX_2d_pais!$J$2:$J$28000)/1000 -> 0 | F86: =+SUMIF(AUX_2d_pais!$A$2:$A$28000,'5.1'!$A86&'5.1'!F$3&1,AUX_2d_pais!$J$2:$J$28000)/1000 -> 0 | G86: =+SUMIF(AUX_2d_pais!$A$2:$A$28000,'5.1'!$A86&'5.1'!G$3&1,AUX_2d_pais!$J$2:$J$28000)/1000 -> 0 | H86: 0 | I86: 0 | J86: =+SUMIF(AUX_2d_pais!$A$2:$A$28000,'5.1'!$A86&'5.1'!J$3&2,AUX_2d_pais!$J$2:$J$28000)/1000 -> 0 | K86: =+SUMIF(AUX_2d_pais!$A$2:$A$28000,'5.1'!$A86&'5.1'!K$3&2,AUX_2d_pais!$J$2:$J$28000)/1000 -> 0 | L86: =+SUMIF(AUX_2d_pais!$A$2:$A$28000,'5.1'!$A86&'5.1'!L$3&2,AUX_2d_pais!$J$2:$J$28000)/1000 -> 0 | M86: =+SUMIF(AUX_2d_pais!$A$2:$A$28000,'5.1'!$A86&'5.1'!M$3&2,AUX_2d_pais!$J$2:$J$28000)/1000 -> 0 | N86: =+SUMIF(AUX_2d_pais!$A$2:$A$28000,'5.1'!$A86&'5.1'!N$3&2,AUX_2d_pais!$J$2:$J$28000)/1000 -> 0 | O86: 0 | P86: 0 | Q86: 0 | S86: =G86-INDEX($C86:$G86,1,aux!$AL$1) -> 0 | T86: 0 | U86: =+IF(INDEX($C86:$G86,1,aux!$AL$1)>0,(G86/INDEX($C86:$G86,1,aux!$AL$1))^(1/($G$3-INDEX($C$3:$G$3,1,aux!$AL$1)))-1,"n.d.") -> n.d. | V86: =IF(INDEX($C86:$G86,1,aux!$AL$1)>0,(G86-INDEX($C86:$G86,1,aux!$AL$1))/INDEX($C86:$G86,1,aux!$AL$1),"n.d.") -> n.d. | X86: =N86-INDEX($J86:$N86,1,aux!$AL$1) -> 0 | Y86: 0 | Z86: =+IF(INDEX($J86:$N86,1,aux!$AL$1)>0,(N86/INDEX($J86:$N86,1,aux!$AL$1))^(1/($N$3-INDEX($J$3:$N$3,1,aux!$AL$1)))-1,"n.d.") -> n.d. | AA86: =IF(INDEX($J86:$N86,1,aux!$AL$1)>0,(N86-INDEX($J86:$N86,1,aux!$AL$1))/INDEX($J86:$N86,1,aux!$AL$1),"n.d.") -> n.d. | AC86: 0 | BS86: =+MATCH('5.1'!A86,AUX_2d_pais!$G$2:$G$20001,0) -> 
A87: 0815 | B87: Fiji, Ilhas | C87: =+SUMIF(AUX_2d_pais!$A$2:$A$28000,'5.1'!$A87&'5.1'!C$3&1,AUX_2d_pais!$J$2:$J$28000)/1000 -> 0 | D87: =+SUMIF(AUX_2d_pais!$A$2:$A$28000,'5.1'!$A87&'5.1'!D$3&1,AUX_2d_pais!$J$2:$J$28000)/1000 -> 0 | E87: =+SUMIF(AUX_2d_pais!$A$2:$A$28000,'5.1'!$A87&'5.1'!E$3&1,AUX_2d_pais!$J$2:$J$28000)/1000 -> 0 | F87: =+SUMIF(AUX_2d_pais!$A$2:$A$28000,'5.1'!$A87&'5.1'!F$3&1,AUX_2d_pais!$J$2:$J$28000)/1000 -> 0 | G87: =+SUMIF(AUX_2d_pais!$A$2:$A$28000,'5.1'!$A87&'5.1'!G$3&1,AUX_2d_pais!$J$2:$J$28000)/1000 -> 0 | H87: 0 | I87: 0 | J87: =+SUMIF(AUX_2d_pais!$A$2:$A$28000,'5.1'!$A87&'5.1'!J$3&2,AUX_2d_pais!$J$2:$J$28000)/1000 -> 0 | K87: =+SUMIF(AUX_2d_pais!$A$2:$A$28000,'5.1'!$A87&'5.1'!K$3&2,AUX_2d_pais!$J$2:$J$28000)/1000 -> 0 | L87: =+SUMIF(AUX_2d_pais!$A$2:$A$28000,'5.1'!$A87&'5.1'!L$3&2,AUX_2d_pais!$J$2:$J$28000)/1000 -> 0 | M87: =+SUMIF(AUX_2d_pais!$A$2:$A$28000,'5.1'!$A87&'5.1'!M$3&2,AUX_2d_pais!$J$2:$J$28000)/1000 -> 0 | N87: =+SUMIF(AUX_2d_pais!$A$2:$A$28000,'5.1'!$A87&'5.1'!N$3&2,AUX_2d_pais!$J$2:$J$28000)/1000 -> 0 | O87: 0 | P87: 0 | Q87: 0 | S87: =G87-INDEX($C87:$G87,1,aux!$AL$1) -> 0 | T87: 0 | U87: =+IF(INDEX($C87:$G87,1,aux!$AL$1)>0,(G87/INDEX($C87:$G87,1,aux!$AL$1))^(1/($G$3-INDEX($C$3:$G$3,1,aux!$AL$1)))-1,"n.d.") -> n.d. | V87: =IF(INDEX($C87:$G87,1,aux!$AL$1)>0,(G87-INDEX($C87:$G87,1,aux!$AL$1))/INDEX($C87:$G87,1,aux!$AL$1),"n.d.") -> n.d. | X87: =N87-INDEX($J87:$N87,1,aux!$AL$1) -> 0 | Y87: 0 | Z87: =+IF(INDEX($J87:$N87,1,aux!$AL$1)>0,(N87/INDEX($J87:$N87,1,aux!$AL$1))^(1/($N$3-INDEX($J$3:$N$3,1,aux!$AL$1)))-1,"n.d.") -> n.d. | AA87: =IF(INDEX($J87:$N87,1,aux!$AL$1)>0,(N87-INDEX($J87:$N87,1,aux!$AL$1))/INDEX($J87:$N87,1,aux!$AL$1),"n.d.") -> n.d. | AC87: 0 | BS87: =+MATCH('5.1'!A87,AUX_2d_pais!$G$2:$G$20001,0) -> 
A88: 0708 | B88: Filipinas | C88: =+SUMIF(AUX_2d_pais!$A$2:$A$28000,'5.1'!$A88&'5.1'!C$3&1,AUX_2d_pais!$J$2:$J$28000)/1000 -> 0 | D88: =+SUMIF(AUX_2d_pais!$A$2:$A$28000,'5.1'!$A88&'5.1'!D$3&1,AUX_2d_pais!$J$2:$J$28000)/1000 -> 0 | E88: =+SUMIF(AUX_2d_pais!$A$2:$A$28000,'5.1'!$A88&'5.1'!E$3&1,AUX_2d_pais!$J$2:$J$28000)/1000 -> 0 | F88: =+SUMIF(AUX_2d_pais!$A$2:$A$28000,'5.1'!$A88&'5.1'!F$3&1,AUX_2d_pais!$J$2:$J$28000)/1000 -> 0 | G88: =+SUMIF(AUX_2d_pais!$A$2:$A$28000,'5.1'!$A88&'5.1'!G$3&1,AUX_2d_pais!$J$2:$J$28000)/1000 -> 0 | H88: 0 | I88: 0 | J88: =+SUMIF(AUX_2d_pais!$A$2:$A$28000,'5.1'!$A88&'5.1'!J$3&2,AUX_2d_pais!$J$2:$J$28000)/1000 -> 0 | K88: =+SUMIF(AUX_2d_pais!$A$2:$A$28000,'5.1'!$A88&'5.1'!K$3&2,AUX_2d_pais!$J$2:$J$28000)/1000 -> 0 | L88: =+SUMIF(AUX_2d_pais!$A$2:$A$28000,'5.1'!$A88&'5.1'!L$3&2,AUX_2d_pais!$J$2:$J$28000)/1000 -> 0 | M88: =+SUMIF(AUX_2d_pais!$A$2:$A$28000,'5.1'!$A88&'5.1'!M$3&2,AUX_2d_pais!$J$2:$J$28000)/1000 -> 0 | N88: =+SUMIF(AUX_2d_pais!$A$2:$A$28000,'5.1'!$A88&'5.1'!N$3&2,AUX_2d_pais!$J$2:$J$28000)/1000 -> 0 | O88: 0 | P88: 0 | Q88: 0 | S88: =G88-INDEX($C88:$G88,1,aux!$AL$1) -> 0 | T88: 0 | U88: =+IF(INDEX($C88:$G88,1,aux!$AL$1)>0,(G88/INDEX($C88:$G88,1,aux!$AL$1))^(1/($G$3-INDEX($C$3:$G$3,1,aux!$AL$1)))-1,"n.d.") -> n.d. | V88: =IF(INDEX($C88:$G88,1,aux!$AL$1)>0,(G88-INDEX($C88:$G88,1,aux!$AL$1))/INDEX($C88:$G88,1,aux!$AL$1),"n.d.") -> n.d. | X88: =N88-INDEX($J88:$N88,1,aux!$AL$1) -> 0 | Y88: 0 | Z88: =+IF(INDEX($J88:$N88,1,aux!$AL$1)>0,(N88/INDEX($J88:$N88,1,aux!$AL$1))^(1/($N$3-INDEX($J$3:$N$3,1,aux!$AL$1)))-1,"n.d.") -> n.d. | AA88: =IF(INDEX($J88:$N88,1,aux!$AL$1)>0,(N88-INDEX($J88:$N88,1,aux!$AL$1))/INDEX($J88:$N88,1,aux!$AL$1),"n.d.") -> n.d. | AC88: 0 | BS88: =+MATCH('5.1'!A88,AUX_2d_pais!$G$2:$G$20001,0) -> 
A89: 0032 | B89: Finlândia | C89: =+SUMIF(AUX_2d_pais!$A$2:$A$28000,'5.1'!$A89&'5.1'!C$3&1,AUX_2d_pais!$J$2:$J$28000)/1000 -> 66473.432 | D89: =+SUMIF(AUX_2d_pais!$A$2:$A$28000,'5.1'!$A89&'5.1'!D$3&1,AUX_2d_pais!$J$2:$J$28000)/1000 -> 62230.234 | E89: =+SUMIF(AUX_2d_pais!$A$2:$A$28000,'5.1'!$A89&'5.1'!E$3&1,AUX_2d_pais!$J$2:$J$28000)/1000 -> 72783.897 | F89: =+SUMIF(AUX_2d_pais!$A$2:$A$28000,'5.1'!$A89&'5.1'!F$3&1,AUX_2d_pais!$J$2:$J$28000)/1000 -> 107699.86 | G89: =+SUMIF(AUX_2d_pais!$A$2:$A$28000,'5.1'!$A89&'5.1'!G$3&1,AUX_2d_pais!$J$2:$J$28000)/1000 -> 98111 | H89: 81459.6846 | I89: 0.006415285801 | J89: =+SUMIF(AUX_2d_pais!$A$2:$A$28000,'5.1'!$A89&'5.1'!J$3&2,AUX_2d_pais!$J$2:$J$28000)/1000 -> 26603.465 | K89: =+SUMIF(AUX_2d_pais!$A$2:$A$28000,'5.1'!$A89&'5.1'!K$3&2,AUX_2d_pais!$J$2:$J$28000)/1000 -> 27335.33 | L89: =+SUMIF(AUX_2d_pais!$A$2:$A$28000,'5.1'!$A89&'5.1'!L$3&2,AUX_2d_pais!$J$2:$J$28000)/1000 -> 29917.193 | M89: =+SUMIF(AUX_2d_pais!$A$2:$A$28000,'5.1'!$A89&'5.1'!M$3&2,AUX_2d_pais!$J$2:$J$28000)/1000 -> 34948.674 | N89: =+SUMIF(AUX_2d_pais!$A$2:$A$28000,'5.1'!$A89&'5.1'!N$3&2,AUX_2d_pais!$J$2:$J$28000)/1000 -> 35140.191 | O89: 30788.9706 | P89: 0.003272228002 | Q89: -50670.714 | S89: =G89-INDEX($C89:$G89,1,aux!$AL$1) -> 31637.568 | T89: 0.006388049287 | U89: =+IF(INDEX($C89:$G89,1,aux!$AL$1)>0,(G89/INDEX($C89:$G89,1,aux!$AL$1))^(1/($G$3-INDEX($C$3:$G$3,1,aux!$AL$1)))-1,"n.d.") -> 0.1022177488 | V89: =IF(INDEX($C89:$G89,1,aux!$AL$1)>0,(G89-INDEX($C89:$G89,1,aux!$AL$1))/INDEX($C89:$G89,1,aux!$AL$1),"n.d.") -> 0.4759430505 | X89: =N89-INDEX($J89:$N89,1,aux!$AL$1) -> 8536.726 | Y89: 0.002455020437 | Z89: =+IF(INDEX($J89:$N89,1,aux!$AL$1)>0,(N89/INDEX($J89:$N89,1,aux!$AL$1))^(1/($N$3-INDEX($J$3:$N$3,1,aux!$AL$1)))-1,"n.d.") -> 0.07205354696 | AA89: =IF(INDEX($J89:$N89,1,aux!$AL$1)>0,(N89-INDEX($J89:$N89,1,aux!$AL$1))/INDEX($J89:$N89,1,aux!$AL$1),"n.d.") -> 0.320887749 | BS89: =+MATCH('5.1'!A89,AUX_2d_pais!$G$2:$G$20001,0) -> 78
